Workbook

Sheet Personal Expense Budget
A1: My Household Budget Needs | E1: Weekly | F1: Monthly | G1: Annual | I1: Household Income | L1: =SUM(J6:J12)*52+SUM(K6:K12)*12+SUM(L6:L12) -> 30000
D2: TOTALS | E2: =SUM(E6:E60) -> 444.1752137 | F2: =SUM(F6:F60) -> 1791.259259 | G2: =SUM(G6:G60) -> 21495.11111
B3: Enter expense estimate in ONE | E3: Enter expense estimate in ONE | J3: INCOME
B4: column Weekly/Monthly/Annual | E4: column Weekly/Monthly/Annual | J4: Enter value in only one column!
A5: Dwelling: | B5: Weekly | C5: Monthly | D5: Annual | E5: Weekly | F5: Monthly | G5: Annual | I5: Source | J5: Weekly | K5: Monthly | L5: Annual
A6: Rent Payment | C6: 525 | E6: =B6+C6/4+D6/52 -> 131.25 | F6: =B6*4+C6+D6/12 -> 525 | G6: =B6*52+C6*12+D6 -> 6300 | I6: Wage Income | K6: 1500
A7: House Payment | E7: =B7+C7/4+D7/52 -> 0 | F7: =B7*4+C7+D7/12 -> 0 | G7: =B7*52+C7*12+D7 -> 0 | I7: Business | K7: 1000
A8: Property Tax | E8: 0 | F8: 0 | G8: 0
A9: House Repair | E9: 0 | F9: 0 | G9: 0
A10: Miscellaneous Expenses (lawn mowing, cleaning, snow shoveling) | C10: 10 | E10: 2.5 | F10: 10 | G10: 120
A11: Homeowner’s Association Dues | E11: 0 | F11: 0 | G11: 0
A12: Insurance | D12: 300 | E12: 5.769230769 | F12: 25 | G12: 300
A13: Furniture/Appliance Payments | E13: 0 | F13: 0 | G13: 0
E14: 0 | F14: 0 | G14: 0
A15: Transportation | E15: 0 | F15: 0 | G15: 0
A16: Car Payment(s) | C16: 268 | E16: 67 | F16: 268 | G16: 3216
A17: Other Vehicle Payment(s) | E17: 0 | F17: 0 | G17: 0
A18: Vehicle Upkeep/Repair | E18: 0 | F18: 0 | G18: 0
A19: Fuel | D19: =10000/45*3.65 -> 811.1111111 | E19: 15.5982906 | F19: 67.59259259 | G19: 811.1111111
A20: Insurance | D20: 800 | E20: 15.38461538 | F20: 66.66666667 | G20: 800
A21: License(s) | D21: 110 | E21: 2.115384615 | F21: 9.166666667 | G21: 110
A22: Public Transportation | E22: 0 | F22: 0 | G22: 0
E23: 0 | F23: 0 | G23: 0
A24: Utilities | E24: 0 | F24: 0 | G24: 0
A25: Telephone | C25: 55 | E25: 13.75 | F25: 55 | G25: 660
A26: Gas | C26: 134 | E26: 33.5 | F26: 134 | G26: 1608
A27: Electricity | E27: 0 | F27: 0 | G27: 0
A28: Water | E28: 0 | F28: 0 | G28: 0
A29: Trash | E29: 0 | F29: 0 | G29: 0
E30: 0 | F30: 0 | G30: 0
A31: Personal | E31: 0 | F31: 0 | G31: 0
A32: Groceries | C32: 250 | E32: 62.5 | F32: 250 | G32: 3000
A33: Dining Out | E33: 0 | F33: 0 | G33: 0
A34: Entertainment | C34: 100 | E34: 25 | F34: 100 | G34: 1200
A35: Tobacco Products | E35: 0 | F35: 0 | G35: 0
A36: Medical/Dental/Vision Insurance | E36: 0 | F36: 0 | G36: 0
A37: Clothing | D37: 100 | E37: 1.923076923 | F37: 8.333333333 | G37: 100
A38: Laundry/Dry Cleaning | E38: 0 | F38: 0 | G38: 0
A39: Medical/Dental/Vision/Hospital Exp | E39: 0 | F39: 0 | G39: 0
A40: Prescriptions | C40: 100 | E40: 25 | F40: 100 | G40: 1200
A41: Education | E41: 0 | F41: 0 | G41: 0
A42: Credit Card Payments | C42: 75 | E42: 18.75 | F42: 75 | G42: 900
A43: Loan Payments | E43: 0 | F43: 0 | G43: 0
A44: Pets | E44: 0 | F44: 0 | G44: 0
A45: Dues & Subscriptions | E45: 0 | F45: 0 | G45: 0
A46: Gifts | D46: 150 | E46: 2.884615385 | F46: 12.5 | G46: 150
A47: Donations | E47: 0 | F47: 0 | G47: 0
A48: Travel | E48: 0 | F48: 0 | G48: 0
A49: Cable TV | C49: 85 | E49: 21.25 | F49: 85 | G49: 1020
A50: Personal | E50: 0 | F50: 0 | G50: 0
A51: Hobbies/Crafts | E51: 0 | F51: 0 | G51: 0
A52: Music | E52: 0 | F52: 0 | G52: 0
A53: Personal Assistant | E53: 0 | F53: 0 | G53: 0
A54: Assistive technology purchase, payments & maintenance | E54: 0 | F54: 0 | G54: 0
A55: Internet Access | E55: 0 | F55: 0 | G55: 0
A56: Other: | E56: 0 | F56: 0 | G56: 0
E57: 0 | F57: 0 | G57: 0
G58: 0
E59: 0 | F59: 0 | G59: 0
E60: 0 | F60: 0 | G60: 0

Sheet 0. Basic Info
A1: Basic Information Sheet | E1: =D11 -> My Business
A3: This sheet is for entering basic information about your company that is then used on other sheets in the workbook.
B5: TIP: On this sheet and alll other worksheets, be sure to ONLY change values with BLUE font color.
B6: Black and other font color cells are calculated automatically and should not be manually adjusted.
A9: 1. Let's start off by entering the name of your company below:
C11: Your Business Name | D11: My Business
A14: 2. When do you plan to start your business? (If already in business, enter when you want the plan to start)
C16: Starting Year | D16: 2019
C17: Starting Month | D17: 1 | E17: =TEXT(DATE(+D16,+D17,1),"MMM") -> Jan
A20: 3. Optional. What do you estimate your income tax rate will be?
C22: Personal Income Tax | D22: 0.15
A25: 4. Below is a brief description of the workbook tabs and recommended order of completion.
B27: Tab # | C27: Name | D27: Description
B28: 0 | C28: Basic Info | D28: Company name, starting year and month, tax rates
B29: 1 | C29: Sales Forecast | D29: Estimate pricing, units sold/month and cost of goods sold
B30: 2 | C30: Operating Budget | D30: Monthly expenses - rent, insurance, utilities, marketing, phone, etc
B31: 3 | C31: Startup Costs | D31: One-time startup expenses like incorporation costs, legal, etc.
B32: 4 | C32: Equipment & Vehicle | D32: One-time purchase of equipment like office equip, truck, tools
B33: 5 | C33: Facility Costs | D33: One-time cost to purchase building, redecorate, expand, signage
B34: 6 | C34: Seasonality | D34: Adjust monthly sales for seasonality and initial startup ramp up time
B35: 7 | C35: Funding Plan | D35: Describe where you will get funding and how it will be spent.
B36: 8 | C36: P&L and Cashflow | D36: Profit and Loss (Income Statement) with Cashflow at bottom
B37: 9 | C37: Sales Summary Tables | D37: Graphs & tables summaries of revenues - copy/paste into Word plan
B38: 10 | C38: Financial Summary Tables | D38: Graphs & tables P&L, expenses - for copy/paste into Word plan
B39: 11 | C39: Balance Sheet | D39: Annual Balance Sheet
B40: 12 | C40: Loan Detail | D40: Monthly ammortization of loans shown in Funding Plan
A41: an | C41: Personal Budget | D41: Useful for estimating how much owner must make to live on

Sheet 1. Sales Forecast
A1: 1. Product Pricing and Cost Assumptions | E1: ='0. Basic Info'!D11 -> My Business
A2: List up to six types of customers or sales transactions you have; the 'typical' price for each; and 'typical' cost
A3: for you to produce/deliver the product or services sold (i.e. Cost of Goods Sold COGS)
A5: Customer Type | E5: Sales Revenue | F5: COGS | G5: COGS
A6: Customer 1 | E6: 30 | F6: 0.21 | G6: =F6*E6 -> 6.3
A7: Customer 2 | E7: 1500 | F7: 0.21 | G7: 315
A8: Customer 3 | E8: 230 | F8: 0.21 | G8: 48.3
A9: Customer 4 | E9: 150 | F9: 0.21 | G9: 31.5
A10: Customer 5 | E10: 120 | G10: 0
A11: Customer 6 | G11: 0
A12: Other | G12: 0
A14: 2. Number of Sales Per Month
A15: Estimate how many of each category of transactions above you will have in a 'typical' or 'average' month.
C16: Number of Sales Per month | D16: ='6. Seasonality'!I11 -> 2
A17: =A5 -> Customer Type | C17: ='0. Basic Info'!D16 -> 2019 | D17: For Reference, this is summary based
A18: Customer 1 | C18: 60 | D18: on these sales assumptions on this sheet
A19: Customer 2 | C19: 2 | D19: and operating expenses estimated on Tab 2.
A20: Customer 3 | C20: 50 | E20: Annual | F20: Monthly | G20: Weekly
A21: Customer 4 | C21: 40 | D21: Total Sales | E21: ='8. P&L and Cashflow'!C7 -> 256450 | F21: =E21/12 -> 21370.83333 | G21: =E21/52 -> 4931.730769
A22: Customer 5 | D22: COGS | E22: ='8. P&L and Cashflow'!C8 -> 53854.5 | F22: 4487.875 | G22: =E22/52 -> 1035.663462
A23: Customer 6 | D23: Expenses | E23: ='8. P&L and Cashflow'!C53 -> 198420.1695 | F23: 16535.01412 | G23: 3815.77249
A24: Other | D24: Loan Interest | E24: ='8. P&L and Cashflow'!P57 -> 1598.333353 | F24: 133.1944461 | G24: 30.73717986
A25: Total Transactions per Month | C25: =SUM(C18:C24) -> 152 | D25: Net Profit | E25: ='8. P&L and Cashflow'!C60 -> 2190.447605 | F25: 182.5373004 | G25: =E25/52 -> 42.12399241
D26: Break-Even | E26: =(E23+E24)/(1-(E22/E21)) -> 253187.9782 | F26: 21098.99819 | G26: =E26/52 -> 4868.999582
A27: 3. Projected Sales Growth
A28: As a percentage, estimate your growth in each sales category.
A30: =A17 -> Customer Type | C30: =C66 -> 2019 | D30: =C30+1 -> 2020 | E30: =D30+1 -> 2021 | F30: 2022 | G30: 2023
A31: =A67 -> Customer 1 | D31: 0.1 | E31: 0.1 | F31: 0.1 | G31: 0.1
A32: Customer 2 | D32: 0.15 | E32: 0.15 | F32: 0.15 | G32: 0.15
A33: Customer 3 | D33: 0.15 | E33: 0.15 | F33: 0.15 | G33: 0.15
A34: Customer 4 | D34: 0.1 | E34: 0.1 | F34: 0.1 | G34: 0.1
A35: Customer 5 | D35: 0.1 | E35: 0.1 | F35: 0.1 | G35: 0.1
A36: Customer 6 | D36: 0.1 | E36: 0.1 | F36: 0.1 | G36: 0.1
A37: Other
A39: 4. Number of Annual Sales (This table calculates Automatically - do not enter values here)
A41: =A5 -> Customer Type | C41: =C17 -> 2019 | D41: =C41+1 -> 2020 | E41: =D41+1 -> 2021 | F41: 2022 | G41: 2023
A42: Customer 1 | C42: =C18*12 -> 720 | D42: =C42*(1+D31) -> 792 | E42: 871.2 | F42: 958.32 | G42: 1054.152
A43: Customer 2 | C43: 24 | D43: 27.6 | E43: 31.74 | F43: 36.501 | G43: 41.97615
A44: Customer 3 | C44: 600 | D44: 690 | E44: 793.5 | F44: 912.525 | G44: 1049.40375
A45: Customer 4 | C45: 480 | D45: 528 | E45: 580.8 | F45: 638.88 | G45: 702.768
A46: Customer 5 | C46: 0 | D46: 0 | E46: 0 | F46: 0 | G46: 0
A47: Customer 6 | C47: 0 | D47: 0 | E47: 0 | F47: 0 | G47: 0
A48: Other | C48: 0 | D48: 0 | E48: 0 | F48: 0 | G48: 0
A49: Total per YEAR | C49: =SUM(C42:C48) -> 1824 | D49: =SUM(D42:D48) -> 2037.6 | E49: 2277.24 | F49: 2546.226 | G49: 2848.2999
A52: 5. Annual Sales (This table calculates Automatically - do not enter values here)
C53: Annual Sales
A54: =A17 -> Customer Type | B54: % of total | C54: =C17 -> 2019 | D54: =C41+1 -> 2020 | E54: =D54+1 -> 2021 | F54: 2022 | G54: 2023
A55: Customer 1 | B55: =C55/C$62 -> 0.08071748879 | C55: =C42*$E6 -> 21600 | D55: =(D31+1)*C55 -> 23760 | E55: =(E31+1)*D55 -> 26136 | F55: 28749.6 | G55: 31624.56
A56: Customer 2 | B56: =C56/C$62 -> 0.134529148 | C56: 36000 | D56: =(D32+1)*C56 -> 41400 | E56: 47610 | F56: 54751.5 | G56: 62964.225
A57: Customer 3 | B57: 0.5156950673 | C57: 138000 | D57: =(D33+1)*C57 -> 158700 | E57: 182505 | F57: 209880.75 | G57: 241362.8625
A58: Customer 4 | B58: 0.269058296 | C58: 72000 | D58: =(D34+1)*C58 -> 79200 | E58: 87120 | F58: 95832 | G58: 105415.2
A59: Customer 5 | B59: 0 | C59: 0 | D59: =(D35+1)*C59 -> 0 | E59: 0 | F59: 0 | G59: 0
A60: Customer 6 | B60: 0 | C60: 0 | D60: =(D36+1)*C60 -> 0 | E60: 0 | F60: 0 | G60: 0
A61: Other | B61: 0 | C61: 0 | D61: =(D37+1)*C61 -> 0 | E61: 0 | F61: 0 | G61: 0
A62: Total Annual Sales | B62: =SUM(B55:B61) -> 1 | C62: =SUM(C55:C61) -> 267600 | D62: =SUM(D55:D61) -> 303060 | E62: 343371 | F62: 389213.85 | G62: 441366.8475
A64: 6. Cost of Goods Sold (This table calculates Automatically - do not enter values here)
C65: Annual Cost of Goods Sold
A66: =A41 -> Customer Type | C66: =C54 -> 2019 | D66: =C54+1 -> 2020 | E66: =D66+1 -> 2021 | F66: 2022 | G66: 2023
A67: Customer 1 | C67: =C55*($F6) -> 4536 | D67: 4989.6 | E67: 5488.56 | F67: 6037.416 | G67: 6641.1576
A68: Customer 2 | C68: 7560 | D68: 8694 | E68: 9998.1 | F68: 11497.815 | G68: 13222.48725
A69: Customer 3 | C69: 28980 | D69: 33327 | E69: 38326.05 | F69: 44074.9575 | G69: 50686.20112
A70: Customer 4 | C70: 15120 | D70: 16632 | E70: 18295.2 | F70: 20124.72 | G70: 22137.192
A71: Customer 5 | C71: 0 | D71: 0 | E71: 0 | F71: 0 | G71: 0
A72: Customer 6 | C72: 0 | D72: 0 | E72: 0 | F72: 0 | G72: 0
A73: Other | C73: 0 | D73: 0 | E73: 0 | F73: 0 | G73: 0
A74: Total COGS | C74: =SUM(C67:C73) -> 56196 | D74: 63642.6 | E74: 72107.91 | F74: 81734.9085 | G74: 92687.03797
C75: =C74/C62 -> 0.21 | D75: =D74/D62 -> 0.21 | E75: 0.21 | F75: 0.21 | G75: 0.21

Sheet 2. Operating Budget
A1: ='0. Basic Info'!D11 -> My Business | D1: OPERATING BUDGET ESTIMATES | L1: ='1. Sales Forecast'!E21 -> 256450 | M1: INSTRUCTIONS | Z1: Employee Estimate | AA1: 15 | AB1: Average Hourly Wage
Z2: Full-time-Equivalent (FTE) | AA2: =K7/AA1/2080 -> 2.054887821 | AB2: FTE Employees
G3: First Year Average Monthly Budget
B4: Enter expense estimate in ONE | E4: Or as a | I4: Totals | M4: On this sheet, you can estimate your operating expenses like rent, utilities, marketing, cell phone and other recurring expenses. | AA4: Expenses as Percentage of Sales
B5: column Weekly/Monthly/Annual | E5: % of | I5: =SUM(I7:I44) -> 3789.624688 | J5: =SUM(J7:J44) -> 16421.70698 | K5: =SUM(K7:K44) -> 197060.4838 | L5: =SUM(L7:L44) -> 0.768416782 | M5: IMPORTANT: This is for expenses that repeat! One-time startup expenses are estimated on Tab 3, Tab 4 and Tab 5. | Z5: Gross Sales | AA5: ='8. P&L and Cashflow'!P7 -> 256450 | AB5: ='8. P&L and Cashflow'!AC7 -> 303060 | AC5: ='8. P&L and Cashflow'!AD7 -> 343371 | AD5: ='8. P&L and Cashflow'!AE7 -> 389213.85 | AE5: ='8. P&L and Cashflow'!AF7 -> 441366.8475
A6: EXPENSES | B6: Weekly | C6: Monthly | D6: Annual | E6: Sales | G6: Expense Category | I6: Weekly | J6: Monthly | K6: Annual | L6: of sales | AA6: ='8. P&L and Cashflow'!P2 -> 2019 | AB6: ='8. P&L and Cashflow'!AC2 -> 2020 | AC6: ='8. P&L and Cashflow'!AD2 -> 2021 | AD6: ='8. P&L and Cashflow'!AE2 -> 2022 | AE6: ='8. P&L and Cashflow'!AF2 -> 2023
A7: Worker Wages | E7: 0.25 | G7: =IF(A7="","",A7) -> Worker Wages | I7: =K7/52 -> 1232.932692 | J7: =K7/12 -> 5342.708333 | K7: =C7*12+D7+B7*52+($E7*L$1) -> 64112.5 | L7: =K7/$L$1 -> 0.25 | N7: This sheet allows you to estimate your operating expenses in one of four ways. | Z7: =G7 -> Worker Wages | AA7: =IF(K7/AA$5=0,,K7/AA$5) -> 0.25 | AB7: ='8. P&L and Cashflow'!AC13/AB$5 -> 0.25 | AC7: ='8. P&L and Cashflow'!AD13/AC$5 -> 0.25 | AD7: ='8. P&L and Cashflow'!AE13/AD$5 -> 0.25 | AE7: ='8. P&L and Cashflow'!AF13/AE$5 -> 0.25
A8: Owner Pay | C8: 3000 | G8: =IF(A8="","",A8) -> Owner Pay | H8: =IF(B8="","",B8) ->  | I8: =K8/52 -> 692.3076923 | J8: =K8/12 -> 3000 | K8: =C8*12+D8+B8*52+($E8*L$1) -> 36000 | L8: 0.1403782414 | Z8: Owner Pay | AA8: =K8/AA$5 -> 0.1403782414 | AB8: ='8. P&L and Cashflow'!AC14/AB$5 -> 0.1187883587 | AC8: ='8. P&L and Cashflow'!AD14/AC$5 -> 0.1048428668 | AD8: ='8. P&L and Cashflow'!AE14/AD$5 -> 0.09249413915 | AE8: ='8. P&L and Cashflow'!AF14/AE$5 -> 0.08156480307
A9: 0.15 | G9: 0.15 | I9: 288.7860577 | J9: 1251.40625 | K9: =G9*(K7+K8) -> 15016.875 | L9: 0.05855673621 | O9: 1. Column C - how much something costs per week. | Z9: 0.15 | AA9: 0.05855673621 | AB9: ='8. P&L and Cashflow'!AC15/AB$5 -> 0.05531825381 | AC9: ='8. P&L and Cashflow'!AD15/AC$5 -> 0.05322643001 | AD9: ='8. P&L and Cashflow'!AE15/AD$5 -> 0.05137412087 | AE9: ='8. P&L and Cashflow'!AF15/AE$5 -> 0.04973472046
A10: Workers Comp | B10: Lookup comp rate online | E10: 3.03 | G10: Workers Comp | I10: 37.35786058 | J10: 161.8840625 | K10: =K7/100*E10 -> 1942.60875 | L10: 0.007575 | O10: 2. Column D - how much something costs per month | Z10: Workers Comp | AA10: 0.007575 | AB10: ='8. P&L and Cashflow'!AC16/AB$5 -> 0.007575 | AC10: ='8. P&L and Cashflow'!AD16/AC$5 -> 0.007575 | AD10: ='8. P&L and Cashflow'!AE16/AD$5 -> 0.007575 | AE10: ='8. P&L and Cashflow'!AF16/AE$5 -> 0.007575
A11: Rent | C11: 400 | G11: Rent | I11: 92.30769231 | J11: 400 | K11: =C11*12+D11+B11*52+($E11*L$1) -> 4800 | L11: 0.01871709885 | O11: 3. Column E - how much something costs per year. | Z11: Rent | AA11: 0.01871709885 | AB11: ='8. P&L and Cashflow'!AC17/AB$5 -> 0.01583844783 | AC11: ='8. P&L and Cashflow'!AD17/AC$5 -> 0.0139790489 | AD11: ='8. P&L and Cashflow'!AE17/AD$5 -> 0.01233255189 | AE11: ='8. P&L and Cashflow'!AF17/AE$5 -> 0.01087530708
A12: Phone/Internet/Cell | C12: 150 | G12: Phone/Internet/Cell | I12: 34.61538462 | J12: 150 | K12: 1800 | L12: 0.007018912069 | O12: 4. Column F - something that is estimated as a percentage of total annual sales. | Z12: Phone/Internet/Cell | AA12: 0.007018912069 | AB12: ='8. P&L and Cashflow'!AC18/AB$5 -> 0.005939417937 | AC12: ='8. P&L and Cashflow'!AD18/AC$5 -> 0.005242143338 | AD12: ='8. P&L and Cashflow'!AE18/AD$5 -> 0.004624706957 | AE12: ='8. P&L and Cashflow'!AF18/AE$5 -> 0.004078240154
A13: Electricity/Heat/Water | G13: Electricity/Heat/Water | I13: 0 | J13: 0 | K13: 0 | L13: 0 | N13: For each expense line, only enter a value in ONE of the columns C, D, E, and F for each expense row. | Z13: Electricity/Heat/Water | AA13: 0 | AB13: ='8. P&L and Cashflow'!AC19/AB$5 -> 0 | AC13: ='8. P&L and Cashflow'!AD19/AC$5 -> 0 | AD13: ='8. P&L and Cashflow'!AE19/AD$5 -> 0 | AE13: ='8. P&L and Cashflow'!AF19/AE$5 -> 0
A14: Dumpster/Waste | G14: Dumpster/Waste | I14: 0 | J14: 0 | K14: 0 | L14: 0 | N14: You can edit the names of expenses if they are in BLUE text. Only change BLUE text! | Z14: Dumpster/Waste | AA14: 0 | AB14: ='8. P&L and Cashflow'!AC20/AB$5 -> 0 | AC14: ='8. P&L and Cashflow'!AD20/AC$5 -> 0 | AD14: ='8. P&L and Cashflow'!AE20/AD$5 -> 0 | AE14: ='8. P&L and Cashflow'!AF20/AE$5 -> 0
A15: Liability Insurance | D15: 500 | G15: Liability Insurance | I15: 9.615384615 | J15: 41.66666667 | K15: 500 | L15: 0.001949697797 | Z15: Liability Insurance | AA15: 0.001949697797 | AB15: ='8. P&L and Cashflow'!AC21/AB$5 -> 0.001649838316 | AC15: ='8. P&L and Cashflow'!AD21/AC$5 -> 0.001456150927 | AD15: ='8. P&L and Cashflow'!AE21/AD$5 -> 0.001284640821 | AE15: ='8. P&L and Cashflow'!AF21/AE$5 -> 0.001132844487
A16: Software/Online Subscriptions | C16: 129 | G16: Software/Online Subscriptions | I16: 29.76923077 | J16: 129 | K16: 1548 | L16: 0.006036264379 | N16: You do NOT have to use all the lines available! Leave blank if they are not needed, but do NOT delete any rows or | Z16: Software/Online Subscriptions | AA16: 0.006036264379 | AB16: ='8. P&L and Cashflow'!AC22/AB$5 -> 0.005107899426 | AC16: ='8. P&L and Cashflow'!AD22/AC$5 -> 0.00450824327 | AD16: ='8. P&L and Cashflow'!AE22/AD$5 -> 0.003977247983 | AE16: ='8. P&L and Cashflow'!AF22/AE$5 -> 0.003507286532
A17: Office Supplies | C17: 40 | G17: Office Supplies | I17: 9.230769231 | J17: 40 | K17: 480 | L17: 0.001871709885 | N17: add more rows. This sheet links to Tab 6 P&L and will become corrupted if you delet or add rows here! | Z17: Office Supplies | AA17: 0.001871709885 | AB17: ='8. P&L and Cashflow'!AC23/AB$5 -> 0.001583844783 | AC17: ='8. P&L and Cashflow'!AD23/AC$5 -> 0.00139790489 | AD17: ='8. P&L and Cashflow'!AE23/AD$5 -> 0.001233255189 | AE17: ='8. P&L and Cashflow'!AF23/AE$5 -> 0.001087530708
I18: 0 | J18: 0 | K18: 0 | L18: 0 | AA18: 0 | AB18: ='8. P&L and Cashflow'!AC24/AB$5 -> 0 | AC18: ='8. P&L and Cashflow'!AD24/AC$5 -> 0 | AD18: ='8. P&L and Cashflow'!AE24/AD$5 -> 0 | AE18: ='8. P&L and Cashflow'!AF24/AE$5 -> 0
I19: 0 | J19: 0 | K19: 0 | L19: 0 | AA19: 0 | AB19: ='8. P&L and Cashflow'!AC25/AB$5 -> 0 | AC19: ='8. P&L and Cashflow'!AD25/AC$5 -> 0 | AD19: ='8. P&L and Cashflow'!AE25/AD$5 -> 0 | AE19: ='8. P&L and Cashflow'!AF25/AE$5 -> 0
A20: Website Hosting/Updates | C20: 85 | G20: Website Hosting/Updates | I20: 19.61538462 | J20: 85 | K20: 1020 | L20: 0.003977383506 | Z20: Website Hosting/Updates | AA20: 0.003977383506 | AB20: ='8. P&L and Cashflow'!AC26/AB$5 -> 0.003365670164 | AC20: ='8. P&L and Cashflow'!AD26/AC$5 -> 0.002970547891 | AD20: ='8. P&L and Cashflow'!AE26/AD$5 -> 0.002620667276 | AE20: ='8. P&L and Cashflow'!AF26/AE$5 -> 0.002311002754
A21: Misc Advertising Expenses | E21: 0.01 | G21: Misc Advertising Expenses | I21: 49.31730769 | J21: 213.7083333 | K21: 2564.5 | L21: 0.01 | Z21: Misc Advertising Expenses | AA21: 0.01 | AB21: ='8. P&L and Cashflow'!AC27/AB$5 -> 0.01 | AC21: ='8. P&L and Cashflow'!AD27/AC$5 -> 0.01 | AD21: ='8. P&L and Cashflow'!AE27/AD$5 -> 0.01 | AE21: ='8. P&L and Cashflow'!AF27/AE$5 -> 0.01
A22: GoogleAd Words | C22: 125 | E22: 0.005 | G22: GoogleAd Words | I22: 53.50480769 | J22: 231.8541667 | K22: 2782.25 | L22: 0.01084909339 | Z22: GoogleAd Words | AA22: 0.01084909339 | AB22: ='8. P&L and Cashflow'!AC28/AB$5 -> 0.009949514948 | AC22: ='8. P&L and Cashflow'!AD28/AC$5 -> 0.005 | AD22: ='8. P&L and Cashflow'!AE28/AD$5 -> 0.005 | AE22: ='8. P&L and Cashflow'!AF28/AE$5 -> 0.005
A23: Amazon Seller Fees | E23: 0.1 | G23: Amazon Seller Fees | I23: 493.1730769 | J23: 2137.083333 | K23: 25645 | L23: 0.1 | Z23: Amazon Seller Fees | AA23: 0.1 | AB23: ='8. P&L and Cashflow'!AC29/AB$5 -> 0.1 | AC23: ='8. P&L and Cashflow'!AD29/AC$5 -> 0.1 | AD23: ='8. P&L and Cashflow'!AE29/AD$5 -> 0.1 | AE23: ='8. P&L and Cashflow'!AF29/AE$5 -> 0.1
A24: Free Samples | E24: 0.005 | G24: Free Samples | I24: 24.65865385 | J24: 106.8541667 | K24: 1282.25 | L24: 0.005 | Z24: Free Samples | AA24: 0.005 | AB24: ='8. P&L and Cashflow'!AC30/AB$5 -> 0.005 | AC24: ='8. P&L and Cashflow'!AD30/AC$5 -> 0.005 | AD24: ='8. P&L and Cashflow'!AE30/AD$5 -> 0.005 | AE24: ='8. P&L and Cashflow'!AF30/AE$5 -> 0.005
A25: Graphic Design for Flyers | D25: 2000 | G25: Graphic Design for Flyers | I25: 38.46153846 | J25: 166.6666667 | K25: 2000 | L25: 0.007798791187 | Z25: Graphic Design for Flyers | AA25: 0.007798791187 | AB25: ='8. P&L and Cashflow'!AC31/AB$5 -> 0.006599353263 | AC25: ='8. P&L and Cashflow'!AD31/AC$5 -> 0.005824603709 | AD25: ='8. P&L and Cashflow'!AE31/AD$5 -> 0.005138563286 | AE25: ='8. P&L and Cashflow'!AF31/AE$5 -> 0.004531377949
A26: Tradeshows | D26: 5000 | G26: Tradeshows | I26: 96.15384615 | J26: 416.6666667 | K26: 5000 | L26: 0.01949697797 | Z26: Tradeshows | AA26: 0.01949697797 | AB26: ='8. P&L and Cashflow'!AC32/AB$5 -> 0.01649838316 | AC26: ='8. P&L and Cashflow'!AD32/AC$5 -> 0.01456150927 | AD26: ='8. P&L and Cashflow'!AE32/AD$5 -> 0.01284640821 | AE26: ='8. P&L and Cashflow'!AF32/AE$5 -> 0.01132844487
A27: Travel | B27: 40 | G27: Travel | I27: 40 | J27: 173.3333333 | K27: 2080 | L27: 0.008110742835 | Z27: Travel | AA27: 0.008110742835 | AB27: ='8. P&L and Cashflow'!AC33/AB$5 -> 0.006810532568 | AC27: ='8. P&L and Cashflow'!AD33/AC$5 -> 0.006057587857 | AD27: ='8. P&L and Cashflow'!AE33/AD$5 -> 0.005344105817 | AE27: ='8. P&L and Cashflow'!AF33/AE$5 -> 0.004712633067
A28: Meals and Entertainment | B28: 35 | G28: Meals and Entertainment | I28: 35 | J28: 151.6666667 | K28: 1820 | L28: 0.007096899981 | Z28: Meals and Entertainment | AA28: 0.007096899981 | AB28: ='8. P&L and Cashflow'!AC34/AB$5 -> 0.005959215997 | AC28: ='8. P&L and Cashflow'!AD34/AC$5 -> 0.005300389375 | AD28: ='8. P&L and Cashflow'!AE34/AD$5 -> 0.00467609259 | AE28: ='8. P&L and Cashflow'!AF34/AE$5 -> 0.004123553933
A29: Networking Events | C29: 90 | G29: Networking Events | I29: 20.76923077 | J29: 90 | K29: 1080 | L29: 0.004211347241 | Z29: Networking Events | AA29: 0.004211347241 | AB29: ='8. P&L and Cashflow'!AC35/AB$5 -> 0.003563650762 | AC29: ='8. P&L and Cashflow'!AD35/AC$5 -> 0.003145286003 | AD29: ='8. P&L and Cashflow'!AE35/AD$5 -> 0.002774824174 | AE29: ='8. P&L and Cashflow'!AF35/AE$5 -> 0.002446944092
I30: 0 | J30: 0 | K30: 0 | L30: 0 | AA30: 0 | AB30: ='8. P&L and Cashflow'!AC36/AB$5 -> 0 | AC30: ='8. P&L and Cashflow'!AD36/AC$5 -> 0 | AD30: ='8. P&L and Cashflow'!AE36/AD$5 -> 0 | AE30: ='8. P&L and Cashflow'!AF36/AE$5 -> 0
I31: 0 | J31: 0 | K31: 0 | L31: 0 | AA31: 0 | AB31: ='8. P&L and Cashflow'!AC37/AB$5 -> 0 | AC31: ='8. P&L and Cashflow'!AD37/AC$5 -> 0 | AD31: ='8. P&L and Cashflow'!AE37/AD$5 -> 0 | AE31: ='8. P&L and Cashflow'!AF37/AE$5 -> 0
A32: Professional Development | D32: 3500 | G32: Professional Development | I32: 67.30769231 | J32: 291.6666667 | K32: 3500 | L32: 0.01364788458 | Z32: Professional Development | AA32: 0.01364788458 | AB32: ='8. P&L and Cashflow'!AC38/AB$5 -> 0.01154886821 | AC32: ='8. P&L and Cashflow'!AD38/AC$5 -> 0.01019305649 | AD32: ='8. P&L and Cashflow'!AE38/AD$5 -> 0.00899248575 | AE32: ='8. P&L and Cashflow'!AF38/AE$5 -> 0.00792991141
A33: Accounting Services | C33: 300 | G33: Accounting Services | I33: 69.23076923 | J33: 300 | K33: 3600 | L33: 0.01403782414 | Z33: Accounting Services | AA33: 0.01403782414 | AB33: ='8. P&L and Cashflow'!AC39/AB$5 -> 0.01187883587 | AC33: ='8. P&L and Cashflow'!AD39/AC$5 -> 0.01048428668 | AD33: ='8. P&L and Cashflow'!AE39/AD$5 -> 0.009249413915 | AE33: ='8. P&L and Cashflow'!AF39/AE$5 -> 0.008156480307
A34: Legal Services | D34: 450 | G34: Legal Services | I34: 8.653846154 | J34: 37.5 | K34: 450 | L34: 0.001754728017 | Z34: Legal Services | AA34: 0.001754728017 | AB34: ='8. P&L and Cashflow'!AC40/AB$5 -> 0.001484854484 | AC34: ='8. P&L and Cashflow'!AD40/AC$5 -> 0.001310535834 | AD34: ='8. P&L and Cashflow'!AE40/AD$5 -> 0.001156176739 | AE34: ='8. P&L and Cashflow'!AF40/AE$5 -> 0.001019560038
A35: Bad Debt | E35: 0.005 | G35: Bad Debt | I35: 24.65865385 | J35: 106.8541667 | K35: 1282.25 | L35: 0.005 | Z35: Bad Debt | AA35: 0.005 | AB35: ='8. P&L and Cashflow'!AC41/AB$5 -> 0.005 | AC35: ='8. P&L and Cashflow'!AD41/AC$5 -> 0.005 | AD35: ='8. P&L and Cashflow'!AE41/AD$5 -> 0.005 | AE35: ='8. P&L and Cashflow'!AF41/AE$5 -> 0.005
I36: 0 | J36: 0 | K36: 0 | L36: 0 | AA36: 0 | AB36: ='8. P&L and Cashflow'!AC42/AB$5 -> 0 | AC36: ='8. P&L and Cashflow'!AD42/AC$5 -> 0 | AD36: ='8. P&L and Cashflow'!AE42/AD$5 -> 0 | AE36: ='8. P&L and Cashflow'!AF42/AE$5 -> 0
A37: Banking Fees | D37: 85 | G37: Banking Fees | I37: 1.634615385 | J37: 7.083333333 | K37: 85 | L37: 0.0003314486255 | Z37: Banking Fees | AA37: 0.0003314486255 | AB37: ='8. P&L and Cashflow'!AC43/AB$5 -> 0.0002804725137 | AC37: ='8. P&L and Cashflow'!AD43/AC$5 -> 0.0002475456576 | AD37: ='8. P&L and Cashflow'!AE43/AD$5 -> 0.0002183889397 | AE37: ='8. P&L and Cashflow'!AF43/AE$5 -> 0.0001925835628
A38: Merchant Account Fees | E38: 0.035 | G38: Merchant Account Fees | I38: 172.6105769 | J38: 747.9791667 | K38: 8975.75 | L38: 0.035 | Z38: Merchant Account Fees | AA38: 0.035 | AB38: ='8. P&L and Cashflow'!AC44/AB$5 -> 0.035 | AC38: ='8. P&L and Cashflow'!AD44/AC$5 -> 0.035 | AD38: ='8. P&L and Cashflow'!AE44/AD$5 -> 0.035 | AE38: ='8. P&L and Cashflow'!AF44/AE$5 -> 0.035
I39: 0 | J39: 0 | K39: 0 | L39: 0 | AA39: 0 | AB39: ='8. P&L and Cashflow'!AC45/AB$5 -> 0 | AC39: ='8. P&L and Cashflow'!AD45/AC$5 -> 0 | AD39: ='8. P&L and Cashflow'!AE45/AD$5 -> 0 | AE39: ='8. P&L and Cashflow'!AF45/AE$5 -> 0
I40: 0 | J40: 0 | K40: 0 | L40: 0 | AA40: 0 | AB40: ='8. P&L and Cashflow'!AC46/AB$5 -> 0 | AC40: ='8. P&L and Cashflow'!AD46/AC$5 -> 0 | AD40: ='8. P&L and Cashflow'!AE46/AD$5 -> 0 | AE40: ='8. P&L and Cashflow'!AF46/AE$5 -> 0
I41: 0 | J41: 0 | K41: 0 | L41: 0 | AA41: 0 | AB41: ='8. P&L and Cashflow'!AC47/AB$5 -> 0 | AC41: ='8. P&L and Cashflow'!AD47/AC$5 -> 0 | AD41: ='8. P&L and Cashflow'!AE47/AD$5 -> 0 | AE41: ='8. P&L and Cashflow'!AF47/AE$5 -> 0
I42: 0 | J42: 0 | K42: 0 | L42: 0 | AA42: 0 | AB42: ='8. P&L and Cashflow'!AC48/AB$5 -> 0 | AC42: ='8. P&L and Cashflow'!AD48/AC$5 -> 0 | AD42: ='8. P&L and Cashflow'!AE48/AD$5 -> 0 | AE42: ='8. P&L and Cashflow'!AF48/AE$5 -> 0
I43: 0 | J43: 0 | K43: 0 | L43: 0 | AA43: 0 | AB43: ='8. P&L and Cashflow'!AC49/AB$5 -> 0 | AC43: ='8. P&L and Cashflow'!AD49/AC$5 -> 0 | AD43: ='8. P&L and Cashflow'!AE49/AD$5 -> 0 | AE43: ='8. P&L and Cashflow'!AF49/AE$5 -> 0
A44: Other | E44: 0.03 | G44: Other | I44: 147.9519231 | J44: 641.125 | K44: 7693.5 | L44: 0.03 | Z44: Other | AA44: 0.03 | AB44: ='8. P&L and Cashflow'!AC50/AB$5 -> 0.03 | AC44: ='8. P&L and Cashflow'!AD50/AC$5 -> 0.03 | AD44: ='8. P&L and Cashflow'!AE50/AD$5 -> 0.03 | AE44: ='8. P&L and Cashflow'!AF50/AE$5 -> 0.03

Sheet 3. Startup Costs
A1: ='0. Basic Info'!D11 -> My Business | C1: Business Startup Costs | F1: =SUM(F4:F63) -> 3350
D2: Tax | E2: 0 | F2: =E2*F1 -> 0 | G2: Owner
A3: Qty | B3: Purpose | C3: Have | D3: Item | F3: =F1+F2 -> 3350 | G3: =SUM(G4:G63) -> 350
D4: List non-asset startup items here | F4: =A4*E4 -> 0 | G4: =IF(C4="y",F4,0) -> 0
D5: Ex: Website, LLC costs, office supply | F5: 0 | G5: 0
D6: marketing materials, deposits, | F6: 0 | G6: 0
D7: startup professional services, | F7: 0 | G7: 0
D8: initial inventory purchases | F8: 0 | G8: 0
F9: 0 | G9: 0
D10: Examples Below | F10: 0 | G10: 0
A11: 1 | B11: Marketing | D11: Website | E11: 2500 | F11: 2500 | G11: 0
A12: 1 | B12: Marketing | C12: Y | D12: Business Cards | E12: 100 | F12: 100 | G12: 100
A13: 1 | B13: Marketing | C13: Y | D13: Logo Design | E13: 250 | F13: 250 | G13: 250
A14: 1 | B14: Business | D14: Insurance | E14: 500 | F14: 500 | G14: 0
F15: 0 | G15: 0
F16: 0 | G16: 0
F17: 0 | G17: 0
F18: 0 | G18: 0
F19: 0 | G19: 0
F20: 0 | G20: 0
F21: 0 | G21: 0
F22: 0 | G22: 0
F23: 0 | G23: 0
F24: 0 | G24: 0
F25: 0 | G25: 0
F26: 0 | G26: 0
F27: 0 | G27: 0
F28: 0 | G28: 0
F29: 0 | G29: 0
F30: 0 | G30: 0
F31: 0 | G31: 0
F32: 0 | G32: 0
F33: 0 | G33: 0
F34: 0 | G34: 0
F35: 0 | G35: 0
F36: 0 | G36: 0
F37: 0 | G37: 0
F38: 0 | G38: 0
F39: 0 | G39: 0
F40: 0 | G40: 0
F41: 0 | G41: 0
F42: 0 | G42: 0
F43: 0 | G43: 0
F44: 0 | G44: 0
F45: 0 | G45: 0
F46: 0 | G46: 0
F47: 0 | G47: 0
F48: 0 | G48: 0
F49: 0 | G49: 0
F50: 0 | G50: 0
F51: 0 | G51: 0
F52: 0 | G52: 0
F53: 0 | G53: 0
F54: 0 | G54: 0
F55: 0 | G55: 0
F56: 0 | G56: 0
F57: 0 | G57: 0
F58: 0 | G58: 0
F59: 0 | G59: 0
F60: 0 | G60: 0
F61: 0 | G61: 0
F62: 0 | G62: 0
F63: 0 | G63: 0

Sheet 4. Equipment & Vehicle Costs
A1: ='0. Basic Info'!D11 -> My Business | D1: Equipment, Office Equipment and Supply Startup Expenses
F2: =SUM(F5:F85) -> 6785 | G2: Owner Purchased
D3: Tax | E3: 0 | F3: =E3*F2 -> 0
A4: Qty | B4: Use | C4: Have | D4: Item | E4: Price Each | F4: =F2+F3 -> 6785 | G4: =SUM(G5:G85) -> 4785
D5: List assets like PCs, printers, vehicles | F5: =A5*E5 -> 0 | G5: =IF(C5="y",F5,0) -> 0
D6: furnishings, buildings, equipment | F6: =A6*E6 -> 0 | G6: =IF(C6="y",F6,0) -> 0
C7: Y | D7: List things already purchases too! Out 'Y' in | F7: 0 | G7: 0
D8: the Have column | F8: 0 | G8: 0
D9: IMPORTANT, put QTY in 1st column | F9: 0 | G9: 0
D10: Examples Below | F10: 0 | G10: 0
A11: 1 | B11: Office | C11: Y | D11: Laptop | E11: 3500 | F11: 3500 | G11: 3500
A12: 1 | B12: Office | C12: Y | D12: Printer | E12: 850 | F12: 850 | G12: 850
A13: 1 | B13: Office | C13: Y | D13: Desk | E13: 250 | F13: 250 | G13: 250
A14: 1 | B14: Office | C14: Y | D14: Locking File Cabinet | E14: 185 | F14: 185 | G14: 185
F15: 0 | G15: 0
A16: 1 | B16: Production | D16: New Equipmwent | E16: 2000 | F16: 2000 | G16: 0
F17: 0 | G17: 0
F18: 0 | G18: 0
F19: 0 | G19: 0
F20: 0 | G20: 0
F21: 0 | G21: 0
F22: 0 | G22: 0
F23: 0 | G23: 0
F24: 0 | G24: 0
F25: 0 | G25: 0
F26: 0 | G26: 0
F27: 0 | G27: 0
F28: 0 | G28: 0
F29: 0 | G29: 0
F30: 0 | G30: 0
F31: 0 | G31: 0
F32: 0 | G32: 0
F33: 0 | G33: 0
F34: 0 | G34: 0
F35: 0 | G35: 0
F36: 0 | G36: 0
F37: 0 | G37: 0
F38: 0 | G38: 0
F39: 0 | G39: 0
F40: 0 | G40: 0
F41: 0 | G41: 0
F42: 0 | G42: 0
F43: 0 | G43: 0
F44: 0 | G44: 0
F45: 0 | G45: 0
F46: 0 | G46: 0
F47: 0 | G47: 0
F48: 0 | G48: 0
F49: 0 | G49: 0
F50: 0 | G50: 0
F51: 0 | G51: 0
F52: 0 | G52: 0
F53: 0 | G53: 0
F54: 0 | G54: 0
F55: 0 | G55: 0
F56: 0 | G56: 0
F57: 0 | G57: 0
F58: 0 | G58: 0
F59: 0 | G59: 0
F60: 0 | G60: 0
F61: 0 | G61: 0
F62: 0 | G62: 0
F63: 0 | G63: 0
F64: 0 | G64: 0
F65: 0 | G65: 0
F66: 0 | G66: 0
F67: 0 | G67: 0
F68: =A68*E68 -> 0 | G68: =IF(C68="y",F68,0) -> 0
F69: 0 | G69: 0
F70: 0 | G70: 0
F71: 0 | G71: 0
F72: 0 | G72: 0
F73: 0 | G73: 0
F74: 0 | G74: 0
F75: 0 | G75: 0
F76: 0 | G76: 0
F77: 0 | G77: 0
F78: 0 | G78: 0
F79: 0 | G79: 0
F80: 0 | G80: 0
F81: 0 | G81: 0
F82: 0 | G82: 0
B83: 7 | C83: Useful Life of Equipment
B84: ='4. Equipment & Vehicle Costs'!F4 -> 6785 | C84: Total Equipment/Vehicle Assets
B85: =B84/B83 -> 969.2857143 | C85: Annual depreciation

Sheet 5. Facility Costs
A1: ='0. Basic Info'!D11 -> My Business | C1: Costs to prepare facility for operations
F2: =SUM(F5:F62) -> 6000 | G2: Owner Purchased
D3: Tax | E3: 0.051 | F3: =E3*F2 -> 306
A4: Vendor | B4: Have | C4: Use | D4: Description | E4: Total | F4: =F2+F3 -> 6306 | G4: =SUM(G5:G62) -> 0
D5: If need to buy building, or improve a space | F5: =E5 -> 0 | G5: =IF(B5="y",F5,0) -> 0
D6: List costs here | E6: 0 | F6: =E6 -> 0 | G6: =IF(B6="y",F6,0) -> 0
D7: Examples Below | E7: 0 | F7: 0 | G7: 0
A8: Signs are Us | D8: Outdoor Sign | E8: 3000 | F8: 3000 | G8: 0
A9: Painters R Us | D9: Paint interior offices | E9: 1200 | F9: 1200 | G9: 0
A10: Carpet is Us | D10: New Carpet/Flooring | E10: 1800 | F10: 1800 | G10: 0
E11: 0 | F11: 0 | G11: 0
E12: 0 | F12: 0 | G12: 0
E13: 0 | F13: 0 | G13: 0
E14: 0 | F14: 0 | G14: 0
E15: 0 | F15: 0 | G15: 0
E16: 0 | F16: 0 | G16: 0
E17: 0 | F17: 0 | G17: 0
E18: 0 | F18: 0 | G18: 0
E19: 0 | F19: 0 | G19: 0
E20: 0 | F20: 0 | G20: 0
E21: 0 | F21: 0 | G21: 0
E22: 0 | F22: 0 | G22: 0
E23: 0 | F23: 0 | G23: 0
E24: 0 | F24: 0 | G24: 0
E25: 0 | F25: 0 | G25: 0
E26: 0 | F26: 0 | G26: 0
E27: 0 | F27: 0 | G27: 0
E28: 0 | F28: 0 | G28: 0
E29: 0 | F29: 0 | G29: 0
E30: 0 | F30: 0 | G30: 0
E31: 0 | F31: 0 | G31: 0
E32: 0 | F32: 0 | G32: 0
E33: 0 | F33: 0 | G33: 0
E34: 0 | F34: 0 | G34: 0
E35: 0 | F35: 0 | G35: 0
E36: 0 | F36: 0 | G36: 0
E37: 0 | F37: 0 | G37: 0
E38: 0 | F38: 0 | G38: 0
E39: 0 | F39: 0 | G39: 0
E40: 0 | F40: 0 | G40: 0
E41: 0 | F41: 0 | G41: 0
E42: 0 | F42: 0 | G42: 0
E43: 0 | F43: 0 | G43: 0
E44: 0 | F44: 0 | G44: 0
E45: 0 | F45: 0 | G45: 0
E46: 0 | F46: 0 | G46: 0
E47: 0 | F47: 0 | G47: 0
E48: 0 | F48: 0 | G48: 0
E49: 0 | F49: 0 | G49: 0
E50: 0 | F50: 0 | G50: 0
E51: 0 | F51: 0 | G51: 0
E52: 0 | F52: 0 | G52: 0
E53: 0 | F53: 0 | G53: 0
E54: 0 | F54: 0 | G54: 0
E55: 0 | F55: 0 | G55: 0
E56: 0 | F56: 0 | G56: 0
E57: 0 | F57: 0 | G57: 0
E58: 0 | F58: 0 | G58: 0
E59: 0 | F59: 0 | G59: 0
E60: 0 | F60: 0 | G60: 0
E61: 0 | F61: 0 | G61: 0
E62: 0 | F62: 0 | G62: 0
A63: 15 | C63: Useful Life of Facility
A64: =F4 -> 6306 | C64: Total Facility Investment
A65: =A64/A63 -> 420.4 | C65: Annual depreciation

Sheet 6. Seasonality
A1: ='0. Basic Info'!D11 -> My Business | D1: Seasonality and Initial Startup Delay in Reaching Sales Goals
A4: 1. Startup Phase - How long for sales to ramp up to expected normal levels?
A5: If your business is a startup or expanding, it usually takes months and possibly a year before your sales
A6: volume increases to the level expected in your business plan. This is a normal situation, and to help
A7: forecast how much extra cash you will need to survive those start-up months until things start picking up, this Rapid Business
A8: Plan financial template allows you to estimate the number of months needed to reach full sales revenues.
A9: Just enter the number of months you think it will take to get up and running with customers buying your product or service.
H11: Enter the number of months until sales reach expected levels | I11: 2
A13: For reference, the sales levels below are from Tab 1 Sales Forecast showing the 'average' typical month.
F14: How many months before sales will be | G14: ='1. Sales Forecast'!C62/12 -> 22300 | H14: per month.?
F15: Or how many months before doing | G15: ='1. Sales Forecast'!C25 -> 152 | H15: transactions per month
A19: 2. Seasonality
A20: Most businesses have some seasonality impacting their sales volumes. A snow plow company sees higher sales in the winter
A21: for example.
A23: The table below is designed to help you easily adjust your monthly sales estimates by entering a multiplier for each month to
A24: indicate how busy that month is for sales.
A26: A '1' indicates it is a 'typical' run of the mill month. Not high or low - just average. If you enter a '2' for a month, that means that
A27: month is double what a 'typical' or average month will generate in terms of sales. You can enter any multiplier you want using
A28: =IF(A36>0,A36-1,A36) -> 0 | B28: =IF(B36>0,B36-1,B36) -> 0 | C28: 0 | D28: 0 | E28: 0 | F28: 0 | G28: 0 | H28: 0 | I28: 0 | J28: 0 | K28: 0 | L28: 0 | M28: =SUM(A28:L28) -> 0
A29: this logic. For example, a retailer might enter a '9' for December to reflect the peak holiday sales 9 times higher than 'average'.
A31: You can also enter a '0' for a month if you think your business will not sell anything during that month.
A35: ='8. P&L and Cashflow'!D6 -> 2019-01-01 | B35: ='8. P&L and Cashflow'!E6 -> 2019-02-01 | C35: ='8. P&L and Cashflow'!F6 -> 2019-03-04 | D35: ='8. P&L and Cashflow'!G6 -> 2019-04-04 | E35: ='8. P&L and Cashflow'!H6 -> 2019-05-05 | F35: ='8. P&L and Cashflow'!I6 -> 2019-06-05 | G35: ='8. P&L and Cashflow'!J6 -> 2019-07-06 | H35: ='8. P&L and Cashflow'!K6 -> 2019-08-06 | I35: ='8. P&L and Cashflow'!L6 -> 2019-09-06 | J35: ='8. P&L and Cashflow'!M6 -> 2019-10-07 | K35: ='8. P&L and Cashflow'!N6 -> 2019-11-07 | L35: ='8. P&L and Cashflow'!O6 -> 2019-12-08
A36: 1 | B36: 1 | C36: 1 | D36: 1 | E36: 1 | F36: 1 | G36: 1 | H36: 1 | I36: 1 | J36: 1 | K36: 1 | L36: 1 | M36: =12-(COUNTIF(A36:L36,0)) -> 12
A37: =A38/$N38 -> 0.08333333333 | B37: 0.08333333333 | C37: 0.08333333333 | D37: 0.08333333333 | E37: 0.08333333333 | F37: 0.08333333333 | G37: 0.08333333333 | H37: 0.08333333333 | I37: 0.08333333333 | J37: 0.08333333333 | K37: 0.08333333333 | L37: 0.08333333333 | M37: =SUM(A37:L37) -> 1
A38: =A$36*$O38 -> 22300 | B38: =B36*$O38 -> 22300 | C38: 22300 | D38: 22300 | E38: 22300 | F38: 22300 | G38: 22300 | H38: 22300 | I38: 22300 | J38: 22300 | K38: 22300 | L38: 22300 | M38: =SUM(A38:L38) -> 267600 | N38: ='1. Sales Forecast'!C62 -> 267600 | O38: =N38/(M$28+M$36) -> 22300
A39: =A$36*$O39 -> 4683 | B39: =B$36*$O39 -> 4683 | C39: 4683 | D39: 4683 | E39: 4683 | F39: 4683 | G39: 4683 | H39: 4683 | I39: 4683 | J39: 4683 | K39: 4683 | L39: 4683 | M39: =SUM(A39:L39) -> 56196 | N39: ='1. Sales Forecast'!C74 -> 56196 | O39: =N39/(M$28+M$36) -> 4683
A40: =A38/$N38 -> 0.08333333333 | B40: 0.08333333333 | C40: 0.08333333333 | D40: 0.08333333333 | E40: 0.08333333333 | F40: 0.08333333333 | G40: 0.08333333333 | H40: 0.08333333333 | I40: 0.08333333333 | J40: 0.08333333333 | K40: 0.08333333333 | L40: 0.08333333333 | M40: =SUM(A40:L40) -> 1
A41: =A39/$N39 -> 0.08333333333 | B41: 0.08333333333 | C41: 0.08333333333 | D41: 0.08333333333 | E41: 0.08333333333 | F41: 0.08333333333 | G41: 0.08333333333 | H41: 0.08333333333 | I41: 0.08333333333 | J41: 0.08333333333 | K41: 0.08333333333 | L41: 0.08333333333 | M41: =SUM(A41:L41) -> 1
A46: 1 | B46: 2 | C46: 3 | D46: 4 | E46: 5 | F46: 6 | G46: 7 | H46: 8 | I46: 9 | J46: 10 | K46: 11 | L46: 12
A47: =IF($I$11=0, 1,IF($I$11>A46,A46/$I$11,1)) -> 0.5 | B47: 1 | C47: 1 | D47: 1 | E47: 1 | F47: 1 | G47: 1 | H47: 1 | I47: 1 | J47: 1 | K47: 1 | L47: 1
A48: =A47*A38 -> 11150 | B48: =B47*B38 -> 22300 | C48: 22300 | D48: 22300 | E48: 22300 | F48: 22300 | G48: 22300 | H48: 22300 | I48: 22300 | J48: 22300 | K48: 22300 | L48: 22300 | M48: =SUM(A48:L48) -> 256450
A49: =A47*A39 -> 2341.5 | B49: =B47*B39 -> 4683 | C49: 4683 | D49: 4683 | E49: 4683 | F49: 4683 | G49: 4683 | H49: 4683 | I49: 4683 | J49: 4683 | K49: 4683 | L49: 4683 | M49: =SUM(A49:L49) -> 53854.5
A51: =A35 -> 2019-01-01 | B51: =B35 -> 2019-02-01 | C51: 2019-03-04 | D51: 2019-04-04 | E51: 2019-05-05 | F51: 2019-06-05 | G51: 2019-07-06 | H51: 2019-08-06 | I51: 2019-09-06 | J51: 2019-10-07 | K51: 2019-11-07 | L51: 2019-12-08
A52: =A36 -> 1 | B52: 1 | C52: 1 | D52: 1 | E52: 1 | F52: 1 | G52: 1 | H52: 1 | I52: 1 | J52: 1 | K52: 1 | L52: 1 | M52: =12-(COUNTIF(A52:L52,0)) -> 12
A53: =A54/$N54 -> 0.08333333333 | B53: 0.08333333333 | C53: 0.08333333333 | D53: 0.08333333333 | E53: 0.08333333333 | F53: 0.08333333333 | G53: 0.08333333333 | H53: 0.08333333333 | I53: 0.08333333333 | J53: 0.08333333333 | K53: 0.08333333333 | L53: 0.08333333333 | M53: =SUM(A53:L53) -> 1
A54: =A$36*$O54 -> 25255 | B54: =B52*$O54 -> 25255 | C54: 25255 | D54: 25255 | E54: 25255 | F54: 25255 | G54: 25255 | H54: 25255 | I54: 25255 | J54: 25255 | K54: 25255 | L54: 25255 | M54: =SUM(A54:L54) -> 303060 | N54: ='1. Sales Forecast'!D62 -> 303060 | O54: =N54/(M$28+M$36) -> 25255
A55: =A$36*$O55 -> 5303.55 | B55: =B$36*$O55 -> 5303.55 | C55: 5303.55 | D55: 5303.55 | E55: 5303.55 | F55: 5303.55 | G55: 5303.55 | H55: 5303.55 | I55: 5303.55 | J55: 5303.55 | K55: 5303.55 | L55: 5303.55 | M55: =SUM(A55:L55) -> 63642.6 | N55: ='1. Sales Forecast'!D74 -> 63642.6 | O55: =N55/(M$28+M$36) -> 5303.55
A56: =A54/$N54 -> 0.08333333333 | B56: 0.08333333333 | C56: 0.08333333333 | D56: 0.08333333333 | E56: 0.08333333333 | F56: 0.08333333333 | G56: 0.08333333333 | H56: 0.08333333333 | I56: 0.08333333333 | J56: 0.08333333333 | K56: 0.08333333333 | L56: 0.08333333333 | M56: =SUM(A56:L56) -> 1
A57: 0.08333333333 | B57: 0.08333333333 | C57: 0.08333333333 | D57: 0.08333333333 | E57: 0.08333333333 | F57: 0.08333333333 | G57: 0.08333333333 | H57: 0.08333333333 | I57: 0.08333333333 | J57: 0.08333333333 | K57: 0.08333333333 | L57: 0.08333333333 | M57: =SUM(A57:L57) -> 1
A62: 1 | B62: 2 | C62: 3 | D62: 4 | E62: 5 | F62: 6 | G62: 7 | H62: 8 | I62: 9 | J62: 10 | K62: 11 | L62: 12
A63: =IF($I$11=0, 1,IF($I$11>A62,A62/$I$11,1)) -> 0.5 | B63: 1 | C63: 1 | D63: 1 | E63: 1 | F63: 1 | G63: 1 | H63: 1 | I63: 1 | J63: 1 | K63: 1 | L63: 1
A64: =A63*A54 -> 12627.5 | B64: =B63*B54 -> 25255 | C64: 25255 | D64: 25255 | E64: 25255 | F64: 25255 | G64: 25255 | H64: 25255 | I64: 25255 | J64: 25255 | K64: 25255 | L64: 25255 | M64: =SUM(A64:L64) -> 290432.5
A65: =A63*A55 -> 2651.775 | B65: =B63*B55 -> 5303.55 | C65: 5303.55 | D65: 5303.55 | E65: 5303.55 | F65: 5303.55 | G65: 5303.55 | H65: 5303.55 | I65: 5303.55 | J65: 5303.55 | K65: 5303.55 | L65: 5303.55 | M65: =SUM(A65:L65) -> 60990.825

Sheet 7. Funding Plan
A1: ='0. Basic Info'!D11 -> My Business
A3: Funding Plan - Cash Requirements and Funding Strategy
A5: Startup Expenses and Investment | C5: Total | D5: Owner Paid | E5: Needed
A6: Business Startup | C6: ='3. Startup Costs'!F3 -> 3350 | D6: ='3. Startup Costs'!G3 -> 350 | E6: =C6-D6 -> 3000
A7: Equipment | C7: ='4. Equipment & Vehicle Costs'!F4 -> 6785 | D7: ='4. Equipment & Vehicle Costs'!G4 -> 4785 | E7: =C7-D7 -> 2000
A8: Facilities | C8: ='5. Facility Costs'!F4 -> 6306 | D8: 0 | E8: 0
A9: Payoff Existing Credit Card Debt | C9: 2500 | D9: =C9 -> 2500
A10: Working Capital Reserve | B10: 3 | C10: =IF(B10=0,0,('8. P&L and Cashflow'!P53/12*B10)-('8. P&L and Cashflow'!P51/12)) -> 49489.23522 | E10: 49489.23522
A11: Total Required | C11: =ROUND(SUM(C6:C10),0) -> 68430 | D11: =ROUND(SUM(D6:D10),0) -> 7635 | E11: 60795
A13: Funding Sources | B13: % of Total | C13: Amount
A14: Grants | B14: =C14/C$24 -> 0.01022007222 | C14: 750
A15: Owner Cash | B15: =C15/C$24 -> 0.1362676296 | C15: 10000
A16: Owner Prior Purchases | B16: 0.1040403352 | C16: =D11 -> 7635 | F16: Monthly | G16: Monthly
A17: Investor/Other Owner | B17: 0 | C17: 0 | D17: Interest Rate | E17: Term | F17: Payment | G17: Interest
A19: New Line or CC Limit | B19: 0.3406690741 | C19: 25000 | D19: 0.15 | E19: N/A | F19: N/A | G19: N/A
A22: Term Loan 1 | B22: 0.2725352592 | C22: 20000 | D22: 0.065 | E22: 3 | F22: =PMT(D22/12,E22*12,C22)*-1 -> 612.9800575 | G22: =IPMT(D22/12,1,E22*12,C22)*-1 -> 108.3333333
A23: Term Loan 2 | B23: 0.1362676296 | C23: 10000 | D23: 0.05 | E23: 10 | F23: =PMT(D23/12,E23*12,C23)*-1 -> 106.0655152 | G23: =IPMT(D23/12,1,E23*12,C23)*-1 -> 41.66666667
A24: Total Available Funding | C24: =ROUND(SUM(C14:C23),0) -> 73385
A25: Total Funding Required | C25: =C11 -> 68430
B26: =IF(C26<0,"Additional Funding Required","Surplus of Total Funding") -> Surplus of Total Funding | C26: =C24-C25 -> 4955 | E26: Starting Cash Overview
B27: Starting Cash Balance | C27: =E27 -> 40750 | E27: =C14+C15+C17+C22+C23 -> 40750 | F27: Total New Cash
E28: =SUM(E6:E8) -> 5000 | F28: Total New Spend
E29: =E27-E28 -> 35750 | F29: Starting Cash Balance
A30: Line of Credit Activity | B30: ='0. Basic Info'!D16 -> 2019 | E30: This excludes any New Line of Credit
A31: Borrowed | B31: ='8. P&L and Cashflow'!P68+'8. P&L and Cashflow'!P70 -> 2500 | C31: =IF(B31>(C19+C18),"More than New Line or CC Limit in Line 19 above","") ->  | E31: that is available since not drawn until
A32: Repaid | B32: ='8. P&L and Cashflow'!P74+'8. P&L and Cashflow'!P75 -> 2500 | E32: needed.
A33: Ending Balance Owed | B33: ='8. P&L and Cashflow'!C75 -> 0

Sheet 8. P&L and Cashflow
A1: ='0. Basic Info'!D11 -> My Business
B2: SNAPSHOT | C2: =C6 -> Annual | D2: =D6 -> 2019-01-01 | E2: =E6 -> 2019-02-01 | F2: 2019-03-04 | G2: 2019-04-04 | H2: 2019-05-05 | I2: 2019-06-05 | J2: 2019-07-06 | K2: 2019-08-06 | L2: 2019-09-06 | M2: 2019-10-07 | N2: 2019-11-07 | O2: 2019-12-08 | P2: 2019 | Q2: =Q6 -> 2020-01-01 | R2: =R6 -> 2020-02-01 | S2: 2020-03-01 | T2: 2020-04-01 | U2: 2020-05-01 | V2: 2020-06-01 | W2: 2020-07-01 | X2: 2020-08-01 | Y2: 2020-09-01 | Z2: 2020-10-01 | AA2: 2020-11-01 | AB2: 2020-12-01 | AC2: 2020 | AD2: 2021 | AE2: 2022 | AF2: 2023
B3: Net Profit | C3: =C60 -> 2190.447605 | D3: =D60 -> -2996.066205 | E3: =E60 -> 457.2331537 | F3: 460.0415972 | G3: 462.8649397 | H3: 465.7032605 | I3: 468.5566396 | J3: 471.425157 | K3: 474.3088936 | L3: 477.2079303 | M3: 480.1223488 | N3: 483.052231 | O3: 485.9976594 | P3: 2190.447605 | Q3: =Q60 -> 1320.964473 | R3: =R60 -> 1323.941243 | S3: 1326.933809 | T3: 1329.942255 | U3: 1332.966666 | V3: 1336.007126 | W3: 1339.063723 | X3: 1342.136541 | Y3: 1345.225667 | Z3: 1348.331188 | AA3: 1351.453191 | AB3: 1354.591765 | AC3: 14660.69479 | AD3: 26773.37475 | AE3: 38907.89039 | AF3: 52465.17045
B4: Ending Cash Balance | C4: =P4 -> 73049.9198 | D4: =D79 -> 73050.69536 | E4: =E79 -> 73051.68826 | F4: 73052.47184 | G4: 73053.04499 | H4: 73053.40661 | I4: 73053.55557 | J4: 73053.49073 | K4: 73053.21097 | L4: 73052.71515 | M4: 73052.00212 | N4: 73051.07072 | O4: 73049.9198 | P4: 73049.9198 | Q4: =Q79 -> 73880.55395 | R4: =R79 -> 74710.96624 | S4: 75541.1555 | T4: 76371.12054 | U4: 77200.86017 | V4: 78030.37319 | W4: 78859.65841 | X4: 79688.71461 | Y4: 80517.54058 | Z4: 81346.1351 | AA4: 82174.49693 | AB4: 83002.62485 | AC4: 83002.62485 | AD4: 103188.767 | AE4: 142567.9157 | AF4: 196344.4738
B5: =A1 -> My Business
B6: P&L Income Statement | C6: Annual | D6: =DATE('0. Basic Info'!D16,'0. Basic Info'!D17,1) -> 2019-01-01 | E6: =D6+31 -> 2019-02-01 | F6: =E6+31 -> 2019-03-04 | G6: =F6+31 -> 2019-04-04 | H6: =G6+31 -> 2019-05-05 | I6: 2019-06-05 | J6: 2019-07-06 | K6: 2019-08-06 | L6: 2019-09-06 | M6: 2019-10-07 | N6: 2019-11-07 | O6: 2019-12-08 | P6: =IF('0. Basic Info'!D17=1,'0. Basic Info'!D16,"Year 1") -> 2019 | Q6: =DATE('0. Basic Info'!$D$16+1,'0. Basic Info'!$D$17,1) -> 2020-01-01 | R6: =DATE('0. Basic Info'!$D$16+1,'0. Basic Info'!$D$17+1,1) -> 2020-02-01 | S6: =DATE('0. Basic Info'!$D$16+1,'0. Basic Info'!$D$17+2,1) -> 2020-03-01 | T6: =DATE('0. Basic Info'!$D$16+1,'0. Basic Info'!$D$17+3,1) -> 2020-04-01 | U6: =DATE('0. Basic Info'!$D$16+1,'0. Basic Info'!$D$17+4,1) -> 2020-05-01 | V6: =DATE('0. Basic Info'!$D$16+1,'0. Basic Info'!$D$17+5,1) -> 2020-06-01 | W6: =DATE('0. Basic Info'!$D$16+1,'0. Basic Info'!$D$17+6,1) -> 2020-07-01 | X6: =DATE('0. Basic Info'!$D$16+1,'0. Basic Info'!$D$17+7,1) -> 2020-08-01 | Y6: =DATE('0. Basic Info'!$D$16+1,'0. Basic Info'!$D$17+8,1) -> 2020-09-01 | Z6: =DATE('0. Basic Info'!$D$16+1,'0. Basic Info'!$D$17+9,1) -> 2020-10-01 | AA6: =DATE('0. Basic Info'!$D$16+1,'0. Basic Info'!$D$17+10,1) -> 2020-11-01 | AB6: =DATE('0. Basic Info'!$D$16+1,'0. Basic Info'!$D$17+11,1) -> 2020-12-01 | AC6: =IF('0. Basic Info'!$D17=1,'0. Basic Info'!$D16+1,"Year 2") -> 2020 | AD6: =IF('0. Basic Info'!$D17=1,'0. Basic Info'!$D16+2,"Year 3") -> 2021 | AE6: =IF('0. Basic Info'!$D17=1,'0. Basic Info'!$D16+3,"Year 4") -> 2022 | AF6: =IF('0. Basic Info'!$D17=1,'0. Basic Info'!$D16+4,"Year 5") -> 2023
B7: SALES | C7: ='6. Seasonality'!M48 -> 256450 | D7: ='6. Seasonality'!A48 -> 11150 | E7: ='6. Seasonality'!B48 -> 22300 | F7: ='6. Seasonality'!C48 -> 22300 | G7: ='6. Seasonality'!D48 -> 22300 | H7: ='6. Seasonality'!E48 -> 22300 | I7: ='6. Seasonality'!F48 -> 22300 | J7: ='6. Seasonality'!G48 -> 22300 | K7: ='6. Seasonality'!H48 -> 22300 | L7: ='6. Seasonality'!I48 -> 22300 | M7: ='6. Seasonality'!J48 -> 22300 | N7: ='6. Seasonality'!K48 -> 22300 | O7: ='6. Seasonality'!L48 -> 22300 | P7: =SUM(D7:O7) -> 256450 | Q7: ='6. Seasonality'!A54 -> 25255 | R7: ='6. Seasonality'!B54 -> 25255 | S7: ='6. Seasonality'!C54 -> 25255 | T7: ='6. Seasonality'!D54 -> 25255 | U7: ='6. Seasonality'!E54 -> 25255 | V7: ='6. Seasonality'!F54 -> 25255 | W7: ='6. Seasonality'!G54 -> 25255 | X7: ='6. Seasonality'!H54 -> 25255 | Y7: ='6. Seasonality'!I54 -> 25255 | Z7: ='6. Seasonality'!J54 -> 25255 | AA7: ='6. Seasonality'!K54 -> 25255 | AB7: ='6. Seasonality'!L54 -> 25255 | AC7: =SUM(Q7:AB7) -> 303060 | AD7: ='1. Sales Forecast'!E62 -> 343371 | AE7: ='1. Sales Forecast'!F62 -> 389213.85 | AF7: ='1. Sales Forecast'!G62 -> 441366.8475
B8: COGS | C8: ='6. Seasonality'!M49 -> 53854.5 | D8: ='6. Seasonality'!A49 -> 2341.5 | E8: ='6. Seasonality'!B49 -> 4683 | F8: ='6. Seasonality'!C49 -> 4683 | G8: ='6. Seasonality'!D49 -> 4683 | H8: ='6. Seasonality'!E49 -> 4683 | I8: ='6. Seasonality'!F49 -> 4683 | J8: ='6. Seasonality'!G49 -> 4683 | K8: ='6. Seasonality'!H49 -> 4683 | L8: ='6. Seasonality'!I49 -> 4683 | M8: ='6. Seasonality'!J49 -> 4683 | N8: ='6. Seasonality'!K49 -> 4683 | O8: ='6. Seasonality'!L49 -> 4683 | P8: =SUM(D8:O8) -> 53854.5 | Q8: ='6. Seasonality'!A55 -> 5303.55 | R8: ='6. Seasonality'!B55 -> 5303.55 | S8: ='6. Seasonality'!C55 -> 5303.55 | T8: ='6. Seasonality'!D55 -> 5303.55 | U8: ='6. Seasonality'!E55 -> 5303.55 | V8: ='6. Seasonality'!F55 -> 5303.55 | W8: ='6. Seasonality'!G55 -> 5303.55 | X8: ='6. Seasonality'!H55 -> 5303.55 | Y8: ='6. Seasonality'!I55 -> 5303.55 | Z8: ='6. Seasonality'!J55 -> 5303.55 | AA8: ='6. Seasonality'!K55 -> 5303.55 | AB8: ='6. Seasonality'!L55 -> 5303.55 | AC8: =SUM(Q8:AB8) -> 63642.6 | AD8: ='1. Sales Forecast'!E74 -> 72107.91 | AE8: ='1. Sales Forecast'!F74 -> 81734.9085 | AF8: ='1. Sales Forecast'!G74 -> 92687.03797
B9: Gross Profit | C9: =C7-C8 -> 202595.5 | D9: =D7-D8 -> 8808.5 | E9: =E7-E8 -> 17617 | F9: =F7-F8 -> 17617 | G9: 17617 | H9: 17617 | I9: 17617 | J9: 17617 | K9: 17617 | L9: 17617 | M9: 17617 | N9: 17617 | O9: 17617 | P9: 202595.5 | Q9: =Q7-Q8 -> 19951.45 | R9: =R7-R8 -> 19951.45 | S9: =S7-S8 -> 19951.45 | T9: 19951.45 | U9: 19951.45 | V9: 19951.45 | W9: 19951.45 | X9: 19951.45 | Y9: 19951.45 | Z9: 19951.45 | AA9: 19951.45 | AB9: 19951.45 | AC9: 239417.4 | AD9: 271263.09 | AE9: 307478.9415 | AF9: 348679.8095
B12: EXPENSES | C12: =C6 -> Annual | D12: 2019-01-01 | E12: 2019-02-01 | F12: 2019-03-04 | G12: 2019-04-04 | H12: 2019-05-05 | I12: =I6 -> 2019-06-05 | J12: =J6 -> 2019-07-06 | K12: 2019-08-06 | L12: 2019-09-06 | M12: 2019-10-07 | N12: 2019-11-07 | O12: 2019-12-08 | P12: 2019 | Q12: 2020-01-01 | R12: 2020-02-01 | S12: 2020-03-01 | T12: 2020-04-01 | U12: 2020-05-01 | V12: =V6 -> 2020-06-01 | W12: =W6 -> 2020-07-01 | X12: 2020-08-01 | Y12: 2020-09-01 | Z12: 2020-10-01 | AA12: 2020-11-01 | AB12: 2020-12-01 | AC12: 2020 | AD12: 2021 | AE12: 2022 | AF12: 2023
B13: =IF('2. Operating Budget'!A7="","",'2. Operating Budget'!A7) -> Worker Wages | C13: ='2. Operating Budget'!K7 -> 64112.5 | D13: =IF('2. Operating Budget'!$D7>0,$C13/12,'2. Operating Budget'!$B7*4.3+'2. Operating Budget'!$C7+'2. Operating Budget'!$E7*D$7) -> 2787.5 | E13: =IF('2. Operating Budget'!$D7>0,$C13/12,'2. Operating Budget'!$B7*4.3+'2. Operating Budget'!$C7+'2. Operating Budget'!$E7*E$7) -> 5575 | F13: =IF('2. Operating Budget'!$D7>0,$C13/12,'2. Operating Budget'!$B7*4.3+'2. Operating Budget'!$C7+'2. Operating Budget'!$E7*F$7) -> 5575 | G13: =IF('2. Operating Budget'!$D7>0,$C13/12,'2. Operating Budget'!$B7*4.3+'2. Operating Budget'!$C7+'2. Operating Budget'!$E7*G$7) -> 5575 | H13: =IF('2. Operating Budget'!$D7>0,$C13/12,'2. Operating Budget'!$B7*4.3+'2. Operating Budget'!$C7+'2. Operating Budget'!$E7*H$7) -> 5575 | I13: =IF('2. Operating Budget'!$D7>0,$C13/12,'2. Operating Budget'!$B7*4.3+'2. Operating Budget'!$C7+'2. Operating Budget'!$E7*I$7) -> 5575 | J13: =IF('2. Operating Budget'!$D7>0,$C13/12,'2. Operating Budget'!$B7*4.3+'2. Operating Budget'!$C7+'2. Operating Budget'!$E7*J$7) -> 5575 | K13: =IF('2. Operating Budget'!$D7>0,$C13/12,'2. Operating Budget'!$B7*4.3+'2. Operating Budget'!$C7+'2. Operating Budget'!$E7*K$7) -> 5575 | L13: =IF('2. Operating Budget'!$D7>0,$C13/12,'2. Operating Budget'!$B7*4.3+'2. Operating Budget'!$C7+'2. Operating Budget'!$E7*L$7) -> 5575 | M13: =IF('2. Operating Budget'!$D7>0,$C13/12,'2. Operating Budget'!$B7*4.3+'2. Operating Budget'!$C7+'2. Operating Budget'!$E7*M$7) -> 5575 | N13: =IF('2. Operating Budget'!$D7>0,$C13/12,'2. Operating Budget'!$B7*4.3+'2. Operating Budget'!$C7+'2. Operating Budget'!$E7*N$7) -> 5575 | O13: =IF('2. Operating Budget'!$D7>0,$C13/12,'2. Operating Budget'!$B7*4.3+'2. Operating Budget'!$C7+'2. Operating Budget'!$E7*O$7) -> 5575 | P13: =SUM(D13:O13) -> 64112.5 | Q13: =IF('2. Operating Budget'!$D7>0,$C13/12,'2. Operating Budget'!$B7*4.3+'2. Operating Budget'!$C7+'2. Operating Budget'!$E7*Q$7) -> 6313.75 | R13: =IF('2. Operating Budget'!$D7>0,$C13/12,'2. Operating Budget'!$B7*4.3+'2. Operating Budget'!$C7+'2. Operating Budget'!$E7*R$7) -> 6313.75 | S13: =IF('2. Operating Budget'!$D7>0,$C13/12,'2. Operating Budget'!$B7*4.3+'2. Operating Budget'!$C7+'2. Operating Budget'!$E7*S$7) -> 6313.75 | T13: =IF('2. Operating Budget'!$D7>0,$C13/12,'2. Operating Budget'!$B7*4.3+'2. Operating Budget'!$C7+'2. Operating Budget'!$E7*T$7) -> 6313.75 | U13: =IF('2. Operating Budget'!$D7>0,$C13/12,'2. Operating Budget'!$B7*4.3+'2. Operating Budget'!$C7+'2. Operating Budget'!$E7*U$7) -> 6313.75 | V13: =IF('2. Operating Budget'!$D7>0,$C13/12,'2. Operating Budget'!$B7*4.3+'2. Operating Budget'!$C7+'2. Operating Budget'!$E7*V$7) -> 6313.75 | W13: =IF('2. Operating Budget'!$D7>0,$C13/12,'2. Operating Budget'!$B7*4.3+'2. Operating Budget'!$C7+'2. Operating Budget'!$E7*W$7) -> 6313.75 | X13: =IF('2. Operating Budget'!$D7>0,$C13/12,'2. Operating Budget'!$B7*4.3+'2. Operating Budget'!$C7+'2. Operating Budget'!$E7*X$7) -> 6313.75 | Y13: =IF('2. Operating Budget'!$D7>0,$C13/12,'2. Operating Budget'!$B7*4.3+'2. Operating Budget'!$C7+'2. Operating Budget'!$E7*Y$7) -> 6313.75 | Z13: =IF('2. Operating Budget'!$D7>0,$C13/12,'2. Operating Budget'!$B7*4.3+'2. Operating Budget'!$C7+'2. Operating Budget'!$E7*Z$7) -> 6313.75 | AA13: =IF('2. Operating Budget'!$D7>0,$C13/12,'2. Operating Budget'!$B7*4.3+'2. Operating Budget'!$C7+'2. Operating Budget'!$E7*AA$7) -> 6313.75 | AB13: =IF('2. Operating Budget'!$D7>0,$C13/12,'2. Operating Budget'!$B7*4.3+'2. Operating Budget'!$C7+'2. Operating Budget'!$E7*AB$7) -> 6313.75 | AC13: =SUM(Q13:AB13) -> 75765 | AD13: =IF('2. Operating Budget'!$E7>0,'2. Operating Budget'!$E7*'8. P&L and Cashflow'!AD$7,'2. Operating Budget'!$K7) -> 85842.75 | AE13: =IF('2. Operating Budget'!$E7>0,'2. Operating Budget'!$E7*'8. P&L and Cashflow'!AE$7,'2. Operating Budget'!$K7) -> 97303.4625 | AF13: =IF('2. Operating Budget'!$E7>0,'2. Operating Budget'!$E7*'8. P&L and Cashflow'!AF$7,'2. Operating Budget'!$K7) -> 110341.7119
B14: =IF('2. Operating Budget'!A8="","",'2. Operating Budget'!A8) -> Owner Pay | C14: ='2. Operating Budget'!K8 -> 36000 | D14: =IF('2. Operating Budget'!$D8>0,$C14/12,'2. Operating Budget'!$B8*4.3+'2. Operating Budget'!$C8+'2. Operating Budget'!$E8*D$7) -> 3000 | E14: =IF('2. Operating Budget'!$D8>0,$C14/12,'2. Operating Budget'!$B8*4.3+'2. Operating Budget'!$C8+'2. Operating Budget'!$E8*E$7) -> 3000 | F14: =IF('2. Operating Budget'!$D8>0,$C14/12,'2. Operating Budget'!$B8*4.3+'2. Operating Budget'!$C8+'2. Operating Budget'!$E8*F$7) -> 3000 | G14: =IF('2. Operating Budget'!$D8>0,$C14/12,'2. Operating Budget'!$B8*4.3+'2. Operating Budget'!$C8+'2. Operating Budget'!$E8*G$7) -> 3000 | H14: =IF('2. Operating Budget'!$D8>0,$C14/12,'2. Operating Budget'!$B8*4.3+'2. Operating Budget'!$C8+'2. Operating Budget'!$E8*H$7) -> 3000 | I14: =IF('2. Operating Budget'!$D8>0,$C14/12,'2. Operating Budget'!$B8*4.3+'2. Operating Budget'!$C8+'2. Operating Budget'!$E8*I$7) -> 3000 | J14: =IF('2. Operating Budget'!$D8>0,$C14/12,'2. Operating Budget'!$B8*4.3+'2. Operating Budget'!$C8+'2. Operating Budget'!$E8*J$7) -> 3000 | K14: =IF('2. Operating Budget'!$D8>0,$C14/12,'2. Operating Budget'!$B8*4.3+'2. Operating Budget'!$C8+'2. Operating Budget'!$E8*K$7) -> 3000 | L14: =IF('2. Operating Budget'!$D8>0,$C14/12,'2. Operating Budget'!$B8*4.3+'2. Operating Budget'!$C8+'2. Operating Budget'!$E8*L$7) -> 3000 | M14: =IF('2. Operating Budget'!$D8>0,$C14/12,'2. Operating Budget'!$B8*4.3+'2. Operating Budget'!$C8+'2. Operating Budget'!$E8*M$7) -> 3000 | N14: =IF('2. Operating Budget'!$D8>0,$C14/12,'2. Operating Budget'!$B8*4.3+'2. Operating Budget'!$C8+'2. Operating Budget'!$E8*N$7) -> 3000 | O14: =IF('2. Operating Budget'!$D8>0,$C14/12,'2. Operating Budget'!$B8*4.3+'2. Operating Budget'!$C8+'2. Operating Budget'!$E8*O$7) -> 3000 | P14: =SUM(D14:O14) -> 36000 | Q14: =IF('2. Operating Budget'!$D8>0,$C14/12,'2. Operating Budget'!$B8*4.3+'2. Operating Budget'!$C8+'2. Operating Budget'!$E8*Q$7) -> 3000 | R14: =IF('2. Operating Budget'!$D8>0,$C14/12,'2. Operating Budget'!$B8*4.3+'2. Operating Budget'!$C8+'2. Operating Budget'!$E8*R$7) -> 3000 | S14: =IF('2. Operating Budget'!$D8>0,$C14/12,'2. Operating Budget'!$B8*4.3+'2. Operating Budget'!$C8+'2. Operating Budget'!$E8*S$7) -> 3000 | T14: =IF('2. Operating Budget'!$D8>0,$C14/12,'2. Operating Budget'!$B8*4.3+'2. Operating Budget'!$C8+'2. Operating Budget'!$E8*T$7) -> 3000 | U14: =IF('2. Operating Budget'!$D8>0,$C14/12,'2. Operating Budget'!$B8*4.3+'2. Operating Budget'!$C8+'2. Operating Budget'!$E8*U$7) -> 3000 | V14: =IF('2. Operating Budget'!$D8>0,$C14/12,'2. Operating Budget'!$B8*4.3+'2. Operating Budget'!$C8+'2. Operating Budget'!$E8*V$7) -> 3000 | W14: =IF('2. Operating Budget'!$D8>0,$C14/12,'2. Operating Budget'!$B8*4.3+'2. Operating Budget'!$C8+'2. Operating Budget'!$E8*W$7) -> 3000 | X14: =IF('2. Operating Budget'!$D8>0,$C14/12,'2. Operating Budget'!$B8*4.3+'2. Operating Budget'!$C8+'2. Operating Budget'!$E8*X$7) -> 3000 | Y14: =IF('2. Operating Budget'!$D8>0,$C14/12,'2. Operating Budget'!$B8*4.3+'2. Operating Budget'!$C8+'2. Operating Budget'!$E8*Y$7) -> 3000 | Z14: =IF('2. Operating Budget'!$D8>0,$C14/12,'2. Operating Budget'!$B8*4.3+'2. Operating Budget'!$C8+'2. Operating Budget'!$E8*Z$7) -> 3000 | AA14: =IF('2. Operating Budget'!$D8>0,$C14/12,'2. Operating Budget'!$B8*4.3+'2. Operating Budget'!$C8+'2. Operating Budget'!$E8*AA$7) -> 3000 | AB14: =IF('2. Operating Budget'!$D8>0,$C14/12,'2. Operating Budget'!$B8*4.3+'2. Operating Budget'!$C8+'2. Operating Budget'!$E8*AB$7) -> 3000 | AC14: =SUM(Q14:AB14) -> 36000 | AD14: =IF('2. Operating Budget'!$D8>0,$C14,'2. Operating Budget'!$B8*52+'2. Operating Budget'!$C8*12+'2. Operating Budget'!$E8*AD$7) -> 36000 | AE14: =IF('2. Operating Budget'!$D8>0,$C14,'2. Operating Budget'!$B8*52+'2. Operating Budget'!$C8*12+'2. Operating Budget'!$E8*AE$7) -> 36000 | AF14: =IF('2. Operating Budget'!$D8>0,$C14,'2. Operating Budget'!$B8*52+'2. Operating Budget'!$C8*12+'2. Operating Budget'!$E8*AF$7) -> 36000
B15: ='2. Operating Budget'!A9 -> 0.15 | C15: ='2. Operating Budget'!K9 -> 15016.875 | D15: =0.15*(D13+D14) -> 868.125 | E15: =0.15*(E13+E14) -> 1286.25 | F15: =0.15*(F13+F14) -> 1286.25 | G15: 1286.25 | H15: 1286.25 | I15: 1286.25 | J15: 1286.25 | K15: 1286.25 | L15: 1286.25 | M15: 1286.25 | N15: 1286.25 | O15: 1286.25 | P15: =SUM(D15:O15) -> 15016.875 | Q15: =0.15*(Q13+Q14) -> 1397.0625 | R15: =0.15*(R13+R14) -> 1397.0625 | S15: =0.15*(S13+S14) -> 1397.0625 | T15: 1397.0625 | U15: 1397.0625 | V15: 1397.0625 | W15: 1397.0625 | X15: 1397.0625 | Y15: 1397.0625 | Z15: 1397.0625 | AA15: 1397.0625 | AB15: 1397.0625 | AC15: =SUM(Q15:AB15) -> 16764.75 | AD15: 18276.4125 | AE15: 19995.51937 | AF15: 21951.25678
B16: ='2. Operating Budget'!A10 -> Workers Comp | C16: =P13/100*'2. Operating Budget'!$E$10 -> 1942.60875 | D16: =C16/12 -> 161.8840625 | E16: =D16 -> 161.8840625 | F16: 161.8840625 | G16: =F16 -> 161.8840625 | H16: 161.8840625 | I16: 161.8840625 | J16: 161.8840625 | K16: 161.8840625 | L16: 161.8840625 | M16: 161.8840625 | N16: 161.8840625 | O16: 161.8840625 | P16: 1942.60875 | Q16: =AC13/100*'2. Operating Budget'!E10/12 -> 191.306625 | R16: =Q16 -> 191.306625 | S16: 191.306625 | T16: 191.306625 | U16: 191.306625 | V16: 191.306625 | W16: 191.306625 | X16: 191.306625 | Y16: 191.306625 | Z16: 191.306625 | AA16: 191.306625 | AB16: 191.306625 | AC16: 2295.6795 | AD16: =AD13/100*'2. Operating Budget'!$E10 -> 2601.035325 | AE16: =AE13/100*'2. Operating Budget'!$E10 -> 2948.294914 | AF16: =AF13/100*'2. Operating Budget'!$E10 -> 3343.35387
B17: =IF('2. Operating Budget'!A11="","",'2. Operating Budget'!A11) -> Rent | C17: ='2. Operating Budget'!K11 -> 4800 | D17: =IF('2. Operating Budget'!$D11>0,$C17/12,'2. Operating Budget'!$B11*4.3+'2. Operating Budget'!$C11+'2. Operating Budget'!$E11*D$7) -> 400 | E17: =IF('2. Operating Budget'!$D11>0,$C17/12,'2. Operating Budget'!$B11*4.3+'2. Operating Budget'!$C11+'2. Operating Budget'!$E11*E$7) -> 400 | F17: =IF('2. Operating Budget'!$D11>0,$C17/12,'2. Operating Budget'!$B11*4.3+'2. Operating Budget'!$C11+'2. Operating Budget'!$E11*F$7) -> 400 | G17: =IF('2. Operating Budget'!$D11>0,$C17/12,'2. Operating Budget'!$B11*4.3+'2. Operating Budget'!$C11+'2. Operating Budget'!$E11*G$7) -> 400 | H17: =IF('2. Operating Budget'!$D11>0,$C17/12,'2. Operating Budget'!$B11*4.3+'2. Operating Budget'!$C11+'2. Operating Budget'!$E11*H$7) -> 400 | I17: =IF('2. Operating Budget'!$D11>0,$C17/12,'2. Operating Budget'!$B11*4.3+'2. Operating Budget'!$C11+'2. Operating Budget'!$E11*I$7) -> 400 | J17: =IF('2. Operating Budget'!$D11>0,$C17/12,'2. Operating Budget'!$B11*4.3+'2. Operating Budget'!$C11+'2. Operating Budget'!$E11*J$7) -> 400 | K17: =IF('2. Operating Budget'!$D11>0,$C17/12,'2. Operating Budget'!$B11*4.3+'2. Operating Budget'!$C11+'2. Operating Budget'!$E11*K$7) -> 400 | L17: =IF('2. Operating Budget'!$D11>0,$C17/12,'2. Operating Budget'!$B11*4.3+'2. Operating Budget'!$C11+'2. Operating Budget'!$E11*L$7) -> 400 | M17: =IF('2. Operating Budget'!$D11>0,$C17/12,'2. Operating Budget'!$B11*4.3+'2. Operating Budget'!$C11+'2. Operating Budget'!$E11*M$7) -> 400 | N17: =IF('2. Operating Budget'!$D11>0,$C17/12,'2. Operating Budget'!$B11*4.3+'2. Operating Budget'!$C11+'2. Operating Budget'!$E11*N$7) -> 400 | O17: =IF('2. Operating Budget'!$D11>0,$C17/12,'2. Operating Budget'!$B11*4.3+'2. Operating Budget'!$C11+'2. Operating Budget'!$E11*O$7) -> 400 | P17: =SUM(D17:O17) -> 4800 | Q17: =IF('2. Operating Budget'!$D11>0,$C17/12,'2. Operating Budget'!$B11*4.3+'2. Operating Budget'!$C11+'2. Operating Budget'!$E11*Q$7) -> 400 | R17: =IF('2. Operating Budget'!$D11>0,$C17/12,'2. Operating Budget'!$B11*4.3+'2. Operating Budget'!$C11+'2. Operating Budget'!$E11*R$7) -> 400 | S17: =IF('2. Operating Budget'!$D11>0,$C17/12,'2. Operating Budget'!$B11*4.3+'2. Operating Budget'!$C11+'2. Operating Budget'!$E11*S$7) -> 400 | T17: =IF('2. Operating Budget'!$D11>0,$C17/12,'2. Operating Budget'!$B11*4.3+'2. Operating Budget'!$C11+'2. Operating Budget'!$E11*T$7) -> 400 | U17: =IF('2. Operating Budget'!$D11>0,$C17/12,'2. Operating Budget'!$B11*4.3+'2. Operating Budget'!$C11+'2. Operating Budget'!$E11*U$7) -> 400 | V17: =IF('2. Operating Budget'!$D11>0,$C17/12,'2. Operating Budget'!$B11*4.3+'2. Operating Budget'!$C11+'2. Operating Budget'!$E11*V$7) -> 400 | W17: =IF('2. Operating Budget'!$D11>0,$C17/12,'2. Operating Budget'!$B11*4.3+'2. Operating Budget'!$C11+'2. Operating Budget'!$E11*W$7) -> 400 | X17: =IF('2. Operating Budget'!$D11>0,$C17/12,'2. Operating Budget'!$B11*4.3+'2. Operating Budget'!$C11+'2. Operating Budget'!$E11*X$7) -> 400 | Y17: =IF('2. Operating Budget'!$D11>0,$C17/12,'2. Operating Budget'!$B11*4.3+'2. Operating Budget'!$C11+'2. Operating Budget'!$E11*Y$7) -> 400 | Z17: =IF('2. Operating Budget'!$D11>0,$C17/12,'2. Operating Budget'!$B11*4.3+'2. Operating Budget'!$C11+'2. Operating Budget'!$E11*Z$7) -> 400 | AA17: =IF('2. Operating Budget'!$D11>0,$C17/12,'2. Operating Budget'!$B11*4.3+'2. Operating Budget'!$C11+'2. Operating Budget'!$E11*AA$7) -> 400 | AB17: =IF('2. Operating Budget'!$D11>0,$C17/12,'2. Operating Budget'!$B11*4.3+'2. Operating Budget'!$C11+'2. Operating Budget'!$E11*AB$7) -> 400 | AC17: =SUM(Q17:AB17) -> 4800 | AD17: =IF('2. Operating Budget'!$E11>0,'2. Operating Budget'!$E11*'8. P&L and Cashflow'!AD$7,'2. Operating Budget'!$K11) -> 4800 | AE17: =IF('2. Operating Budget'!$E11>0,'2. Operating Budget'!$E11*'8. P&L and Cashflow'!AE$7,'2. Operating Budget'!$K11) -> 4800 | AF17: =IF('2. Operating Budget'!$E11>0,'2. Operating Budget'!$E11*'8. P&L and Cashflow'!AF$7,'2. Operating Budget'!$K11) -> 4800
B18: =IF('2. Operating Budget'!A12="","",'2. Operating Budget'!A12) -> Phone/Internet/Cell | C18: ='2. Operating Budget'!K12 -> 1800 | D18: =IF('2. Operating Budget'!$D12>0,$C18/12,'2. Operating Budget'!$B12*4.3+'2. Operating Budget'!$C12+'2. Operating Budget'!$E12*D$7) -> 150 | E18: =IF('2. Operating Budget'!$D12>0,$C18/12,'2. Operating Budget'!$B12*4.3+'2. Operating Budget'!$C12+'2. Operating Budget'!$E12*E$7) -> 150 | F18: =IF('2. Operating Budget'!$D12>0,$C18/12,'2. Operating Budget'!$B12*4.3+'2. Operating Budget'!$C12+'2. Operating Budget'!$E12*F$7) -> 150 | G18: =IF('2. Operating Budget'!$D12>0,$C18/12,'2. Operating Budget'!$B12*4.3+'2. Operating Budget'!$C12+'2. Operating Budget'!$E12*G$7) -> 150 | H18: =IF('2. Operating Budget'!$D12>0,$C18/12,'2. Operating Budget'!$B12*4.3+'2. Operating Budget'!$C12+'2. Operating Budget'!$E12*H$7) -> 150 | I18: =IF('2. Operating Budget'!$D12>0,$C18/12,'2. Operating Budget'!$B12*4.3+'2. Operating Budget'!$C12+'2. Operating Budget'!$E12*I$7) -> 150 | J18: =IF('2. Operating Budget'!$D12>0,$C18/12,'2. Operating Budget'!$B12*4.3+'2. Operating Budget'!$C12+'2. Operating Budget'!$E12*J$7) -> 150 | K18: =IF('2. Operating Budget'!$D12>0,$C18/12,'2. Operating Budget'!$B12*4.3+'2. Operating Budget'!$C12+'2. Operating Budget'!$E12*K$7) -> 150 | L18: =IF('2. Operating Budget'!$D12>0,$C18/12,'2. Operating Budget'!$B12*4.3+'2. Operating Budget'!$C12+'2. Operating Budget'!$E12*L$7) -> 150 | M18: =IF('2. Operating Budget'!$D12>0,$C18/12,'2. Operating Budget'!$B12*4.3+'2. Operating Budget'!$C12+'2. Operating Budget'!$E12*M$7) -> 150 | N18: =IF('2. Operating Budget'!$D12>0,$C18/12,'2. Operating Budget'!$B12*4.3+'2. Operating Budget'!$C12+'2. Operating Budget'!$E12*N$7) -> 150 | O18: =IF('2. Operating Budget'!$D12>0,$C18/12,'2. Operating Budget'!$B12*4.3+'2. Operating Budget'!$C12+'2. Operating Budget'!$E12*O$7) -> 150 | P18: =SUM(D18:O18) -> 1800 | Q18: =IF('2. Operating Budget'!$D12>0,$C18/12,'2. Operating Budget'!$B12*4.3+'2. Operating Budget'!$C12+'2. Operating Budget'!$E12*Q$7) -> 150 | R18: =IF('2. Operating Budget'!$D12>0,$C18/12,'2. Operating Budget'!$B12*4.3+'2. Operating Budget'!$C12+'2. Operating Budget'!$E12*R$7) -> 150 | S18: =IF('2. Operating Budget'!$D12>0,$C18/12,'2. Operating Budget'!$B12*4.3+'2. Operating Budget'!$C12+'2. Operating Budget'!$E12*S$7) -> 150 | T18: =IF('2. Operating Budget'!$D12>0,$C18/12,'2. Operating Budget'!$B12*4.3+'2. Operating Budget'!$C12+'2. Operating Budget'!$E12*T$7) -> 150 | U18: =IF('2. Operating Budget'!$D12>0,$C18/12,'2. Operating Budget'!$B12*4.3+'2. Operating Budget'!$C12+'2. Operating Budget'!$E12*U$7) -> 150 | V18: =IF('2. Operating Budget'!$D12>0,$C18/12,'2. Operating Budget'!$B12*4.3+'2. Operating Budget'!$C12+'2. Operating Budget'!$E12*V$7) -> 150 | W18: =IF('2. Operating Budget'!$D12>0,$C18/12,'2. Operating Budget'!$B12*4.3+'2. Operating Budget'!$C12+'2. Operating Budget'!$E12*W$7) -> 150 | X18: =IF('2. Operating Budget'!$D12>0,$C18/12,'2. Operating Budget'!$B12*4.3+'2. Operating Budget'!$C12+'2. Operating Budget'!$E12*X$7) -> 150 | Y18: =IF('2. Operating Budget'!$D12>0,$C18/12,'2. Operating Budget'!$B12*4.3+'2. Operating Budget'!$C12+'2. Operating Budget'!$E12*Y$7) -> 150 | Z18: =IF('2. Operating Budget'!$D12>0,$C18/12,'2. Operating Budget'!$B12*4.3+'2. Operating Budget'!$C12+'2. Operating Budget'!$E12*Z$7) -> 150 | AA18: =IF('2. Operating Budget'!$D12>0,$C18/12,'2. Operating Budget'!$B12*4.3+'2. Operating Budget'!$C12+'2. Operating Budget'!$E12*AA$7) -> 150 | AB18: =IF('2. Operating Budget'!$D12>0,$C18/12,'2. Operating Budget'!$B12*4.3+'2. Operating Budget'!$C12+'2. Operating Budget'!$E12*AB$7) -> 150 | AC18: =SUM(Q18:AB18) -> 1800 | AD18: =IF('2. Operating Budget'!$E12>0,'2. Operating Budget'!$E12*'8. P&L and Cashflow'!AD$7,'2. Operating Budget'!$K12) -> 1800 | AE18: =IF('2. Operating Budget'!$E12>0,'2. Operating Budget'!$E12*'8. P&L and Cashflow'!AE$7,'2. Operating Budget'!$K12) -> 1800 | AF18: =IF('2. Operating Budget'!$E12>0,'2. Operating Budget'!$E12*'8. P&L and Cashflow'!AF$7,'2. Operating Budget'!$K12) -> 1800
B19: =IF('2. Operating Budget'!A13="","",'2. Operating Budget'!A13) -> Electricity/Heat/Water | C19: ='2. Operating Budget'!K13 -> 0 | D19: =IF('2. Operating Budget'!$D13>0,$C19/12,'2. Operating Budget'!$B13*4.3+'2. Operating Budget'!$C13+'2. Operating Budget'!$E13*D$7) -> 0 | E19: =IF('2. Operating Budget'!$D13>0,$C19/12,'2. Operating Budget'!$B13*4.3+'2. Operating Budget'!$C13+'2. Operating Budget'!$E13*E$7) -> 0 | F19: =IF('2. Operating Budget'!$D13>0,$C19/12,'2. Operating Budget'!$B13*4.3+'2. Operating Budget'!$C13+'2. Operating Budget'!$E13*F$7) -> 0 | G19: =IF('2. Operating Budget'!$D13>0,$C19/12,'2. Operating Budget'!$B13*4.3+'2. Operating Budget'!$C13+'2. Operating Budget'!$E13*G$7) -> 0 | H19: =IF('2. Operating Budget'!$D13>0,$C19/12,'2. Operating Budget'!$B13*4.3+'2. Operating Budget'!$C13+'2. Operating Budget'!$E13*H$7) -> 0 | I19: =IF('2. Operating Budget'!$D13>0,$C19/12,'2. Operating Budget'!$B13*4.3+'2. Operating Budget'!$C13+'2. Operating Budget'!$E13*I$7) -> 0 | J19: =IF('2. Operating Budget'!$D13>0,$C19/12,'2. Operating Budget'!$B13*4.3+'2. Operating Budget'!$C13+'2. Operating Budget'!$E13*J$7) -> 0 | K19: =IF('2. Operating Budget'!$D13>0,$C19/12,'2. Operating Budget'!$B13*4.3+'2. Operating Budget'!$C13+'2. Operating Budget'!$E13*K$7) -> 0 | L19: =IF('2. Operating Budget'!$D13>0,$C19/12,'2. Operating Budget'!$B13*4.3+'2. Operating Budget'!$C13+'2. Operating Budget'!$E13*L$7) -> 0 | M19: =IF('2. Operating Budget'!$D13>0,$C19/12,'2. Operating Budget'!$B13*4.3+'2. Operating Budget'!$C13+'2. Operating Budget'!$E13*M$7) -> 0 | N19: =IF('2. Operating Budget'!$D13>0,$C19/12,'2. Operating Budget'!$B13*4.3+'2. Operating Budget'!$C13+'2. Operating Budget'!$E13*N$7) -> 0 | O19: =IF('2. Operating Budget'!$D13>0,$C19/12,'2. Operating Budget'!$B13*4.3+'2. Operating Budget'!$C13+'2. Operating Budget'!$E13*O$7) -> 0 | P19: 0 | Q19: =IF('2. Operating Budget'!$D13>0,$C19/12,'2. Operating Budget'!$B13*4.3+'2. Operating Budget'!$C13+'2. Operating Budget'!$E13*Q$7) -> 0 | R19: =IF('2. Operating Budget'!$D13>0,$C19/12,'2. Operating Budget'!$B13*4.3+'2. Operating Budget'!$C13+'2. Operating Budget'!$E13*R$7) -> 0 | S19: =IF('2. Operating Budget'!$D13>0,$C19/12,'2. Operating Budget'!$B13*4.3+'2. Operating Budget'!$C13+'2. Operating Budget'!$E13*S$7) -> 0 | T19: =IF('2. Operating Budget'!$D13>0,$C19/12,'2. Operating Budget'!$B13*4.3+'2. Operating Budget'!$C13+'2. Operating Budget'!$E13*T$7) -> 0 | U19: =IF('2. Operating Budget'!$D13>0,$C19/12,'2. Operating Budget'!$B13*4.3+'2. Operating Budget'!$C13+'2. Operating Budget'!$E13*U$7) -> 0 | V19: =IF('2. Operating Budget'!$D13>0,$C19/12,'2. Operating Budget'!$B13*4.3+'2. Operating Budget'!$C13+'2. Operating Budget'!$E13*V$7) -> 0 | W19: =IF('2. Operating Budget'!$D13>0,$C19/12,'2. Operating Budget'!$B13*4.3+'2. Operating Budget'!$C13+'2. Operating Budget'!$E13*W$7) -> 0 | X19: =IF('2. Operating Budget'!$D13>0,$C19/12,'2. Operating Budget'!$B13*4.3+'2. Operating Budget'!$C13+'2. Operating Budget'!$E13*X$7) -> 0 | Y19: =IF('2. Operating Budget'!$D13>0,$C19/12,'2. Operating Budget'!$B13*4.3+'2. Operating Budget'!$C13+'2. Operating Budget'!$E13*Y$7) -> 0 | Z19: =IF('2. Operating Budget'!$D13>0,$C19/12,'2. Operating Budget'!$B13*4.3+'2. Operating Budget'!$C13+'2. Operating Budget'!$E13*Z$7) -> 0 | AA19: =IF('2. Operating Budget'!$D13>0,$C19/12,'2. Operating Budget'!$B13*4.3+'2. Operating Budget'!$C13+'2. Operating Budget'!$E13*AA$7) -> 0 | AB19: =IF('2. Operating Budget'!$D13>0,$C19/12,'2. Operating Budget'!$B13*4.3+'2. Operating Budget'!$C13+'2. Operating Budget'!$E13*AB$7) -> 0 | AC19: 0 | AD19: =IF('2. Operating Budget'!$E13>0,'2. Operating Budget'!$E13*'8. P&L and Cashflow'!AD$7,'2. Operating Budget'!$K13) -> 0 | AE19: =IF('2. Operating Budget'!$E13>0,'2. Operating Budget'!$E13*'8. P&L and Cashflow'!AE$7,'2. Operating Budget'!$K13) -> 0 | AF19: =IF('2. Operating Budget'!$E13>0,'2. Operating Budget'!$E13*'8. P&L and Cashflow'!AF$7,'2. Operating Budget'!$K13) -> 0
B20: =IF('2. Operating Budget'!A14="","",'2. Operating Budget'!A14) -> Dumpster/Waste | C20: ='2. Operating Budget'!K14 -> 0 | D20: =IF('2. Operating Budget'!$D14>0,$C20/12,'2. Operating Budget'!$B14*4.3+'2. Operating Budget'!$C14+'2. Operating Budget'!$E14*D$7) -> 0 | E20: =IF('2. Operating Budget'!$D14>0,$C20/12,'2. Operating Budget'!$B14*4.3+'2. Operating Budget'!$C14+'2. Operating Budget'!$E14*E$7) -> 0 | F20: =IF('2. Operating Budget'!$D14>0,$C20/12,'2. Operating Budget'!$B14*4.3+'2. Operating Budget'!$C14+'2. Operating Budget'!$E14*F$7) -> 0 | G20: =IF('2. Operating Budget'!$D14>0,$C20/12,'2. Operating Budget'!$B14*4.3+'2. Operating Budget'!$C14+'2. Operating Budget'!$E14*G$7) -> 0 | H20: =IF('2. Operating Budget'!$D14>0,$C20/12,'2. Operating Budget'!$B14*4.3+'2. Operating Budget'!$C14+'2. Operating Budget'!$E14*H$7) -> 0 | I20: =IF('2. Operating Budget'!$D14>0,$C20/12,'2. Operating Budget'!$B14*4.3+'2. Operating Budget'!$C14+'2. Operating Budget'!$E14*I$7) -> 0 | J20: =IF('2. Operating Budget'!$D14>0,$C20/12,'2. Operating Budget'!$B14*4.3+'2. Operating Budget'!$C14+'2. Operating Budget'!$E14*J$7) -> 0 | K20: =IF('2. Operating Budget'!$D14>0,$C20/12,'2. Operating Budget'!$B14*4.3+'2. Operating Budget'!$C14+'2. Operating Budget'!$E14*K$7) -> 0 | L20: =IF('2. Operating Budget'!$D14>0,$C20/12,'2. Operating Budget'!$B14*4.3+'2. Operating Budget'!$C14+'2. Operating Budget'!$E14*L$7) -> 0 | M20: =IF('2. Operating Budget'!$D14>0,$C20/12,'2. Operating Budget'!$B14*4.3+'2. Operating Budget'!$C14+'2. Operating Budget'!$E14*M$7) -> 0 | N20: =IF('2. Operating Budget'!$D14>0,$C20/12,'2. Operating Budget'!$B14*4.3+'2. Operating Budget'!$C14+'2. Operating Budget'!$E14*N$7) -> 0 | O20: =IF('2. Operating Budget'!$D14>0,$C20/12,'2. Operating Budget'!$B14*4.3+'2. Operating Budget'!$C14+'2. Operating Budget'!$E14*O$7) -> 0 | P20: 0 | Q20: =IF('2. Operating Budget'!$D14>0,$C20/12,'2. Operating Budget'!$B14*4.3+'2. Operating Budget'!$C14+'2. Operating Budget'!$E14*Q$7) -> 0 | R20: =IF('2. Operating Budget'!$D14>0,$C20/12,'2. Operating Budget'!$B14*4.3+'2. Operating Budget'!$C14+'2. Operating Budget'!$E14*R$7) -> 0 | S20: =IF('2. Operating Budget'!$D14>0,$C20/12,'2. Operating Budget'!$B14*4.3+'2. Operating Budget'!$C14+'2. Operating Budget'!$E14*S$7) -> 0 | T20: =IF('2. Operating Budget'!$D14>0,$C20/12,'2. Operating Budget'!$B14*4.3+'2. Operating Budget'!$C14+'2. Operating Budget'!$E14*T$7) -> 0 | U20: =IF('2. Operating Budget'!$D14>0,$C20/12,'2. Operating Budget'!$B14*4.3+'2. Operating Budget'!$C14+'2. Operating Budget'!$E14*U$7) -> 0 | V20: =IF('2. Operating Budget'!$D14>0,$C20/12,'2. Operating Budget'!$B14*4.3+'2. Operating Budget'!$C14+'2. Operating Budget'!$E14*V$7) -> 0 | W20: =IF('2. Operating Budget'!$D14>0,$C20/12,'2. Operating Budget'!$B14*4.3+'2. Operating Budget'!$C14+'2. Operating Budget'!$E14*W$7) -> 0 | X20: =IF('2. Operating Budget'!$D14>0,$C20/12,'2. Operating Budget'!$B14*4.3+'2. Operating Budget'!$C14+'2. Operating Budget'!$E14*X$7) -> 0 | Y20: =IF('2. Operating Budget'!$D14>0,$C20/12,'2. Operating Budget'!$B14*4.3+'2. Operating Budget'!$C14+'2. Operating Budget'!$E14*Y$7) -> 0 | Z20: =IF('2. Operating Budget'!$D14>0,$C20/12,'2. Operating Budget'!$B14*4.3+'2. Operating Budget'!$C14+'2. Operating Budget'!$E14*Z$7) -> 0 | AA20: =IF('2. Operating Budget'!$D14>0,$C20/12,'2. Operating Budget'!$B14*4.3+'2. Operating Budget'!$C14+'2. Operating Budget'!$E14*AA$7) -> 0 | AB20: =IF('2. Operating Budget'!$D14>0,$C20/12,'2. Operating Budget'!$B14*4.3+'2. Operating Budget'!$C14+'2. Operating Budget'!$E14*AB$7) -> 0 | AC20: 0 | AD20: =IF('2. Operating Budget'!$E14>0,'2. Operating Budget'!$E14*'8. P&L and Cashflow'!AD$7,'2. Operating Budget'!$K14) -> 0 | AE20: =IF('2. Operating Budget'!$E14>0,'2. Operating Budget'!$E14*'8. P&L and Cashflow'!AE$7,'2. Operating Budget'!$K14) -> 0 | AF20: =IF('2. Operating Budget'!$E14>0,'2. Operating Budget'!$E14*'8. P&L and Cashflow'!AF$7,'2. Operating Budget'!$K14) -> 0
B21: =IF('2. Operating Budget'!A15="","",'2. Operating Budget'!A15) -> Liability Insurance | C21: ='2. Operating Budget'!K15 -> 500 | D21: =IF('2. Operating Budget'!$D15>0,$C21/12,'2. Operating Budget'!$B15*4.3+'2. Operating Budget'!$C15+'2. Operating Budget'!$E15*D$7) -> 41.66666667 | E21: =IF('2. Operating Budget'!$D15>0,$C21/12,'2. Operating Budget'!$B15*4.3+'2. Operating Budget'!$C15+'2. Operating Budget'!$E15*E$7) -> 41.66666667 | F21: =IF('2. Operating Budget'!$D15>0,$C21/12,'2. Operating Budget'!$B15*4.3+'2. Operating Budget'!$C15+'2. Operating Budget'!$E15*F$7) -> 41.66666667 | G21: =IF('2. Operating Budget'!$D15>0,$C21/12,'2. Operating Budget'!$B15*4.3+'2. Operating Budget'!$C15+'2. Operating Budget'!$E15*G$7) -> 41.66666667 | H21: =IF('2. Operating Budget'!$D15>0,$C21/12,'2. Operating Budget'!$B15*4.3+'2. Operating Budget'!$C15+'2. Operating Budget'!$E15*H$7) -> 41.66666667 | I21: =IF('2. Operating Budget'!$D15>0,$C21/12,'2. Operating Budget'!$B15*4.3+'2. Operating Budget'!$C15+'2. Operating Budget'!$E15*I$7) -> 41.66666667 | J21: =IF('2. Operating Budget'!$D15>0,$C21/12,'2. Operating Budget'!$B15*4.3+'2. Operating Budget'!$C15+'2. Operating Budget'!$E15*J$7) -> 41.66666667 | K21: =IF('2. Operating Budget'!$D15>0,$C21/12,'2. Operating Budget'!$B15*4.3+'2. Operating Budget'!$C15+'2. Operating Budget'!$E15*K$7) -> 41.66666667 | L21: =IF('2. Operating Budget'!$D15>0,$C21/12,'2. Operating Budget'!$B15*4.3+'2. Operating Budget'!$C15+'2. Operating Budget'!$E15*L$7) -> 41.66666667 | M21: =IF('2. Operating Budget'!$D15>0,$C21/12,'2. Operating Budget'!$B15*4.3+'2. Operating Budget'!$C15+'2. Operating Budget'!$E15*M$7) -> 41.66666667 | N21: =IF('2. Operating Budget'!$D15>0,$C21/12,'2. Operating Budget'!$B15*4.3+'2. Operating Budget'!$C15+'2. Operating Budget'!$E15*N$7) -> 41.66666667 | O21: =IF('2. Operating Budget'!$D15>0,$C21/12,'2. Operating Budget'!$B15*4.3+'2. Operating Budget'!$C15+'2. Operating Budget'!$E15*O$7) -> 41.66666667 | P21: 500 | Q21: =IF('2. Operating Budget'!$D15>0,$C21/12,'2. Operating Budget'!$B15*4.3+'2. Operating Budget'!$C15+'2. Operating Budget'!$E15*Q$7) -> 41.66666667 | R21: =IF('2. Operating Budget'!$D15>0,$C21/12,'2. Operating Budget'!$B15*4.3+'2. Operating Budget'!$C15+'2. Operating Budget'!$E15*R$7) -> 41.66666667 | S21: =IF('2. Operating Budget'!$D15>0,$C21/12,'2. Operating Budget'!$B15*4.3+'2. Operating Budget'!$C15+'2. Operating Budget'!$E15*S$7) -> 41.66666667 | T21: =IF('2. Operating Budget'!$D15>0,$C21/12,'2. Operating Budget'!$B15*4.3+'2. Operating Budget'!$C15+'2. Operating Budget'!$E15*T$7) -> 41.66666667 | U21: =IF('2. Operating Budget'!$D15>0,$C21/12,'2. Operating Budget'!$B15*4.3+'2. Operating Budget'!$C15+'2. Operating Budget'!$E15*U$7) -> 41.66666667 | V21: =IF('2. Operating Budget'!$D15>0,$C21/12,'2. Operating Budget'!$B15*4.3+'2. Operating Budget'!$C15+'2. Operating Budget'!$E15*V$7) -> 41.66666667 | W21: =IF('2. Operating Budget'!$D15>0,$C21/12,'2. Operating Budget'!$B15*4.3+'2. Operating Budget'!$C15+'2. Operating Budget'!$E15*W$7) -> 41.66666667 | X21: =IF('2. Operating Budget'!$D15>0,$C21/12,'2. Operating Budget'!$B15*4.3+'2. Operating Budget'!$C15+'2. Operating Budget'!$E15*X$7) -> 41.66666667 | Y21: =IF('2. Operating Budget'!$D15>0,$C21/12,'2. Operating Budget'!$B15*4.3+'2. Operating Budget'!$C15+'2. Operating Budget'!$E15*Y$7) -> 41.66666667 | Z21: =IF('2. Operating Budget'!$D15>0,$C21/12,'2. Operating Budget'!$B15*4.3+'2. Operating Budget'!$C15+'2. Operating Budget'!$E15*Z$7) -> 41.66666667 | AA21: =IF('2. Operating Budget'!$D15>0,$C21/12,'2. Operating Budget'!$B15*4.3+'2. Operating Budget'!$C15+'2. Operating Budget'!$E15*AA$7) -> 41.66666667 | AB21: =IF('2. Operating Budget'!$D15>0,$C21/12,'2. Operating Budget'!$B15*4.3+'2. Operating Budget'!$C15+'2. Operating Budget'!$E15*AB$7) -> 41.66666667 | AC21: 500 | AD21: =IF('2. Operating Budget'!$E15>0,'2. Operating Budget'!$E15*'8. P&L and Cashflow'!AD$7,'2. Operating Budget'!$K15) -> 500 | AE21: =IF('2. Operating Budget'!$E15>0,'2. Operating Budget'!$E15*'8. P&L and Cashflow'!AE$7,'2. Operating Budget'!$K15) -> 500 | AF21: =IF('2. Operating Budget'!$E15>0,'2. Operating Budget'!$E15*'8. P&L and Cashflow'!AF$7,'2. Operating Budget'!$K15) -> 500
B22: =IF('2. Operating Budget'!A16="","",'2. Operating Budget'!A16) -> Software/Online Subscriptions | C22: ='2. Operating Budget'!K16 -> 1548 | D22: =IF('2. Operating Budget'!$D16>0,$C22/12,'2. Operating Budget'!$B16*4.3+'2. Operating Budget'!$C16+'2. Operating Budget'!$E16*D$7) -> 129 | E22: =IF('2. Operating Budget'!$D16>0,$C22/12,'2. Operating Budget'!$B16*4.3+'2. Operating Budget'!$C16+'2. Operating Budget'!$E16*E$7) -> 129 | F22: =IF('2. Operating Budget'!$D16>0,$C22/12,'2. Operating Budget'!$B16*4.3+'2. Operating Budget'!$C16+'2. Operating Budget'!$E16*F$7) -> 129 | G22: =IF('2. Operating Budget'!$D16>0,$C22/12,'2. Operating Budget'!$B16*4.3+'2. Operating Budget'!$C16+'2. Operating Budget'!$E16*G$7) -> 129 | H22: =IF('2. Operating Budget'!$D16>0,$C22/12,'2. Operating Budget'!$B16*4.3+'2. Operating Budget'!$C16+'2. Operating Budget'!$E16*H$7) -> 129 | I22: =IF('2. Operating Budget'!$D16>0,$C22/12,'2. Operating Budget'!$B16*4.3+'2. Operating Budget'!$C16+'2. Operating Budget'!$E16*I$7) -> 129 | J22: =IF('2. Operating Budget'!$D16>0,$C22/12,'2. Operating Budget'!$B16*4.3+'2. Operating Budget'!$C16+'2. Operating Budget'!$E16*J$7) -> 129 | K22: =IF('2. Operating Budget'!$D16>0,$C22/12,'2. Operating Budget'!$B16*4.3+'2. Operating Budget'!$C16+'2. Operating Budget'!$E16*K$7) -> 129 | L22: =IF('2. Operating Budget'!$D16>0,$C22/12,'2. Operating Budget'!$B16*4.3+'2. Operating Budget'!$C16+'2. Operating Budget'!$E16*L$7) -> 129 | M22: =IF('2. Operating Budget'!$D16>0,$C22/12,'2. Operating Budget'!$B16*4.3+'2. Operating Budget'!$C16+'2. Operating Budget'!$E16*M$7) -> 129 | N22: =IF('2. Operating Budget'!$D16>0,$C22/12,'2. Operating Budget'!$B16*4.3+'2. Operating Budget'!$C16+'2. Operating Budget'!$E16*N$7) -> 129 | O22: =IF('2. Operating Budget'!$D16>0,$C22/12,'2. Operating Budget'!$B16*4.3+'2. Operating Budget'!$C16+'2. Operating Budget'!$E16*O$7) -> 129 | P22: 1548 | Q22: =IF('2. Operating Budget'!$D16>0,$C22/12,'2. Operating Budget'!$B16*4.3+'2. Operating Budget'!$C16+'2. Operating Budget'!$E16*Q$7) -> 129 | R22: =IF('2. Operating Budget'!$D16>0,$C22/12,'2. Operating Budget'!$B16*4.3+'2. Operating Budget'!$C16+'2. Operating Budget'!$E16*R$7) -> 129 | S22: =IF('2. Operating Budget'!$D16>0,$C22/12,'2. Operating Budget'!$B16*4.3+'2. Operating Budget'!$C16+'2. Operating Budget'!$E16*S$7) -> 129 | T22: =IF('2. Operating Budget'!$D16>0,$C22/12,'2. Operating Budget'!$B16*4.3+'2. Operating Budget'!$C16+'2. Operating Budget'!$E16*T$7) -> 129 | U22: =IF('2. Operating Budget'!$D16>0,$C22/12,'2. Operating Budget'!$B16*4.3+'2. Operating Budget'!$C16+'2. Operating Budget'!$E16*U$7) -> 129 | V22: =IF('2. Operating Budget'!$D16>0,$C22/12,'2. Operating Budget'!$B16*4.3+'2. Operating Budget'!$C16+'2. Operating Budget'!$E16*V$7) -> 129 | W22: =IF('2. Operating Budget'!$D16>0,$C22/12,'2. Operating Budget'!$B16*4.3+'2. Operating Budget'!$C16+'2. Operating Budget'!$E16*W$7) -> 129 | X22: =IF('2. Operating Budget'!$D16>0,$C22/12,'2. Operating Budget'!$B16*4.3+'2. Operating Budget'!$C16+'2. Operating Budget'!$E16*X$7) -> 129 | Y22: =IF('2. Operating Budget'!$D16>0,$C22/12,'2. Operating Budget'!$B16*4.3+'2. Operating Budget'!$C16+'2. Operating Budget'!$E16*Y$7) -> 129 | Z22: =IF('2. Operating Budget'!$D16>0,$C22/12,'2. Operating Budget'!$B16*4.3+'2. Operating Budget'!$C16+'2. Operating Budget'!$E16*Z$7) -> 129 | AA22: =IF('2. Operating Budget'!$D16>0,$C22/12,'2. Operating Budget'!$B16*4.3+'2. Operating Budget'!$C16+'2. Operating Budget'!$E16*AA$7) -> 129 | AB22: =IF('2. Operating Budget'!$D16>0,$C22/12,'2. Operating Budget'!$B16*4.3+'2. Operating Budget'!$C16+'2. Operating Budget'!$E16*AB$7) -> 129 | AC22: 1548 | AD22: =IF('2. Operating Budget'!$E16>0,'2. Operating Budget'!$E16*'8. P&L and Cashflow'!AD$7,'2. Operating Budget'!$K16) -> 1548 | AE22: =IF('2. Operating Budget'!$E16>0,'2. Operating Budget'!$E16*'8. P&L and Cashflow'!AE$7,'2. Operating Budget'!$K16) -> 1548 | AF22: =IF('2. Operating Budget'!$E16>0,'2. Operating Budget'!$E16*'8. P&L and Cashflow'!AF$7,'2. Operating Budget'!$K16) -> 1548
B23: =IF('2. Operating Budget'!A17="","",'2. Operating Budget'!A17) -> Office Supplies | C23: ='2. Operating Budget'!K17 -> 480 | D23: =IF('2. Operating Budget'!$D17>0,$C23/12,'2. Operating Budget'!$B17*4.3+'2. Operating Budget'!$C17+'2. Operating Budget'!$E17*D$7) -> 40 | E23: =IF('2. Operating Budget'!$D17>0,$C23/12,'2. Operating Budget'!$B17*4.3+'2. Operating Budget'!$C17+'2. Operating Budget'!$E17*E$7) -> 40 | F23: =IF('2. Operating Budget'!$D17>0,$C23/12,'2. Operating Budget'!$B17*4.3+'2. Operating Budget'!$C17+'2. Operating Budget'!$E17*F$7) -> 40 | G23: =IF('2. Operating Budget'!$D17>0,$C23/12,'2. Operating Budget'!$B17*4.3+'2. Operating Budget'!$C17+'2. Operating Budget'!$E17*G$7) -> 40 | H23: =IF('2. Operating Budget'!$D17>0,$C23/12,'2. Operating Budget'!$B17*4.3+'2. Operating Budget'!$C17+'2. Operating Budget'!$E17*H$7) -> 40 | I23: =IF('2. Operating Budget'!$D17>0,$C23/12,'2. Operating Budget'!$B17*4.3+'2. Operating Budget'!$C17+'2. Operating Budget'!$E17*I$7) -> 40 | J23: =IF('2. Operating Budget'!$D17>0,$C23/12,'2. Operating Budget'!$B17*4.3+'2. Operating Budget'!$C17+'2. Operating Budget'!$E17*J$7) -> 40 | K23: =IF('2. Operating Budget'!$D17>0,$C23/12,'2. Operating Budget'!$B17*4.3+'2. Operating Budget'!$C17+'2. Operating Budget'!$E17*K$7) -> 40 | L23: =IF('2. Operating Budget'!$D17>0,$C23/12,'2. Operating Budget'!$B17*4.3+'2. Operating Budget'!$C17+'2. Operating Budget'!$E17*L$7) -> 40 | M23: =IF('2. Operating Budget'!$D17>0,$C23/12,'2. Operating Budget'!$B17*4.3+'2. Operating Budget'!$C17+'2. Operating Budget'!$E17*M$7) -> 40 | N23: =IF('2. Operating Budget'!$D17>0,$C23/12,'2. Operating Budget'!$B17*4.3+'2. Operating Budget'!$C17+'2. Operating Budget'!$E17*N$7) -> 40 | O23: =IF('2. Operating Budget'!$D17>0,$C23/12,'2. Operating Budget'!$B17*4.3+'2. Operating Budget'!$C17+'2. Operating Budget'!$E17*O$7) -> 40 | P23: 480 | Q23: =IF('2. Operating Budget'!$D17>0,$C23/12,'2. Operating Budget'!$B17*4.3+'2. Operating Budget'!$C17+'2. Operating Budget'!$E17*Q$7) -> 40 | R23: =IF('2. Operating Budget'!$D17>0,$C23/12,'2. Operating Budget'!$B17*4.3+'2. Operating Budget'!$C17+'2. Operating Budget'!$E17*R$7) -> 40 | S23: =IF('2. Operating Budget'!$D17>0,$C23/12,'2. Operating Budget'!$B17*4.3+'2. Operating Budget'!$C17+'2. Operating Budget'!$E17*S$7) -> 40 | T23: =IF('2. Operating Budget'!$D17>0,$C23/12,'2. Operating Budget'!$B17*4.3+'2. Operating Budget'!$C17+'2. Operating Budget'!$E17*T$7) -> 40 | U23: =IF('2. Operating Budget'!$D17>0,$C23/12,'2. Operating Budget'!$B17*4.3+'2. Operating Budget'!$C17+'2. Operating Budget'!$E17*U$7) -> 40 | V23: =IF('2. Operating Budget'!$D17>0,$C23/12,'2. Operating Budget'!$B17*4.3+'2. Operating Budget'!$C17+'2. Operating Budget'!$E17*V$7) -> 40 | W23: =IF('2. Operating Budget'!$D17>0,$C23/12,'2. Operating Budget'!$B17*4.3+'2. Operating Budget'!$C17+'2. Operating Budget'!$E17*W$7) -> 40 | X23: =IF('2. Operating Budget'!$D17>0,$C23/12,'2. Operating Budget'!$B17*4.3+'2. Operating Budget'!$C17+'2. Operating Budget'!$E17*X$7) -> 40 | Y23: =IF('2. Operating Budget'!$D17>0,$C23/12,'2. Operating Budget'!$B17*4.3+'2. Operating Budget'!$C17+'2. Operating Budget'!$E17*Y$7) -> 40 | Z23: =IF('2. Operating Budget'!$D17>0,$C23/12,'2. Operating Budget'!$B17*4.3+'2. Operating Budget'!$C17+'2. Operating Budget'!$E17*Z$7) -> 40 | AA23: =IF('2. Operating Budget'!$D17>0,$C23/12,'2. Operating Budget'!$B17*4.3+'2. Operating Budget'!$C17+'2. Operating Budget'!$E17*AA$7) -> 40 | AB23: =IF('2. Operating Budget'!$D17>0,$C23/12,'2. Operating Budget'!$B17*4.3+'2. Operating Budget'!$C17+'2. Operating Budget'!$E17*AB$7) -> 40 | AC23: 480 | AD23: =IF('2. Operating Budget'!$E17>0,'2. Operating Budget'!$E17*'8. P&L and Cashflow'!AD$7,'2. Operating Budget'!$K17) -> 480 | AE23: =IF('2. Operating Budget'!$E17>0,'2. Operating Budget'!$E17*'8. P&L and Cashflow'!AE$7,'2. Operating Budget'!$K17) -> 480 | AF23: =IF('2. Operating Budget'!$E17>0,'2. Operating Budget'!$E17*'8. P&L and Cashflow'!AF$7,'2. Operating Budget'!$K17) -> 480
B24: =IF('2. Operating Budget'!A18="","",'2. Operating Budget'!A18) ->  | C24: ='2. Operating Budget'!K18 -> 0 | D24: =IF('2. Operating Budget'!$D18>0,$C24/12,'2. Operating Budget'!$B18*4.3+'2. Operating Budget'!$C18+'2. Operating Budget'!$E18*D$7) -> 0 | E24: =IF('2. Operating Budget'!$D18>0,$C24/12,'2. Operating Budget'!$B18*4.3+'2. Operating Budget'!$C18+'2. Operating Budget'!$E18*E$7) -> 0 | F24: =IF('2. Operating Budget'!$D18>0,$C24/12,'2. Operating Budget'!$B18*4.3+'2. Operating Budget'!$C18+'2. Operating Budget'!$E18*F$7) -> 0 | G24: =IF('2. Operating Budget'!$D18>0,$C24/12,'2. Operating Budget'!$B18*4.3+'2. Operating Budget'!$C18+'2. Operating Budget'!$E18*G$7) -> 0 | H24: =IF('2. Operating Budget'!$D18>0,$C24/12,'2. Operating Budget'!$B18*4.3+'2. Operating Budget'!$C18+'2. Operating Budget'!$E18*H$7) -> 0 | I24: =IF('2. Operating Budget'!$D18>0,$C24/12,'2. Operating Budget'!$B18*4.3+'2. Operating Budget'!$C18+'2. Operating Budget'!$E18*I$7) -> 0 | J24: =IF('2. Operating Budget'!$D18>0,$C24/12,'2. Operating Budget'!$B18*4.3+'2. Operating Budget'!$C18+'2. Operating Budget'!$E18*J$7) -> 0 | K24: =IF('2. Operating Budget'!$D18>0,$C24/12,'2. Operating Budget'!$B18*4.3+'2. Operating Budget'!$C18+'2. Operating Budget'!$E18*K$7) -> 0 | L24: =IF('2. Operating Budget'!$D18>0,$C24/12,'2. Operating Budget'!$B18*4.3+'2. Operating Budget'!$C18+'2. Operating Budget'!$E18*L$7) -> 0 | M24: =IF('2. Operating Budget'!$D18>0,$C24/12,'2. Operating Budget'!$B18*4.3+'2. Operating Budget'!$C18+'2. Operating Budget'!$E18*M$7) -> 0 | N24: =IF('2. Operating Budget'!$D18>0,$C24/12,'2. Operating Budget'!$B18*4.3+'2. Operating Budget'!$C18+'2. Operating Budget'!$E18*N$7) -> 0 | O24: =IF('2. Operating Budget'!$D18>0,$C24/12,'2. Operating Budget'!$B18*4.3+'2. Operating Budget'!$C18+'2. Operating Budget'!$E18*O$7) -> 0 | P24: 0 | Q24: =IF('2. Operating Budget'!$D18>0,$C24/12,'2. Operating Budget'!$B18*4.3+'2. Operating Budget'!$C18+'2. Operating Budget'!$E18*Q$7) -> 0 | R24: =IF('2. Operating Budget'!$D18>0,$C24/12,'2. Operating Budget'!$B18*4.3+'2. Operating Budget'!$C18+'2. Operating Budget'!$E18*R$7) -> 0 | S24: =IF('2. Operating Budget'!$D18>0,$C24/12,'2. Operating Budget'!$B18*4.3+'2. Operating Budget'!$C18+'2. Operating Budget'!$E18*S$7) -> 0 | T24: =IF('2. Operating Budget'!$D18>0,$C24/12,'2. Operating Budget'!$B18*4.3+'2. Operating Budget'!$C18+'2. Operating Budget'!$E18*T$7) -> 0 | U24: =IF('2. Operating Budget'!$D18>0,$C24/12,'2. Operating Budget'!$B18*4.3+'2. Operating Budget'!$C18+'2. Operating Budget'!$E18*U$7) -> 0 | V24: =IF('2. Operating Budget'!$D18>0,$C24/12,'2. Operating Budget'!$B18*4.3+'2. Operating Budget'!$C18+'2. Operating Budget'!$E18*V$7) -> 0 | W24: =IF('2. Operating Budget'!$D18>0,$C24/12,'2. Operating Budget'!$B18*4.3+'2. Operating Budget'!$C18+'2. Operating Budget'!$E18*W$7) -> 0 | X24: =IF('2. Operating Budget'!$D18>0,$C24/12,'2. Operating Budget'!$B18*4.3+'2. Operating Budget'!$C18+'2. Operating Budget'!$E18*X$7) -> 0 | Y24: =IF('2. Operating Budget'!$D18>0,$C24/12,'2. Operating Budget'!$B18*4.3+'2. Operating Budget'!$C18+'2. Operating Budget'!$E18*Y$7) -> 0 | Z24: =IF('2. Operating Budget'!$D18>0,$C24/12,'2. Operating Budget'!$B18*4.3+'2. Operating Budget'!$C18+'2. Operating Budget'!$E18*Z$7) -> 0 | AA24: =IF('2. Operating Budget'!$D18>0,$C24/12,'2. Operating Budget'!$B18*4.3+'2. Operating Budget'!$C18+'2. Operating Budget'!$E18*AA$7) -> 0 | AB24: =IF('2. Operating Budget'!$D18>0,$C24/12,'2. Operating Budget'!$B18*4.3+'2. Operating Budget'!$C18+'2. Operating Budget'!$E18*AB$7) -> 0 | AC24: 0 | AD24: =IF('2. Operating Budget'!$E18>0,'2. Operating Budget'!$E18*'8. P&L and Cashflow'!AD$7,'2. Operating Budget'!$K18) -> 0 | AE24: =IF('2. Operating Budget'!$E18>0,'2. Operating Budget'!$E18*'8. P&L and Cashflow'!AE$7,'2. Operating Budget'!$K18) -> 0 | AF24: =IF('2. Operating Budget'!$E18>0,'2. Operating Budget'!$E18*'8. P&L and Cashflow'!AF$7,'2. Operating Budget'!$K18) -> 0
B25: =IF('2. Operating Budget'!A19="","",'2. Operating Budget'!A19) ->  | C25: ='2. Operating Budget'!K19 -> 0 | D25: =IF('2. Operating Budget'!$D19>0,$C25/12,'2. Operating Budget'!$B19*4.3+'2. Operating Budget'!$C19+'2. Operating Budget'!$E19*D$7) -> 0 | E25: =IF('2. Operating Budget'!$D19>0,$C25/12,'2. Operating Budget'!$B19*4.3+'2. Operating Budget'!$C19+'2. Operating Budget'!$E19*E$7) -> 0 | F25: =IF('2. Operating Budget'!$D19>0,$C25/12,'2. Operating Budget'!$B19*4.3+'2. Operating Budget'!$C19+'2. Operating Budget'!$E19*F$7) -> 0 | G25: =IF('2. Operating Budget'!$D19>0,$C25/12,'2. Operating Budget'!$B19*4.3+'2. Operating Budget'!$C19+'2. Operating Budget'!$E19*G$7) -> 0 | H25: =IF('2. Operating Budget'!$D19>0,$C25/12,'2. Operating Budget'!$B19*4.3+'2. Operating Budget'!$C19+'2. Operating Budget'!$E19*H$7) -> 0 | I25: =IF('2. Operating Budget'!$D19>0,$C25/12,'2. Operating Budget'!$B19*4.3+'2. Operating Budget'!$C19+'2. Operating Budget'!$E19*I$7) -> 0 | J25: =IF('2. Operating Budget'!$D19>0,$C25/12,'2. Operating Budget'!$B19*4.3+'2. Operating Budget'!$C19+'2. Operating Budget'!$E19*J$7) -> 0 | K25: =IF('2. Operating Budget'!$D19>0,$C25/12,'2. Operating Budget'!$B19*4.3+'2. Operating Budget'!$C19+'2. Operating Budget'!$E19*K$7) -> 0 | L25: =IF('2. Operating Budget'!$D19>0,$C25/12,'2. Operating Budget'!$B19*4.3+'2. Operating Budget'!$C19+'2. Operating Budget'!$E19*L$7) -> 0 | M25: =IF('2. Operating Budget'!$D19>0,$C25/12,'2. Operating Budget'!$B19*4.3+'2. Operating Budget'!$C19+'2. Operating Budget'!$E19*M$7) -> 0 | N25: =IF('2. Operating Budget'!$D19>0,$C25/12,'2. Operating Budget'!$B19*4.3+'2. Operating Budget'!$C19+'2. Operating Budget'!$E19*N$7) -> 0 | O25: =IF('2. Operating Budget'!$D19>0,$C25/12,'2. Operating Budget'!$B19*4.3+'2. Operating Budget'!$C19+'2. Operating Budget'!$E19*O$7) -> 0 | P25: 0 | Q25: =IF('2. Operating Budget'!$D19>0,$C25/12,'2. Operating Budget'!$B19*4.3+'2. Operating Budget'!$C19+'2. Operating Budget'!$E19*Q$7) -> 0 | R25: =IF('2. Operating Budget'!$D19>0,$C25/12,'2. Operating Budget'!$B19*4.3+'2. Operating Budget'!$C19+'2. Operating Budget'!$E19*R$7) -> 0 | S25: =IF('2. Operating Budget'!$D19>0,$C25/12,'2. Operating Budget'!$B19*4.3+'2. Operating Budget'!$C19+'2. Operating Budget'!$E19*S$7) -> 0 | T25: =IF('2. Operating Budget'!$D19>0,$C25/12,'2. Operating Budget'!$B19*4.3+'2. Operating Budget'!$C19+'2. Operating Budget'!$E19*T$7) -> 0 | U25: =IF('2. Operating Budget'!$D19>0,$C25/12,'2. Operating Budget'!$B19*4.3+'2. Operating Budget'!$C19+'2. Operating Budget'!$E19*U$7) -> 0 | V25: =IF('2. Operating Budget'!$D19>0,$C25/12,'2. Operating Budget'!$B19*4.3+'2. Operating Budget'!$C19+'2. Operating Budget'!$E19*V$7) -> 0 | W25: =IF('2. Operating Budget'!$D19>0,$C25/12,'2. Operating Budget'!$B19*4.3+'2. Operating Budget'!$C19+'2. Operating Budget'!$E19*W$7) -> 0 | X25: =IF('2. Operating Budget'!$D19>0,$C25/12,'2. Operating Budget'!$B19*4.3+'2. Operating Budget'!$C19+'2. Operating Budget'!$E19*X$7) -> 0 | Y25: =IF('2. Operating Budget'!$D19>0,$C25/12,'2. Operating Budget'!$B19*4.3+'2. Operating Budget'!$C19+'2. Operating Budget'!$E19*Y$7) -> 0 | Z25: =IF('2. Operating Budget'!$D19>0,$C25/12,'2. Operating Budget'!$B19*4.3+'2. Operating Budget'!$C19+'2. Operating Budget'!$E19*Z$7) -> 0 | AA25: =IF('2. Operating Budget'!$D19>0,$C25/12,'2. Operating Budget'!$B19*4.3+'2. Operating Budget'!$C19+'2. Operating Budget'!$E19*AA$7) -> 0 | AB25: =IF('2. Operating Budget'!$D19>0,$C25/12,'2. Operating Budget'!$B19*4.3+'2. Operating Budget'!$C19+'2. Operating Budget'!$E19*AB$7) -> 0 | AC25: 0 | AD25: =IF('2. Operating Budget'!$E19>0,'2. Operating Budget'!$E19*'8. P&L and Cashflow'!AD$7,'2. Operating Budget'!$K19) -> 0 | AE25: =IF('2. Operating Budget'!$E19>0,'2. Operating Budget'!$E19*'8. P&L and Cashflow'!AE$7,'2. Operating Budget'!$K19) -> 0 | AF25: =IF('2. Operating Budget'!$E19>0,'2. Operating Budget'!$E19*'8. P&L and Cashflow'!AF$7,'2. Operating Budget'!$K19) -> 0
B26: =IF('2. Operating Budget'!A20="","",'2. Operating Budget'!A20) -> Website Hosting/Updates | C26: ='2. Operating Budget'!K20 -> 1020 | D26: =IF('2. Operating Budget'!$D20>0,$C26/12,'2. Operating Budget'!$B20*4.3+'2. Operating Budget'!$C20+'2. Operating Budget'!$E20*D$7) -> 85 | E26: =IF('2. Operating Budget'!$D20>0,$C26/12,'2. Operating Budget'!$B20*4.3+'2. Operating Budget'!$C20+'2. Operating Budget'!$E20*E$7) -> 85 | F26: =IF('2. Operating Budget'!$D20>0,$C26/12,'2. Operating Budget'!$B20*4.3+'2. Operating Budget'!$C20+'2. Operating Budget'!$E20*F$7) -> 85 | G26: =IF('2. Operating Budget'!$D20>0,$C26/12,'2. Operating Budget'!$B20*4.3+'2. Operating Budget'!$C20+'2. Operating Budget'!$E20*G$7) -> 85 | H26: =IF('2. Operating Budget'!$D20>0,$C26/12,'2. Operating Budget'!$B20*4.3+'2. Operating Budget'!$C20+'2. Operating Budget'!$E20*H$7) -> 85 | I26: =IF('2. Operating Budget'!$D20>0,$C26/12,'2. Operating Budget'!$B20*4.3+'2. Operating Budget'!$C20+'2. Operating Budget'!$E20*I$7) -> 85 | J26: =IF('2. Operating Budget'!$D20>0,$C26/12,'2. Operating Budget'!$B20*4.3+'2. Operating Budget'!$C20+'2. Operating Budget'!$E20*J$7) -> 85 | K26: =IF('2. Operating Budget'!$D20>0,$C26/12,'2. Operating Budget'!$B20*4.3+'2. Operating Budget'!$C20+'2. Operating Budget'!$E20*K$7) -> 85 | L26: =IF('2. Operating Budget'!$D20>0,$C26/12,'2. Operating Budget'!$B20*4.3+'2. Operating Budget'!$C20+'2. Operating Budget'!$E20*L$7) -> 85 | M26: =IF('2. Operating Budget'!$D20>0,$C26/12,'2. Operating Budget'!$B20*4.3+'2. Operating Budget'!$C20+'2. Operating Budget'!$E20*M$7) -> 85 | N26: =IF('2. Operating Budget'!$D20>0,$C26/12,'2. Operating Budget'!$B20*4.3+'2. Operating Budget'!$C20+'2. Operating Budget'!$E20*N$7) -> 85 | O26: =IF('2. Operating Budget'!$D20>0,$C26/12,'2. Operating Budget'!$B20*4.3+'2. Operating Budget'!$C20+'2. Operating Budget'!$E20*O$7) -> 85 | P26: 1020 | Q26: =IF('2. Operating Budget'!$D20>0,$C26/12,'2. Operating Budget'!$B20*4.3+'2. Operating Budget'!$C20+'2. Operating Budget'!$E20*Q$7) -> 85 | R26: =IF('2. Operating Budget'!$D20>0,$C26/12,'2. Operating Budget'!$B20*4.3+'2. Operating Budget'!$C20+'2. Operating Budget'!$E20*R$7) -> 85 | S26: =IF('2. Operating Budget'!$D20>0,$C26/12,'2. Operating Budget'!$B20*4.3+'2. Operating Budget'!$C20+'2. Operating Budget'!$E20*S$7) -> 85 | T26: =IF('2. Operating Budget'!$D20>0,$C26/12,'2. Operating Budget'!$B20*4.3+'2. Operating Budget'!$C20+'2. Operating Budget'!$E20*T$7) -> 85 | U26: =IF('2. Operating Budget'!$D20>0,$C26/12,'2. Operating Budget'!$B20*4.3+'2. Operating Budget'!$C20+'2. Operating Budget'!$E20*U$7) -> 85 | V26: =IF('2. Operating Budget'!$D20>0,$C26/12,'2. Operating Budget'!$B20*4.3+'2. Operating Budget'!$C20+'2. Operating Budget'!$E20*V$7) -> 85 | W26: =IF('2. Operating Budget'!$D20>0,$C26/12,'2. Operating Budget'!$B20*4.3+'2. Operating Budget'!$C20+'2. Operating Budget'!$E20*W$7) -> 85 | X26: =IF('2. Operating Budget'!$D20>0,$C26/12,'2. Operating Budget'!$B20*4.3+'2. Operating Budget'!$C20+'2. Operating Budget'!$E20*X$7) -> 85 | Y26: =IF('2. Operating Budget'!$D20>0,$C26/12,'2. Operating Budget'!$B20*4.3+'2. Operating Budget'!$C20+'2. Operating Budget'!$E20*Y$7) -> 85 | Z26: =IF('2. Operating Budget'!$D20>0,$C26/12,'2. Operating Budget'!$B20*4.3+'2. Operating Budget'!$C20+'2. Operating Budget'!$E20*Z$7) -> 85 | AA26: =IF('2. Operating Budget'!$D20>0,$C26/12,'2. Operating Budget'!$B20*4.3+'2. Operating Budget'!$C20+'2. Operating Budget'!$E20*AA$7) -> 85 | AB26: =IF('2. Operating Budget'!$D20>0,$C26/12,'2. Operating Budget'!$B20*4.3+'2. Operating Budget'!$C20+'2. Operating Budget'!$E20*AB$7) -> 85 | AC26: 1020 | AD26: =IF('2. Operating Budget'!$E20>0,'2. Operating Budget'!$E20*'8. P&L and Cashflow'!AD$7,'2. Operating Budget'!$K20) -> 1020 | AE26: =IF('2. Operating Budget'!$E20>0,'2. Operating Budget'!$E20*'8. P&L and Cashflow'!AE$7,'2. Operating Budget'!$K20) -> 1020 | AF26: =IF('2. Operating Budget'!$E20>0,'2. Operating Budget'!$E20*'8. P&L and Cashflow'!AF$7,'2. Operating Budget'!$K20) -> 1020
B27: =IF('2. Operating Budget'!A21="","",'2. Operating Budget'!A21) -> Misc Advertising Expenses | C27: ='2. Operating Budget'!K21 -> 2564.5 | D27: =IF('2. Operating Budget'!$D21>0,$C27/12,'2. Operating Budget'!$B21*4.3+'2. Operating Budget'!$C21+'2. Operating Budget'!$E21*D$7) -> 111.5 | E27: =IF('2. Operating Budget'!$D21>0,$C27/12,'2. Operating Budget'!$B21*4.3+'2. Operating Budget'!$C21+'2. Operating Budget'!$E21*E$7) -> 223 | F27: =IF('2. Operating Budget'!$D21>0,$C27/12,'2. Operating Budget'!$B21*4.3+'2. Operating Budget'!$C21+'2. Operating Budget'!$E21*F$7) -> 223 | G27: =IF('2. Operating Budget'!$D21>0,$C27/12,'2. Operating Budget'!$B21*4.3+'2. Operating Budget'!$C21+'2. Operating Budget'!$E21*G$7) -> 223 | H27: =IF('2. Operating Budget'!$D21>0,$C27/12,'2. Operating Budget'!$B21*4.3+'2. Operating Budget'!$C21+'2. Operating Budget'!$E21*H$7) -> 223 | I27: =IF('2. Operating Budget'!$D21>0,$C27/12,'2. Operating Budget'!$B21*4.3+'2. Operating Budget'!$C21+'2. Operating Budget'!$E21*I$7) -> 223 | J27: =IF('2. Operating Budget'!$D21>0,$C27/12,'2. Operating Budget'!$B21*4.3+'2. Operating Budget'!$C21+'2. Operating Budget'!$E21*J$7) -> 223 | K27: =IF('2. Operating Budget'!$D21>0,$C27/12,'2. Operating Budget'!$B21*4.3+'2. Operating Budget'!$C21+'2. Operating Budget'!$E21*K$7) -> 223 | L27: =IF('2. Operating Budget'!$D21>0,$C27/12,'2. Operating Budget'!$B21*4.3+'2. Operating Budget'!$C21+'2. Operating Budget'!$E21*L$7) -> 223 | M27: =IF('2. Operating Budget'!$D21>0,$C27/12,'2. Operating Budget'!$B21*4.3+'2. Operating Budget'!$C21+'2. Operating Budget'!$E21*M$7) -> 223 | N27: =IF('2. Operating Budget'!$D21>0,$C27/12,'2. Operating Budget'!$B21*4.3+'2. Operating Budget'!$C21+'2. Operating Budget'!$E21*N$7) -> 223 | O27: =IF('2. Operating Budget'!$D21>0,$C27/12,'2. Operating Budget'!$B21*4.3+'2. Operating Budget'!$C21+'2. Operating Budget'!$E21*O$7) -> 223 | P27: 2564.5 | Q27: =IF('2. Operating Budget'!$D21>0,$C27/12,'2. Operating Budget'!$B21*4.3+'2. Operating Budget'!$C21+'2. Operating Budget'!$E21*Q$7) -> 252.55 | R27: =IF('2. Operating Budget'!$D21>0,$C27/12,'2. Operating Budget'!$B21*4.3+'2. Operating Budget'!$C21+'2. Operating Budget'!$E21*R$7) -> 252.55 | S27: =IF('2. Operating Budget'!$D21>0,$C27/12,'2. Operating Budget'!$B21*4.3+'2. Operating Budget'!$C21+'2. Operating Budget'!$E21*S$7) -> 252.55 | T27: =IF('2. Operating Budget'!$D21>0,$C27/12,'2. Operating Budget'!$B21*4.3+'2. Operating Budget'!$C21+'2. Operating Budget'!$E21*T$7) -> 252.55 | U27: =IF('2. Operating Budget'!$D21>0,$C27/12,'2. Operating Budget'!$B21*4.3+'2. Operating Budget'!$C21+'2. Operating Budget'!$E21*U$7) -> 252.55 | V27: =IF('2. Operating Budget'!$D21>0,$C27/12,'2. Operating Budget'!$B21*4.3+'2. Operating Budget'!$C21+'2. Operating Budget'!$E21*V$7) -> 252.55 | W27: =IF('2. Operating Budget'!$D21>0,$C27/12,'2. Operating Budget'!$B21*4.3+'2. Operating Budget'!$C21+'2. Operating Budget'!$E21*W$7) -> 252.55 | X27: =IF('2. Operating Budget'!$D21>0,$C27/12,'2. Operating Budget'!$B21*4.3+'2. Operating Budget'!$C21+'2. Operating Budget'!$E21*X$7) -> 252.55 | Y27: =IF('2. Operating Budget'!$D21>0,$C27/12,'2. Operating Budget'!$B21*4.3+'2. Operating Budget'!$C21+'2. Operating Budget'!$E21*Y$7) -> 252.55 | Z27: =IF('2. Operating Budget'!$D21>0,$C27/12,'2. Operating Budget'!$B21*4.3+'2. Operating Budget'!$C21+'2. Operating Budget'!$E21*Z$7) -> 252.55 | AA27: =IF('2. Operating Budget'!$D21>0,$C27/12,'2. Operating Budget'!$B21*4.3+'2. Operating Budget'!$C21+'2. Operating Budget'!$E21*AA$7) -> 252.55 | AB27: =IF('2. Operating Budget'!$D21>0,$C27/12,'2. Operating Budget'!$B21*4.3+'2. Operating Budget'!$C21+'2. Operating Budget'!$E21*AB$7) -> 252.55 | AC27: 3030.6 | AD27: =IF('2. Operating Budget'!$E21>0,'2. Operating Budget'!$E21*'8. P&L and Cashflow'!AD$7,'2. Operating Budget'!$K21) -> 3433.71 | AE27: =IF('2. Operating Budget'!$E21>0,'2. Operating Budget'!$E21*'8. P&L and Cashflow'!AE$7,'2. Operating Budget'!$K21) -> 3892.1385 | AF27: =IF('2. Operating Budget'!$E21>0,'2. Operating Budget'!$E21*'8. P&L and Cashflow'!AF$7,'2. Operating Budget'!$K21) -> 4413.668475
B28: =IF('2. Operating Budget'!A22="","",'2. Operating Budget'!A22) -> GoogleAd Words | C28: ='2. Operating Budget'!K22 -> 2782.25 | D28: =IF('2. Operating Budget'!$D22>0,$C28/12,'2. Operating Budget'!$B22*4.3+'2. Operating Budget'!$C22+'2. Operating Budget'!$E22*D$7) -> 180.75 | E28: =IF('2. Operating Budget'!$D22>0,$C28/12,'2. Operating Budget'!$B22*4.3+'2. Operating Budget'!$C22+'2. Operating Budget'!$E22*E$7) -> 236.5 | F28: =IF('2. Operating Budget'!$D22>0,$C28/12,'2. Operating Budget'!$B22*4.3+'2. Operating Budget'!$C22+'2. Operating Budget'!$E22*F$7) -> 236.5 | G28: =IF('2. Operating Budget'!$D22>0,$C28/12,'2. Operating Budget'!$B22*4.3+'2. Operating Budget'!$C22+'2. Operating Budget'!$E22*G$7) -> 236.5 | H28: =IF('2. Operating Budget'!$D22>0,$C28/12,'2. Operating Budget'!$B22*4.3+'2. Operating Budget'!$C22+'2. Operating Budget'!$E22*H$7) -> 236.5 | I28: =IF('2. Operating Budget'!$D22>0,$C28/12,'2. Operating Budget'!$B22*4.3+'2. Operating Budget'!$C22+'2. Operating Budget'!$E22*I$7) -> 236.5 | J28: =IF('2. Operating Budget'!$D22>0,$C28/12,'2. Operating Budget'!$B22*4.3+'2. Operating Budget'!$C22+'2. Operating Budget'!$E22*J$7) -> 236.5 | K28: =IF('2. Operating Budget'!$D22>0,$C28/12,'2. Operating Budget'!$B22*4.3+'2. Operating Budget'!$C22+'2. Operating Budget'!$E22*K$7) -> 236.5 | L28: =IF('2. Operating Budget'!$D22>0,$C28/12,'2. Operating Budget'!$B22*4.3+'2. Operating Budget'!$C22+'2. Operating Budget'!$E22*L$7) -> 236.5 | M28: =IF('2. Operating Budget'!$D22>0,$C28/12,'2. Operating Budget'!$B22*4.3+'2. Operating Budget'!$C22+'2. Operating Budget'!$E22*M$7) -> 236.5 | N28: =IF('2. Operating Budget'!$D22>0,$C28/12,'2. Operating Budget'!$B22*4.3+'2. Operating Budget'!$C22+'2. Operating Budget'!$E22*N$7) -> 236.5 | O28: =IF('2. Operating Budget'!$D22>0,$C28/12,'2. Operating Budget'!$B22*4.3+'2. Operating Budget'!$C22+'2. Operating Budget'!$E22*O$7) -> 236.5 | P28: 2782.25 | Q28: =IF('2. Operating Budget'!$D22>0,$C28/12,'2. Operating Budget'!$B22*4.3+'2. Operating Budget'!$C22+'2. Operating Budget'!$E22*Q$7) -> 251.275 | R28: =IF('2. Operating Budget'!$D22>0,$C28/12,'2. Operating Budget'!$B22*4.3+'2. Operating Budget'!$C22+'2. Operating Budget'!$E22*R$7) -> 251.275 | S28: =IF('2. Operating Budget'!$D22>0,$C28/12,'2. Operating Budget'!$B22*4.3+'2. Operating Budget'!$C22+'2. Operating Budget'!$E22*S$7) -> 251.275 | T28: =IF('2. Operating Budget'!$D22>0,$C28/12,'2. Operating Budget'!$B22*4.3+'2. Operating Budget'!$C22+'2. Operating Budget'!$E22*T$7) -> 251.275 | U28: =IF('2. Operating Budget'!$D22>0,$C28/12,'2. Operating Budget'!$B22*4.3+'2. Operating Budget'!$C22+'2. Operating Budget'!$E22*U$7) -> 251.275 | V28: =IF('2. Operating Budget'!$D22>0,$C28/12,'2. Operating Budget'!$B22*4.3+'2. Operating Budget'!$C22+'2. Operating Budget'!$E22*V$7) -> 251.275 | W28: =IF('2. Operating Budget'!$D22>0,$C28/12,'2. Operating Budget'!$B22*4.3+'2. Operating Budget'!$C22+'2. Operating Budget'!$E22*W$7) -> 251.275 | X28: =IF('2. Operating Budget'!$D22>0,$C28/12,'2. Operating Budget'!$B22*4.3+'2. Operating Budget'!$C22+'2. Operating Budget'!$E22*X$7) -> 251.275 | Y28: =IF('2. Operating Budget'!$D22>0,$C28/12,'2. Operating Budget'!$B22*4.3+'2. Operating Budget'!$C22+'2. Operating Budget'!$E22*Y$7) -> 251.275 | Z28: =IF('2. Operating Budget'!$D22>0,$C28/12,'2. Operating Budget'!$B22*4.3+'2. Operating Budget'!$C22+'2. Operating Budget'!$E22*Z$7) -> 251.275 | AA28: =IF('2. Operating Budget'!$D22>0,$C28/12,'2. Operating Budget'!$B22*4.3+'2. Operating Budget'!$C22+'2. Operating Budget'!$E22*AA$7) -> 251.275 | AB28: =IF('2. Operating Budget'!$D22>0,$C28/12,'2. Operating Budget'!$B22*4.3+'2. Operating Budget'!$C22+'2. Operating Budget'!$E22*AB$7) -> 251.275 | AC28: 3015.3 | AD28: =IF('2. Operating Budget'!$E22>0,'2. Operating Budget'!$E22*'8. P&L and Cashflow'!AD$7,'2. Operating Budget'!$K22) -> 1716.855 | AE28: =IF('2. Operating Budget'!$E22>0,'2. Operating Budget'!$E22*'8. P&L and Cashflow'!AE$7,'2. Operating Budget'!$K22) -> 1946.06925 | AF28: =IF('2. Operating Budget'!$E22>0,'2. Operating Budget'!$E22*'8. P&L and Cashflow'!AF$7,'2. Operating Budget'!$K22) -> 2206.834237
B29: =IF('2. Operating Budget'!A23="","",'2. Operating Budget'!A23) -> Amazon Seller Fees | C29: ='2. Operating Budget'!K23 -> 25645 | D29: =IF('2. Operating Budget'!$D23>0,$C29/12,'2. Operating Budget'!$B23*4.3+'2. Operating Budget'!$C23+'2. Operating Budget'!$E23*D$7) -> 1115 | E29: =IF('2. Operating Budget'!$D23>0,$C29/12,'2. Operating Budget'!$B23*4.3+'2. Operating Budget'!$C23+'2. Operating Budget'!$E23*E$7) -> 2230 | F29: =IF('2. Operating Budget'!$D23>0,$C29/12,'2. Operating Budget'!$B23*4.3+'2. Operating Budget'!$C23+'2. Operating Budget'!$E23*F$7) -> 2230 | G29: =IF('2. Operating Budget'!$D23>0,$C29/12,'2. Operating Budget'!$B23*4.3+'2. Operating Budget'!$C23+'2. Operating Budget'!$E23*G$7) -> 2230 | H29: =IF('2. Operating Budget'!$D23>0,$C29/12,'2. Operating Budget'!$B23*4.3+'2. Operating Budget'!$C23+'2. Operating Budget'!$E23*H$7) -> 2230 | I29: =IF('2. Operating Budget'!$D23>0,$C29/12,'2. Operating Budget'!$B23*4.3+'2. Operating Budget'!$C23+'2. Operating Budget'!$E23*I$7) -> 2230 | J29: =IF('2. Operating Budget'!$D23>0,$C29/12,'2. Operating Budget'!$B23*4.3+'2. Operating Budget'!$C23+'2. Operating Budget'!$E23*J$7) -> 2230 | K29: =IF('2. Operating Budget'!$D23>0,$C29/12,'2. Operating Budget'!$B23*4.3+'2. Operating Budget'!$C23+'2. Operating Budget'!$E23*K$7) -> 2230 | L29: =IF('2. Operating Budget'!$D23>0,$C29/12,'2. Operating Budget'!$B23*4.3+'2. Operating Budget'!$C23+'2. Operating Budget'!$E23*L$7) -> 2230 | M29: =IF('2. Operating Budget'!$D23>0,$C29/12,'2. Operating Budget'!$B23*4.3+'2. Operating Budget'!$C23+'2. Operating Budget'!$E23*M$7) -> 2230 | N29: =IF('2. Operating Budget'!$D23>0,$C29/12,'2. Operating Budget'!$B23*4.3+'2. Operating Budget'!$C23+'2. Operating Budget'!$E23*N$7) -> 2230 | O29: =IF('2. Operating Budget'!$D23>0,$C29/12,'2. Operating Budget'!$B23*4.3+'2. Operating Budget'!$C23+'2. Operating Budget'!$E23*O$7) -> 2230 | P29: =SUM(D29:O29) -> 25645 | Q29: =IF('2. Operating Budget'!$D23>0,$C29/12,'2. Operating Budget'!$B23*4.3+'2. Operating Budget'!$C23+'2. Operating Budget'!$E23*Q$7) -> 2525.5 | R29: =IF('2. Operating Budget'!$D23>0,$C29/12,'2. Operating Budget'!$B23*4.3+'2. Operating Budget'!$C23+'2. Operating Budget'!$E23*R$7) -> 2525.5 | S29: =IF('2. Operating Budget'!$D23>0,$C29/12,'2. Operating Budget'!$B23*4.3+'2. Operating Budget'!$C23+'2. Operating Budget'!$E23*S$7) -> 2525.5 | T29: =IF('2. Operating Budget'!$D23>0,$C29/12,'2. Operating Budget'!$B23*4.3+'2. Operating Budget'!$C23+'2. Operating Budget'!$E23*T$7) -> 2525.5 | U29: =IF('2. Operating Budget'!$D23>0,$C29/12,'2. Operating Budget'!$B23*4.3+'2. Operating Budget'!$C23+'2. Operating Budget'!$E23*U$7) -> 2525.5 | V29: =IF('2. Operating Budget'!$D23>0,$C29/12,'2. Operating Budget'!$B23*4.3+'2. Operating Budget'!$C23+'2. Operating Budget'!$E23*V$7) -> 2525.5 | W29: =IF('2. Operating Budget'!$D23>0,$C29/12,'2. Operating Budget'!$B23*4.3+'2. Operating Budget'!$C23+'2. Operating Budget'!$E23*W$7) -> 2525.5 | X29: =IF('2. Operating Budget'!$D23>0,$C29/12,'2. Operating Budget'!$B23*4.3+'2. Operating Budget'!$C23+'2. Operating Budget'!$E23*X$7) -> 2525.5 | Y29: =IF('2. Operating Budget'!$D23>0,$C29/12,'2. Operating Budget'!$B23*4.3+'2. Operating Budget'!$C23+'2. Operating Budget'!$E23*Y$7) -> 2525.5 | Z29: =IF('2. Operating Budget'!$D23>0,$C29/12,'2. Operating Budget'!$B23*4.3+'2. Operating Budget'!$C23+'2. Operating Budget'!$E23*Z$7) -> 2525.5 | AA29: =IF('2. Operating Budget'!$D23>0,$C29/12,'2. Operating Budget'!$B23*4.3+'2. Operating Budget'!$C23+'2. Operating Budget'!$E23*AA$7) -> 2525.5 | AB29: =IF('2. Operating Budget'!$D23>0,$C29/12,'2. Operating Budget'!$B23*4.3+'2. Operating Budget'!$C23+'2. Operating Budget'!$E23*AB$7) -> 2525.5 | AC29: 30306 | AD29: =IF('2. Operating Budget'!$E23>0,'2. Operating Budget'!$E23*'8. P&L and Cashflow'!AD$7,'2. Operating Budget'!$K23) -> 34337.1 | AE29: =IF('2. Operating Budget'!$E23>0,'2. Operating Budget'!$E23*'8. P&L and Cashflow'!AE$7,'2. Operating Budget'!$K23) -> 38921.385 | AF29: =IF('2. Operating Budget'!$E23>0,'2. Operating Budget'!$E23*'8. P&L and Cashflow'!AF$7,'2. Operating Budget'!$K23) -> 44136.68475
B30: =IF('2. Operating Budget'!A24="","",'2. Operating Budget'!A24) -> Free Samples | C30: ='2. Operating Budget'!K24 -> 1282.25 | D30: =IF('2. Operating Budget'!$D24>0,$C30/12,'2. Operating Budget'!$B24*4.3+'2. Operating Budget'!$C24+'2. Operating Budget'!$E24*D$7) -> 55.75 | E30: =IF('2. Operating Budget'!$D24>0,$C30/12,'2. Operating Budget'!$B24*4.3+'2. Operating Budget'!$C24+'2. Operating Budget'!$E24*E$7) -> 111.5 | F30: =IF('2. Operating Budget'!$D24>0,$C30/12,'2. Operating Budget'!$B24*4.3+'2. Operating Budget'!$C24+'2. Operating Budget'!$E24*F$7) -> 111.5 | G30: =IF('2. Operating Budget'!$D24>0,$C30/12,'2. Operating Budget'!$B24*4.3+'2. Operating Budget'!$C24+'2. Operating Budget'!$E24*G$7) -> 111.5 | H30: =IF('2. Operating Budget'!$D24>0,$C30/12,'2. Operating Budget'!$B24*4.3+'2. Operating Budget'!$C24+'2. Operating Budget'!$E24*H$7) -> 111.5 | I30: =IF('2. Operating Budget'!$D24>0,$C30/12,'2. Operating Budget'!$B24*4.3+'2. Operating Budget'!$C24+'2. Operating Budget'!$E24*I$7) -> 111.5 | J30: =IF('2. Operating Budget'!$D24>0,$C30/12,'2. Operating Budget'!$B24*4.3+'2. Operating Budget'!$C24+'2. Operating Budget'!$E24*J$7) -> 111.5 | K30: =IF('2. Operating Budget'!$D24>0,$C30/12,'2. Operating Budget'!$B24*4.3+'2. Operating Budget'!$C24+'2. Operating Budget'!$E24*K$7) -> 111.5 | L30: =IF('2. Operating Budget'!$D24>0,$C30/12,'2. Operating Budget'!$B24*4.3+'2. Operating Budget'!$C24+'2. Operating Budget'!$E24*L$7) -> 111.5 | M30: =IF('2. Operating Budget'!$D24>0,$C30/12,'2. Operating Budget'!$B24*4.3+'2. Operating Budget'!$C24+'2. Operating Budget'!$E24*M$7) -> 111.5 | N30: =IF('2. Operating Budget'!$D24>0,$C30/12,'2. Operating Budget'!$B24*4.3+'2. Operating Budget'!$C24+'2. Operating Budget'!$E24*N$7) -> 111.5 | O30: =IF('2. Operating Budget'!$D24>0,$C30/12,'2. Operating Budget'!$B24*4.3+'2. Operating Budget'!$C24+'2. Operating Budget'!$E24*O$7) -> 111.5 | P30: 1282.25 | Q30: =IF('2. Operating Budget'!$D24>0,$C30/12,'2. Operating Budget'!$B24*4.3+'2. Operating Budget'!$C24+'2. Operating Budget'!$E24*Q$7) -> 126.275 | R30: =IF('2. Operating Budget'!$D24>0,$C30/12,'2. Operating Budget'!$B24*4.3+'2. Operating Budget'!$C24+'2. Operating Budget'!$E24*R$7) -> 126.275 | S30: =IF('2. Operating Budget'!$D24>0,$C30/12,'2. Operating Budget'!$B24*4.3+'2. Operating Budget'!$C24+'2. Operating Budget'!$E24*S$7) -> 126.275 | T30: =IF('2. Operating Budget'!$D24>0,$C30/12,'2. Operating Budget'!$B24*4.3+'2. Operating Budget'!$C24+'2. Operating Budget'!$E24*T$7) -> 126.275 | U30: =IF('2. Operating Budget'!$D24>0,$C30/12,'2. Operating Budget'!$B24*4.3+'2. Operating Budget'!$C24+'2. Operating Budget'!$E24*U$7) -> 126.275 | V30: =IF('2. Operating Budget'!$D24>0,$C30/12,'2. Operating Budget'!$B24*4.3+'2. Operating Budget'!$C24+'2. Operating Budget'!$E24*V$7) -> 126.275 | W30: =IF('2. Operating Budget'!$D24>0,$C30/12,'2. Operating Budget'!$B24*4.3+'2. Operating Budget'!$C24+'2. Operating Budget'!$E24*W$7) -> 126.275 | X30: =IF('2. Operating Budget'!$D24>0,$C30/12,'2. Operating Budget'!$B24*4.3+'2. Operating Budget'!$C24+'2. Operating Budget'!$E24*X$7) -> 126.275 | Y30: =IF('2. Operating Budget'!$D24>0,$C30/12,'2. Operating Budget'!$B24*4.3+'2. Operating Budget'!$C24+'2. Operating Budget'!$E24*Y$7) -> 126.275 | Z30: =IF('2. Operating Budget'!$D24>0,$C30/12,'2. Operating Budget'!$B24*4.3+'2. Operating Budget'!$C24+'2. Operating Budget'!$E24*Z$7) -> 126.275 | AA30: =IF('2. Operating Budget'!$D24>0,$C30/12,'2. Operating Budget'!$B24*4.3+'2. Operating Budget'!$C24+'2. Operating Budget'!$E24*AA$7) -> 126.275 | AB30: =IF('2. Operating Budget'!$D24>0,$C30/12,'2. Operating Budget'!$B24*4.3+'2. Operating Budget'!$C24+'2. Operating Budget'!$E24*AB$7) -> 126.275 | AC30: 1515.3 | AD30: =IF('2. Operating Budget'!$E24>0,'2. Operating Budget'!$E24*'8. P&L and Cashflow'!AD$7,'2. Operating Budget'!$K24) -> 1716.855 | AE30: =IF('2. Operating Budget'!$E24>0,'2. Operating Budget'!$E24*'8. P&L and Cashflow'!AE$7,'2. Operating Budget'!$K24) -> 1946.06925 | AF30: =IF('2. Operating Budget'!$E24>0,'2. Operating Budget'!$E24*'8. P&L and Cashflow'!AF$7,'2. Operating Budget'!$K24) -> 2206.834237
B31: =IF('2. Operating Budget'!A25="","",'2. Operating Budget'!A25) -> Graphic Design for Flyers | C31: ='2. Operating Budget'!K25 -> 2000 | D31: =IF('2. Operating Budget'!$D25>0,$C31/12,'2. Operating Budget'!$B25*4.3+'2. Operating Budget'!$C25+'2. Operating Budget'!$E25*D$7) -> 166.6666667 | E31: =IF('2. Operating Budget'!$D25>0,$C31/12,'2. Operating Budget'!$B25*4.3+'2. Operating Budget'!$C25+'2. Operating Budget'!$E25*E$7) -> 166.6666667 | F31: =IF('2. Operating Budget'!$D25>0,$C31/12,'2. Operating Budget'!$B25*4.3+'2. Operating Budget'!$C25+'2. Operating Budget'!$E25*F$7) -> 166.6666667 | G31: =IF('2. Operating Budget'!$D25>0,$C31/12,'2. Operating Budget'!$B25*4.3+'2. Operating Budget'!$C25+'2. Operating Budget'!$E25*G$7) -> 166.6666667 | H31: =IF('2. Operating Budget'!$D25>0,$C31/12,'2. Operating Budget'!$B25*4.3+'2. Operating Budget'!$C25+'2. Operating Budget'!$E25*H$7) -> 166.6666667 | I31: =IF('2. Operating Budget'!$D25>0,$C31/12,'2. Operating Budget'!$B25*4.3+'2. Operating Budget'!$C25+'2. Operating Budget'!$E25*I$7) -> 166.6666667 | J31: =IF('2. Operating Budget'!$D25>0,$C31/12,'2. Operating Budget'!$B25*4.3+'2. Operating Budget'!$C25+'2. Operating Budget'!$E25*J$7) -> 166.6666667 | K31: =IF('2. Operating Budget'!$D25>0,$C31/12,'2. Operating Budget'!$B25*4.3+'2. Operating Budget'!$C25+'2. Operating Budget'!$E25*K$7) -> 166.6666667 | L31: =IF('2. Operating Budget'!$D25>0,$C31/12,'2. Operating Budget'!$B25*4.3+'2. Operating Budget'!$C25+'2. Operating Budget'!$E25*L$7) -> 166.6666667 | M31: =IF('2. Operating Budget'!$D25>0,$C31/12,'2. Operating Budget'!$B25*4.3+'2. Operating Budget'!$C25+'2. Operating Budget'!$E25*M$7) -> 166.6666667 | N31: =IF('2. Operating Budget'!$D25>0,$C31/12,'2. Operating Budget'!$B25*4.3+'2. Operating Budget'!$C25+'2. Operating Budget'!$E25*N$7) -> 166.6666667 | O31: =IF('2. Operating Budget'!$D25>0,$C31/12,'2. Operating Budget'!$B25*4.3+'2. Operating Budget'!$C25+'2. Operating Budget'!$E25*O$7) -> 166.6666667 | P31: 2000 | Q31: =IF('2. Operating Budget'!$D25>0,$C31/12,'2. Operating Budget'!$B25*4.3+'2. Operating Budget'!$C25+'2. Operating Budget'!$E25*Q$7) -> 166.6666667 | R31: =IF('2. Operating Budget'!$D25>0,$C31/12,'2. Operating Budget'!$B25*4.3+'2. Operating Budget'!$C25+'2. Operating Budget'!$E25*R$7) -> 166.6666667 | S31: =IF('2. Operating Budget'!$D25>0,$C31/12,'2. Operating Budget'!$B25*4.3+'2. Operating Budget'!$C25+'2. Operating Budget'!$E25*S$7) -> 166.6666667 | T31: =IF('2. Operating Budget'!$D25>0,$C31/12,'2. Operating Budget'!$B25*4.3+'2. Operating Budget'!$C25+'2. Operating Budget'!$E25*T$7) -> 166.6666667 | U31: =IF('2. Operating Budget'!$D25>0,$C31/12,'2. Operating Budget'!$B25*4.3+'2. Operating Budget'!$C25+'2. Operating Budget'!$E25*U$7) -> 166.6666667 | V31: =IF('2. Operating Budget'!$D25>0,$C31/12,'2. Operating Budget'!$B25*4.3+'2. Operating Budget'!$C25+'2. Operating Budget'!$E25*V$7) -> 166.6666667 | W31: =IF('2. Operating Budget'!$D25>0,$C31/12,'2. Operating Budget'!$B25*4.3+'2. Operating Budget'!$C25+'2. Operating Budget'!$E25*W$7) -> 166.6666667 | X31: =IF('2. Operating Budget'!$D25>0,$C31/12,'2. Operating Budget'!$B25*4.3+'2. Operating Budget'!$C25+'2. Operating Budget'!$E25*X$7) -> 166.6666667 | Y31: =IF('2. Operating Budget'!$D25>0,$C31/12,'2. Operating Budget'!$B25*4.3+'2. Operating Budget'!$C25+'2. Operating Budget'!$E25*Y$7) -> 166.6666667 | Z31: =IF('2. Operating Budget'!$D25>0,$C31/12,'2. Operating Budget'!$B25*4.3+'2. Operating Budget'!$C25+'2. Operating Budget'!$E25*Z$7) -> 166.6666667 | AA31: =IF('2. Operating Budget'!$D25>0,$C31/12,'2. Operating Budget'!$B25*4.3+'2. Operating Budget'!$C25+'2. Operating Budget'!$E25*AA$7) -> 166.6666667 | AB31: =IF('2. Operating Budget'!$D25>0,$C31/12,'2. Operating Budget'!$B25*4.3+'2. Operating Budget'!$C25+'2. Operating Budget'!$E25*AB$7) -> 166.6666667 | AC31: 2000 | AD31: =IF('2. Operating Budget'!$E25>0,'2. Operating Budget'!$E25*'8. P&L and Cashflow'!AD$7,'2. Operating Budget'!$K25) -> 2000 | AE31: =IF('2. Operating Budget'!$E25>0,'2. Operating Budget'!$E25*'8. P&L and Cashflow'!AE$7,'2. Operating Budget'!$K25) -> 2000 | AF31: =IF('2. Operating Budget'!$E25>0,'2. Operating Budget'!$E25*'8. P&L and Cashflow'!AF$7,'2. Operating Budget'!$K25) -> 2000
B32: =IF('2. Operating Budget'!A26="","",'2. Operating Budget'!A26) -> Tradeshows | C32: ='2. Operating Budget'!K26 -> 5000 | D32: =IF('2. Operating Budget'!$D26>0,$C32/12,'2. Operating Budget'!$B26*4.3+'2. Operating Budget'!$C26+'2. Operating Budget'!$E26*D$7) -> 416.6666667 | E32: =IF('2. Operating Budget'!$D26>0,$C32/12,'2. Operating Budget'!$B26*4.3+'2. Operating Budget'!$C26+'2. Operating Budget'!$E26*E$7) -> 416.6666667 | F32: =IF('2. Operating Budget'!$D26>0,$C32/12,'2. Operating Budget'!$B26*4.3+'2. Operating Budget'!$C26+'2. Operating Budget'!$E26*F$7) -> 416.6666667 | G32: =IF('2. Operating Budget'!$D26>0,$C32/12,'2. Operating Budget'!$B26*4.3+'2. Operating Budget'!$C26+'2. Operating Budget'!$E26*G$7) -> 416.6666667 | H32: =IF('2. Operating Budget'!$D26>0,$C32/12,'2. Operating Budget'!$B26*4.3+'2. Operating Budget'!$C26+'2. Operating Budget'!$E26*H$7) -> 416.6666667 | I32: =IF('2. Operating Budget'!$D26>0,$C32/12,'2. Operating Budget'!$B26*4.3+'2. Operating Budget'!$C26+'2. Operating Budget'!$E26*I$7) -> 416.6666667 | J32: =IF('2. Operating Budget'!$D26>0,$C32/12,'2. Operating Budget'!$B26*4.3+'2. Operating Budget'!$C26+'2. Operating Budget'!$E26*J$7) -> 416.6666667 | K32: =IF('2. Operating Budget'!$D26>0,$C32/12,'2. Operating Budget'!$B26*4.3+'2. Operating Budget'!$C26+'2. Operating Budget'!$E26*K$7) -> 416.6666667 | L32: =IF('2. Operating Budget'!$D26>0,$C32/12,'2. Operating Budget'!$B26*4.3+'2. Operating Budget'!$C26+'2. Operating Budget'!$E26*L$7) -> 416.6666667 | M32: =IF('2. Operating Budget'!$D26>0,$C32/12,'2. Operating Budget'!$B26*4.3+'2. Operating Budget'!$C26+'2. Operating Budget'!$E26*M$7) -> 416.6666667 | N32: =IF('2. Operating Budget'!$D26>0,$C32/12,'2. Operating Budget'!$B26*4.3+'2. Operating Budget'!$C26+'2. Operating Budget'!$E26*N$7) -> 416.6666667 | O32: =IF('2. Operating Budget'!$D26>0,$C32/12,'2. Operating Budget'!$B26*4.3+'2. Operating Budget'!$C26+'2. Operating Budget'!$E26*O$7) -> 416.6666667 | P32: 5000 | Q32: =IF('2. Operating Budget'!$D26>0,$C32/12,'2. Operating Budget'!$B26*4.3+'2. Operating Budget'!$C26+'2. Operating Budget'!$E26*Q$7) -> 416.6666667 | R32: =IF('2. Operating Budget'!$D26>0,$C32/12,'2. Operating Budget'!$B26*4.3+'2. Operating Budget'!$C26+'2. Operating Budget'!$E26*R$7) -> 416.6666667 | S32: =IF('2. Operating Budget'!$D26>0,$C32/12,'2. Operating Budget'!$B26*4.3+'2. Operating Budget'!$C26+'2. Operating Budget'!$E26*S$7) -> 416.6666667 | T32: =IF('2. Operating Budget'!$D26>0,$C32/12,'2. Operating Budget'!$B26*4.3+'2. Operating Budget'!$C26+'2. Operating Budget'!$E26*T$7) -> 416.6666667 | U32: =IF('2. Operating Budget'!$D26>0,$C32/12,'2. Operating Budget'!$B26*4.3+'2. Operating Budget'!$C26+'2. Operating Budget'!$E26*U$7) -> 416.6666667 | V32: =IF('2. Operating Budget'!$D26>0,$C32/12,'2. Operating Budget'!$B26*4.3+'2. Operating Budget'!$C26+'2. Operating Budget'!$E26*V$7) -> 416.6666667 | W32: =IF('2. Operating Budget'!$D26>0,$C32/12,'2. Operating Budget'!$B26*4.3+'2. Operating Budget'!$C26+'2. Operating Budget'!$E26*W$7) -> 416.6666667 | X32: =IF('2. Operating Budget'!$D26>0,$C32/12,'2. Operating Budget'!$B26*4.3+'2. Operating Budget'!$C26+'2. Operating Budget'!$E26*X$7) -> 416.6666667 | Y32: =IF('2. Operating Budget'!$D26>0,$C32/12,'2. Operating Budget'!$B26*4.3+'2. Operating Budget'!$C26+'2. Operating Budget'!$E26*Y$7) -> 416.6666667 | Z32: =IF('2. Operating Budget'!$D26>0,$C32/12,'2. Operating Budget'!$B26*4.3+'2. Operating Budget'!$C26+'2. Operating Budget'!$E26*Z$7) -> 416.6666667 | AA32: =IF('2. Operating Budget'!$D26>0,$C32/12,'2. Operating Budget'!$B26*4.3+'2. Operating Budget'!$C26+'2. Operating Budget'!$E26*AA$7) -> 416.6666667 | AB32: =IF('2. Operating Budget'!$D26>0,$C32/12,'2. Operating Budget'!$B26*4.3+'2. Operating Budget'!$C26+'2. Operating Budget'!$E26*AB$7) -> 416.6666667 | AC32: 5000 | AD32: =IF('2. Operating Budget'!$E26>0,'2. Operating Budget'!$E26*'8. P&L and Cashflow'!AD$7,'2. Operating Budget'!$K26) -> 5000 | AE32: =IF('2. Operating Budget'!$E26>0,'2. Operating Budget'!$E26*'8. P&L and Cashflow'!AE$7,'2. Operating Budget'!$K26) -> 5000 | AF32: =IF('2. Operating Budget'!$E26>0,'2. Operating Budget'!$E26*'8. P&L and Cashflow'!AF$7,'2. Operating Budget'!$K26) -> 5000
B33: =IF('2. Operating Budget'!A27="","",'2. Operating Budget'!A27) -> Travel | C33: ='2. Operating Budget'!K27 -> 2080 | D33: =IF('2. Operating Budget'!$D27>0,$C33/12,'2. Operating Budget'!$B27*4.3+'2. Operating Budget'!$C27+'2. Operating Budget'!$E27*D$7) -> 172 | E33: =IF('2. Operating Budget'!$D27>0,$C33/12,'2. Operating Budget'!$B27*4.3+'2. Operating Budget'!$C27+'2. Operating Budget'!$E27*E$7) -> 172 | F33: =IF('2. Operating Budget'!$D27>0,$C33/12,'2. Operating Budget'!$B27*4.3+'2. Operating Budget'!$C27+'2. Operating Budget'!$E27*F$7) -> 172 | G33: =IF('2. Operating Budget'!$D27>0,$C33/12,'2. Operating Budget'!$B27*4.3+'2. Operating Budget'!$C27+'2. Operating Budget'!$E27*G$7) -> 172 | H33: =IF('2. Operating Budget'!$D27>0,$C33/12,'2. Operating Budget'!$B27*4.3+'2. Operating Budget'!$C27+'2. Operating Budget'!$E27*H$7) -> 172 | I33: =IF('2. Operating Budget'!$D27>0,$C33/12,'2. Operating Budget'!$B27*4.3+'2. Operating Budget'!$C27+'2. Operating Budget'!$E27*I$7) -> 172 | J33: =IF('2. Operating Budget'!$D27>0,$C33/12,'2. Operating Budget'!$B27*4.3+'2. Operating Budget'!$C27+'2. Operating Budget'!$E27*J$7) -> 172 | K33: =IF('2. Operating Budget'!$D27>0,$C33/12,'2. Operating Budget'!$B27*4.3+'2. Operating Budget'!$C27+'2. Operating Budget'!$E27*K$7) -> 172 | L33: =IF('2. Operating Budget'!$D27>0,$C33/12,'2. Operating Budget'!$B27*4.3+'2. Operating Budget'!$C27+'2. Operating Budget'!$E27*L$7) -> 172 | M33: =IF('2. Operating Budget'!$D27>0,$C33/12,'2. Operating Budget'!$B27*4.3+'2. Operating Budget'!$C27+'2. Operating Budget'!$E27*M$7) -> 172 | N33: =IF('2. Operating Budget'!$D27>0,$C33/12,'2. Operating Budget'!$B27*4.3+'2. Operating Budget'!$C27+'2. Operating Budget'!$E27*N$7) -> 172 | O33: =IF('2. Operating Budget'!$D27>0,$C33/12,'2. Operating Budget'!$B27*4.3+'2. Operating Budget'!$C27+'2. Operating Budget'!$E27*O$7) -> 172 | P33: 2064 | Q33: =IF('2. Operating Budget'!$D27>0,$C33/12,'2. Operating Budget'!$B27*4.3+'2. Operating Budget'!$C27+'2. Operating Budget'!$E27*Q$7) -> 172 | R33: =IF('2. Operating Budget'!$D27>0,$C33/12,'2. Operating Budget'!$B27*4.3+'2. Operating Budget'!$C27+'2. Operating Budget'!$E27*R$7) -> 172 | S33: =IF('2. Operating Budget'!$D27>0,$C33/12,'2. Operating Budget'!$B27*4.3+'2. Operating Budget'!$C27+'2. Operating Budget'!$E27*S$7) -> 172 | T33: =IF('2. Operating Budget'!$D27>0,$C33/12,'2. Operating Budget'!$B27*4.3+'2. Operating Budget'!$C27+'2. Operating Budget'!$E27*T$7) -> 172 | U33: =IF('2. Operating Budget'!$D27>0,$C33/12,'2. Operating Budget'!$B27*4.3+'2. Operating Budget'!$C27+'2. Operating Budget'!$E27*U$7) -> 172 | V33: =IF('2. Operating Budget'!$D27>0,$C33/12,'2. Operating Budget'!$B27*4.3+'2. Operating Budget'!$C27+'2. Operating Budget'!$E27*V$7) -> 172 | W33: =IF('2. Operating Budget'!$D27>0,$C33/12,'2. Operating Budget'!$B27*4.3+'2. Operating Budget'!$C27+'2. Operating Budget'!$E27*W$7) -> 172 | X33: =IF('2. Operating Budget'!$D27>0,$C33/12,'2. Operating Budget'!$B27*4.3+'2. Operating Budget'!$C27+'2. Operating Budget'!$E27*X$7) -> 172 | Y33: =IF('2. Operating Budget'!$D27>0,$C33/12,'2. Operating Budget'!$B27*4.3+'2. Operating Budget'!$C27+'2. Operating Budget'!$E27*Y$7) -> 172 | Z33: =IF('2. Operating Budget'!$D27>0,$C33/12,'2. Operating Budget'!$B27*4.3+'2. Operating Budget'!$C27+'2. Operating Budget'!$E27*Z$7) -> 172 | AA33: =IF('2. Operating Budget'!$D27>0,$C33/12,'2. Operating Budget'!$B27*4.3+'2. Operating Budget'!$C27+'2. Operating Budget'!$E27*AA$7) -> 172 | AB33: =IF('2. Operating Budget'!$D27>0,$C33/12,'2. Operating Budget'!$B27*4.3+'2. Operating Budget'!$C27+'2. Operating Budget'!$E27*AB$7) -> 172 | AC33: 2064 | AD33: =IF('2. Operating Budget'!$E27>0,'2. Operating Budget'!$E27*'8. P&L and Cashflow'!AD$7,'2. Operating Budget'!$K27) -> 2080 | AE33: =IF('2. Operating Budget'!$E27>0,'2. Operating Budget'!$E27*'8. P&L and Cashflow'!AE$7,'2. Operating Budget'!$K27) -> 2080 | AF33: =IF('2. Operating Budget'!$E27>0,'2. Operating Budget'!$E27*'8. P&L and Cashflow'!AF$7,'2. Operating Budget'!$K27) -> 2080
B34: =IF('2. Operating Budget'!A28="","",'2. Operating Budget'!A28) -> Meals and Entertainment | C34: ='2. Operating Budget'!K28 -> 1820 | D34: =IF('2. Operating Budget'!$D28>0,$C34/12,'2. Operating Budget'!$B28*4.3+'2. Operating Budget'!$C28+'2. Operating Budget'!$E28*D$7) -> 150.5 | E34: =IF('2. Operating Budget'!$D28>0,$C34/12,'2. Operating Budget'!$B28*4.3+'2. Operating Budget'!$C28+'2. Operating Budget'!$E28*E$7) -> 150.5 | F34: =IF('2. Operating Budget'!$D28>0,$C34/12,'2. Operating Budget'!$B28*4.3+'2. Operating Budget'!$C28+'2. Operating Budget'!$E28*F$7) -> 150.5 | G34: =IF('2. Operating Budget'!$D28>0,$C34/12,'2. Operating Budget'!$B28*4.3+'2. Operating Budget'!$C28+'2. Operating Budget'!$E28*G$7) -> 150.5 | H34: =IF('2. Operating Budget'!$D28>0,$C34/12,'2. Operating Budget'!$B28*4.3+'2. Operating Budget'!$C28+'2. Operating Budget'!$E28*H$7) -> 150.5 | I34: =IF('2. Operating Budget'!$D28>0,$C34/12,'2. Operating Budget'!$B28*4.3+'2. Operating Budget'!$C28+'2. Operating Budget'!$E28*I$7) -> 150.5 | J34: =IF('2. Operating Budget'!$D28>0,$C34/12,'2. Operating Budget'!$B28*4.3+'2. Operating Budget'!$C28+'2. Operating Budget'!$E28*J$7) -> 150.5 | K34: =IF('2. Operating Budget'!$D28>0,$C34/12,'2. Operating Budget'!$B28*4.3+'2. Operating Budget'!$C28+'2. Operating Budget'!$E28*K$7) -> 150.5 | L34: =IF('2. Operating Budget'!$D28>0,$C34/12,'2. Operating Budget'!$B28*4.3+'2. Operating Budget'!$C28+'2. Operating Budget'!$E28*L$7) -> 150.5 | M34: =IF('2. Operating Budget'!$D28>0,$C34/12,'2. Operating Budget'!$B28*4.3+'2. Operating Budget'!$C28+'2. Operating Budget'!$E28*M$7) -> 150.5 | N34: =IF('2. Operating Budget'!$D28>0,$C34/12,'2. Operating Budget'!$B28*4.3+'2. Operating Budget'!$C28+'2. Operating Budget'!$E28*N$7) -> 150.5 | O34: =IF('2. Operating Budget'!$D28>0,$C34/12,'2. Operating Budget'!$B28*4.3+'2. Operating Budget'!$C28+'2. Operating Budget'!$E28*O$7) -> 150.5 | P34: 1806 | Q34: =IF('2. Operating Budget'!$D28>0,$C34/12,'2. Operating Budget'!$B28*4.3+'2. Operating Budget'!$C28+'2. Operating Budget'!$E28*Q$7) -> 150.5 | R34: =IF('2. Operating Budget'!$D28>0,$C34/12,'2. Operating Budget'!$B28*4.3+'2. Operating Budget'!$C28+'2. Operating Budget'!$E28*R$7) -> 150.5 | S34: =IF('2. Operating Budget'!$D28>0,$C34/12,'2. Operating Budget'!$B28*4.3+'2. Operating Budget'!$C28+'2. Operating Budget'!$E28*S$7) -> 150.5 | T34: =IF('2. Operating Budget'!$D28>0,$C34/12,'2. Operating Budget'!$B28*4.3+'2. Operating Budget'!$C28+'2. Operating Budget'!$E28*T$7) -> 150.5 | U34: =IF('2. Operating Budget'!$D28>0,$C34/12,'2. Operating Budget'!$B28*4.3+'2. Operating Budget'!$C28+'2. Operating Budget'!$E28*U$7) -> 150.5 | V34: =IF('2. Operating Budget'!$D28>0,$C34/12,'2. Operating Budget'!$B28*4.3+'2. Operating Budget'!$C28+'2. Operating Budget'!$E28*V$7) -> 150.5 | W34: =IF('2. Operating Budget'!$D28>0,$C34/12,'2. Operating Budget'!$B28*4.3+'2. Operating Budget'!$C28+'2. Operating Budget'!$E28*W$7) -> 150.5 | X34: =IF('2. Operating Budget'!$D28>0,$C34/12,'2. Operating Budget'!$B28*4.3+'2. Operating Budget'!$C28+'2. Operating Budget'!$E28*X$7) -> 150.5 | Y34: =IF('2. Operating Budget'!$D28>0,$C34/12,'2. Operating Budget'!$B28*4.3+'2. Operating Budget'!$C28+'2. Operating Budget'!$E28*Y$7) -> 150.5 | Z34: =IF('2. Operating Budget'!$D28>0,$C34/12,'2. Operating Budget'!$B28*4.3+'2. Operating Budget'!$C28+'2. Operating Budget'!$E28*Z$7) -> 150.5 | AA34: =IF('2. Operating Budget'!$D28>0,$C34/12,'2. Operating Budget'!$B28*4.3+'2. Operating Budget'!$C28+'2. Operating Budget'!$E28*AA$7) -> 150.5 | AB34: =IF('2. Operating Budget'!$D28>0,$C34/12,'2. Operating Budget'!$B28*4.3+'2. Operating Budget'!$C28+'2. Operating Budget'!$E28*AB$7) -> 150.5 | AC34: 1806 | AD34: =IF('2. Operating Budget'!$E28>0,'2. Operating Budget'!$E28*'8. P&L and Cashflow'!AD$7,'2. Operating Budget'!$K28) -> 1820 | AE34: =IF('2. Operating Budget'!$E28>0,'2. Operating Budget'!$E28*'8. P&L and Cashflow'!AE$7,'2. Operating Budget'!$K28) -> 1820 | AF34: =IF('2. Operating Budget'!$E28>0,'2. Operating Budget'!$E28*'8. P&L and Cashflow'!AF$7,'2. Operating Budget'!$K28) -> 1820
B35: =IF('2. Operating Budget'!A29="","",'2. Operating Budget'!A29) -> Networking Events | C35: ='2. Operating Budget'!K29 -> 1080 | D35: =IF('2. Operating Budget'!$D29>0,$C35/12,'2. Operating Budget'!$B29*4.3+'2. Operating Budget'!$C29+'2. Operating Budget'!$E29*D$7) -> 90 | E35: =IF('2. Operating Budget'!$D29>0,$C35/12,'2. Operating Budget'!$B29*4.3+'2. Operating Budget'!$C29+'2. Operating Budget'!$E29*E$7) -> 90 | F35: =IF('2. Operating Budget'!$D29>0,$C35/12,'2. Operating Budget'!$B29*4.3+'2. Operating Budget'!$C29+'2. Operating Budget'!$E29*F$7) -> 90 | G35: =IF('2. Operating Budget'!$D29>0,$C35/12,'2. Operating Budget'!$B29*4.3+'2. Operating Budget'!$C29+'2. Operating Budget'!$E29*G$7) -> 90 | H35: =IF('2. Operating Budget'!$D29>0,$C35/12,'2. Operating Budget'!$B29*4.3+'2. Operating Budget'!$C29+'2. Operating Budget'!$E29*H$7) -> 90 | I35: =IF('2. Operating Budget'!$D29>0,$C35/12,'2. Operating Budget'!$B29*4.3+'2. Operating Budget'!$C29+'2. Operating Budget'!$E29*I$7) -> 90 | J35: =IF('2. Operating Budget'!$D29>0,$C35/12,'2. Operating Budget'!$B29*4.3+'2. Operating Budget'!$C29+'2. Operating Budget'!$E29*J$7) -> 90 | K35: =IF('2. Operating Budget'!$D29>0,$C35/12,'2. Operating Budget'!$B29*4.3+'2. Operating Budget'!$C29+'2. Operating Budget'!$E29*K$7) -> 90 | L35: =IF('2. Operating Budget'!$D29>0,$C35/12,'2. Operating Budget'!$B29*4.3+'2. Operating Budget'!$C29+'2. Operating Budget'!$E29*L$7) -> 90 | M35: =IF('2. Operating Budget'!$D29>0,$C35/12,'2. Operating Budget'!$B29*4.3+'2. Operating Budget'!$C29+'2. Operating Budget'!$E29*M$7) -> 90 | N35: =IF('2. Operating Budget'!$D29>0,$C35/12,'2. Operating Budget'!$B29*4.3+'2. Operating Budget'!$C29+'2. Operating Budget'!$E29*N$7) -> 90 | O35: =IF('2. Operating Budget'!$D29>0,$C35/12,'2. Operating Budget'!$B29*4.3+'2. Operating Budget'!$C29+'2. Operating Budget'!$E29*O$7) -> 90 | P35: 1080 | Q35: =IF('2. Operating Budget'!$D29>0,$C35/12,'2. Operating Budget'!$B29*4.3+'2. Operating Budget'!$C29+'2. Operating Budget'!$E29*Q$7) -> 90 | R35: =IF('2. Operating Budget'!$D29>0,$C35/12,'2. Operating Budget'!$B29*4.3+'2. Operating Budget'!$C29+'2. Operating Budget'!$E29*R$7) -> 90 | S35: =IF('2. Operating Budget'!$D29>0,$C35/12,'2. Operating Budget'!$B29*4.3+'2. Operating Budget'!$C29+'2. Operating Budget'!$E29*S$7) -> 90 | T35: =IF('2. Operating Budget'!$D29>0,$C35/12,'2. Operating Budget'!$B29*4.3+'2. Operating Budget'!$C29+'2. Operating Budget'!$E29*T$7) -> 90 | U35: =IF('2. Operating Budget'!$D29>0,$C35/12,'2. Operating Budget'!$B29*4.3+'2. Operating Budget'!$C29+'2. Operating Budget'!$E29*U$7) -> 90 | V35: =IF('2. Operating Budget'!$D29>0,$C35/12,'2. Operating Budget'!$B29*4.3+'2. Operating Budget'!$C29+'2. Operating Budget'!$E29*V$7) -> 90 | W35: =IF('2. Operating Budget'!$D29>0,$C35/12,'2. Operating Budget'!$B29*4.3+'2. Operating Budget'!$C29+'2. Operating Budget'!$E29*W$7) -> 90 | X35: =IF('2. Operating Budget'!$D29>0,$C35/12,'2. Operating Budget'!$B29*4.3+'2. Operating Budget'!$C29+'2. Operating Budget'!$E29*X$7) -> 90 | Y35: =IF('2. Operating Budget'!$D29>0,$C35/12,'2. Operating Budget'!$B29*4.3+'2. Operating Budget'!$C29+'2. Operating Budget'!$E29*Y$7) -> 90 | Z35: =IF('2. Operating Budget'!$D29>0,$C35/12,'2. Operating Budget'!$B29*4.3+'2. Operating Budget'!$C29+'2. Operating Budget'!$E29*Z$7) -> 90 | AA35: =IF('2. Operating Budget'!$D29>0,$C35/12,'2. Operating Budget'!$B29*4.3+'2. Operating Budget'!$C29+'2. Operating Budget'!$E29*AA$7) -> 90 | AB35: =IF('2. Operating Budget'!$D29>0,$C35/12,'2. Operating Budget'!$B29*4.3+'2. Operating Budget'!$C29+'2. Operating Budget'!$E29*AB$7) -> 90 | AC35: 1080 | AD35: =IF('2. Operating Budget'!$E29>0,'2. Operating Budget'!$E29*'8. P&L and Cashflow'!AD$7,'2. Operating Budget'!$K29) -> 1080 | AE35: =IF('2. Operating Budget'!$E29>0,'2. Operating Budget'!$E29*'8. P&L and Cashflow'!AE$7,'2. Operating Budget'!$K29) -> 1080 | AF35: =IF('2. Operating Budget'!$E29>0,'2. Operating Budget'!$E29*'8. P&L and Cashflow'!AF$7,'2. Operating Budget'!$K29) -> 1080
B36: =IF('2. Operating Budget'!A30="","",'2. Operating Budget'!A30) ->  | C36: ='2. Operating Budget'!K30 -> 0 | D36: =IF('2. Operating Budget'!$D30>0,$C36/12,'2. Operating Budget'!$B30*4.3+'2. Operating Budget'!$C30+'2. Operating Budget'!$E30*D$7) -> 0 | E36: =IF('2. Operating Budget'!$D30>0,$C36/12,'2. Operating Budget'!$B30*4.3+'2. Operating Budget'!$C30+'2. Operating Budget'!$E30*E$7) -> 0 | F36: =IF('2. Operating Budget'!$D30>0,$C36/12,'2. Operating Budget'!$B30*4.3+'2. Operating Budget'!$C30+'2. Operating Budget'!$E30*F$7) -> 0 | G36: =IF('2. Operating Budget'!$D30>0,$C36/12,'2. Operating Budget'!$B30*4.3+'2. Operating Budget'!$C30+'2. Operating Budget'!$E30*G$7) -> 0 | H36: =IF('2. Operating Budget'!$D30>0,$C36/12,'2. Operating Budget'!$B30*4.3+'2. Operating Budget'!$C30+'2. Operating Budget'!$E30*H$7) -> 0 | I36: =IF('2. Operating Budget'!$D30>0,$C36/12,'2. Operating Budget'!$B30*4.3+'2. Operating Budget'!$C30+'2. Operating Budget'!$E30*I$7) -> 0 | J36: =IF('2. Operating Budget'!$D30>0,$C36/12,'2. Operating Budget'!$B30*4.3+'2. Operating Budget'!$C30+'2. Operating Budget'!$E30*J$7) -> 0 | K36: =IF('2. Operating Budget'!$D30>0,$C36/12,'2. Operating Budget'!$B30*4.3+'2. Operating Budget'!$C30+'2. Operating Budget'!$E30*K$7) -> 0 | L36: =IF('2. Operating Budget'!$D30>0,$C36/12,'2. Operating Budget'!$B30*4.3+'2. Operating Budget'!$C30+'2. Operating Budget'!$E30*L$7) -> 0 | M36: =IF('2. Operating Budget'!$D30>0,$C36/12,'2. Operating Budget'!$B30*4.3+'2. Operating Budget'!$C30+'2. Operating Budget'!$E30*M$7) -> 0 | N36: =IF('2. Operating Budget'!$D30>0,$C36/12,'2. Operating Budget'!$B30*4.3+'2. Operating Budget'!$C30+'2. Operating Budget'!$E30*N$7) -> 0 | O36: =IF('2. Operating Budget'!$D30>0,$C36/12,'2. Operating Budget'!$B30*4.3+'2. Operating Budget'!$C30+'2. Operating Budget'!$E30*O$7) -> 0 | P36: 0 | Q36: =IF('2. Operating Budget'!$D30>0,$C36/12,'2. Operating Budget'!$B30*4.3+'2. Operating Budget'!$C30+'2. Operating Budget'!$E30*Q$7) -> 0 | R36: =IF('2. Operating Budget'!$D30>0,$C36/12,'2. Operating Budget'!$B30*4.3+'2. Operating Budget'!$C30+'2. Operating Budget'!$E30*R$7) -> 0 | S36: =IF('2. Operating Budget'!$D30>0,$C36/12,'2. Operating Budget'!$B30*4.3+'2. Operating Budget'!$C30+'2. Operating Budget'!$E30*S$7) -> 0 | T36: =IF('2. Operating Budget'!$D30>0,$C36/12,'2. Operating Budget'!$B30*4.3+'2. Operating Budget'!$C30+'2. Operating Budget'!$E30*T$7) -> 0 | U36: =IF('2. Operating Budget'!$D30>0,$C36/12,'2. Operating Budget'!$B30*4.3+'2. Operating Budget'!$C30+'2. Operating Budget'!$E30*U$7) -> 0 | V36: =IF('2. Operating Budget'!$D30>0,$C36/12,'2. Operating Budget'!$B30*4.3+'2. Operating Budget'!$C30+'2. Operating Budget'!$E30*V$7) -> 0 | W36: =IF('2. Operating Budget'!$D30>0,$C36/12,'2. Operating Budget'!$B30*4.3+'2. Operating Budget'!$C30+'2. Operating Budget'!$E30*W$7) -> 0 | X36: =IF('2. Operating Budget'!$D30>0,$C36/12,'2. Operating Budget'!$B30*4.3+'2. Operating Budget'!$C30+'2. Operating Budget'!$E30*X$7) -> 0 | Y36: =IF('2. Operating Budget'!$D30>0,$C36/12,'2. Operating Budget'!$B30*4.3+'2. Operating Budget'!$C30+'2. Operating Budget'!$E30*Y$7) -> 0 | Z36: =IF('2. Operating Budget'!$D30>0,$C36/12,'2. Operating Budget'!$B30*4.3+'2. Operating Budget'!$C30+'2. Operating Budget'!$E30*Z$7) -> 0 | AA36: =IF('2. Operating Budget'!$D30>0,$C36/12,'2. Operating Budget'!$B30*4.3+'2. Operating Budget'!$C30+'2. Operating Budget'!$E30*AA$7) -> 0 | AB36: =IF('2. Operating Budget'!$D30>0,$C36/12,'2. Operating Budget'!$B30*4.3+'2. Operating Budget'!$C30+'2. Operating Budget'!$E30*AB$7) -> 0 | AC36: 0 | AD36: =IF('2. Operating Budget'!$E30>0,'2. Operating Budget'!$E30*'8. P&L and Cashflow'!AD$7,'2. Operating Budget'!$K30) -> 0 | AE36: =IF('2. Operating Budget'!$E30>0,'2. Operating Budget'!$E30*'8. P&L and Cashflow'!AE$7,'2. Operating Budget'!$K30) -> 0 | AF36: =IF('2. Operating Budget'!$E30>0,'2. Operating Budget'!$E30*'8. P&L and Cashflow'!AF$7,'2. Operating Budget'!$K30) -> 0
B37: =IF('2. Operating Budget'!A31="","",'2. Operating Budget'!A31) ->  | C37: ='2. Operating Budget'!K31 -> 0 | D37: =IF('2. Operating Budget'!$D31>0,$C37/12,'2. Operating Budget'!$B31*4.3+'2. Operating Budget'!$C31+'2. Operating Budget'!$E31*D$7) -> 0 | E37: =IF('2. Operating Budget'!$D31>0,$C37/12,'2. Operating Budget'!$B31*4.3+'2. Operating Budget'!$C31+'2. Operating Budget'!$E31*E$7) -> 0 | F37: =IF('2. Operating Budget'!$D31>0,$C37/12,'2. Operating Budget'!$B31*4.3+'2. Operating Budget'!$C31+'2. Operating Budget'!$E31*F$7) -> 0 | G37: =IF('2. Operating Budget'!$D31>0,$C37/12,'2. Operating Budget'!$B31*4.3+'2. Operating Budget'!$C31+'2. Operating Budget'!$E31*G$7) -> 0 | H37: =IF('2. Operating Budget'!$D31>0,$C37/12,'2. Operating Budget'!$B31*4.3+'2. Operating Budget'!$C31+'2. Operating Budget'!$E31*H$7) -> 0 | I37: =IF('2. Operating Budget'!$D31>0,$C37/12,'2. Operating Budget'!$B31*4.3+'2. Operating Budget'!$C31+'2. Operating Budget'!$E31*I$7) -> 0 | J37: =IF('2. Operating Budget'!$D31>0,$C37/12,'2. Operating Budget'!$B31*4.3+'2. Operating Budget'!$C31+'2. Operating Budget'!$E31*J$7) -> 0 | K37: =IF('2. Operating Budget'!$D31>0,$C37/12,'2. Operating Budget'!$B31*4.3+'2. Operating Budget'!$C31+'2. Operating Budget'!$E31*K$7) -> 0 | L37: =IF('2. Operating Budget'!$D31>0,$C37/12,'2. Operating Budget'!$B31*4.3+'2. Operating Budget'!$C31+'2. Operating Budget'!$E31*L$7) -> 0 | M37: =IF('2. Operating Budget'!$D31>0,$C37/12,'2. Operating Budget'!$B31*4.3+'2. Operating Budget'!$C31+'2. Operating Budget'!$E31*M$7) -> 0 | N37: =IF('2. Operating Budget'!$D31>0,$C37/12,'2. Operating Budget'!$B31*4.3+'2. Operating Budget'!$C31+'2. Operating Budget'!$E31*N$7) -> 0 | O37: =IF('2. Operating Budget'!$D31>0,$C37/12,'2. Operating Budget'!$B31*4.3+'2. Operating Budget'!$C31+'2. Operating Budget'!$E31*O$7) -> 0 | P37: 0 | Q37: =IF('2. Operating Budget'!$D31>0,$C37/12,'2. Operating Budget'!$B31*4.3+'2. Operating Budget'!$C31+'2. Operating Budget'!$E31*Q$7) -> 0 | R37: =IF('2. Operating Budget'!$D31>0,$C37/12,'2. Operating Budget'!$B31*4.3+'2. Operating Budget'!$C31+'2. Operating Budget'!$E31*R$7) -> 0 | S37: =IF('2. Operating Budget'!$D31>0,$C37/12,'2. Operating Budget'!$B31*4.3+'2. Operating Budget'!$C31+'2. Operating Budget'!$E31*S$7) -> 0 | T37: =IF('2. Operating Budget'!$D31>0,$C37/12,'2. Operating Budget'!$B31*4.3+'2. Operating Budget'!$C31+'2. Operating Budget'!$E31*T$7) -> 0 | U37: =IF('2. Operating Budget'!$D31>0,$C37/12,'2. Operating Budget'!$B31*4.3+'2. Operating Budget'!$C31+'2. Operating Budget'!$E31*U$7) -> 0 | V37: =IF('2. Operating Budget'!$D31>0,$C37/12,'2. Operating Budget'!$B31*4.3+'2. Operating Budget'!$C31+'2. Operating Budget'!$E31*V$7) -> 0 | W37: =IF('2. Operating Budget'!$D31>0,$C37/12,'2. Operating Budget'!$B31*4.3+'2. Operating Budget'!$C31+'2. Operating Budget'!$E31*W$7) -> 0 | X37: =IF('2. Operating Budget'!$D31>0,$C37/12,'2. Operating Budget'!$B31*4.3+'2. Operating Budget'!$C31+'2. Operating Budget'!$E31*X$7) -> 0 | Y37: =IF('2. Operating Budget'!$D31>0,$C37/12,'2. Operating Budget'!$B31*4.3+'2. Operating Budget'!$C31+'2. Operating Budget'!$E31*Y$7) -> 0 | Z37: =IF('2. Operating Budget'!$D31>0,$C37/12,'2. Operating Budget'!$B31*4.3+'2. Operating Budget'!$C31+'2. Operating Budget'!$E31*Z$7) -> 0 | AA37: =IF('2. Operating Budget'!$D31>0,$C37/12,'2. Operating Budget'!$B31*4.3+'2. Operating Budget'!$C31+'2. Operating Budget'!$E31*AA$7) -> 0 | AB37: =IF('2. Operating Budget'!$D31>0,$C37/12,'2. Operating Budget'!$B31*4.3+'2. Operating Budget'!$C31+'2. Operating Budget'!$E31*AB$7) -> 0 | AC37: 0 | AD37: =IF('2. Operating Budget'!$E31>0,'2. Operating Budget'!$E31*'8. P&L and Cashflow'!AD$7,'2. Operating Budget'!$K31) -> 0 | AE37: =IF('2. Operating Budget'!$E31>0,'2. Operating Budget'!$E31*'8. P&L and Cashflow'!AE$7,'2. Operating Budget'!$K31) -> 0 | AF37: =IF('2. Operating Budget'!$E31>0,'2. Operating Budget'!$E31*'8. P&L and Cashflow'!AF$7,'2. Operating Budget'!$K31) -> 0
B38: =IF('2. Operating Budget'!A32="","",'2. Operating Budget'!A32) -> Professional Development | C38: ='2. Operating Budget'!K32 -> 3500 | D38: =IF('2. Operating Budget'!$D32>0,$C38/12,'2. Operating Budget'!$B32*4.3+'2. Operating Budget'!$C32+'2. Operating Budget'!$E32*D$7) -> 291.6666667 | E38: =IF('2. Operating Budget'!$D32>0,$C38/12,'2. Operating Budget'!$B32*4.3+'2. Operating Budget'!$C32+'2. Operating Budget'!$E32*E$7) -> 291.6666667 | F38: =IF('2. Operating Budget'!$D32>0,$C38/12,'2. Operating Budget'!$B32*4.3+'2. Operating Budget'!$C32+'2. Operating Budget'!$E32*F$7) -> 291.6666667 | G38: =IF('2. Operating Budget'!$D32>0,$C38/12,'2. Operating Budget'!$B32*4.3+'2. Operating Budget'!$C32+'2. Operating Budget'!$E32*G$7) -> 291.6666667 | H38: =IF('2. Operating Budget'!$D32>0,$C38/12,'2. Operating Budget'!$B32*4.3+'2. Operating Budget'!$C32+'2. Operating Budget'!$E32*H$7) -> 291.6666667 | I38: =IF('2. Operating Budget'!$D32>0,$C38/12,'2. Operating Budget'!$B32*4.3+'2. Operating Budget'!$C32+'2. Operating Budget'!$E32*I$7) -> 291.6666667 | J38: =IF('2. Operating Budget'!$D32>0,$C38/12,'2. Operating Budget'!$B32*4.3+'2. Operating Budget'!$C32+'2. Operating Budget'!$E32*J$7) -> 291.6666667 | K38: =IF('2. Operating Budget'!$D32>0,$C38/12,'2. Operating Budget'!$B32*4.3+'2. Operating Budget'!$C32+'2. Operating Budget'!$E32*K$7) -> 291.6666667 | L38: =IF('2. Operating Budget'!$D32>0,$C38/12,'2. Operating Budget'!$B32*4.3+'2. Operating Budget'!$C32+'2. Operating Budget'!$E32*L$7) -> 291.6666667 | M38: =IF('2. Operating Budget'!$D32>0,$C38/12,'2. Operating Budget'!$B32*4.3+'2. Operating Budget'!$C32+'2. Operating Budget'!$E32*M$7) -> 291.6666667 | N38: =IF('2. Operating Budget'!$D32>0,$C38/12,'2. Operating Budget'!$B32*4.3+'2. Operating Budget'!$C32+'2. Operating Budget'!$E32*N$7) -> 291.6666667 | O38: =IF('2. Operating Budget'!$D32>0,$C38/12,'2. Operating Budget'!$B32*4.3+'2. Operating Budget'!$C32+'2. Operating Budget'!$E32*O$7) -> 291.6666667 | P38: 3500 | Q38: =IF('2. Operating Budget'!$D32>0,$C38/12,'2. Operating Budget'!$B32*4.3+'2. Operating Budget'!$C32+'2. Operating Budget'!$E32*Q$7) -> 291.6666667 | R38: =IF('2. Operating Budget'!$D32>0,$C38/12,'2. Operating Budget'!$B32*4.3+'2. Operating Budget'!$C32+'2. Operating Budget'!$E32*R$7) -> 291.6666667 | S38: =IF('2. Operating Budget'!$D32>0,$C38/12,'2. Operating Budget'!$B32*4.3+'2. Operating Budget'!$C32+'2. Operating Budget'!$E32*S$7) -> 291.6666667 | T38: =IF('2. Operating Budget'!$D32>0,$C38/12,'2. Operating Budget'!$B32*4.3+'2. Operating Budget'!$C32+'2. Operating Budget'!$E32*T$7) -> 291.6666667 | U38: =IF('2. Operating Budget'!$D32>0,$C38/12,'2. Operating Budget'!$B32*4.3+'2. Operating Budget'!$C32+'2. Operating Budget'!$E32*U$7) -> 291.6666667 | V38: =IF('2. Operating Budget'!$D32>0,$C38/12,'2. Operating Budget'!$B32*4.3+'2. Operating Budget'!$C32+'2. Operating Budget'!$E32*V$7) -> 291.6666667 | W38: =IF('2. Operating Budget'!$D32>0,$C38/12,'2. Operating Budget'!$B32*4.3+'2. Operating Budget'!$C32+'2. Operating Budget'!$E32*W$7) -> 291.6666667 | X38: =IF('2. Operating Budget'!$D32>0,$C38/12,'2. Operating Budget'!$B32*4.3+'2. Operating Budget'!$C32+'2. Operating Budget'!$E32*X$7) -> 291.6666667 | Y38: =IF('2. Operating Budget'!$D32>0,$C38/12,'2. Operating Budget'!$B32*4.3+'2. Operating Budget'!$C32+'2. Operating Budget'!$E32*Y$7) -> 291.6666667 | Z38: =IF('2. Operating Budget'!$D32>0,$C38/12,'2. Operating Budget'!$B32*4.3+'2. Operating Budget'!$C32+'2. Operating Budget'!$E32*Z$7) -> 291.6666667 | AA38: =IF('2. Operating Budget'!$D32>0,$C38/12,'2. Operating Budget'!$B32*4.3+'2. Operating Budget'!$C32+'2. Operating Budget'!$E32*AA$7) -> 291.6666667 | AB38: =IF('2. Operating Budget'!$D32>0,$C38/12,'2. Operating Budget'!$B32*4.3+'2. Operating Budget'!$C32+'2. Operating Budget'!$E32*AB$7) -> 291.6666667 | AC38: 3500 | AD38: =IF('2. Operating Budget'!$E32>0,'2. Operating Budget'!$E32*'8. P&L and Cashflow'!AD$7,'2. Operating Budget'!$K32) -> 3500 | AE38: =IF('2. Operating Budget'!$E32>0,'2. Operating Budget'!$E32*'8. P&L and Cashflow'!AE$7,'2. Operating Budget'!$K32) -> 3500 | AF38: =IF('2. Operating Budget'!$E32>0,'2. Operating Budget'!$E32*'8. P&L and Cashflow'!AF$7,'2. Operating Budget'!$K32) -> 3500
B39: =IF('2. Operating Budget'!A33="","",'2. Operating Budget'!A33) -> Accounting Services | C39: ='2. Operating Budget'!K33 -> 3600 | D39: =IF('2. Operating Budget'!$D33>0,$C39/12,'2. Operating Budget'!$B33*4.3+'2. Operating Budget'!$C33+'2. Operating Budget'!$E33*D$7) -> 300 | E39: =IF('2. Operating Budget'!$D33>0,$C39/12,'2. Operating Budget'!$B33*4.3+'2. Operating Budget'!$C33+'2. Operating Budget'!$E33*E$7) -> 300 | F39: =IF('2. Operating Budget'!$D33>0,$C39/12,'2. Operating Budget'!$B33*4.3+'2. Operating Budget'!$C33+'2. Operating Budget'!$E33*F$7) -> 300 | G39: =IF('2. Operating Budget'!$D33>0,$C39/12,'2. Operating Budget'!$B33*4.3+'2. Operating Budget'!$C33+'2. Operating Budget'!$E33*G$7) -> 300 | H39: =IF('2. Operating Budget'!$D33>0,$C39/12,'2. Operating Budget'!$B33*4.3+'2. Operating Budget'!$C33+'2. Operating Budget'!$E33*H$7) -> 300 | I39: =IF('2. Operating Budget'!$D33>0,$C39/12,'2. Operating Budget'!$B33*4.3+'2. Operating Budget'!$C33+'2. Operating Budget'!$E33*I$7) -> 300 | J39: =IF('2. Operating Budget'!$D33>0,$C39/12,'2. Operating Budget'!$B33*4.3+'2. Operating Budget'!$C33+'2. Operating Budget'!$E33*J$7) -> 300 | K39: =IF('2. Operating Budget'!$D33>0,$C39/12,'2. Operating Budget'!$B33*4.3+'2. Operating Budget'!$C33+'2. Operating Budget'!$E33*K$7) -> 300 | L39: =IF('2. Operating Budget'!$D33>0,$C39/12,'2. Operating Budget'!$B33*4.3+'2. Operating Budget'!$C33+'2. Operating Budget'!$E33*L$7) -> 300 | M39: =IF('2. Operating Budget'!$D33>0,$C39/12,'2. Operating Budget'!$B33*4.3+'2. Operating Budget'!$C33+'2. Operating Budget'!$E33*M$7) -> 300 | N39: =IF('2. Operating Budget'!$D33>0,$C39/12,'2. Operating Budget'!$B33*4.3+'2. Operating Budget'!$C33+'2. Operating Budget'!$E33*N$7) -> 300 | O39: =IF('2. Operating Budget'!$D33>0,$C39/12,'2. Operating Budget'!$B33*4.3+'2. Operating Budget'!$C33+'2. Operating Budget'!$E33*O$7) -> 300 | P39: 3600 | Q39: =IF('2. Operating Budget'!$D33>0,$C39/12,'2. Operating Budget'!$B33*4.3+'2. Operating Budget'!$C33+'2. Operating Budget'!$E33*Q$7) -> 300 | R39: =IF('2. Operating Budget'!$D33>0,$C39/12,'2. Operating Budget'!$B33*4.3+'2. Operating Budget'!$C33+'2. Operating Budget'!$E33*R$7) -> 300 | S39: =IF('2. Operating Budget'!$D33>0,$C39/12,'2. Operating Budget'!$B33*4.3+'2. Operating Budget'!$C33+'2. Operating Budget'!$E33*S$7) -> 300 | T39: =IF('2. Operating Budget'!$D33>0,$C39/12,'2. Operating Budget'!$B33*4.3+'2. Operating Budget'!$C33+'2. Operating Budget'!$E33*T$7) -> 300 | U39: =IF('2. Operating Budget'!$D33>0,$C39/12,'2. Operating Budget'!$B33*4.3+'2. Operating Budget'!$C33+'2. Operating Budget'!$E33*U$7) -> 300 | V39: =IF('2. Operating Budget'!$D33>0,$C39/12,'2. Operating Budget'!$B33*4.3+'2. Operating Budget'!$C33+'2. Operating Budget'!$E33*V$7) -> 300 | W39: =IF('2. Operating Budget'!$D33>0,$C39/12,'2. Operating Budget'!$B33*4.3+'2. Operating Budget'!$C33+'2. Operating Budget'!$E33*W$7) -> 300 | X39: =IF('2. Operating Budget'!$D33>0,$C39/12,'2. Operating Budget'!$B33*4.3+'2. Operating Budget'!$C33+'2. Operating Budget'!$E33*X$7) -> 300 | Y39: =IF('2. Operating Budget'!$D33>0,$C39/12,'2. Operating Budget'!$B33*4.3+'2. Operating Budget'!$C33+'2. Operating Budget'!$E33*Y$7) -> 300 | Z39: =IF('2. Operating Budget'!$D33>0,$C39/12,'2. Operating Budget'!$B33*4.3+'2. Operating Budget'!$C33+'2. Operating Budget'!$E33*Z$7) -> 300 | AA39: =IF('2. Operating Budget'!$D33>0,$C39/12,'2. Operating Budget'!$B33*4.3+'2. Operating Budget'!$C33+'2. Operating Budget'!$E33*AA$7) -> 300 | AB39: =IF('2. Operating Budget'!$D33>0,$C39/12,'2. Operating Budget'!$B33*4.3+'2. Operating Budget'!$C33+'2. Operating Budget'!$E33*AB$7) -> 300 | AC39: 3600 | AD39: =IF('2. Operating Budget'!$E33>0,'2. Operating Budget'!$E33*'8. P&L and Cashflow'!AD$7,'2. Operating Budget'!$K33) -> 3600 | AE39: =IF('2. Operating Budget'!$E33>0,'2. Operating Budget'!$E33*'8. P&L and Cashflow'!AE$7,'2. Operating Budget'!$K33) -> 3600 | AF39: =IF('2. Operating Budget'!$E33>0,'2. Operating Budget'!$E33*'8. P&L and Cashflow'!AF$7,'2. Operating Budget'!$K33) -> 3600
B40: =IF('2. Operating Budget'!A34="","",'2. Operating Budget'!A34) -> Legal Services | C40: ='2. Operating Budget'!K34 -> 450 | D40: =IF('2. Operating Budget'!$D34>0,$C40/12,'2. Operating Budget'!$B34*4.3+'2. Operating Budget'!$C34+'2. Operating Budget'!$E34*D$7) -> 37.5 | E40: =IF('2. Operating Budget'!$D34>0,$C40/12,'2. Operating Budget'!$B34*4.3+'2. Operating Budget'!$C34+'2. Operating Budget'!$E34*E$7) -> 37.5 | F40: =IF('2. Operating Budget'!$D34>0,$C40/12,'2. Operating Budget'!$B34*4.3+'2. Operating Budget'!$C34+'2. Operating Budget'!$E34*F$7) -> 37.5 | G40: =IF('2. Operating Budget'!$D34>0,$C40/12,'2. Operating Budget'!$B34*4.3+'2. Operating Budget'!$C34+'2. Operating Budget'!$E34*G$7) -> 37.5 | H40: =IF('2. Operating Budget'!$D34>0,$C40/12,'2. Operating Budget'!$B34*4.3+'2. Operating Budget'!$C34+'2. Operating Budget'!$E34*H$7) -> 37.5 | I40: =IF('2. Operating Budget'!$D34>0,$C40/12,'2. Operating Budget'!$B34*4.3+'2. Operating Budget'!$C34+'2. Operating Budget'!$E34*I$7) -> 37.5 | J40: =IF('2. Operating Budget'!$D34>0,$C40/12,'2. Operating Budget'!$B34*4.3+'2. Operating Budget'!$C34+'2. Operating Budget'!$E34*J$7) -> 37.5 | K40: =IF('2. Operating Budget'!$D34>0,$C40/12,'2. Operating Budget'!$B34*4.3+'2. Operating Budget'!$C34+'2. Operating Budget'!$E34*K$7) -> 37.5 | L40: =IF('2. Operating Budget'!$D34>0,$C40/12,'2. Operating Budget'!$B34*4.3+'2. Operating Budget'!$C34+'2. Operating Budget'!$E34*L$7) -> 37.5 | M40: =IF('2. Operating Budget'!$D34>0,$C40/12,'2. Operating Budget'!$B34*4.3+'2. Operating Budget'!$C34+'2. Operating Budget'!$E34*M$7) -> 37.5 | N40: =IF('2. Operating Budget'!$D34>0,$C40/12,'2. Operating Budget'!$B34*4.3+'2. Operating Budget'!$C34+'2. Operating Budget'!$E34*N$7) -> 37.5 | O40: =IF('2. Operating Budget'!$D34>0,$C40/12,'2. Operating Budget'!$B34*4.3+'2. Operating Budget'!$C34+'2. Operating Budget'!$E34*O$7) -> 37.5 | P40: 450 | Q40: =IF('2. Operating Budget'!$D34>0,$C40/12,'2. Operating Budget'!$B34*4.3+'2. Operating Budget'!$C34+'2. Operating Budget'!$E34*Q$7) -> 37.5 | R40: =IF('2. Operating Budget'!$D34>0,$C40/12,'2. Operating Budget'!$B34*4.3+'2. Operating Budget'!$C34+'2. Operating Budget'!$E34*R$7) -> 37.5 | S40: =IF('2. Operating Budget'!$D34>0,$C40/12,'2. Operating Budget'!$B34*4.3+'2. Operating Budget'!$C34+'2. Operating Budget'!$E34*S$7) -> 37.5 | T40: =IF('2. Operating Budget'!$D34>0,$C40/12,'2. Operating Budget'!$B34*4.3+'2. Operating Budget'!$C34+'2. Operating Budget'!$E34*T$7) -> 37.5 | U40: =IF('2. Operating Budget'!$D34>0,$C40/12,'2. Operating Budget'!$B34*4.3+'2. Operating Budget'!$C34+'2. Operating Budget'!$E34*U$7) -> 37.5 | V40: =IF('2. Operating Budget'!$D34>0,$C40/12,'2. Operating Budget'!$B34*4.3+'2. Operating Budget'!$C34+'2. Operating Budget'!$E34*V$7) -> 37.5 | W40: =IF('2. Operating Budget'!$D34>0,$C40/12,'2. Operating Budget'!$B34*4.3+'2. Operating Budget'!$C34+'2. Operating Budget'!$E34*W$7) -> 37.5 | X40: =IF('2. Operating Budget'!$D34>0,$C40/12,'2. Operating Budget'!$B34*4.3+'2. Operating Budget'!$C34+'2. Operating Budget'!$E34*X$7) -> 37.5 | Y40: =IF('2. Operating Budget'!$D34>0,$C40/12,'2. Operating Budget'!$B34*4.3+'2. Operating Budget'!$C34+'2. Operating Budget'!$E34*Y$7) -> 37.5 | Z40: =IF('2. Operating Budget'!$D34>0,$C40/12,'2. Operating Budget'!$B34*4.3+'2. Operating Budget'!$C34+'2. Operating Budget'!$E34*Z$7) -> 37.5 | AA40: =IF('2. Operating Budget'!$D34>0,$C40/12,'2. Operating Budget'!$B34*4.3+'2. Operating Budget'!$C34+'2. Operating Budget'!$E34*AA$7) -> 37.5 | AB40: =IF('2. Operating Budget'!$D34>0,$C40/12,'2. Operating Budget'!$B34*4.3+'2. Operating Budget'!$C34+'2. Operating Budget'!$E34*AB$7) -> 37.5 | AC40: 450 | AD40: =IF('2. Operating Budget'!$E34>0,'2. Operating Budget'!$E34*'8. P&L and Cashflow'!AD$7,'2. Operating Budget'!$K34) -> 450 | AE40: =IF('2. Operating Budget'!$E34>0,'2. Operating Budget'!$E34*'8. P&L and Cashflow'!AE$7,'2. Operating Budget'!$K34) -> 450 | AF40: =IF('2. Operating Budget'!$E34>0,'2. Operating Budget'!$E34*'8. P&L and Cashflow'!AF$7,'2. Operating Budget'!$K34) -> 450
B41: =IF('2. Operating Budget'!A35="","",'2. Operating Budget'!A35) -> Bad Debt | C41: ='2. Operating Budget'!K35 -> 1282.25 | D41: =IF('2. Operating Budget'!$D35>0,$C41/12,'2. Operating Budget'!$B35*4.3+'2. Operating Budget'!$C35+'2. Operating Budget'!$E35*D$7) -> 55.75 | E41: =IF('2. Operating Budget'!$D35>0,$C41/12,'2. Operating Budget'!$B35*4.3+'2. Operating Budget'!$C35+'2. Operating Budget'!$E35*E$7) -> 111.5 | F41: =IF('2. Operating Budget'!$D35>0,$C41/12,'2. Operating Budget'!$B35*4.3+'2. Operating Budget'!$C35+'2. Operating Budget'!$E35*F$7) -> 111.5 | G41: =IF('2. Operating Budget'!$D35>0,$C41/12,'2. Operating Budget'!$B35*4.3+'2. Operating Budget'!$C35+'2. Operating Budget'!$E35*G$7) -> 111.5 | H41: =IF('2. Operating Budget'!$D35>0,$C41/12,'2. Operating Budget'!$B35*4.3+'2. Operating Budget'!$C35+'2. Operating Budget'!$E35*H$7) -> 111.5 | I41: =IF('2. Operating Budget'!$D35>0,$C41/12,'2. Operating Budget'!$B35*4.3+'2. Operating Budget'!$C35+'2. Operating Budget'!$E35*I$7) -> 111.5 | J41: =IF('2. Operating Budget'!$D35>0,$C41/12,'2. Operating Budget'!$B35*4.3+'2. Operating Budget'!$C35+'2. Operating Budget'!$E35*J$7) -> 111.5 | K41: =IF('2. Operating Budget'!$D35>0,$C41/12,'2. Operating Budget'!$B35*4.3+'2. Operating Budget'!$C35+'2. Operating Budget'!$E35*K$7) -> 111.5 | L41: =IF('2. Operating Budget'!$D35>0,$C41/12,'2. Operating Budget'!$B35*4.3+'2. Operating Budget'!$C35+'2. Operating Budget'!$E35*L$7) -> 111.5 | M41: =IF('2. Operating Budget'!$D35>0,$C41/12,'2. Operating Budget'!$B35*4.3+'2. Operating Budget'!$C35+'2. Operating Budget'!$E35*M$7) -> 111.5 | N41: =IF('2. Operating Budget'!$D35>0,$C41/12,'2. Operating Budget'!$B35*4.3+'2. Operating Budget'!$C35+'2. Operating Budget'!$E35*N$7) -> 111.5 | O41: =IF('2. Operating Budget'!$D35>0,$C41/12,'2. Operating Budget'!$B35*4.3+'2. Operating Budget'!$C35+'2. Operating Budget'!$E35*O$7) -> 111.5 | P41: 1282.25 | Q41: =IF('2. Operating Budget'!$D35>0,$C41/12,'2. Operating Budget'!$B35*4.3+'2. Operating Budget'!$C35+'2. Operating Budget'!$E35*Q$7) -> 126.275 | R41: =IF('2. Operating Budget'!$D35>0,$C41/12,'2. Operating Budget'!$B35*4.3+'2. Operating Budget'!$C35+'2. Operating Budget'!$E35*R$7) -> 126.275 | S41: =IF('2. Operating Budget'!$D35>0,$C41/12,'2. Operating Budget'!$B35*4.3+'2. Operating Budget'!$C35+'2. Operating Budget'!$E35*S$7) -> 126.275 | T41: =IF('2. Operating Budget'!$D35>0,$C41/12,'2. Operating Budget'!$B35*4.3+'2. Operating Budget'!$C35+'2. Operating Budget'!$E35*T$7) -> 126.275 | U41: =IF('2. Operating Budget'!$D35>0,$C41/12,'2. Operating Budget'!$B35*4.3+'2. Operating Budget'!$C35+'2. Operating Budget'!$E35*U$7) -> 126.275 | V41: =IF('2. Operating Budget'!$D35>0,$C41/12,'2. Operating Budget'!$B35*4.3+'2. Operating Budget'!$C35+'2. Operating Budget'!$E35*V$7) -> 126.275 | W41: =IF('2. Operating Budget'!$D35>0,$C41/12,'2. Operating Budget'!$B35*4.3+'2. Operating Budget'!$C35+'2. Operating Budget'!$E35*W$7) -> 126.275 | X41: =IF('2. Operating Budget'!$D35>0,$C41/12,'2. Operating Budget'!$B35*4.3+'2. Operating Budget'!$C35+'2. Operating Budget'!$E35*X$7) -> 126.275 | Y41: =IF('2. Operating Budget'!$D35>0,$C41/12,'2. Operating Budget'!$B35*4.3+'2. Operating Budget'!$C35+'2. Operating Budget'!$E35*Y$7) -> 126.275 | Z41: =IF('2. Operating Budget'!$D35>0,$C41/12,'2. Operating Budget'!$B35*4.3+'2. Operating Budget'!$C35+'2. Operating Budget'!$E35*Z$7) -> 126.275 | AA41: =IF('2. Operating Budget'!$D35>0,$C41/12,'2. Operating Budget'!$B35*4.3+'2. Operating Budget'!$C35+'2. Operating Budget'!$E35*AA$7) -> 126.275 | AB41: =IF('2. Operating Budget'!$D35>0,$C41/12,'2. Operating Budget'!$B35*4.3+'2. Operating Budget'!$C35+'2. Operating Budget'!$E35*AB$7) -> 126.275 | AC41: 1515.3 | AD41: =IF('2. Operating Budget'!$E35>0,'2. Operating Budget'!$E35*'8. P&L and Cashflow'!AD$7,'2. Operating Budget'!$K35) -> 1716.855 | AE41: =IF('2. Operating Budget'!$E35>0,'2. Operating Budget'!$E35*'8. P&L and Cashflow'!AE$7,'2. Operating Budget'!$K35) -> 1946.06925 | AF41: =IF('2. Operating Budget'!$E35>0,'2. Operating Budget'!$E35*'8. P&L and Cashflow'!AF$7,'2. Operating Budget'!$K35) -> 2206.834237
B42: =IF('2. Operating Budget'!A36="","",'2. Operating Budget'!A36) ->  | C42: ='2. Operating Budget'!K36 -> 0 | D42: =IF('2. Operating Budget'!$D36>0,$C42/12,'2. Operating Budget'!$B36*4.3+'2. Operating Budget'!$C36+'2. Operating Budget'!$E36*D$7) -> 0 | E42: =IF('2. Operating Budget'!$D36>0,$C42/12,'2. Operating Budget'!$B36*4.3+'2. Operating Budget'!$C36+'2. Operating Budget'!$E36*E$7) -> 0 | F42: =IF('2. Operating Budget'!$D36>0,$C42/12,'2. Operating Budget'!$B36*4.3+'2. Operating Budget'!$C36+'2. Operating Budget'!$E36*F$7) -> 0 | G42: =IF('2. Operating Budget'!$D36>0,$C42/12,'2. Operating Budget'!$B36*4.3+'2. Operating Budget'!$C36+'2. Operating Budget'!$E36*G$7) -> 0 | H42: =IF('2. Operating Budget'!$D36>0,$C42/12,'2. Operating Budget'!$B36*4.3+'2. Operating Budget'!$C36+'2. Operating Budget'!$E36*H$7) -> 0 | I42: =IF('2. Operating Budget'!$D36>0,$C42/12,'2. Operating Budget'!$B36*4.3+'2. Operating Budget'!$C36+'2. Operating Budget'!$E36*I$7) -> 0 | J42: =IF('2. Operating Budget'!$D36>0,$C42/12,'2. Operating Budget'!$B36*4.3+'2. Operating Budget'!$C36+'2. Operating Budget'!$E36*J$7) -> 0 | K42: =IF('2. Operating Budget'!$D36>0,$C42/12,'2. Operating Budget'!$B36*4.3+'2. Operating Budget'!$C36+'2. Operating Budget'!$E36*K$7) -> 0 | L42: =IF('2. Operating Budget'!$D36>0,$C42/12,'2. Operating Budget'!$B36*4.3+'2. Operating Budget'!$C36+'2. Operating Budget'!$E36*L$7) -> 0 | M42: =IF('2. Operating Budget'!$D36>0,$C42/12,'2. Operating Budget'!$B36*4.3+'2. Operating Budget'!$C36+'2. Operating Budget'!$E36*M$7) -> 0 | N42: =IF('2. Operating Budget'!$D36>0,$C42/12,'2. Operating Budget'!$B36*4.3+'2. Operating Budget'!$C36+'2. Operating Budget'!$E36*N$7) -> 0 | O42: =IF('2. Operating Budget'!$D36>0,$C42/12,'2. Operating Budget'!$B36*4.3+'2. Operating Budget'!$C36+'2. Operating Budget'!$E36*O$7) -> 0 | P42: 0 | Q42: =IF('2. Operating Budget'!$D36>0,$C42/12,'2. Operating Budget'!$B36*4.3+'2. Operating Budget'!$C36+'2. Operating Budget'!$E36*Q$7) -> 0 | R42: =IF('2. Operating Budget'!$D36>0,$C42/12,'2. Operating Budget'!$B36*4.3+'2. Operating Budget'!$C36+'2. Operating Budget'!$E36*R$7) -> 0 | S42: =IF('2. Operating Budget'!$D36>0,$C42/12,'2. Operating Budget'!$B36*4.3+'2. Operating Budget'!$C36+'2. Operating Budget'!$E36*S$7) -> 0 | T42: =IF('2. Operating Budget'!$D36>0,$C42/12,'2. Operating Budget'!$B36*4.3+'2. Operating Budget'!$C36+'2. Operating Budget'!$E36*T$7) -> 0 | U42: =IF('2. Operating Budget'!$D36>0,$C42/12,'2. Operating Budget'!$B36*4.3+'2. Operating Budget'!$C36+'2. Operating Budget'!$E36*U$7) -> 0 | V42: =IF('2. Operating Budget'!$D36>0,$C42/12,'2. Operating Budget'!$B36*4.3+'2. Operating Budget'!$C36+'2. Operating Budget'!$E36*V$7) -> 0 | W42: =IF('2. Operating Budget'!$D36>0,$C42/12,'2. Operating Budget'!$B36*4.3+'2. Operating Budget'!$C36+'2. Operating Budget'!$E36*W$7) -> 0 | X42: =IF('2. Operating Budget'!$D36>0,$C42/12,'2. Operating Budget'!$B36*4.3+'2. Operating Budget'!$C36+'2. Operating Budget'!$E36*X$7) -> 0 | Y42: =IF('2. Operating Budget'!$D36>0,$C42/12,'2. Operating Budget'!$B36*4.3+'2. Operating Budget'!$C36+'2. Operating Budget'!$E36*Y$7) -> 0 | Z42: =IF('2. Operating Budget'!$D36>0,$C42/12,'2. Operating Budget'!$B36*4.3+'2. Operating Budget'!$C36+'2. Operating Budget'!$E36*Z$7) -> 0 | AA42: =IF('2. Operating Budget'!$D36>0,$C42/12,'2. Operating Budget'!$B36*4.3+'2. Operating Budget'!$C36+'2. Operating Budget'!$E36*AA$7) -> 0 | AB42: =IF('2. Operating Budget'!$D36>0,$C42/12,'2. Operating Budget'!$B36*4.3+'2. Operating Budget'!$C36+'2. Operating Budget'!$E36*AB$7) -> 0 | AC42: 0 | AD42: =IF('2. Operating Budget'!$E36>0,'2. Operating Budget'!$E36*'8. P&L and Cashflow'!AD$7,'2. Operating Budget'!$K36) -> 0 | AE42: =IF('2. Operating Budget'!$E36>0,'2. Operating Budget'!$E36*'8. P&L and Cashflow'!AE$7,'2. Operating Budget'!$K36) -> 0 | AF42: =IF('2. Operating Budget'!$E36>0,'2. Operating Budget'!$E36*'8. P&L and Cashflow'!AF$7,'2. Operating Budget'!$K36) -> 0
B43: =IF('2. Operating Budget'!A37="","",'2. Operating Budget'!A37) -> Banking Fees | C43: ='2. Operating Budget'!K37 -> 85 | D43: =IF('2. Operating Budget'!$D37>0,$C43/12,'2. Operating Budget'!$B37*4.3+'2. Operating Budget'!$C37+'2. Operating Budget'!$E37*D$7) -> 7.083333333 | E43: =IF('2. Operating Budget'!$D37>0,$C43/12,'2. Operating Budget'!$B37*4.3+'2. Operating Budget'!$C37+'2. Operating Budget'!$E37*E$7) -> 7.083333333 | F43: =IF('2. Operating Budget'!$D37>0,$C43/12,'2. Operating Budget'!$B37*4.3+'2. Operating Budget'!$C37+'2. Operating Budget'!$E37*F$7) -> 7.083333333 | G43: =IF('2. Operating Budget'!$D37>0,$C43/12,'2. Operating Budget'!$B37*4.3+'2. Operating Budget'!$C37+'2. Operating Budget'!$E37*G$7) -> 7.083333333 | H43: =IF('2. Operating Budget'!$D37>0,$C43/12,'2. Operating Budget'!$B37*4.3+'2. Operating Budget'!$C37+'2. Operating Budget'!$E37*H$7) -> 7.083333333 | I43: =IF('2. Operating Budget'!$D37>0,$C43/12,'2. Operating Budget'!$B37*4.3+'2. Operating Budget'!$C37+'2. Operating Budget'!$E37*I$7) -> 7.083333333 | J43: =IF('2. Operating Budget'!$D37>0,$C43/12,'2. Operating Budget'!$B37*4.3+'2. Operating Budget'!$C37+'2. Operating Budget'!$E37*J$7) -> 7.083333333 | K43: =IF('2. Operating Budget'!$D37>0,$C43/12,'2. Operating Budget'!$B37*4.3+'2. Operating Budget'!$C37+'2. Operating Budget'!$E37*K$7) -> 7.083333333 | L43: =IF('2. Operating Budget'!$D37>0,$C43/12,'2. Operating Budget'!$B37*4.3+'2. Operating Budget'!$C37+'2. Operating Budget'!$E37*L$7) -> 7.083333333 | M43: =IF('2. Operating Budget'!$D37>0,$C43/12,'2. Operating Budget'!$B37*4.3+'2. Operating Budget'!$C37+'2. Operating Budget'!$E37*M$7) -> 7.083333333 | N43: =IF('2. Operating Budget'!$D37>0,$C43/12,'2. Operating Budget'!$B37*4.3+'2. Operating Budget'!$C37+'2. Operating Budget'!$E37*N$7) -> 7.083333333 | O43: =IF('2. Operating Budget'!$D37>0,$C43/12,'2. Operating Budget'!$B37*4.3+'2. Operating Budget'!$C37+'2. Operating Budget'!$E37*O$7) -> 7.083333333 | P43: 85 | Q43: =IF('2. Operating Budget'!$D37>0,$C43/12,'2. Operating Budget'!$B37*4.3+'2. Operating Budget'!$C37+'2. Operating Budget'!$E37*Q$7) -> 7.083333333 | R43: =IF('2. Operating Budget'!$D37>0,$C43/12,'2. Operating Budget'!$B37*4.3+'2. Operating Budget'!$C37+'2. Operating Budget'!$E37*R$7) -> 7.083333333 | S43: =IF('2. Operating Budget'!$D37>0,$C43/12,'2. Operating Budget'!$B37*4.3+'2. Operating Budget'!$C37+'2. Operating Budget'!$E37*S$7) -> 7.083333333 | T43: =IF('2. Operating Budget'!$D37>0,$C43/12,'2. Operating Budget'!$B37*4.3+'2. Operating Budget'!$C37+'2. Operating Budget'!$E37*T$7) -> 7.083333333 | U43: =IF('2. Operating Budget'!$D37>0,$C43/12,'2. Operating Budget'!$B37*4.3+'2. Operating Budget'!$C37+'2. Operating Budget'!$E37*U$7) -> 7.083333333 | V43: =IF('2. Operating Budget'!$D37>0,$C43/12,'2. Operating Budget'!$B37*4.3+'2. Operating Budget'!$C37+'2. Operating Budget'!$E37*V$7) -> 7.083333333 | W43: =IF('2. Operating Budget'!$D37>0,$C43/12,'2. Operating Budget'!$B37*4.3+'2. Operating Budget'!$C37+'2. Operating Budget'!$E37*W$7) -> 7.083333333 | X43: =IF('2. Operating Budget'!$D37>0,$C43/12,'2. Operating Budget'!$B37*4.3+'2. Operating Budget'!$C37+'2. Operating Budget'!$E37*X$7) -> 7.083333333 | Y43: =IF('2. Operating Budget'!$D37>0,$C43/12,'2. Operating Budget'!$B37*4.3+'2. Operating Budget'!$C37+'2. Operating Budget'!$E37*Y$7) -> 7.083333333 | Z43: =IF('2. Operating Budget'!$D37>0,$C43/12,'2. Operating Budget'!$B37*4.3+'2. Operating Budget'!$C37+'2. Operating Budget'!$E37*Z$7) -> 7.083333333 | AA43: =IF('2. Operating Budget'!$D37>0,$C43/12,'2. Operating Budget'!$B37*4.3+'2. Operating Budget'!$C37+'2. Operating Budget'!$E37*AA$7) -> 7.083333333 | AB43: =IF('2. Operating Budget'!$D37>0,$C43/12,'2. Operating Budget'!$B37*4.3+'2. Operating Budget'!$C37+'2. Operating Budget'!$E37*AB$7) -> 7.083333333 | AC43: 85 | AD43: =IF('2. Operating Budget'!$E37>0,'2. Operating Budget'!$E37*'8. P&L and Cashflow'!AD$7,'2. Operating Budget'!$K37) -> 85 | AE43: =IF('2. Operating Budget'!$E37>0,'2. Operating Budget'!$E37*'8. P&L and Cashflow'!AE$7,'2. Operating Budget'!$K37) -> 85 | AF43: =IF('2. Operating Budget'!$E37>0,'2. Operating Budget'!$E37*'8. P&L and Cashflow'!AF$7,'2. Operating Budget'!$K37) -> 85
B44: =IF('2. Operating Budget'!A38="","",'2. Operating Budget'!A38) -> Merchant Account Fees | C44: ='2. Operating Budget'!K38 -> 8975.75 | D44: =IF('2. Operating Budget'!$D38>0,$C44/12,'2. Operating Budget'!$B38*4.3+'2. Operating Budget'!$C38+'2. Operating Budget'!$E38*D$7) -> 390.25 | E44: =IF('2. Operating Budget'!$D38>0,$C44/12,'2. Operating Budget'!$B38*4.3+'2. Operating Budget'!$C38+'2. Operating Budget'!$E38*E$7) -> 780.5 | F44: =IF('2. Operating Budget'!$D38>0,$C44/12,'2. Operating Budget'!$B38*4.3+'2. Operating Budget'!$C38+'2. Operating Budget'!$E38*F$7) -> 780.5 | G44: =IF('2. Operating Budget'!$D38>0,$C44/12,'2. Operating Budget'!$B38*4.3+'2. Operating Budget'!$C38+'2. Operating Budget'!$E38*G$7) -> 780.5 | H44: =IF('2. Operating Budget'!$D38>0,$C44/12,'2. Operating Budget'!$B38*4.3+'2. Operating Budget'!$C38+'2. Operating Budget'!$E38*H$7) -> 780.5 | I44: =IF('2. Operating Budget'!$D38>0,$C44/12,'2. Operating Budget'!$B38*4.3+'2. Operating Budget'!$C38+'2. Operating Budget'!$E38*I$7) -> 780.5 | J44: =IF('2. Operating Budget'!$D38>0,$C44/12,'2. Operating Budget'!$B38*4.3+'2. Operating Budget'!$C38+'2. Operating Budget'!$E38*J$7) -> 780.5 | K44: =IF('2. Operating Budget'!$D38>0,$C44/12,'2. Operating Budget'!$B38*4.3+'2. Operating Budget'!$C38+'2. Operating Budget'!$E38*K$7) -> 780.5 | L44: =IF('2. Operating Budget'!$D38>0,$C44/12,'2. Operating Budget'!$B38*4.3+'2. Operating Budget'!$C38+'2. Operating Budget'!$E38*L$7) -> 780.5 | M44: =IF('2. Operating Budget'!$D38>0,$C44/12,'2. Operating Budget'!$B38*4.3+'2. Operating Budget'!$C38+'2. Operating Budget'!$E38*M$7) -> 780.5 | N44: =IF('2. Operating Budget'!$D38>0,$C44/12,'2. Operating Budget'!$B38*4.3+'2. Operating Budget'!$C38+'2. Operating Budget'!$E38*N$7) -> 780.5 | O44: =IF('2. Operating Budget'!$D38>0,$C44/12,'2. Operating Budget'!$B38*4.3+'2. Operating Budget'!$C38+'2. Operating Budget'!$E38*O$7) -> 780.5 | P44: 8975.75 | Q44: =IF('2. Operating Budget'!$D38>0,$C44/12,'2. Operating Budget'!$B38*4.3+'2. Operating Budget'!$C38+'2. Operating Budget'!$E38*Q$7) -> 883.925 | R44: =IF('2. Operating Budget'!$D38>0,$C44/12,'2. Operating Budget'!$B38*4.3+'2. Operating Budget'!$C38+'2. Operating Budget'!$E38*R$7) -> 883.925 | S44: =IF('2. Operating Budget'!$D38>0,$C44/12,'2. Operating Budget'!$B38*4.3+'2. Operating Budget'!$C38+'2. Operating Budget'!$E38*S$7) -> 883.925 | T44: =IF('2. Operating Budget'!$D38>0,$C44/12,'2. Operating Budget'!$B38*4.3+'2. Operating Budget'!$C38+'2. Operating Budget'!$E38*T$7) -> 883.925 | U44: =IF('2. Operating Budget'!$D38>0,$C44/12,'2. Operating Budget'!$B38*4.3+'2. Operating Budget'!$C38+'2. Operating Budget'!$E38*U$7) -> 883.925 | V44: =IF('2. Operating Budget'!$D38>0,$C44/12,'2. Operating Budget'!$B38*4.3+'2. Operating Budget'!$C38+'2. Operating Budget'!$E38*V$7) -> 883.925 | W44: =IF('2. Operating Budget'!$D38>0,$C44/12,'2. Operating Budget'!$B38*4.3+'2. Operating Budget'!$C38+'2. Operating Budget'!$E38*W$7) -> 883.925 | X44: =IF('2. Operating Budget'!$D38>0,$C44/12,'2. Operating Budget'!$B38*4.3+'2. Operating Budget'!$C38+'2. Operating Budget'!$E38*X$7) -> 883.925 | Y44: =IF('2. Operating Budget'!$D38>0,$C44/12,'2. Operating Budget'!$B38*4.3+'2. Operating Budget'!$C38+'2. Operating Budget'!$E38*Y$7) -> 883.925 | Z44: =IF('2. Operating Budget'!$D38>0,$C44/12,'2. Operating Budget'!$B38*4.3+'2. Operating Budget'!$C38+'2. Operating Budget'!$E38*Z$7) -> 883.925 | AA44: =IF('2. Operating Budget'!$D38>0,$C44/12,'2. Operating Budget'!$B38*4.3+'2. Operating Budget'!$C38+'2. Operating Budget'!$E38*AA$7) -> 883.925 | AB44: =IF('2. Operating Budget'!$D38>0,$C44/12,'2. Operating Budget'!$B38*4.3+'2. Operating Budget'!$C38+'2. Operating Budget'!$E38*AB$7) -> 883.925 | AC44: 10607.1 | AD44: =IF('2. Operating Budget'!$E38>0,'2. Operating Budget'!$E38*'8. P&L and Cashflow'!AD$7,'2. Operating Budget'!$K38) -> 12017.985 | AE44: =IF('2. Operating Budget'!$E38>0,'2. Operating Budget'!$E38*'8. P&L and Cashflow'!AE$7,'2. Operating Budget'!$K38) -> 13622.48475 | AF44: =IF('2. Operating Budget'!$E38>0,'2. Operating Budget'!$E38*'8. P&L and Cashflow'!AF$7,'2. Operating Budget'!$K38) -> 15447.83966
B45: =IF('2. Operating Budget'!A39="","",'2. Operating Budget'!A39) ->  | C45: ='2. Operating Budget'!K39 -> 0 | D45: =IF('2. Operating Budget'!$D39>0,$C45/12,'2. Operating Budget'!$B39*4.3+'2. Operating Budget'!$C39+'2. Operating Budget'!$E39*D$7) -> 0 | E45: =IF('2. Operating Budget'!$D39>0,$C45/12,'2. Operating Budget'!$B39*4.3+'2. Operating Budget'!$C39+'2. Operating Budget'!$E39*E$7) -> 0 | F45: =IF('2. Operating Budget'!$D39>0,$C45/12,'2. Operating Budget'!$B39*4.3+'2. Operating Budget'!$C39+'2. Operating Budget'!$E39*F$7) -> 0 | G45: =IF('2. Operating Budget'!$D39>0,$C45/12,'2. Operating Budget'!$B39*4.3+'2. Operating Budget'!$C39+'2. Operating Budget'!$E39*G$7) -> 0 | H45: =IF('2. Operating Budget'!$D39>0,$C45/12,'2. Operating Budget'!$B39*4.3+'2. Operating Budget'!$C39+'2. Operating Budget'!$E39*H$7) -> 0 | I45: =IF('2. Operating Budget'!$D39>0,$C45/12,'2. Operating Budget'!$B39*4.3+'2. Operating Budget'!$C39+'2. Operating Budget'!$E39*I$7) -> 0 | J45: =IF('2. Operating Budget'!$D39>0,$C45/12,'2. Operating Budget'!$B39*4.3+'2. Operating Budget'!$C39+'2. Operating Budget'!$E39*J$7) -> 0 | K45: =IF('2. Operating Budget'!$D39>0,$C45/12,'2. Operating Budget'!$B39*4.3+'2. Operating Budget'!$C39+'2. Operating Budget'!$E39*K$7) -> 0 | L45: =IF('2. Operating Budget'!$D39>0,$C45/12,'2. Operating Budget'!$B39*4.3+'2. Operating Budget'!$C39+'2. Operating Budget'!$E39*L$7) -> 0 | M45: =IF('2. Operating Budget'!$D39>0,$C45/12,'2. Operating Budget'!$B39*4.3+'2. Operating Budget'!$C39+'2. Operating Budget'!$E39*M$7) -> 0 | N45: =IF('2. Operating Budget'!$D39>0,$C45/12,'2. Operating Budget'!$B39*4.3+'2. Operating Budget'!$C39+'2. Operating Budget'!$E39*N$7) -> 0 | O45: =IF('2. Operating Budget'!$D39>0,$C45/12,'2. Operating Budget'!$B39*4.3+'2. Operating Budget'!$C39+'2. Operating Budget'!$E39*O$7) -> 0 | P45: 0 | Q45: =IF('2. Operating Budget'!$D39>0,$C45/12,'2. Operating Budget'!$B39*4.3+'2. Operating Budget'!$C39+'2. Operating Budget'!$E39*Q$7) -> 0 | R45: =IF('2. Operating Budget'!$D39>0,$C45/12,'2. Operating Budget'!$B39*4.3+'2. Operating Budget'!$C39+'2. Operating Budget'!$E39*R$7) -> 0 | S45: =IF('2. Operating Budget'!$D39>0,$C45/12,'2. Operating Budget'!$B39*4.3+'2. Operating Budget'!$C39+'2. Operating Budget'!$E39*S$7) -> 0 | T45: =IF('2. Operating Budget'!$D39>0,$C45/12,'2. Operating Budget'!$B39*4.3+'2. Operating Budget'!$C39+'2. Operating Budget'!$E39*T$7) -> 0 | U45: =IF('2. Operating Budget'!$D39>0,$C45/12,'2. Operating Budget'!$B39*4.3+'2. Operating Budget'!$C39+'2. Operating Budget'!$E39*U$7) -> 0 | V45: =IF('2. Operating Budget'!$D39>0,$C45/12,'2. Operating Budget'!$B39*4.3+'2. Operating Budget'!$C39+'2. Operating Budget'!$E39*V$7) -> 0 | W45: =IF('2. Operating Budget'!$D39>0,$C45/12,'2. Operating Budget'!$B39*4.3+'2. Operating Budget'!$C39+'2. Operating Budget'!$E39*W$7) -> 0 | X45: =IF('2. Operating Budget'!$D39>0,$C45/12,'2. Operating Budget'!$B39*4.3+'2. Operating Budget'!$C39+'2. Operating Budget'!$E39*X$7) -> 0 | Y45: =IF('2. Operating Budget'!$D39>0,$C45/12,'2. Operating Budget'!$B39*4.3+'2. Operating Budget'!$C39+'2. Operating Budget'!$E39*Y$7) -> 0 | Z45: =IF('2. Operating Budget'!$D39>0,$C45/12,'2. Operating Budget'!$B39*4.3+'2. Operating Budget'!$C39+'2. Operating Budget'!$E39*Z$7) -> 0 | AA45: =IF('2. Operating Budget'!$D39>0,$C45/12,'2. Operating Budget'!$B39*4.3+'2. Operating Budget'!$C39+'2. Operating Budget'!$E39*AA$7) -> 0 | AB45: =IF('2. Operating Budget'!$D39>0,$C45/12,'2. Operating Budget'!$B39*4.3+'2. Operating Budget'!$C39+'2. Operating Budget'!$E39*AB$7) -> 0 | AC45: 0 | AD45: =IF('2. Operating Budget'!$E39>0,'2. Operating Budget'!$E39*'8. P&L and Cashflow'!AD$7,'2. Operating Budget'!$K39) -> 0 | AE45: =IF('2. Operating Budget'!$E39>0,'2. Operating Budget'!$E39*'8. P&L and Cashflow'!AE$7,'2. Operating Budget'!$K39) -> 0 | AF45: =IF('2. Operating Budget'!$E39>0,'2. Operating Budget'!$E39*'8. P&L and Cashflow'!AF$7,'2. Operating Budget'!$K39) -> 0
B46: =IF('2. Operating Budget'!A40="","",'2. Operating Budget'!A40) ->  | C46: ='2. Operating Budget'!K40 -> 0 | D46: =IF('2. Operating Budget'!$D40>0,$C46/12,'2. Operating Budget'!$B40*4.3+'2. Operating Budget'!$C40+'2. Operating Budget'!$E40*D$7) -> 0 | E46: =IF('2. Operating Budget'!$D40>0,$C46/12,'2. Operating Budget'!$B40*4.3+'2. Operating Budget'!$C40+'2. Operating Budget'!$E40*E$7) -> 0 | F46: =IF('2. Operating Budget'!$D40>0,$C46/12,'2. Operating Budget'!$B40*4.3+'2. Operating Budget'!$C40+'2. Operating Budget'!$E40*F$7) -> 0 | G46: =IF('2. Operating Budget'!$D40>0,$C46/12,'2. Operating Budget'!$B40*4.3+'2. Operating Budget'!$C40+'2. Operating Budget'!$E40*G$7) -> 0 | H46: =IF('2. Operating Budget'!$D40>0,$C46/12,'2. Operating Budget'!$B40*4.3+'2. Operating Budget'!$C40+'2. Operating Budget'!$E40*H$7) -> 0 | I46: =IF('2. Operating Budget'!$D40>0,$C46/12,'2. Operating Budget'!$B40*4.3+'2. Operating Budget'!$C40+'2. Operating Budget'!$E40*I$7) -> 0 | J46: =IF('2. Operating Budget'!$D40>0,$C46/12,'2. Operating Budget'!$B40*4.3+'2. Operating Budget'!$C40+'2. Operating Budget'!$E40*J$7) -> 0 | K46: =IF('2. Operating Budget'!$D40>0,$C46/12,'2. Operating Budget'!$B40*4.3+'2. Operating Budget'!$C40+'2. Operating Budget'!$E40*K$7) -> 0 | L46: =IF('2. Operating Budget'!$D40>0,$C46/12,'2. Operating Budget'!$B40*4.3+'2. Operating Budget'!$C40+'2. Operating Budget'!$E40*L$7) -> 0 | M46: =IF('2. Operating Budget'!$D40>0,$C46/12,'2. Operating Budget'!$B40*4.3+'2. Operating Budget'!$C40+'2. Operating Budget'!$E40*M$7) -> 0 | N46: =IF('2. Operating Budget'!$D40>0,$C46/12,'2. Operating Budget'!$B40*4.3+'2. Operating Budget'!$C40+'2. Operating Budget'!$E40*N$7) -> 0 | O46: =IF('2. Operating Budget'!$D40>0,$C46/12,'2. Operating Budget'!$B40*4.3+'2. Operating Budget'!$C40+'2. Operating Budget'!$E40*O$7) -> 0 | P46: 0 | Q46: =IF('2. Operating Budget'!$D40>0,$C46/12,'2. Operating Budget'!$B40*4.3+'2. Operating Budget'!$C40+'2. Operating Budget'!$E40*Q$7) -> 0 | R46: =IF('2. Operating Budget'!$D40>0,$C46/12,'2. Operating Budget'!$B40*4.3+'2. Operating Budget'!$C40+'2. Operating Budget'!$E40*R$7) -> 0 | S46: =IF('2. Operating Budget'!$D40>0,$C46/12,'2. Operating Budget'!$B40*4.3+'2. Operating Budget'!$C40+'2. Operating Budget'!$E40*S$7) -> 0 | T46: =IF('2. Operating Budget'!$D40>0,$C46/12,'2. Operating Budget'!$B40*4.3+'2. Operating Budget'!$C40+'2. Operating Budget'!$E40*T$7) -> 0 | U46: =IF('2. Operating Budget'!$D40>0,$C46/12,'2. Operating Budget'!$B40*4.3+'2. Operating Budget'!$C40+'2. Operating Budget'!$E40*U$7) -> 0 | V46: =IF('2. Operating Budget'!$D40>0,$C46/12,'2. Operating Budget'!$B40*4.3+'2. Operating Budget'!$C40+'2. Operating Budget'!$E40*V$7) -> 0 | W46: =IF('2. Operating Budget'!$D40>0,$C46/12,'2. Operating Budget'!$B40*4.3+'2. Operating Budget'!$C40+'2. Operating Budget'!$E40*W$7) -> 0 | X46: =IF('2. Operating Budget'!$D40>0,$C46/12,'2. Operating Budget'!$B40*4.3+'2. Operating Budget'!$C40+'2. Operating Budget'!$E40*X$7) -> 0 | Y46: =IF('2. Operating Budget'!$D40>0,$C46/12,'2. Operating Budget'!$B40*4.3+'2. Operating Budget'!$C40+'2. Operating Budget'!$E40*Y$7) -> 0 | Z46: =IF('2. Operating Budget'!$D40>0,$C46/12,'2. Operating Budget'!$B40*4.3+'2. Operating Budget'!$C40+'2. Operating Budget'!$E40*Z$7) -> 0 | AA46: =IF('2. Operating Budget'!$D40>0,$C46/12,'2. Operating Budget'!$B40*4.3+'2. Operating Budget'!$C40+'2. Operating Budget'!$E40*AA$7) -> 0 | AB46: =IF('2. Operating Budget'!$D40>0,$C46/12,'2. Operating Budget'!$B40*4.3+'2. Operating Budget'!$C40+'2. Operating Budget'!$E40*AB$7) -> 0 | AC46: 0 | AD46: =IF('2. Operating Budget'!$E40>0,'2. Operating Budget'!$E40*'8. P&L and Cashflow'!AD$7,'2. Operating Budget'!$K40) -> 0 | AE46: =IF('2. Operating Budget'!$E40>0,'2. Operating Budget'!$E40*'8. P&L and Cashflow'!AE$7,'2. Operating Budget'!$K40) -> 0 | AF46: =IF('2. Operating Budget'!$E40>0,'2. Operating Budget'!$E40*'8. P&L and Cashflow'!AF$7,'2. Operating Budget'!$K40) -> 0
B47: =IF('2. Operating Budget'!A41="","",'2. Operating Budget'!A41) ->  | C47: ='2. Operating Budget'!K41 -> 0 | D47: =IF('2. Operating Budget'!$D41>0,$C47/12,'2. Operating Budget'!$B41*4.3+'2. Operating Budget'!$C41+'2. Operating Budget'!$E41*D$7) -> 0 | E47: =IF('2. Operating Budget'!$D41>0,$C47/12,'2. Operating Budget'!$B41*4.3+'2. Operating Budget'!$C41+'2. Operating Budget'!$E41*E$7) -> 0 | F47: =IF('2. Operating Budget'!$D41>0,$C47/12,'2. Operating Budget'!$B41*4.3+'2. Operating Budget'!$C41+'2. Operating Budget'!$E41*F$7) -> 0 | G47: =IF('2. Operating Budget'!$D41>0,$C47/12,'2. Operating Budget'!$B41*4.3+'2. Operating Budget'!$C41+'2. Operating Budget'!$E41*G$7) -> 0 | H47: =IF('2. Operating Budget'!$D41>0,$C47/12,'2. Operating Budget'!$B41*4.3+'2. Operating Budget'!$C41+'2. Operating Budget'!$E41*H$7) -> 0 | I47: =IF('2. Operating Budget'!$D41>0,$C47/12,'2. Operating Budget'!$B41*4.3+'2. Operating Budget'!$C41+'2. Operating Budget'!$E41*I$7) -> 0 | J47: =IF('2. Operating Budget'!$D41>0,$C47/12,'2. Operating Budget'!$B41*4.3+'2. Operating Budget'!$C41+'2. Operating Budget'!$E41*J$7) -> 0 | K47: =IF('2. Operating Budget'!$D41>0,$C47/12,'2. Operating Budget'!$B41*4.3+'2. Operating Budget'!$C41+'2. Operating Budget'!$E41*K$7) -> 0 | L47: =IF('2. Operating Budget'!$D41>0,$C47/12,'2. Operating Budget'!$B41*4.3+'2. Operating Budget'!$C41+'2. Operating Budget'!$E41*L$7) -> 0 | M47: =IF('2. Operating Budget'!$D41>0,$C47/12,'2. Operating Budget'!$B41*4.3+'2. Operating Budget'!$C41+'2. Operating Budget'!$E41*M$7) -> 0 | N47: =IF('2. Operating Budget'!$D41>0,$C47/12,'2. Operating Budget'!$B41*4.3+'2. Operating Budget'!$C41+'2. Operating Budget'!$E41*N$7) -> 0 | O47: =IF('2. Operating Budget'!$D41>0,$C47/12,'2. Operating Budget'!$B41*4.3+'2. Operating Budget'!$C41+'2. Operating Budget'!$E41*O$7) -> 0 | P47: 0 | Q47: =IF('2. Operating Budget'!$D41>0,$C47/12,'2. Operating Budget'!$B41*4.3+'2. Operating Budget'!$C41+'2. Operating Budget'!$E41*Q$7) -> 0 | R47: =IF('2. Operating Budget'!$D41>0,$C47/12,'2. Operating Budget'!$B41*4.3+'2. Operating Budget'!$C41+'2. Operating Budget'!$E41*R$7) -> 0 | S47: =IF('2. Operating Budget'!$D41>0,$C47/12,'2. Operating Budget'!$B41*4.3+'2. Operating Budget'!$C41+'2. Operating Budget'!$E41*S$7) -> 0 | T47: =IF('2. Operating Budget'!$D41>0,$C47/12,'2. Operating Budget'!$B41*4.3+'2. Operating Budget'!$C41+'2. Operating Budget'!$E41*T$7) -> 0 | U47: =IF('2. Operating Budget'!$D41>0,$C47/12,'2. Operating Budget'!$B41*4.3+'2. Operating Budget'!$C41+'2. Operating Budget'!$E41*U$7) -> 0 | V47: =IF('2. Operating Budget'!$D41>0,$C47/12,'2. Operating Budget'!$B41*4.3+'2. Operating Budget'!$C41+'2. Operating Budget'!$E41*V$7) -> 0 | W47: =IF('2. Operating Budget'!$D41>0,$C47/12,'2. Operating Budget'!$B41*4.3+'2. Operating Budget'!$C41+'2. Operating Budget'!$E41*W$7) -> 0 | X47: =IF('2. Operating Budget'!$D41>0,$C47/12,'2. Operating Budget'!$B41*4.3+'2. Operating Budget'!$C41+'2. Operating Budget'!$E41*X$7) -> 0 | Y47: =IF('2. Operating Budget'!$D41>0,$C47/12,'2. Operating Budget'!$B41*4.3+'2. Operating Budget'!$C41+'2. Operating Budget'!$E41*Y$7) -> 0 | Z47: =IF('2. Operating Budget'!$D41>0,$C47/12,'2. Operating Budget'!$B41*4.3+'2. Operating Budget'!$C41+'2. Operating Budget'!$E41*Z$7) -> 0 | AA47: =IF('2. Operating Budget'!$D41>0,$C47/12,'2. Operating Budget'!$B41*4.3+'2. Operating Budget'!$C41+'2. Operating Budget'!$E41*AA$7) -> 0 | AB47: =IF('2. Operating Budget'!$D41>0,$C47/12,'2. Operating Budget'!$B41*4.3+'2. Operating Budget'!$C41+'2. Operating Budget'!$E41*AB$7) -> 0 | AC47: 0 | AD47: =IF('2. Operating Budget'!$E41>0,'2. Operating Budget'!$E41*'8. P&L and Cashflow'!AD$7,'2. Operating Budget'!$K41) -> 0 | AE47: =IF('2. Operating Budget'!$E41>0,'2. Operating Budget'!$E41*'8. P&L and Cashflow'!AE$7,'2. Operating Budget'!$K41) -> 0 | AF47: =IF('2. Operating Budget'!$E41>0,'2. Operating Budget'!$E41*'8. P&L and Cashflow'!AF$7,'2. Operating Budget'!$K41) -> 0
B48: =IF('2. Operating Budget'!A42="","",'2. Operating Budget'!A42) ->  | C48: ='2. Operating Budget'!K42 -> 0 | D48: =IF('2. Operating Budget'!$D42>0,$C48/12,'2. Operating Budget'!$B42*4.3+'2. Operating Budget'!$C42+'2. Operating Budget'!$E42*D$7) -> 0 | E48: =IF('2. Operating Budget'!$D42>0,$C48/12,'2. Operating Budget'!$B42*4.3+'2. Operating Budget'!$C42+'2. Operating Budget'!$E42*E$7) -> 0 | F48: =IF('2. Operating Budget'!$D42>0,$C48/12,'2. Operating Budget'!$B42*4.3+'2. Operating Budget'!$C42+'2. Operating Budget'!$E42*F$7) -> 0 | G48: =IF('2. Operating Budget'!$D42>0,$C48/12,'2. Operating Budget'!$B42*4.3+'2. Operating Budget'!$C42+'2. Operating Budget'!$E42*G$7) -> 0 | H48: =IF('2. Operating Budget'!$D42>0,$C48/12,'2. Operating Budget'!$B42*4.3+'2. Operating Budget'!$C42+'2. Operating Budget'!$E42*H$7) -> 0 | I48: =IF('2. Operating Budget'!$D42>0,$C48/12,'2. Operating Budget'!$B42*4.3+'2. Operating Budget'!$C42+'2. Operating Budget'!$E42*I$7) -> 0 | J48: =IF('2. Operating Budget'!$D42>0,$C48/12,'2. Operating Budget'!$B42*4.3+'2. Operating Budget'!$C42+'2. Operating Budget'!$E42*J$7) -> 0 | K48: =IF('2. Operating Budget'!$D42>0,$C48/12,'2. Operating Budget'!$B42*4.3+'2. Operating Budget'!$C42+'2. Operating Budget'!$E42*K$7) -> 0 | L48: =IF('2. Operating Budget'!$D42>0,$C48/12,'2. Operating Budget'!$B42*4.3+'2. Operating Budget'!$C42+'2. Operating Budget'!$E42*L$7) -> 0 | M48: =IF('2. Operating Budget'!$D42>0,$C48/12,'2. Operating Budget'!$B42*4.3+'2. Operating Budget'!$C42+'2. Operating Budget'!$E42*M$7) -> 0 | N48: =IF('2. Operating Budget'!$D42>0,$C48/12,'2. Operating Budget'!$B42*4.3+'2. Operating Budget'!$C42+'2. Operating Budget'!$E42*N$7) -> 0 | O48: =IF('2. Operating Budget'!$D42>0,$C48/12,'2. Operating Budget'!$B42*4.3+'2. Operating Budget'!$C42+'2. Operating Budget'!$E42*O$7) -> 0 | P48: 0 | Q48: =IF('2. Operating Budget'!$D42>0,$C48/12,'2. Operating Budget'!$B42*4.3+'2. Operating Budget'!$C42+'2. Operating Budget'!$E42*Q$7) -> 0 | R48: =IF('2. Operating Budget'!$D42>0,$C48/12,'2. Operating Budget'!$B42*4.3+'2. Operating Budget'!$C42+'2. Operating Budget'!$E42*R$7) -> 0 | S48: =IF('2. Operating Budget'!$D42>0,$C48/12,'2. Operating Budget'!$B42*4.3+'2. Operating Budget'!$C42+'2. Operating Budget'!$E42*S$7) -> 0 | T48: =IF('2. Operating Budget'!$D42>0,$C48/12,'2. Operating Budget'!$B42*4.3+'2. Operating Budget'!$C42+'2. Operating Budget'!$E42*T$7) -> 0 | U48: =IF('2. Operating Budget'!$D42>0,$C48/12,'2. Operating Budget'!$B42*4.3+'2. Operating Budget'!$C42+'2. Operating Budget'!$E42*U$7) -> 0 | V48: =IF('2. Operating Budget'!$D42>0,$C48/12,'2. Operating Budget'!$B42*4.3+'2. Operating Budget'!$C42+'2. Operating Budget'!$E42*V$7) -> 0 | W48: =IF('2. Operating Budget'!$D42>0,$C48/12,'2. Operating Budget'!$B42*4.3+'2. Operating Budget'!$C42+'2. Operating Budget'!$E42*W$7) -> 0 | X48: =IF('2. Operating Budget'!$D42>0,$C48/12,'2. Operating Budget'!$B42*4.3+'2. Operating Budget'!$C42+'2. Operating Budget'!$E42*X$7) -> 0 | Y48: =IF('2. Operating Budget'!$D42>0,$C48/12,'2. Operating Budget'!$B42*4.3+'2. Operating Budget'!$C42+'2. Operating Budget'!$E42*Y$7) -> 0 | Z48: =IF('2. Operating Budget'!$D42>0,$C48/12,'2. Operating Budget'!$B42*4.3+'2. Operating Budget'!$C42+'2. Operating Budget'!$E42*Z$7) -> 0 | AA48: =IF('2. Operating Budget'!$D42>0,$C48/12,'2. Operating Budget'!$B42*4.3+'2. Operating Budget'!$C42+'2. Operating Budget'!$E42*AA$7) -> 0 | AB48: =IF('2. Operating Budget'!$D42>0,$C48/12,'2. Operating Budget'!$B42*4.3+'2. Operating Budget'!$C42+'2. Operating Budget'!$E42*AB$7) -> 0 | AC48: 0 | AD48: =IF('2. Operating Budget'!$E42>0,'2. Operating Budget'!$E42*'8. P&L and Cashflow'!AD$7,'2. Operating Budget'!$K42) -> 0 | AE48: =IF('2. Operating Budget'!$E42>0,'2. Operating Budget'!$E42*'8. P&L and Cashflow'!AE$7,'2. Operating Budget'!$K42) -> 0 | AF48: =IF('2. Operating Budget'!$E42>0,'2. Operating Budget'!$E42*'8. P&L and Cashflow'!AF$7,'2. Operating Budget'!$K42) -> 0
B49: =IF('2. Operating Budget'!A43="","",'2. Operating Budget'!A43) ->  | C49: ='2. Operating Budget'!K43 -> 0 | D49: =IF('2. Operating Budget'!$D43>0,$C49/12,'2. Operating Budget'!$B43*4.3+'2. Operating Budget'!$C43+'2. Operating Budget'!$E43*D$7) -> 0 | E49: =IF('2. Operating Budget'!$D43>0,$C49/12,'2. Operating Budget'!$B43*4.3+'2. Operating Budget'!$C43+'2. Operating Budget'!$E43*E$7) -> 0 | F49: =IF('2. Operating Budget'!$D43>0,$C49/12,'2. Operating Budget'!$B43*4.3+'2. Operating Budget'!$C43+'2. Operating Budget'!$E43*F$7) -> 0 | G49: =IF('2. Operating Budget'!$D43>0,$C49/12,'2. Operating Budget'!$B43*4.3+'2. Operating Budget'!$C43+'2. Operating Budget'!$E43*G$7) -> 0 | H49: =IF('2. Operating Budget'!$D43>0,$C49/12,'2. Operating Budget'!$B43*4.3+'2. Operating Budget'!$C43+'2. Operating Budget'!$E43*H$7) -> 0 | I49: =IF('2. Operating Budget'!$D43>0,$C49/12,'2. Operating Budget'!$B43*4.3+'2. Operating Budget'!$C43+'2. Operating Budget'!$E43*I$7) -> 0 | J49: =IF('2. Operating Budget'!$D43>0,$C49/12,'2. Operating Budget'!$B43*4.3+'2. Operating Budget'!$C43+'2. Operating Budget'!$E43*J$7) -> 0 | K49: =IF('2. Operating Budget'!$D43>0,$C49/12,'2. Operating Budget'!$B43*4.3+'2. Operating Budget'!$C43+'2. Operating Budget'!$E43*K$7) -> 0 | L49: =IF('2. Operating Budget'!$D43>0,$C49/12,'2. Operating Budget'!$B43*4.3+'2. Operating Budget'!$C43+'2. Operating Budget'!$E43*L$7) -> 0 | M49: =IF('2. Operating Budget'!$D43>0,$C49/12,'2. Operating Budget'!$B43*4.3+'2. Operating Budget'!$C43+'2. Operating Budget'!$E43*M$7) -> 0 | N49: =IF('2. Operating Budget'!$D43>0,$C49/12,'2. Operating Budget'!$B43*4.3+'2. Operating Budget'!$C43+'2. Operating Budget'!$E43*N$7) -> 0 | O49: =IF('2. Operating Budget'!$D43>0,$C49/12,'2. Operating Budget'!$B43*4.3+'2. Operating Budget'!$C43+'2. Operating Budget'!$E43*O$7) -> 0 | P49: 0 | Q49: =IF('2. Operating Budget'!$D43>0,$C49/12,'2. Operating Budget'!$B43*4.3+'2. Operating Budget'!$C43+'2. Operating Budget'!$E43*Q$7) -> 0 | R49: =IF('2. Operating Budget'!$D43>0,$C49/12,'2. Operating Budget'!$B43*4.3+'2. Operating Budget'!$C43+'2. Operating Budget'!$E43*R$7) -> 0 | S49: =IF('2. Operating Budget'!$D43>0,$C49/12,'2. Operating Budget'!$B43*4.3+'2. Operating Budget'!$C43+'2. Operating Budget'!$E43*S$7) -> 0 | T49: =IF('2. Operating Budget'!$D43>0,$C49/12,'2. Operating Budget'!$B43*4.3+'2. Operating Budget'!$C43+'2. Operating Budget'!$E43*T$7) -> 0 | U49: =IF('2. Operating Budget'!$D43>0,$C49/12,'2. Operating Budget'!$B43*4.3+'2. Operating Budget'!$C43+'2. Operating Budget'!$E43*U$7) -> 0 | V49: =IF('2. Operating Budget'!$D43>0,$C49/12,'2. Operating Budget'!$B43*4.3+'2. Operating Budget'!$C43+'2. Operating Budget'!$E43*V$7) -> 0 | W49: =IF('2. Operating Budget'!$D43>0,$C49/12,'2. Operating Budget'!$B43*4.3+'2. Operating Budget'!$C43+'2. Operating Budget'!$E43*W$7) -> 0 | X49: =IF('2. Operating Budget'!$D43>0,$C49/12,'2. Operating Budget'!$B43*4.3+'2. Operating Budget'!$C43+'2. Operating Budget'!$E43*X$7) -> 0 | Y49: =IF('2. Operating Budget'!$D43>0,$C49/12,'2. Operating Budget'!$B43*4.3+'2. Operating Budget'!$C43+'2. Operating Budget'!$E43*Y$7) -> 0 | Z49: =IF('2. Operating Budget'!$D43>0,$C49/12,'2. Operating Budget'!$B43*4.3+'2. Operating Budget'!$C43+'2. Operating Budget'!$E43*Z$7) -> 0 | AA49: =IF('2. Operating Budget'!$D43>0,$C49/12,'2. Operating Budget'!$B43*4.3+'2. Operating Budget'!$C43+'2. Operating Budget'!$E43*AA$7) -> 0 | AB49: =IF('2. Operating Budget'!$D43>0,$C49/12,'2. Operating Budget'!$B43*4.3+'2. Operating Budget'!$C43+'2. Operating Budget'!$E43*AB$7) -> 0 | AC49: 0 | AD49: =IF('2. Operating Budget'!$E43>0,'2. Operating Budget'!$E43*'8. P&L and Cashflow'!AD$7,'2. Operating Budget'!$K43) -> 0 | AE49: =IF('2. Operating Budget'!$E43>0,'2. Operating Budget'!$E43*'8. P&L and Cashflow'!AE$7,'2. Operating Budget'!$K43) -> 0 | AF49: =IF('2. Operating Budget'!$E43>0,'2. Operating Budget'!$E43*'8. P&L and Cashflow'!AF$7,'2. Operating Budget'!$K43) -> 0
B50: =IF('2. Operating Budget'!A44="","",'2. Operating Budget'!A44) -> Other | C50: ='2. Operating Budget'!K44 -> 7693.5 | D50: =IF('2. Operating Budget'!$D44>0,$C50/12,'2. Operating Budget'!$B44*4.3+'2. Operating Budget'!$C44+'2. Operating Budget'!$E44*D$7) -> 334.5 | E50: =IF('2. Operating Budget'!$D44>0,$C50/12,'2. Operating Budget'!$B44*4.3+'2. Operating Budget'!$C44+'2. Operating Budget'!$E44*E$7) -> 669 | F50: =IF('2. Operating Budget'!$D44>0,$C50/12,'2. Operating Budget'!$B44*4.3+'2. Operating Budget'!$C44+'2. Operating Budget'!$E44*F$7) -> 669 | G50: =IF('2. Operating Budget'!$D44>0,$C50/12,'2. Operating Budget'!$B44*4.3+'2. Operating Budget'!$C44+'2. Operating Budget'!$E44*G$7) -> 669 | H50: =IF('2. Operating Budget'!$D44>0,$C50/12,'2. Operating Budget'!$B44*4.3+'2. Operating Budget'!$C44+'2. Operating Budget'!$E44*H$7) -> 669 | I50: =IF('2. Operating Budget'!$D44>0,$C50/12,'2. Operating Budget'!$B44*4.3+'2. Operating Budget'!$C44+'2. Operating Budget'!$E44*I$7) -> 669 | J50: =IF('2. Operating Budget'!$D44>0,$C50/12,'2. Operating Budget'!$B44*4.3+'2. Operating Budget'!$C44+'2. Operating Budget'!$E44*J$7) -> 669 | K50: =IF('2. Operating Budget'!$D44>0,$C50/12,'2. Operating Budget'!$B44*4.3+'2. Operating Budget'!$C44+'2. Operating Budget'!$E44*K$7) -> 669 | L50: =IF('2. Operating Budget'!$D44>0,$C50/12,'2. Operating Budget'!$B44*4.3+'2. Operating Budget'!$C44+'2. Operating Budget'!$E44*L$7) -> 669 | M50: =IF('2. Operating Budget'!$D44>0,$C50/12,'2. Operating Budget'!$B44*4.3+'2. Operating Budget'!$C44+'2. Operating Budget'!$E44*M$7) -> 669 | N50: =IF('2. Operating Budget'!$D44>0,$C50/12,'2. Operating Budget'!$B44*4.3+'2. Operating Budget'!$C44+'2. Operating Budget'!$E44*N$7) -> 669 | O50: =IF('2. Operating Budget'!$D44>0,$C50/12,'2. Operating Budget'!$B44*4.3+'2. Operating Budget'!$C44+'2. Operating Budget'!$E44*O$7) -> 669 | P50: 7693.5 | Q50: =IF('2. Operating Budget'!$D44>0,$C50/12,'2. Operating Budget'!$B44*4.3+'2. Operating Budget'!$C44+'2. Operating Budget'!$E44*Q$7) -> 757.65 | R50: =IF('2. Operating Budget'!$D44>0,$C50/12,'2. Operating Budget'!$B44*4.3+'2. Operating Budget'!$C44+'2. Operating Budget'!$E44*R$7) -> 757.65 | S50: =IF('2. Operating Budget'!$D44>0,$C50/12,'2. Operating Budget'!$B44*4.3+'2. Operating Budget'!$C44+'2. Operating Budget'!$E44*S$7) -> 757.65 | T50: =IF('2. Operating Budget'!$D44>0,$C50/12,'2. Operating Budget'!$B44*4.3+'2. Operating Budget'!$C44+'2. Operating Budget'!$E44*T$7) -> 757.65 | U50: =IF('2. Operating Budget'!$D44>0,$C50/12,'2. Operating Budget'!$B44*4.3+'2. Operating Budget'!$C44+'2. Operating Budget'!$E44*U$7) -> 757.65 | V50: =IF('2. Operating Budget'!$D44>0,$C50/12,'2. Operating Budget'!$B44*4.3+'2. Operating Budget'!$C44+'2. Operating Budget'!$E44*V$7) -> 757.65 | W50: =IF('2. Operating Budget'!$D44>0,$C50/12,'2. Operating Budget'!$B44*4.3+'2. Operating Budget'!$C44+'2. Operating Budget'!$E44*W$7) -> 757.65 | X50: =IF('2. Operating Budget'!$D44>0,$C50/12,'2. Operating Budget'!$B44*4.3+'2. Operating Budget'!$C44+'2. Operating Budget'!$E44*X$7) -> 757.65 | Y50: =IF('2. Operating Budget'!$D44>0,$C50/12,'2. Operating Budget'!$B44*4.3+'2. Operating Budget'!$C44+'2. Operating Budget'!$E44*Y$7) -> 757.65 | Z50: =IF('2. Operating Budget'!$D44>0,$C50/12,'2. Operating Budget'!$B44*4.3+'2. Operating Budget'!$C44+'2. Operating Budget'!$E44*Z$7) -> 757.65 | AA50: =IF('2. Operating Budget'!$D44>0,$C50/12,'2. Operating Budget'!$B44*4.3+'2. Operating Budget'!$C44+'2. Operating Budget'!$E44*AA$7) -> 757.65 | AB50: =IF('2. Operating Budget'!$D44>0,$C50/12,'2. Operating Budget'!$B44*4.3+'2. Operating Budget'!$C44+'2. Operating Budget'!$E44*AB$7) -> 757.65 | AC50: 9091.8 | AD50: =IF('2. Operating Budget'!$E44>0,'2. Operating Budget'!$E44*'8. P&L and Cashflow'!AD$7,'2. Operating Budget'!$K44) -> 10301.13 | AE50: =IF('2. Operating Budget'!$E44>0,'2. Operating Budget'!$E44*'8. P&L and Cashflow'!AE$7,'2. Operating Budget'!$K44) -> 11676.4155 | AF50: =IF('2. Operating Budget'!$E44>0,'2. Operating Budget'!$E44*'8. P&L and Cashflow'!AF$7,'2. Operating Budget'!$K44) -> 13241.00542
B51: Depreciation | C51: ='4. Equipment & Vehicle Costs'!B85+'5. Facility Costs'!A65 -> 1389.685714 | D51: =C51/12 -> 115.8071429 | E51: 115.8071429 | F51: 115.8071429 | G51: =F51 -> 115.8071429 | H51: 115.8071429 | I51: 115.8071429 | J51: 115.8071429 | K51: 115.8071429 | L51: 115.8071429 | M51: 115.8071429 | N51: 115.8071429 | O51: 115.8071429 | P51: 1389.685714 | Q51: =P51/12 -> 115.8071429 | R51: =Q51 -> 115.8071429 | S51: 115.8071429 | T51: 115.8071429 | U51: 115.8071429 | V51: 115.8071429 | W51: 115.8071429 | X51: 115.8071429 | Y51: 115.8071429 | Z51: 115.8071429 | AA51: 115.8071429 | AB51: 115.8071429 | AC51: =SUM(Q51:AB51) -> 1389.685714 | AD51: =AC51 -> 1389.685714 | AE51: =AD51 -> 1389.685714 | AF51: =AE51 -> 1389.685714
P52: 0
B53: Total Operating Expenses | C53: =SUM(D53:O53) -> 198420.1695 | D53: =SUM(D13:D51) -> 11654.56621 | E53: 16978.69121 | F53: 16978.69121 | G53: 16978.69121 | H53: 16978.69121 | I53: 16978.69121 | J53: 16978.69121 | K53: 16978.69121 | L53: 16978.69121 | M53: 16978.69121 | N53: 16978.69121 | O53: 16978.69121 | P53: =SUM(D53:O53) -> 198420.1695 | Q53: =SUM(Q13:Q51) -> 18419.12627 | R53: 18419.12627 | S53: 18419.12627 | T53: 18419.12627 | U53: 18419.12627 | V53: 18419.12627 | W53: 18419.12627 | X53: 18419.12627 | Y53: 18419.12627 | Z53: 18419.12627 | AA53: 18419.12627 | AB53: 18419.12627 | AC53: =SUM(Q53:AB53) -> 221029.5152 | AD53: 239113.3735 | AE53: 261350.594 | AF53: 286648.7093
D55: =IF(D56-D57<0,0,D56-D57) -> 0 | E55: =IF(E56-E57<0,0,E56-E57) -> 491.3106263 | F55: 494.3283824 | G55: 497.3621479 | H55: 500.4120081 | I55: 503.4780487 | J55: 506.5603561 | K55: 509.6590168 | L55: 512.774118 | M55: 515.9057474 | N55: 519.053993 | O55: 522.2189434 | P55: =SUM(D55:O55) -> 5573.063388 | Q55: =IF(Q56-Q57<0,0,Q56-Q57) -> 1419.415625 | R55: =IF(R56-R57<0,0,R56-R57) -> 1422.614253 | S55: 1425.829854 | T55: 1429.062518 | U55: 1432.312338 | V55: 1435.579404 | W55: 1438.863807 | X55: 1442.165642 | Y55: 1445.484999 | Z55: 1448.821974 | AA55: 1452.176659 | AB55: 1455.54915 | AC55: =SUM(Q55:AB55) -> 17247.87622
B56: Profit Before Interest and Taxes | C56: =C9-C53 -> 4175.330536 | D56: -2846.066205 | E56: 638.3087946 | F56: 638.3087946 | G56: 638.3087946 | H56: 638.3087946 | I56: 638.3087946 | J56: 638.3087946 | K56: 638.3087946 | L56: 638.3087946 | M56: 638.3087946 | N56: 638.3087946 | O56: 638.3087946 | P56: 4175.330536 | Q56: 1532.323732 | R56: 1532.323732 | S56: 1532.323732 | T56: 1532.323732 | U56: 1532.323732 | V56: 1532.323732 | W56: 1532.323732 | X56: 1532.323732 | Y56: 1532.323732 | Z56: 1532.323732 | AA56: 1532.323732 | AB56: 1532.323732 | AC56: 18387.88479 | AD56: 32149.71646 | AE56: 46128.3475 | AF56: 62031.10026
B57: Interest | C57: =P57 -> 1598.333353 | D57: ='12. Loan Detail'!D28 -> 150 | E57: ='12. Loan Detail'!E28 -> 146.9981684 | F57: ='12. Loan Detail'!F28 -> 143.9804122 | G57: ='12. Loan Detail'!G28 -> 140.9466467 | H57: ='12. Loan Detail'!H28 -> 137.8967865 | I57: ='12. Loan Detail'!I28 -> 134.8307459 | J57: ='12. Loan Detail'!J28 -> 131.7484386 | K57: ='12. Loan Detail'!K28 -> 128.6497779 | L57: ='12. Loan Detail'!L28 -> 125.5346766 | M57: ='12. Loan Detail'!M28 -> 122.4030472 | N57: ='12. Loan Detail'!N28 -> 119.2548016 | O57: ='12. Loan Detail'!O28 -> 116.0898512 | P57: ='12. Loan Detail'!P28 -> 1598.333353 | Q57: ='12. Loan Detail'!Q28 -> 112.908107 | R57: ='12. Loan Detail'!R28 -> 109.7094794 | S57: ='12. Loan Detail'!S28 -> 106.4938785 | T57: ='12. Loan Detail'!T28 -> 103.2612137 | U57: ='12. Loan Detail'!U28 -> 100.0113943 | V57: ='12. Loan Detail'!V28 -> 96.74432862 | W57: ='12. Loan Detail'!W28 -> 93.45992484 | X57: ='12. Loan Detail'!X28 -> 90.15809052 | Y57: ='12. Loan Detail'!Y28 -> 86.83873274 | Z57: ='12. Loan Detail'!Z28 -> 83.50175809 | AA57: ='12. Loan Detail'!AA28 -> 80.14707265 | AB57: ='12. Loan Detail'!AB28 -> 76.77458202 | AC57: ='12. Loan Detail'!AC28 -> 1140.008562 | AD57: ='12. Loan Detail'!AP28 -> 651.6285187 | AE57: ='12. Loan Detail'!BC28 -> 354.3588042 | AF57: ='12. Loan Detail'!BP28 -> 307.3703165
B58: Taxes on Profit After Interest | C58: ='0. Basic Info'!D22 -> 0.15 | D58: =IF($C56<0,0,IF(D56-D57<0,0,((D56-D57)/$P55*$P58))) -> 0 | E58: =IF($C56<0,0,IF(E56-E57<0,0,((E56-E57)/$P55*$P58))) -> 34.07747261 | F58: 34.28678521 | G58: 34.49720822 | H58: 34.70874756 | I58: 34.92140918 | J58: 35.13519907 | K58: 35.35012323 | L58: 35.56618772 | M58: 35.7833986 | N58: 36.00176199 | O58: 36.22128403 | P58: =IF(P56-P57<0,0,(P56-P57)*C58) -> 386.5495774 | Q58: =IF($C56<0,0,IF(Q56-Q57<0,0,((Q56-Q57)/$P55*$P58))) -> 98.45115189 | R58: =IF($C56<0,0,IF(R56-R57<0,0,((R56-R57)/$P55*$P58))) -> 98.67300979 | S58: 98.89604496 | T58: 99.12026369 | U58: 99.34567228 | V58: 99.57227707 | W58: 99.80008443 | X58: 100.0291008 | Y58: 100.2593326 | Z58: 100.4907863 | AA58: 100.7234684 | AB58: 100.9573855 | AC58: =IF(AC56-AC57<0,0,(AC56-AC57)*$C58) -> 2587.181434 | AD58: =IF(AD56-AD57<0,0,(AD56-AD57)*$C58) -> 4724.713191 | AE58: 6866.098304 | AF58: 9258.559491
B60: Net Profit | C60: =P60 -> 2190.447605 | D60: =D56-D57-D58 -> -2996.066205 | E60: =E56-E57-E58 -> 457.2331537 | F60: 460.0415972 | G60: 462.8649397 | H60: 465.7032605 | I60: 468.5566396 | J60: 471.425157 | K60: 474.3088936 | L60: 477.2079303 | M60: 480.1223488 | N60: 483.052231 | O60: 485.9976594 | P60: 2190.447605 | Q60: =Q56-Q57-Q58 -> 1320.964473 | R60: =R56-R57-R58 -> 1323.941243 | S60: 1326.933809 | T60: 1329.942255 | U60: 1332.966666 | V60: 1336.007126 | W60: 1339.063723 | X60: 1342.136541 | Y60: 1345.225667 | Z60: 1348.331188 | AA60: 1351.453191 | AB60: 1354.591765 | AC60: 14660.69479 | AD60: 26773.37475 | AE60: 38907.89039 | AF60: 52465.17045
B62: Ending Line Balance
B63: ='7. Funding Plan'!C18 -> 0
B64: Starting Cash | C64: ='7. Funding Plan'!C27 -> 40750 | D64: =D6 -> 2019-01-01 | E64: 2019-02-01 | F64: 2019-03-04 | G64: 2019-04-04 | H64: 2019-05-05 | I64: 2019-06-05 | J64: 2019-07-06 | K64: 2019-08-06 | L64: 2019-09-06 | M64: 2019-10-07 | N64: 2019-11-07 | O64: 2019-12-08 | P64: 2019 | Q64: 2020-01-01 | R64: 2020-02-01 | S64: 2020-03-01 | T64: 2020-04-01 | U64: 2020-05-01 | V64: 2020-06-01 | W64: 2020-07-01 | X64: 2020-08-01 | Y64: 2020-09-01 | Z64: 2020-10-01 | AA64: 2020-11-01 | AB64: 2020-12-01 | AC64: 2020 | AD64: 2021 | AE64: 2022 | AF64: 2023
B65: STARTING CASH BALANCE | D65: ='7. Funding Plan'!E27 -> 40750 | E65: =D79 -> 73050.69536 | F65: =E79 -> 73051.68826 | G65: 73052.47184 | H65: 73053.04499 | I65: 73053.40661 | J65: 73053.55557 | K65: 73053.49073 | L65: 73053.21097 | M65: 73052.71515 | N65: 73052.00212 | O65: 73051.07072 | P65: =D65 -> 40750 | Q65: =O79 -> 73049.9198 | R65: =Q79 -> 73880.55395 | S65: =R79 -> 74710.96624 | T65: 75541.1555 | U65: 76371.12054 | V65: 77200.86017 | W65: 78030.37319 | X65: 78859.65841 | Y65: 79688.71461 | Z65: 80517.54058 | AA65: 81346.1351 | AB65: 82174.49693 | AC65: =P79 -> 73049.9198 | AD65: =AC79 -> 83002.62485 | AE65: =AD79 -> 103188.767 | AF65: 142567.9157
A66: CASH ADDED | B66: Cash from Operations | D66: =D60+D51 -> -2880.259062 | E66: 573.0402965 | F66: 575.8487401 | G66: 578.6720826 | H66: 581.5104034 | I66: 584.3637824 | J66: 587.2322999 | K66: 590.1160364 | L66: 593.0150732 | M66: 595.9294917 | N66: 598.8593739 | O66: 601.8048023 | P66: =SUM(D66:O66) -> 3580.13332 | Q66: 1436.771616 | R66: 1439.748386 | S66: 1442.740952 | T66: 1445.749398 | U66: 1448.773808 | V66: 1451.814269 | W66: 1454.870866 | X66: 1457.943684 | Y66: 1461.03281 | Z66: 1464.138331 | AA66: 1467.260334 | AB66: 1470.398907 | AC66: =SUM(Q66:AB66) -> 17441.24336 | AD66: 28163.06047 | AE66: 40297.5761 | AF66: 53854.85617
B67: Cash from owners | D67: ='7. Funding Plan'!C15+'7. Funding Plan'!C14 -> 10750 | F67: 0 | G67: 0 | H67: 0 | I67: 0 | J67: 0 | K67: 0 | L67: 0 | M67: 0 | N67: 0 | O67: 0 | P67: =SUM(D67:O67) -> 10750 | Q67: 0 | R67: 0 | S67: 0 | T67: 0 | U67: 0 | V67: 0 | W67: 0 | X67: 0 | Y67: 0 | Z67: 0 | AA67: 0 | AB67: 0 | AC67: =SUM(Q67:AB67) -> 0 | AD67: 0 | AE67: 0 | AF67: 0
B68: Cash from Investors | D68: ='7. Funding Plan'!C17 -> 0 | E68: 0 | F68: 0 | G68: 0 | H68: 0 | I68: 0 | J68: 0 | K68: 0 | L68: 0 | M68: 0 | N68: 0 | P68: 0 | Q68: 0 | R68: 0 | S68: 0 | T68: 0 | U68: 0 | V68: 0 | W68: 0 | X68: 0 | Y68: 0 | Z68: 0 | AA68: 0 | AC68: 0 | AD68: 0 | AE68: 0 | AF68: 0
B69: Cash from Term Loans | D69: ='7. Funding Plan'!C22+'7. Funding Plan'!C23 -> 30000
B70: Cash added from line | D70: ='7. Funding Plan'!C9 -> 2500 | E70: 0 | F70: 0 | G70: 0 | H70: 0 | I70: 0 | J70: 0 | K70: 0 | L70: 0 | M70: 0 | N70: 0 | O70: 0 | P70: 2500 | T70: 0 | U70: 0 | V70: 0 | W70: 0 | X70: 0 | Y70: 0 | Z70: 0 | AA70: 0 | AB70: 0 | AC70: 0 | AD70: 0 | AE70: 0 | AF70: 0
B71: Total Cash Added | D71: =SUM(D66:D70) -> 40369.74094 | E71: =SUM(E66:E70) -> 573.0402965 | F71: 575.8487401 | G71: 578.6720826 | H71: 581.5104034 | I71: 584.3637824 | J71: 587.2322999 | K71: 590.1160364 | L71: 593.0150732 | M71: 595.9294917 | N71: 598.8593739 | O71: 601.8048023 | P71: 16830.13332 | Q71: =SUM(Q66:Q70) -> 1436.771616 | R71: =SUM(R66:R70) -> 1439.748386 | S71: 1442.740952 | T71: 1445.749398 | U71: 1448.773808 | V71: 1451.814269 | W71: 1454.870866 | X71: 1457.943684 | Y71: 1461.03281 | Z71: 1464.138331 | AA71: 1467.260334 | AB71: 1470.398907 | AC71: 17441.24336 | AD71: 28163.06047 | AE71: 40297.5761 | AF71: 53854.85617
A72: CASH SPENT | B72: Owner Draws | D72: 0 | E72: 0 | F72: 0 | G72: 0 | H72: 0 | I72: 0 | J72: 0 | K72: 0 | L72: 0 | M72: 0 | N72: 0 | O72: 0 | P72: 0 | Q72: 0 | R72: 0 | S72: 0 | T72: 0 | U72: 0 | V72: 0 | W72: 0 | X72: 0 | Y72: 0 | Z72: 0 | AA72: 0 | AB72: 0 | AC72: 0 | AD72: 0 | AE72: 0 | AF72: 0
B73: Purchases | D73: ='7. Funding Plan'!E28 -> 5000 | E73: 0 | F73: 0 | G73: 0 | H73: 0 | I73: 0 | J73: 0 | K73: 0 | L73: 0 | M73: 0 | N73: 0 | O73: 0 | P73: 5000 | Q73: 0 | R73: 0 | S73: 0 | T73: 0 | U73: 0 | V73: 0 | W73: 0 | X73: 0 | Y73: 0 | Z73: 0 | AA73: 0 | AB73: 0 | AC73: 0
B74: Repay Investors | D74: 0 | E74: 0 | F74: 0 | G74: 0 | H74: 0 | I74: 0 | J74: 0 | K74: 0 | L74: 0 | M74: 0 | N74: 0 | O74: 0 | P74: 0 | Q74: 0 | R74: 0 | S74: 0 | T74: 0 | U74: 0 | V74: 0 | W74: 0 | X74: 0 | Y74: 0 | Z74: 0 | AA74: 0 | AB74: 0 | AC74: 0 | AD74: 0 | AE74: 0
B75: Repay Line | C75: =+'7. Funding Plan'!C18+P70-P75 -> 0 | D75: =D70 -> 2500 | E75: 0 | F75: 0 | G75: 0 | H75: 0 | I75: 0 | J75: 0 | K75: 0 | L75: 0 | M75: 0 | N75: 0 | O75: 0 | P75: 2500 | Q75: 0 | R75: 0 | S75: 0 | T75: 0 | U75: 0 | V75: 0 | W75: 0 | X75: 0 | Z75: 0 | AA75: 0 | AB75: 0 | AC75: 0 | AD75: 0 | AE75: 0 | AF75: 0
B76: Repay long-term loans | D76: ='12. Loan Detail'!D29-'12. Loan Detail'!D23 -> 569.0455728 | E76: ='12. Loan Detail'!E29-'12. Loan Detail'!E23 -> 572.0474044 | F76: ='12. Loan Detail'!F29-'12. Loan Detail'!F23 -> 575.0651605 | G76: ='12. Loan Detail'!G29-'12. Loan Detail'!G23 -> 578.098926 | H76: ='12. Loan Detail'!H29-'12. Loan Detail'!H23 -> 581.1487862 | I76: ='12. Loan Detail'!I29-'12. Loan Detail'!I23 -> 584.2148269 | J76: ='12. Loan Detail'!J29-'12. Loan Detail'!J23 -> 587.2971342 | K76: ='12. Loan Detail'!K29-'12. Loan Detail'!K23 -> 590.3957949 | L76: ='12. Loan Detail'!L29-'12. Loan Detail'!L23 -> 593.5108961 | M76: ='12. Loan Detail'!M29-'12. Loan Detail'!M23 -> 596.6425255 | N76: ='12. Loan Detail'!N29-'12. Loan Detail'!N23 -> 599.7907711 | O76: ='12. Loan Detail'!O29-'12. Loan Detail'!O23 -> 602.9557216 | P76: 7030.21352 | Q76: ='12. Loan Detail'!Q29-'12. Loan Detail'!Q23 -> 606.1374658 | R76: ='12. Loan Detail'!R29-'12. Loan Detail'!R23 -> 609.3360934 | S76: ='12. Loan Detail'!S29-'12. Loan Detail'!S23 -> 612.5516943 | T76: ='12. Loan Detail'!T29-'12. Loan Detail'!T23 -> 615.784359 | U76: ='12. Loan Detail'!U29-'12. Loan Detail'!U23 -> 619.0341785 | V76: ='12. Loan Detail'!V29-'12. Loan Detail'!V23 -> 622.3012441 | W76: ='12. Loan Detail'!W29-'12. Loan Detail'!W23 -> 625.5856479 | X76: ='12. Loan Detail'!X29-'12. Loan Detail'!X23 -> 628.8874823 | Y76: ='12. Loan Detail'!Y29-'12. Loan Detail'!Y23 -> 632.20684 | Z76: ='12. Loan Detail'!Z29-'12. Loan Detail'!Z23 -> 635.5438147 | AA76: ='12. Loan Detail'!AA29-'12. Loan Detail'!AA23 -> 638.8985001 | AB76: ='12. Loan Detail'!AB29-'12. Loan Detail'!AB23 -> 642.2709908 | AC76: 7488.538311 | AD76: ='12. Loan Detail'!AP29-'12. Loan Detail'!AP23 -> 7976.918355 | AE76: ='12. Loan Detail'!BC29-'12. Loan Detail'!BC23 -> 918.4273786 | AF76: ='12. Loan Detail'!BB29-'12. Loan Detail'!BP23 -> 78.29801337
B77: Total Cash Used | D77: =SUM(D72:D76) -> 8069.045573 | E77: =SUM(E72:E76) -> 572.0474044 | F77: =SUM(F72:F76) -> 575.0651605 | G77: =SUM(G72:G76) -> 578.098926 | H77: =SUM(H72:H76) -> 581.1487862 | I77: 584.2148269 | J77: 587.2971342 | K77: 590.3957949 | L77: 593.5108961 | M77: 596.6425255 | N77: 599.7907711 | O77: 602.9557216 | P77: 14530.21352 | Q77: =SUM(Q72:Q76) -> 606.1374658 | R77: 609.3360934 | S77: 612.5516943 | T77: 615.784359 | U77: 619.0341785 | V77: 622.3012441 | W77: 625.5856479 | X77: 628.8874823 | Y77: 632.20684 | Z77: 635.5438147 | AA77: 638.8985001 | AB77: 642.2709908 | AC77: 7488.538311 | AD77: 7976.918355 | AE77: 918.4273786 | AF77: 78.29801337
B78: Net Cash Flow | D78: =D71-D77 -> 32300.69536 | E78: 0.9928921202 | F78: 0.7835795254 | G78: 0.5731565151 | H78: 0.361617172 | I78: 0.148955547 | J78: -0.06483434079 | K78: -0.2797585042 | L78: -0.4958229883 | M78: -0.7130338703 | N78: -0.9313972603 | O78: -1.150919301 | P78: =SUM(D78:O78) -> 32299.9198 | Q78: 830.6341503 | R78: 830.4122924 | S78: 830.1892573 | T78: 829.9650385 | U78: 829.73963 | V78: 829.5130252 | W78: 829.2852178 | X78: 829.0562014 | Y78: 828.8259697 | Z78: 828.594516 | AA78: 828.3618338 | AB78: 828.1279167 | AC78: 9952.705049 | AD78: 20186.14211 | AE78: 39379.14872 | AF78: 53776.55815
B79: Ending Cash Balance | D79: =D65+D78 -> 73050.69536 | E79: 73051.68826 | F79: 73052.47184 | G79: 73053.04499 | H79: 73053.40661 | I79: 73053.55557 | J79: 73053.49073 | K79: 73053.21097 | L79: 73052.71515 | M79: 73052.00212 | N79: 73051.07072 | O79: 73049.9198 | P79: =O79 -> 73049.9198 | Q79: 73880.55395 | R79: 74710.96624 | S79: 75541.1555 | T79: 76371.12054 | U79: 77200.86017 | V79: 78030.37319 | W79: 78859.65841 | X79: 79688.71461 | Y79: 80517.54058 | Z79: 81346.1351 | AA79: 82174.49693 | AB79: 83002.62485 | AC79: 83002.62485 | AD79: 103188.767 | AE79: 142567.9157 | AF79: 196344.4738
B80: Ending Line of Credit Balance | D80: ='7. Funding Plan'!C18+'8. P&L and Cashflow'!D70-'8. P&L and Cashflow'!D75 -> 0 | E80: =D80+E70-E75 -> 0 | F80: =E80+F70-F75 -> 0 | G80: 0 | H80: 0 | I80: 0 | J80: 0 | K80: 0 | L80: 0 | M80: 0 | N80: 0 | O80: 0 | P80: =O80 -> 0 | Q80: 0 | R80: 0 | S80: 0 | T80: 0 | U80: 0 | V80: 0 | W80: 0 | X80: 0 | Y80: 0 | Z80: 0 | AA80: 0 | AB80: 0 | AC80: =AB80 -> 0 | AD80: 0 | AE80: 0 | AF80: 0

Sheet 9. Sales Summary Tables

Sheet 10. Financial Summary Tables
A19: Average Monthly Budget
A20: Total | B20: ='2. Operating Budget'!J5 -> 16421.70698
A21: ='8. P&L and Cashflow'!B13 -> Worker Wages | B21: ='2. Operating Budget'!J7 -> 5342.708333 | C21: =B21/B$20 -> 0.3253442739
A22: ='8. P&L and Cashflow'!B14 -> Owner Pay | B22: ='2. Operating Budget'!J8 -> 3000 | C22: =B22/B$20 -> 0.182685028
A23: ='8. P&L and Cashflow'!B15 -> 0.15 | B23: ='2. Operating Budget'!J9 -> 1251.40625 | C23: 0.07620439529
A24: ='8. P&L and Cashflow'!B16 -> Workers Comp | B24: ='2. Operating Budget'!J10 -> 161.8840625 | C24: 0.009857931499
A25: ='8. P&L and Cashflow'!B17 -> Rent | B25: ='2. Operating Budget'!J11 -> 400 | C25: 0.02435800374
A26: ='8. P&L and Cashflow'!B18 -> Phone/Internet/Cell | B26: ='2. Operating Budget'!J12 -> 150 | C26: 0.009134251402
A27: ='8. P&L and Cashflow'!B19 -> Electricity/Heat/Water | B27: ='2. Operating Budget'!J13 -> 0 | C27: 0
A28: ='8. P&L and Cashflow'!B20 -> Dumpster/Waste | B28: ='2. Operating Budget'!J14 -> 0 | C28: 0
A29: ='8. P&L and Cashflow'!B21 -> Liability Insurance | B29: ='2. Operating Budget'!J15 -> 41.66666667 | C29: 0.002537292056
A30: ='8. P&L and Cashflow'!B22 -> Software/Online Subscriptions | B30: ='2. Operating Budget'!J16 -> 129 | C30: 0.007855456206
A31: ='8. P&L and Cashflow'!B23 -> Office Supplies | B31: ='2. Operating Budget'!J17 -> 40 | C31: 0.002435800374
A32: ='8. P&L and Cashflow'!B24 ->  | B32: ='2. Operating Budget'!J18 -> 0 | C32: 0
A33: ='8. P&L and Cashflow'!B25 ->  | B33: ='2. Operating Budget'!J19 -> 0 | C33: 0
A34: ='8. P&L and Cashflow'!B26 -> Website Hosting/Updates | B34: ='2. Operating Budget'!J20 -> 85 | C34: 0.005176075795
A35: ='8. P&L and Cashflow'!B27 -> Misc Advertising Expenses | B35: ='2. Operating Budget'!J21 -> 213.7083333 | C35: 0.01301377096
A36: ='8. P&L and Cashflow'!B28 -> GoogleAd Words | B36: ='2. Operating Budget'!J22 -> 231.8541667 | C36: 0.01411876165
A37: ='8. P&L and Cashflow'!B47 ->  | B37: ='2. Operating Budget'!J23 -> 2137.083333 | C37: 0.1301377096
A38: ='8. P&L and Cashflow'!B48 ->  | B38: ='2. Operating Budget'!J24 -> 106.8541667 | C38: 0.006506885478
A39: ='8. P&L and Cashflow'!B49 ->  | B39: ='2. Operating Budget'!J25 -> 166.6666667 | C39: 0.01014916822
A40: ='8. P&L and Cashflow'!B50 -> Other | B40: ='2. Operating Budget'!J26 -> 416.6666667 | C40: 0.02537292056
A41: ='8. P&L and Cashflow'!B51 -> Depreciation | B41: ='8. P&L and Cashflow'!C51/12 -> 115.8071429 | C41: 0.007052077047
A42: ='8. P&L and Cashflow'!B52 -> 0 | B42: ='8. P&L and Cashflow'!C52/12 -> 0 | C42: 0

Sheet 11. Balance Sheet
A1: ='0. Basic Info'!D11 -> My Business | C1: Pro Forma Balance Sheet
D4: =DAY(DATE(YEAR(D8),MONTH(D8)+1,1)-1) -> 31 | E4: 28 | F4: 31 | G4: 30 | H4: 31 | I4: 30 | J4: 31 | K4: 31 | L4: 30 | M4: 31 | N4: 30 | O4: 31 | P4: =DAY(DATE(YEAR(P6),MONTH(P6)+1,1)-1) -> 31 | Q4: =DAY(DATE(YEAR(Q8),MONTH(Q8)+1,1)-1) -> 31 | R4: 29 | S4: 31 | T4: 30 | U4: 31 | V4: 30 | W4: 31 | X4: 31 | Y4: 30 | Z4: 31 | AA4: 30 | AB4: 31 | AC4: 31 | AD4: 31 | AE4: 31 | AF4: 31
B8: ASSETS | C8: Starting Balance | D8: =DATEVALUE('0. Basic Info'!D17&"/1/"&'0. Basic Info'!D16) -> 2019-01-01 | E8: =D8+D4 -> 2019-02-01 | F8: 2019-03-01 | G8: 2019-04-01 | H8: 2019-05-01 | I8: 2019-06-01 | J8: 2019-07-01 | K8: 2019-08-01 | L8: 2019-09-01 | M8: 2019-10-01 | N8: 2019-11-01 | O8: 2019-12-01 | P8: =IF('0. Basic Info'!$D$17=1,'0. Basic Info'!$D$16,"Year 1") -> 2019 | Q8: =O8+O4 -> 2020-01-01 | R8: =Q8+Q4 -> 2020-02-01 | S8: 2020-03-01 | T8: 2020-04-01 | U8: 2020-05-01 | V8: 2020-06-01 | W8: 2020-07-01 | X8: 2020-08-01 | Y8: 2020-09-01 | Z8: 2020-10-01 | AA8: 2020-11-01 | AB8: 2020-12-01 | AC8: =IF('0. Basic Info'!$D$17=1,'0. Basic Info'!$D$16+1,"Year 2") -> 2020 | AD8: =IF('0. Basic Info'!$D$17=1,'0. Basic Info'!$D$16+2,"Year 3") -> 2021 | AE8: =IF('0. Basic Info'!$D$17=1,'0. Basic Info'!$D$16+3,"Year 4") -> 2022 | AF8: =IF('0. Basic Info'!$D$17=1,'0. Basic Info'!$D$16+4,"Year 5") -> 2023
B9: Current Assets
B10: Cash | C10: 0 | D10: ='8. P&L and Cashflow'!D79 -> 73050.69536 | E10: ='8. P&L and Cashflow'!E79 -> 73051.68826 | F10: ='8. P&L and Cashflow'!F79 -> 73052.47184 | G10: ='8. P&L and Cashflow'!G79 -> 73053.04499 | H10: ='8. P&L and Cashflow'!H79 -> 73053.40661 | I10: ='8. P&L and Cashflow'!I79 -> 73053.55557 | J10: ='8. P&L and Cashflow'!J79 -> 73053.49073 | K10: ='8. P&L and Cashflow'!K79 -> 73053.21097 | L10: ='8. P&L and Cashflow'!L79 -> 73052.71515 | M10: ='8. P&L and Cashflow'!M79 -> 73052.00212 | N10: ='8. P&L and Cashflow'!N79 -> 73051.07072 | O10: ='8. P&L and Cashflow'!O79 -> 73049.9198 | P10: =O10 -> 73049.9198 | Q10: ='8. P&L and Cashflow'!Q79 -> 73880.55395 | R10: ='8. P&L and Cashflow'!R79 -> 74710.96624 | S10: ='8. P&L and Cashflow'!S79 -> 75541.1555 | T10: ='8. P&L and Cashflow'!T79 -> 76371.12054 | U10: ='8. P&L and Cashflow'!U79 -> 77200.86017 | V10: ='8. P&L and Cashflow'!V79 -> 78030.37319 | W10: ='8. P&L and Cashflow'!W79 -> 78859.65841 | X10: ='8. P&L and Cashflow'!X79 -> 79688.71461 | Y10: ='8. P&L and Cashflow'!Y79 -> 80517.54058 | Z10: ='8. P&L and Cashflow'!Z79 -> 81346.1351 | AA10: ='8. P&L and Cashflow'!AA79 -> 82174.49693 | AB10: ='8. P&L and Cashflow'!AB79 -> 83002.62485 | AC10: =AB10 -> 83002.62485 | AD10: ='8. P&L and Cashflow'!AD79 -> 103188.767 | AE10: ='8. P&L and Cashflow'!AE79 -> 142567.9157 | AF10: ='8. P&L and Cashflow'!AF79 -> 196344.4738
B11: Accounts Receivable | C11: 0 | D11: 0 | E11: 0 | F11: 0 | G11: 0 | H11: 0 | I11: 0 | J11: 0 | K11: 0 | L11: 0 | M11: 0 | N11: 0 | O11: 0 | P11: 0 | Q11: 0 | R11: 0 | S11: 0 | T11: 0 | U11: 0 | V11: 0 | W11: 0 | X11: 0 | Y11: 0 | Z11: 0 | AA11: 0 | AB11: 0 | AC11: 0 | AD11: 0 | AE11: 0 | AF11: 0
B12: Inventory | C12: 0 | D12: ='8. P&L and Cashflow'!D73 -> 5000 | E12: ='8. P&L and Cashflow'!E73 -> 0 | F12: ='8. P&L and Cashflow'!F73 -> 0 | G12: ='8. P&L and Cashflow'!G73 -> 0 | H12: ='8. P&L and Cashflow'!H73 -> 0 | I12: ='8. P&L and Cashflow'!I73 -> 0 | J12: ='8. P&L and Cashflow'!J73 -> 0 | K12: ='8. P&L and Cashflow'!K73 -> 0 | L12: ='8. P&L and Cashflow'!L73 -> 0 | M12: ='8. P&L and Cashflow'!M73 -> 0 | N12: ='8. P&L and Cashflow'!N73 -> 0 | O12: ='8. P&L and Cashflow'!O73 -> 0 | P12: =O12 -> 0 | Q12: ='8. P&L and Cashflow'!Q73 -> 0 | R12: ='8. P&L and Cashflow'!R73 -> 0 | S12: ='8. P&L and Cashflow'!S73 -> 0 | T12: ='8. P&L and Cashflow'!T73 -> 0 | U12: ='8. P&L and Cashflow'!U73 -> 0 | V12: ='8. P&L and Cashflow'!V73 -> 0 | W12: ='8. P&L and Cashflow'!W73 -> 0 | X12: ='8. P&L and Cashflow'!X73 -> 0 | Y12: ='8. P&L and Cashflow'!Y73 -> 0 | Z12: ='8. P&L and Cashflow'!Z73 -> 0 | AA12: ='8. P&L and Cashflow'!AA73 -> 0 | AB12: ='8. P&L and Cashflow'!AB73 -> 0 | AC12: ='8. P&L and Cashflow'!AC73 -> 0 | AD12: ='8. P&L and Cashflow'!AD73 -> 0 | AE12: ='8. P&L and Cashflow'!AE73 -> 0 | AF12: ='8. P&L and Cashflow'!AF73 -> 0
B13: Other Current Assets | C13: 0 | D13: 0 | E13: 0 | F13: 0 | G13: 0 | H13: 0 | I13: 0 | J13: 0 | K13: 0 | L13: 0 | M13: 0 | N13: 0 | O13: 0 | P13: 0 | Q13: 0 | R13: 0 | S13: 0 | T13: 0 | U13: 0 | V13: 0 | W13: 0 | X13: 0 | Y13: 0 | Z13: 0 | AA13: 0 | AB13: 0 | AC13: 0 | AD13: 0 | AE13: 0 | AF13: 0
B14: Total Current Assets | C14: =SUM(C10:C13) -> 0 | D14: =SUM(D10:D13) -> 78050.69536 | E14: 73051.68826 | F14: 73052.47184 | G14: 73053.04499 | H14: 73053.40661 | I14: 73053.55557 | J14: 73053.49073 | K14: 73053.21097 | L14: 73052.71515 | M14: 73052.00212 | N14: 73051.07072 | O14: 73049.9198 | P14: 73049.9198 | Q14: =SUM(Q10:Q13) -> 73880.55395 | R14: 74710.96624 | S14: 75541.1555 | T14: 76371.12054 | U14: 77200.86017 | V14: 78030.37319 | W14: 78859.65841 | X14: 79688.71461 | Y14: 80517.54058 | Z14: 81346.1351 | AA14: 82174.49693 | AB14: 83002.62485 | AC14: 83002.62485 | AD14: 103188.767 | AE14: 142567.9157 | AF14: 196344.4738
B15: Long-term Assets
B16: Long-term Assets | C16: ='7. Funding Plan'!C7+'7. Funding Plan'!C8 -> 13091 | D16: =C16 -> 13091 | E16: =D16 -> 13091 | F16: 13091 | G16: 13091 | H16: 13091 | I16: 13091 | J16: 13091 | K16: 13091 | L16: 13091 | M16: 13091 | N16: 13091 | O16: 13091 | P16: 13091 | Q16: 13091 | R16: 13091 | S16: 13091 | T16: 13091 | U16: 13091 | V16: 13091 | W16: 13091 | X16: 13091 | Y16: 13091 | Z16: 13091 | AA16: 13091 | AB16: 13091 | AC16: 13091 | AD16: 13091 | AE16: 13091 | AF16: 13091
B17: Accumulated Depreciation | C17: =0 -> 0 | D17: ='8. P&L and Cashflow'!D51 -> 115.8071429 | E17: =D17+'8. P&L and Cashflow'!E51 -> 231.6142857 | F17: =E17+'8. P&L and Cashflow'!F51 -> 347.4214286 | G17: =F17+'8. P&L and Cashflow'!G51 -> 463.2285714 | H17: =G17+'8. P&L and Cashflow'!H51 -> 579.0357143 | I17: =H17+'8. P&L and Cashflow'!I51 -> 694.8428571 | J17: =I17+'8. P&L and Cashflow'!J51 -> 810.65 | K17: =J17+'8. P&L and Cashflow'!K51 -> 926.4571429 | L17: =K17+'8. P&L and Cashflow'!L51 -> 1042.264286 | M17: =L17+'8. P&L and Cashflow'!M51 -> 1158.071429 | N17: =M17+'8. P&L and Cashflow'!N51 -> 1273.878571 | O17: =N17+'8. P&L and Cashflow'!O51 -> 1389.685714 | P17: =O17 -> 1389.685714 | Q17: =P17+'8. P&L and Cashflow'!Q51 -> 1505.492857 | R17: =Q17+'8. P&L and Cashflow'!R51 -> 1621.3 | S17: =R17+'8. P&L and Cashflow'!S51 -> 1737.107143 | T17: =S17+'8. P&L and Cashflow'!T51 -> 1852.914286 | U17: =T17+'8. P&L and Cashflow'!U51 -> 1968.721429 | V17: =U17+'8. P&L and Cashflow'!V51 -> 2084.528571 | W17: =V17+'8. P&L and Cashflow'!W51 -> 2200.335714 | X17: =W17+'8. P&L and Cashflow'!X51 -> 2316.142857 | Y17: =X17+'8. P&L and Cashflow'!Y51 -> 2431.95 | Z17: =Y17+'8. P&L and Cashflow'!Z51 -> 2547.757143 | AA17: =Z17+'8. P&L and Cashflow'!AA51 -> 2663.564286 | AB17: =AA17+'8. P&L and Cashflow'!AB51 -> 2779.371429 | AC17: =AB17 -> 2779.371429 | AD17: ='8. P&L and Cashflow'!AD51+AC17 -> 4169.057143 | AE17: ='8. P&L and Cashflow'!AE51+AD17 -> 5558.742857 | AF17: ='8. P&L and Cashflow'!AF51+AE17 -> 6948.428571
B18: Total Long-term Assets | C18: =C16-C17 -> 13091 | D18: 12975.19286 | E18: 12859.38571 | F18: 12743.57857 | G18: 12627.77143 | H18: 12511.96429 | I18: 12396.15714 | J18: 12280.35 | K18: 12164.54286 | L18: 12048.73571 | M18: 11932.92857 | N18: 11817.12143 | O18: 11701.31429 | P18: 11701.31429 | Q18: =Q16-Q17 -> 11585.50714 | R18: 11469.7 | S18: 11353.89286 | T18: 11238.08571 | U18: 11122.27857 | V18: 11006.47143 | W18: 10890.66429 | X18: 10774.85714 | Y18: 10659.05 | Z18: 10543.24286 | AA18: 10427.43571 | AB18: 10311.62857 | AC18: 10311.62857 | AD18: 8921.942857 | AE18: 7532.257143 | AF18: 6142.571429
B19: Total Assets | C19: =C18+C14 -> 13091 | D19: 91025.88822 | E19: 85911.07397 | F19: 85796.05041 | G19: 85680.81642 | H19: 85565.3709 | I19: 85449.71271 | J19: 85333.84073 | K19: 85217.75383 | L19: 85101.45086 | M19: 84984.93069 | N19: 84868.19215 | O19: 84751.23409 | P19: 84751.23409 | Q19: =Q18+Q14 -> 85466.06109 | R19: 86180.66624 | S19: 86895.04836 | T19: 87609.20625 | U19: 88323.13874 | V19: 89036.84462 | W19: 89750.3227 | X19: 90463.57176 | Y19: 91176.59058 | Z19: 91889.37796 | AA19: 92601.93265 | AB19: 93314.25342 | AC19: 93314.25342 | AD19: 112110.7098 | AE19: 150100.1728 | AF19: 202487.0453
B21: LIABILITIES AND CAPITAL | D21: =D8 -> 2019-01-01 | E21: 2019-02-01 | F21: 2019-03-01 | G21: 2019-04-01 | H21: 2019-05-01 | I21: 2019-06-01 | J21: 2019-07-01 | K21: 2019-08-01 | L21: 2019-09-01 | M21: 2019-10-01 | N21: 2019-11-01 | O21: 2019-12-01 | P21: 2019 | Q21: 2020-01-01 | R21: 2020-02-01 | S21: 2020-03-01 | T21: 2020-04-01 | U21: 2020-05-01 | V21: 2020-06-01 | W21: 2020-07-01 | X21: 2020-08-01 | Y21: 2020-09-01 | Z21: 2020-10-01 | AA21: 2020-11-01 | AB21: 2020-12-01 | AC21: 2020 | AD21: 2021 | AE21: 2022 | AF21: 2023
B22: Liabilities
B23: Accounts Payable | C23: 0 | D23: 0 | E23: 0 | F23: 0 | G23: 0 | H23: 0 | I23: 0 | J23: 0 | K23: 0 | L23: 0 | M23: 0 | N23: 0 | O23: 0 | P23: 0 | Q23: 0 | R23: 0 | S23: 0 | T23: 0 | U23: 0 | V23: 0 | W23: 0 | X23: 0 | Y23: 0 | Z23: 0 | AA23: 0 | AB23: 0 | AC23: 0 | AD23: 0 | AE23: 0 | AF23: 0
B24: Current Borrowing | C24: ='7. Funding Plan'!C18 -> 0 | D24: ='8. P&L and Cashflow'!D80 -> 0 | E24: ='8. P&L and Cashflow'!E80 -> 0 | F24: ='8. P&L and Cashflow'!F80 -> 0 | G24: ='8. P&L and Cashflow'!G80 -> 0 | H24: ='8. P&L and Cashflow'!H80 -> 0 | I24: ='8. P&L and Cashflow'!I80 -> 0 | J24: ='8. P&L and Cashflow'!J80 -> 0 | K24: ='8. P&L and Cashflow'!K80 -> 0 | L24: ='8. P&L and Cashflow'!L80 -> 0 | M24: ='8. P&L and Cashflow'!M80 -> 0 | N24: ='8. P&L and Cashflow'!N80 -> 0 | O24: ='8. P&L and Cashflow'!O80 -> 0 | P24: ='8. P&L and Cashflow'!P80 -> 0 | Q24: ='8. P&L and Cashflow'!Q80 -> 0 | R24: ='8. P&L and Cashflow'!R80 -> 0 | S24: ='8. P&L and Cashflow'!S80 -> 0 | T24: ='8. P&L and Cashflow'!T80 -> 0 | U24: ='8. P&L and Cashflow'!U80 -> 0 | V24: ='8. P&L and Cashflow'!V80 -> 0 | W24: ='8. P&L and Cashflow'!W80 -> 0 | X24: ='8. P&L and Cashflow'!X80 -> 0 | Y24: ='8. P&L and Cashflow'!Y80 -> 0 | Z24: ='8. P&L and Cashflow'!Z80 -> 0 | AA24: ='8. P&L and Cashflow'!AA80 -> 0 | AB24: ='8. P&L and Cashflow'!AB80 -> 0 | AC24: ='8. P&L and Cashflow'!AC80 -> 0 | AD24: ='8. P&L and Cashflow'!AD80 -> 0 | AE24: ='8. P&L and Cashflow'!AE80 -> 0 | AF24: ='8. P&L and Cashflow'!AF80 -> 0
B25: Other Current Liabilities | C25: 0 | D25: 0 | E25: 0 | F25: 0 | G25: 0 | H25: 0 | I25: 0 | J25: 0 | K25: 0 | L25: 0 | M25: 0 | N25: 0 | O25: 0 | P25: 0 | Q25: 0 | R25: 0 | S25: 0 | T25: 0 | U25: 0 | V25: 0 | W25: 0 | X25: 0 | Y25: 0 | Z25: 0 | AA25: 0 | AB25: 0 | AC25: 0 | AD25: 0 | AE25: 0 | AF25: 0
B26: Subtotal Current Liabilities | C26: =SUM(C23:C25) -> 0 | D26: =SUM(D23:D25) -> 0 | E26: 0 | F26: 0 | G26: 0 | H26: 0 | I26: 0 | J26: 0 | K26: 0 | L26: 0 | M26: 0 | N26: 0 | O26: 0 | P26: 0 | Q26: 0 | R26: 0 | S26: 0 | T26: 0 | U26: 0 | V26: 0 | W26: 0 | X26: 0 | Y26: 0 | Z26: 0 | AA26: 0 | AB26: 0 | AC26: 0 | AD26: 0 | AE26: 0 | AF26: 0
B28: Long-term Liabilities | C28: 0 | D28: ='12. Loan Detail'!D31 -> 29430.95443 | E28: ='12. Loan Detail'!E31 -> 28858.90702 | F28: ='12. Loan Detail'!F31 -> 28283.84186 | G28: ='12. Loan Detail'!G31 -> 27705.74294 | H28: ='12. Loan Detail'!H31 -> 27124.59415 | I28: ='12. Loan Detail'!I31 -> 26540.37932 | J28: ='12. Loan Detail'!J31 -> 25953.08219 | K28: ='12. Loan Detail'!K31 -> 25362.68639 | L28: ='12. Loan Detail'!L31 -> 24769.1755 | M28: ='12. Loan Detail'!M31 -> 24172.53297 | N28: ='12. Loan Detail'!N31 -> 23572.7422 | O28: ='12. Loan Detail'!O31 -> 22969.78648 | P28: ='12. Loan Detail'!P31 -> 22969.78648 | Q28: ='12. Loan Detail'!Q31 -> 22363.64901 | R28: ='12. Loan Detail'!R31 -> 21754.31292 | S28: ='12. Loan Detail'!S31 -> 21141.76123 | T28: ='12. Loan Detail'!T31 -> 20525.97687 | U28: ='12. Loan Detail'!U31 -> 19906.94269 | V28: ='12. Loan Detail'!V31 -> 19284.64144 | W28: ='12. Loan Detail'!W31 -> 18659.0558 | X28: ='12. Loan Detail'!X31 -> 18030.16831 | Y28: ='12. Loan Detail'!Y31 -> 17397.96147 | Z28: ='12. Loan Detail'!Z31 -> 16762.41766 | AA28: ='12. Loan Detail'!AA31 -> 16123.51916 | AB28: ='12. Loan Detail'!AB31 -> 15481.24817 | AC28: ='12. Loan Detail'!AC31 -> 15481.24817 | AD28: ='12. Loan Detail'!AP31 -> 7504.329814 | AE28: ='12. Loan Detail'!BC31 -> 6585.902436 | AF28: ='12. Loan Detail'!BP31 -> 5620.486569
B29: Total Liabilities | C29: =C26+C28 -> 0 | D29: 29430.95443 | E29: 28858.90702 | F29: 28283.84186 | G29: 27705.74294 | H29: 27124.59415 | I29: 26540.37932 | J29: 25953.08219 | K29: 25362.68639 | L29: 24769.1755 | M29: 24172.53297 | N29: 23572.7422 | O29: 22969.78648 | P29: 22969.78648 | Q29: 22363.64901 | R29: 21754.31292 | S29: 21141.76123 | T29: 20525.97687 | U29: 19906.94269 | V29: 19284.64144 | W29: 18659.0558 | X29: 18030.16831 | Y29: 17397.96147 | Z29: 16762.41766 | AA29: 16123.51916 | AB29: 15481.24817 | AC29: 15481.24817 | AD29: 7504.329814 | AE29: 6585.902436 | AF29: 5620.486569
B30: Capital
B31: Paid-in Capital | C31: ='7. Funding Plan'!C16 -> 7635 | D31: =C31+'8. P&L and Cashflow'!D67+'8. P&L and Cashflow'!D68 -> 18385 | E31: =D31+'8. P&L and Cashflow'!E67+'8. P&L and Cashflow'!E68 -> 18385 | F31: =E31+'8. P&L and Cashflow'!F67+'8. P&L and Cashflow'!F68 -> 18385 | G31: =F31+'8. P&L and Cashflow'!G67+'8. P&L and Cashflow'!G68 -> 18385 | H31: =G31+'8. P&L and Cashflow'!H67+'8. P&L and Cashflow'!H68 -> 18385 | I31: =H31+'8. P&L and Cashflow'!I67+'8. P&L and Cashflow'!I68 -> 18385 | J31: =I31+'8. P&L and Cashflow'!J67+'8. P&L and Cashflow'!J68 -> 18385 | K31: =J31+'8. P&L and Cashflow'!K67+'8. P&L and Cashflow'!K68 -> 18385 | L31: =K31+'8. P&L and Cashflow'!L67+'8. P&L and Cashflow'!L68 -> 18385 | M31: =L31+'8. P&L and Cashflow'!M67+'8. P&L and Cashflow'!M68 -> 18385 | N31: =M31+'8. P&L and Cashflow'!N67+'8. P&L and Cashflow'!N68 -> 18385 | O31: =N31+'8. P&L and Cashflow'!O67+'8. P&L and Cashflow'!O68 -> 18385 | P31: =O31 -> 18385 | Q31: =P31+'8. P&L and Cashflow'!Q67+'8. P&L and Cashflow'!Q68 -> 18385 | R31: =Q31+'8. P&L and Cashflow'!R67+'8. P&L and Cashflow'!R68 -> 18385 | S31: =R31+'8. P&L and Cashflow'!S67+'8. P&L and Cashflow'!S68 -> 18385 | T31: =S31+'8. P&L and Cashflow'!T67+'8. P&L and Cashflow'!T68 -> 18385 | U31: =T31+'8. P&L and Cashflow'!U67+'8. P&L and Cashflow'!U68 -> 18385 | V31: =U31+'8. P&L and Cashflow'!V67+'8. P&L and Cashflow'!V68 -> 18385 | W31: =V31+'8. P&L and Cashflow'!W67+'8. P&L and Cashflow'!W68 -> 18385 | X31: =W31+'8. P&L and Cashflow'!X67+'8. P&L and Cashflow'!X68 -> 18385 | Y31: =X31+'8. P&L and Cashflow'!Y67+'8. P&L and Cashflow'!Y68 -> 18385 | Z31: =Y31+'8. P&L and Cashflow'!Z67+'8. P&L and Cashflow'!Z68 -> 18385 | AA31: =Z31+'8. P&L and Cashflow'!AA67+'8. P&L and Cashflow'!AA68 -> 18385 | AB31: =AA31+'8. P&L and Cashflow'!AB67+'8. P&L and Cashflow'!AB68 -> 18385 | AC31: =AB31+'8. P&L and Cashflow'!AC67+'8. P&L and Cashflow'!AC68 -> 18385 | AD31: =AC31+'8. P&L and Cashflow'!AD67+'8. P&L and Cashflow'!AD68 -> 18385 | AE31: =AD31+'8. P&L and Cashflow'!AE67+'8. P&L and Cashflow'!AE68 -> 18385 | AF31: =AE31+'8. P&L and Cashflow'!AF67+'8. P&L and Cashflow'!AF68 -> 18385
B32: Retained Earnings | C32: =C19-C26-C28-C31-C33 -> 5456 | D32: =C32+C33-'8. P&L and Cashflow'!D72 -> 5456 | E32: =D32+D33-'8. P&L and Cashflow'!E72 -> 2459.933795 | F32: =E32+E33-'8. P&L and Cashflow'!F72 -> 2917.166948 | G32: =F32+F33-'8. P&L and Cashflow'!G72 -> 3377.208545 | H32: =G32+G33-'8. P&L and Cashflow'!H72 -> 3840.073485 | I32: =H32+H33-'8. P&L and Cashflow'!I72 -> 4305.776746 | J32: =I32+I33-'8. P&L and Cashflow'!J72 -> 4774.333385 | K32: =J32+J33-'8. P&L and Cashflow'!K72 -> 5245.758542 | L32: =K32+K33-'8. P&L and Cashflow'!L72 -> 5720.067436 | M32: =L32+L33-'8. P&L and Cashflow'!M72 -> 6197.275366 | N32: =M32+M33-'8. P&L and Cashflow'!N72 -> 6677.397715 | O32: =N32+N33-'8. P&L and Cashflow'!O72 -> 7160.449946 | P32: =D32 -> 5456 | Q32: =P32+P33 -> 7646.447605 | R32: =Q32+Q33-'8. P&L and Cashflow'!R72 -> 8967.412079 | S32: =R32+R33-'8. P&L and Cashflow'!S72 -> 10291.35332 | T32: =S32+S33-'8. P&L and Cashflow'!T72 -> 11618.28713 | U32: =T32+T33-'8. P&L and Cashflow'!U72 -> 12948.22939 | V32: =U32+U33-'8. P&L and Cashflow'!V72 -> 14281.19605 | W32: =V32+V33-'8. P&L and Cashflow'!W72 -> 15617.20318 | X32: =W32+W33-'8. P&L and Cashflow'!X72 -> 16956.2669 | Y32: =X32+X33-'8. P&L and Cashflow'!Y72 -> 18298.40344 | Z32: =Y32+Y33-'8. P&L and Cashflow'!Z72 -> 19643.62911 | AA32: =Z32+Z33-'8. P&L and Cashflow'!AA72 -> 20991.9603 | AB32: =AA32+AA33-'8. P&L and Cashflow'!AB72 -> 22343.41349 | AC32: =Q32 -> 7646.447605 | AD32: =AC32+AC33 -> 23698.00525 | AE32: =AD32+AD33 -> 50471.38 | AF32: 89379.27039
B33: Earnings | C33: 0 | D33: ='8. P&L and Cashflow'!D60 -> -2996.066205 | E33: ='8. P&L and Cashflow'!E60 -> 457.2331537 | F33: ='8. P&L and Cashflow'!F60 -> 460.0415972 | G33: ='8. P&L and Cashflow'!G60 -> 462.8649397 | H33: ='8. P&L and Cashflow'!H60 -> 465.7032605 | I33: ='8. P&L and Cashflow'!I60 -> 468.5566396 | J33: ='8. P&L and Cashflow'!J60 -> 471.425157 | K33: ='8. P&L and Cashflow'!K60 -> 474.3088936 | L33: ='8. P&L and Cashflow'!L60 -> 477.2079303 | M33: ='8. P&L and Cashflow'!M60 -> 480.1223488 | N33: ='8. P&L and Cashflow'!N60 -> 483.052231 | O33: ='8. P&L and Cashflow'!O60 -> 485.9976594 | P33: =SUM(D33:O33) -> 2190.447605 | Q33: ='8. P&L and Cashflow'!Q60 -> 1320.964473 | R33: ='8. P&L and Cashflow'!R60 -> 1323.941243 | S33: ='8. P&L and Cashflow'!S60 -> 1326.933809 | T33: ='8. P&L and Cashflow'!T60 -> 1329.942255 | U33: ='8. P&L and Cashflow'!U60 -> 1332.966666 | V33: ='8. P&L and Cashflow'!V60 -> 1336.007126 | W33: ='8. P&L and Cashflow'!W60 -> 1339.063723 | X33: ='8. P&L and Cashflow'!X60 -> 1342.136541 | Y33: ='8. P&L and Cashflow'!Y60 -> 1345.225667 | Z33: ='8. P&L and Cashflow'!Z60 -> 1348.331188 | AA33: ='8. P&L and Cashflow'!AA60 -> 1351.453191 | AB33: ='8. P&L and Cashflow'!AB60 -> 1354.591765 | AC33: =SUM(Q33:AB33) -> 16051.55765 | AD33: ='8. P&L and Cashflow'!AD60 -> 26773.37475 | AE33: ='8. P&L and Cashflow'!AE60 -> 38907.89039 | AF33: ='8. P&L and Cashflow'!AF60 -> 52465.17045
B34: Total Capital | C34: =C31+C32+C33 -> 13091 | D34: =SUM(D31:D33) -> 20844.93379 | E34: =SUM(E31:E33) -> 21302.16695 | F34: 21762.20855 | G34: 22225.07349 | H34: 22690.77675 | I34: 23159.33339 | J34: 23630.75854 | K34: 24105.06744 | L34: 24582.27537 | M34: 25062.39771 | N34: 25545.44995 | O34: 26031.44761 | P34: 26031.44761 | Q34: 27352.41208 | R34: 28676.35332 | S34: 30003.28713 | T34: 31333.22939 | U34: 32666.19605 | V34: 34002.20318 | W34: 35341.2669 | X34: 36683.40344 | Y34: 38028.62911 | Z34: 39376.9603 | AA34: 40728.41349 | AB34: 42083.00525 | AC34: 42083.00525 | AD34: 68856.38 | AE34: 107764.2704 | AF34: 160229.4408
B35: Total Liabilities and Capital | C35: =C26+C28+C31+C32+C33 -> 13091 | D35: =D34+D29 -> 50275.88822 | E35: 50161.07397 | F35: 50046.05041 | G35: 49930.81642 | H35: 49815.3709 | I35: 49699.71271 | J35: 49583.84073 | K35: 49467.75383 | L35: 49351.45086 | M35: 49234.93069 | N35: 49118.19215 | O35: 49001.23409 | P35: 49001.23409 | Q35: 49716.06109 | R35: 50430.66624 | S35: 51145.04836 | T35: 51859.20625 | U35: 52573.13874 | V35: 53286.84462 | W35: 54000.3227 | X35: 54713.57176 | Y35: 55426.59058 | Z35: 56139.37796 | AA35: 56851.93265 | AB35: 57564.25342 | AC35: 57564.25342 | AD35: 76360.70982 | AE35: 114350.1728 | AF35: 165849.9274
B36: Net Worth | C36: =C19-C29 -> 13091 | D36: 61594.93379 | E36: 57052.16695 | F36: 57512.20855 | G36: 57975.07349 | H36: 58440.77675 | I36: 58909.33339 | J36: 59380.75854 | K36: 59855.06744 | L36: 60332.27537 | M36: 60812.39771 | N36: 61295.44995 | O36: 61781.44761 | P36: 61781.44761 | Q36: 63102.41208 | R36: 64426.35332 | S36: 65753.28713 | T36: 67083.22939 | U36: 68416.19605 | V36: 69752.20318 | W36: 71091.2669 | X36: 72433.40344 | Y36: 73778.62911 | Z36: 75126.9603 | AA36: 76478.41349 | AB36: 77833.00525 | AC36: 77833.00525 | AD36: 104606.38 | AE36: 143514.2704 | AF36: 196866.5587
C37: =IF(ROUND(C35-C19,0)<>0,"Checkline Problem"," ") ->  | D37: Checkline Problem | E37: Checkline Problem | F37: Checkline Problem | G37: Checkline Problem | H37: Checkline Problem | I37: Checkline Problem | J37: Checkline Problem | K37: Checkline Problem | L37: Checkline Problem | M37: Checkline Problem | N37: Checkline Problem | O37: Checkline Problem | P37: Checkline Problem | Q37: Checkline Problem | R37: Checkline Problem | S37: Checkline Problem | T37: Checkline Problem | U37: Checkline Problem | V37: Checkline Problem | W37: Checkline Problem | X37: Checkline Problem | Y37: Checkline Problem | Z37: Checkline Problem | AA37: Checkline Problem | AB37: Checkline Problem | AC37: Checkline Problem | AD37: Checkline Problem | AE37: Checkline Problem | AF37: Checkline Problem
D38: =D19-D35 -> 40750 | E38: =E19-E35 -> 35750 | F38: 35750 | G38: 35750 | H38: 35750 | I38: 35750 | J38: 35750 | K38: 35750 | L38: 35750 | M38: 35750 | N38: 35750 | O38: 35750 | P38: 35750 | Q38: 35750 | R38: 35750 | S38: 35750 | T38: 35750 | U38: 35750 | V38: 35750 | W38: 35750 | X38: 35750 | Y38: 35750 | Z38: 35750 | AA38: 35750 | AB38: 35750 | AC38: 35750 | AD38: 35750 | AE38: 35750 | AF38: 36637.11785

Sheet 12. Loan Detail
A1: Loan Ammortization
A2: ='0. Basic Info'!D11 -> My Business | D2: 1 | E2: 2 | F2: 3 | G2: 4 | H2: 5 | I2: 6 | J2: 7 | K2: 8 | L2: 9 | M2: 10 | N2: 11 | O2: 12 | Q2: 13 | R2: 14 | S2: 15 | T2: 16 | U2: 17 | V2: 18 | W2: 19 | X2: 20 | Y2: 21 | Z2: 22 | AA2: 23 | AB2: 24 | AD2: 25 | AE2: 26 | AF2: 27 | AG2: 28 | AH2: 29 | AI2: 30 | AJ2: 31 | AK2: 32 | AL2: 33 | AM2: 34 | AN2: 35 | AO2: 36 | AQ2: 37 | AR2: 38 | AS2: 39 | AT2: 40 | AU2: 41 | AV2: 42 | AW2: 43 | AX2: 44 | AY2: 45 | AZ2: 46 | BA2: 47 | BB2: 48 | BD2: 49 | BE2: 50 | BF2: 51 | BG2: 52 | BH2: 53 | BI2: 54 | BJ2: 55 | BK2: 56 | BL2: 57 | BM2: 58 | BN2: 59 | BO2: 60
A3: ='7. Funding Plan'!A22 -> Term Loan 1 | D3: =DATE('0. Basic Info'!D16,'0. Basic Info'!D17,1) -> 2019-01-01 | E3: =D3+31 -> 2019-02-01 | F3: =E3+31 -> 2019-03-04 | G3: =F3+31 -> 2019-04-04 | H3: =G3+31 -> 2019-05-05 | I3: 2019-06-05 | J3: 2019-07-06 | K3: 2019-08-06 | L3: 2019-09-06 | M3: 2019-10-07 | N3: 2019-11-07 | O3: 2019-12-08 | P3: =IF('0. Basic Info'!$D17=1,'0. Basic Info'!$D16,"Year 1") -> 2019 | Q3: =D3 -> 2019-01-01 | R3: =Q3+31 -> 2019-02-01 | S3: =R3+31 -> 2019-03-04 | T3: =S3+31 -> 2019-04-04 | U3: =T3+31 -> 2019-05-05 | V3: 2019-06-05 | W3: 2019-07-06 | X3: 2019-08-06 | Y3: 2019-09-06 | Z3: 2019-10-07 | AA3: 2019-11-07 | AB3: 2019-12-08 | AC3: =IF('0. Basic Info'!$D17=1,'0. Basic Info'!$D16+1,"Year 2") -> 2020 | AD3: =Q3 -> 2019-01-01 | AE3: =AD3+31 -> 2019-02-01 | AF3: =AE3+31 -> 2019-03-04 | AG3: =AF3+31 -> 2019-04-04 | AH3: =AG3+31 -> 2019-05-05 | AI3: 2019-06-05 | AJ3: 2019-07-06 | AK3: 2019-08-06 | AL3: 2019-09-06 | AM3: 2019-10-07 | AN3: 2019-11-07 | AO3: 2019-12-08 | AP3: =IF('0. Basic Info'!$D17=1,'0. Basic Info'!$D16+2,"Year 3") -> 2021 | AQ3: =AD3 -> 2019-01-01 | AR3: =AQ3+31 -> 2019-02-01 | AS3: =AR3+31 -> 2019-03-04 | AT3: =AS3+31 -> 2019-04-04 | AU3: =AT3+31 -> 2019-05-05 | AV3: 2019-06-05 | AW3: 2019-07-06 | AX3: 2019-08-06 | AY3: 2019-09-06 | AZ3: 2019-10-07 | BA3: 2019-11-07 | BB3: 2019-12-08 | BC3: =IF('0. Basic Info'!$D17=1,'0. Basic Info'!$D16+3,"Year 4") -> 2022 | BD3: =AQ3 -> 2019-01-01 | BE3: =BD3+31 -> 2019-02-01 | BF3: =BE3+31 -> 2019-03-04 | BG3: =BF3+31 -> 2019-04-04 | BH3: =BG3+31 -> 2019-05-05 | BI3: 2019-06-05 | BJ3: 2019-07-06 | BK3: 2019-08-06 | BL3: 2019-09-06 | BM3: 2019-10-07 | BN3: 2019-11-07 | BO3: 2019-12-08 | BP3: =IF('0. Basic Info'!$D17=1,'0. Basic Info'!$D16+4,"Year 5") -> 2023
A4: ='7. Funding Plan'!C22 -> 20000 | B4: Amount | C4: Balance | D4: =A4 -> 20000 | E4: =D8 -> 19495.35328 | F4: =E8 -> 18987.97305 | G4: 18477.84451 | H4: 17964.95278 | I4: 17449.28288 | J4: 16930.81977 | K4: 16409.54832 | L4: 15885.45332 | M4: 15358.51947 | N4: 14828.73139 | O4: 14296.07363 | P4: =D4 -> 20000 | Q4: =O8 -> 13760.53064 | R4: =Q8 -> 13222.08679 | S4: =R8 -> 12680.72636 | T4: 12136.43357 | U4: 11589.19253 | V4: 11038.98727 | W4: 10485.80172 | X4: 9929.61976 | Y4: 9370.425143 | Z4: 8808.201555 | AA4: 8242.932589 | AB4: 7674.601749 | AC4: =Q4 -> 13760.53064 | AD4: =IF(AB8<0.1,0,AB8) -> 7103.192451 | AE4: =AD8 -> 6528.68802 | AF4: =AE8 -> 5951.071689 | AG4: 5370.326603 | AH4: 4786.435815 | AI4: 4199.382284 | AJ4: 3609.148881 | AK4: 3015.71838 | AL4: 2419.073463 | AM4: 1819.19672 | AN4: 1216.070645 | AO4: 609.677637 | AP4: =AO4 -> 609.677637 | AQ4: =IF(AO8<0.1,0,AO8) -> 0 | AR4: =AQ8 -> 0 | AS4: =AR8 -> 0 | AT4: 0 | AU4: 0 | AV4: 0 | AW4: 0 | AX4: 0 | AY4: 0 | AZ4: 0 | BA4: 0 | BB4: 0 | BC4: =BB4 -> 0 | BD4: =IF(BB8<0.1,0,BB8) -> 0 | BE4: =BD8 -> 0 | BF4: =BE8 -> 0 | BG4: 0 | BH4: 0 | BI4: 0 | BJ4: 0 | BK4: 0 | BL4: 0 | BM4: 0 | BN4: 0 | BO4: 0 | BP4: =BO4 -> 0
A5: ='7. Funding Plan'!D22 -> 0.065 | B5: Interest | C5: Payment | D5: =IF(D4>0,PMT($A5/12,$A6*12,$A4)*-1,0) -> 612.9800575 | E5: =IF(E4>0,PMT($A5/12,$A6*12,$A4)*-1,0) -> 612.9800575 | F5: 612.9800575 | G5: 612.9800575 | H5: 612.9800575 | I5: 612.9800575 | J5: 612.9800575 | K5: 612.9800575 | L5: 612.9800575 | M5: 612.9800575 | N5: 612.9800575 | O5: 612.9800575 | P5: =SUM(D5:O5) -> 7355.76069 | Q5: 612.9800575 | R5: 612.9800575 | S5: 612.9800575 | T5: 612.9800575 | U5: 612.9800575 | V5: 612.9800575 | W5: 612.9800575 | X5: 612.9800575 | Y5: 612.9800575 | Z5: 612.9800575 | AA5: 612.9800575 | AB5: 612.9800575 | AC5: =SUM(Q5:AB5) -> 7355.76069 | AD5: 612.9800575 | AE5: 612.9800575 | AF5: 612.9800575 | AG5: 612.9800575 | AH5: 612.9800575 | AI5: 612.9800575 | AJ5: 612.9800575 | AK5: 612.9800575 | AL5: 612.9800575 | AM5: 612.9800575 | AN5: 612.9800575 | AO5: 612.9800575 | AP5: =SUM(AD5:AO5) -> 7355.76069 | AQ5: 0 | AR5: 0 | AS5: 0 | AT5: 0 | AU5: 0 | AV5: 0 | AW5: 0 | AX5: 0 | AY5: 0 | AZ5: 0 | BA5: 0 | BB5: 0 | BC5: =SUM(AQ5:BB5) -> 0 | BD5: 0 | BE5: 0 | BF5: 0 | BG5: 0 | BH5: 0 | BI5: 0 | BJ5: 0 | BK5: 0 | BL5: 0 | BM5: 0 | BN5: 0 | BO5: 0 | BP5: =SUM(BD5:BO5) -> 0
A6: ='7. Funding Plan'!E22 -> 3 | B6: Term | C6: Interest | D6: =$A5/12*D4 -> 108.3333333 | E6: =$A5/12*E4 -> 105.5998302 | F6: =$A5/12*F4 -> 102.8515207 | G6: 100.0883244 | H6: 97.31016088 | I6: 94.51694894 | J6: 91.70860711 | K6: 88.88505342 | L6: 86.04620548 | M6: 83.19198044 | N6: 80.32229503 | O6: 77.43706548 | P6: =SUM(D6:O6) -> 1116.291325 | Q6: =$A5/12*Q4 -> 74.53620761 | R6: 71.61963675 | S6: 68.68726781 | T6: 65.7390152 | U6: 62.77479288 | V6: 59.79451437 | W6: 56.79809267 | X6: 53.78544036 | Y6: 50.75646952 | Z6: 47.71109175 | AA6: 44.64921819 | AB6: 41.57075948 | AC6: =SUM(Q6:AB6) -> 698.4225066 | AD6: =$A5/12*AD4 -> 38.47562578 | AE6: 35.36372677 | AF6: 32.23497165 | AG6: 29.0892691 | AH6: 25.92652733 | AI6: 22.74665404 | AJ6: 19.54955644 | AK6: 16.33514122 | AL6: 13.10331459 | AM6: 9.853982236 | AN6: 6.587049328 | AO6: 3.302420534 | AP6: =SUM(AD6:AO6) -> 252.568239 | AQ6: =$A5/12*AQ4 -> 0 | AR6: 0 | AS6: 0 | AT6: 0 | AU6: 0 | AV6: 0 | AW6: 0 | AX6: 0 | AY6: 0 | AZ6: 0 | BA6: 0 | BB6: 0 | BC6: =SUM(AQ6:BB6) -> 0 | BD6: =$A5/12*BD4 -> 0 | BE6: 0 | BF6: 0 | BG6: 0 | BH6: 0 | BI6: 0 | BJ6: 0 | BK6: 0 | BL6: 0 | BM6: 0 | BN6: 0 | BO6: 0 | BP6: =SUM(BD6:BO6) -> 0
C7: Principal | D7: =D5-D6 -> 504.6467242 | E7: =E5-E6 -> 507.3802273 | F7: =F5-F6 -> 510.1285369 | G7: 512.8917331 | H7: 515.6698966 | I7: 518.4631086 | J7: 521.2714504 | K7: 524.0950041 | L7: 526.9338521 | M7: 529.7880771 | N7: 532.6577625 | O7: 535.542992 | P7: =SUM(D7:O7) -> 6239.469365 | Q7: =Q5-Q6 -> 538.4438499 | R7: 541.3604208 | S7: 544.2927897 | T7: 547.2410423 | U7: 550.2052646 | V7: 553.1855432 | W7: 556.1819649 | X7: 559.1946172 | Y7: 562.223588 | Z7: 565.2689658 | AA7: 568.3308393 | AB7: 571.4092981 | AC7: =SUM(Q7:AB7) -> 6657.338184 | AD7: =AD5-AD6 -> 574.5044318 | AE7: 577.6163308 | AF7: 580.7450859 | AG7: 583.8907884 | AH7: 587.0535302 | AI7: 590.2334035 | AJ7: 593.4305011 | AK7: 596.6449163 | AL7: 599.8767429 | AM7: 603.1260753 | AN7: 606.3930082 | AO7: 609.677637 | AP7: =SUM(AD7:AO7) -> 7103.192451 | AQ7: =AQ5-AQ6 -> 0 | AR7: 0 | AS7: 0 | AT7: 0 | AU7: 0 | AV7: 0 | AW7: 0 | AX7: 0 | AY7: 0 | AZ7: 0 | BA7: 0 | BB7: 0 | BC7: =SUM(AQ7:BB7) -> 0 | BD7: =BD5-BD6 -> 0 | BE7: 0 | BF7: 0 | BG7: 0 | BH7: 0 | BI7: 0 | BJ7: 0 | BK7: 0 | BL7: 0 | BM7: 0 | BN7: 0 | BO7: 0 | BP7: =SUM(BD7:BO7) -> 0
C8: Ending | D8: =IF(D4-D7<0,0,D4-D7) -> 19495.35328 | E8: =IF(E4-E7<0,0,E4-E7) -> 18987.97305 | F8: 18477.84451 | G8: 17964.95278 | H8: 17449.28288 | I8: 16930.81977 | J8: 16409.54832 | K8: 15885.45332 | L8: 15358.51947 | M8: 14828.73139 | N8: 14296.07363 | O8: 13760.53064 | P8: =O8 -> 13760.53064 | Q8: 13222.08679 | R8: 12680.72636 | S8: 12136.43357 | T8: 11589.19253 | U8: 11038.98727 | V8: 10485.80172 | W8: 9929.61976 | X8: 9370.425143 | Y8: 8808.201555 | Z8: 8242.932589 | AA8: 7674.601749 | AB8: 7103.192451 | AC8: =AB8 -> 7103.192451 | AD8: 6528.68802 | AE8: 5951.071689 | AF8: 5370.326603 | AG8: 4786.435815 | AH8: 4199.382284 | AI8: 3609.148881 | AJ8: 3015.71838 | AK8: 2419.073463 | AL8: 1819.19672 | AM8: 1216.070645 | AN8: 609.677637 | AO8: 0 | AP8: =AO8 -> 0 | AQ8: 0 | AR8: 0 | AS8: 0 | AT8: 0 | AU8: 0 | AV8: 0 | AW8: 0 | AX8: 0 | AY8: 0 | AZ8: 0 | BA8: 0 | BB8: 0 | BC8: =BB8 -> 0 | BD8: 0 | BE8: 0 | BF8: 0 | BG8: 0 | BH8: 0 | BI8: 0 | BJ8: 0 | BK8: 0 | BL8: 0 | BM8: 0 | BN8: 0 | BO8: 0 | BP8: =BO8 -> 0
D10: 1 | E10: 2 | F10: 3 | G10: 4 | H10: 5 | I10: 6 | J10: 7 | K10: 8 | L10: 9 | M10: 10 | N10: 11 | O10: 12 | Q10: 13 | R10: 14 | S10: 15 | T10: 16 | U10: 17 | V10: 18 | W10: 19 | X10: 20 | Y10: 21 | Z10: 22 | AA10: 23 | AB10: 24 | AD10: 25 | AE10: 26 | AF10: 27 | AG10: 28 | AH10: 29 | AI10: 30 | AJ10: 31 | AK10: 32 | AL10: 33 | AM10: 34 | AN10: 35 | AO10: 36 | AQ10: 37 | AR10: 38 | AS10: 39 | AT10: 40 | AU10: 41 | AV10: 42 | AW10: 43 | AX10: 44 | AY10: 45 | AZ10: 46 | BA10: 47 | BB10: 48 | BD10: 49 | BE10: 50 | BF10: 51 | BG10: 52 | BH10: 53 | BI10: 54 | BJ10: 55 | BK10: 56 | BL10: 57 | BM10: 58 | BN10: 59 | BO10: 60
A11: ='7. Funding Plan'!A23 -> Term Loan 2 | D11: =D3 -> 2019-01-01 | E11: =D11+31 -> 2019-02-01 | F11: =E11+31 -> 2019-03-04 | G11: =F11+31 -> 2019-04-04 | H11: =G11+31 -> 2019-05-05 | I11: 2019-06-05 | J11: 2019-07-06 | K11: 2019-08-06 | L11: 2019-09-06 | M11: 2019-10-07 | N11: 2019-11-07 | O11: 2019-12-08 | P11: =P3 -> 2019 | Q11: =D11 -> 2019-01-01 | R11: =Q11+31 -> 2019-02-01 | S11: =R11+31 -> 2019-03-04 | T11: =S11+31 -> 2019-04-04 | U11: =T11+31 -> 2019-05-05 | V11: 2019-06-05 | W11: 2019-07-06 | X11: 2019-08-06 | Y11: 2019-09-06 | Z11: 2019-10-07 | AA11: 2019-11-07 | AB11: 2019-12-08 | AC11: =AC3 -> 2020 | AD11: =Q11 -> 2019-01-01 | AE11: =AD11+31 -> 2019-02-01 | AF11: =AE11+31 -> 2019-03-04 | AG11: =AF11+31 -> 2019-04-04 | AH11: =AG11+31 -> 2019-05-05 | AI11: 2019-06-05 | AJ11: 2019-07-06 | AK11: 2019-08-06 | AL11: 2019-09-06 | AM11: 2019-10-07 | AN11: 2019-11-07 | AO11: 2019-12-08 | AP11: =AP3 -> 2021 | AQ11: =AD11 -> 2019-01-01 | AR11: =AQ11+31 -> 2019-02-01 | AS11: =AR11+31 -> 2019-03-04 | AT11: =AS11+31 -> 2019-04-04 | AU11: =AT11+31 -> 2019-05-05 | AV11: 2019-06-05 | AW11: 2019-07-06 | AX11: 2019-08-06 | AY11: 2019-09-06 | AZ11: 2019-10-07 | BA11: 2019-11-07 | BB11: 2019-12-08 | BC11: =BC3 -> 2022 | BD11: =AQ11 -> 2019-01-01 | BE11: =BD11+31 -> 2019-02-01 | BF11: =BE11+31 -> 2019-03-04 | BG11: =BF11+31 -> 2019-04-04 | BH11: =BG11+31 -> 2019-05-05 | BI11: 2019-06-05 | BJ11: 2019-07-06 | BK11: 2019-08-06 | BL11: 2019-09-06 | BM11: 2019-10-07 | BN11: 2019-11-07 | BO11: 2019-12-08 | BP11: =BP3 -> 2023
A12: ='7. Funding Plan'!C23 -> 10000 | B12: Amount | C12: Balance | D12: =A12 -> 10000 | E12: =D16 -> 9935.601151 | F12: =E16 -> 9870.933974 | G12: =F16 -> 9805.997351 | H12: =G16 -> 9740.790158 | I12: =H16 -> 9675.311268 | J12: =I16 -> 9609.55955 | K12: =J16 -> 9543.533866 | L12: =K16 -> 9477.233075 | M12: =L16 -> 9410.656031 | N12: =M16 -> 9343.801583 | O12: =N16 -> 9276.668574 | P12: =D12 -> 10000 | Q12: =O16 -> 9209.255845 | R12: =Q16 -> 9141.562229 | S12: =R16 -> 9073.586556 | T12: =S16 -> 9005.327651 | U12: =T16 -> 8936.784335 | V12: =U16 -> 8867.955421 | W12: =V16 -> 8798.83972 | X12: =W16 -> 8729.436037 | Y12: =X16 -> 8659.743172 | Z12: =Y16 -> 8589.75992 | AA12: =Z16 -> 8519.485071 | AB12: =AA16 -> 8448.91741 | AC12: =Q12 -> 9209.255845 | AD12: =IF(AB16<0.1,0,AB16) -> 8378.055717 | AE12: =AD16 -> 8306.898768 | AF12: =AE16 -> 8235.445331 | AG12: =AF16 -> 8163.694171 | AH12: =AG16 -> 8091.644048 | AI12: =AH16 -> 8019.293716 | AJ12: =AI16 -> 7946.641925 | AK12: =AJ16 -> 7873.687418 | AL12: =AK16 -> 7800.428933 | AM12: =AL16 -> 7726.865205 | AN12: =AM16 -> 7652.994962 | AO12: =AN16 -> 7578.816926 | AP12: =AO12 -> 7578.816926 | AQ12: =IF(AO16<0.1,0,AO16) -> 7504.329814 | AR12: =AQ16 -> 7429.53234 | AS12: =AR16 -> 7354.423209 | AT12: =AS16 -> 7279.001124 | AU12: =AT16 -> 7203.26478 | AV12: =AU16 -> 7127.212868 | AW12: =AV16 -> 7050.844073 | AX12: =AW16 -> 6974.157075 | AY12: =AX16 -> 6897.150548 | AZ12: =AY16 -> 6819.82316 | BA12: =AZ16 -> 6742.173574 | BB12: =BA16 -> 6664.200449 | BC12: =BB12 -> 6664.200449 | BD12: =IF(BB16<0.1,0,BB16) -> 6585.902436 | BE12: =BD16 -> 6507.27818 | BF12: =BE16 -> 6428.326324 | BG12: =BF16 -> 6349.045502 | BH12: =BG16 -> 6269.434343 | BI12: =BH16 -> 6189.491471 | BJ12: =BI16 -> 6109.215503 | BK12: =BJ16 -> 6028.605053 | BL12: =BK16 -> 5947.658725 | BM12: =BL16 -> 5866.375121 | BN12: =BM16 -> 5784.752836 | BO12: =BN16 -> 5702.790457 | BP12: =BO12 -> 5702.790457
A13: ='7. Funding Plan'!D23 -> 0.05 | B13: Interest | C13: Payment | D13: =IF(D12>0,PMT($A13/12,$A14*12,$A12)*-1,0) -> 106.0655152 | E13: 106.0655152 | F13: 106.0655152 | G13: 106.0655152 | H13: 106.0655152 | I13: 106.0655152 | J13: 106.0655152 | K13: 106.0655152 | L13: 106.0655152 | M13: 106.0655152 | N13: 106.0655152 | O13: 106.0655152 | P13: =SUM(D13:O13) -> 1272.786183 | Q13: =IF(Q12>0,PMT($A13/12,$A14*12,$A12)*-1,0) -> 106.0655152 | R13: 106.0655152 | S13: 106.0655152 | T13: 106.0655152 | U13: 106.0655152 | V13: 106.0655152 | W13: 106.0655152 | X13: 106.0655152 | Y13: 106.0655152 | Z13: 106.0655152 | AA13: 106.0655152 | AB13: 106.0655152 | AC13: =SUM(Q13:AB13) -> 1272.786183 | AD13: =IF(AD12>0,PMT($A13/12,$A14*12,$A12)*-1,0) -> 106.0655152 | AE13: 106.0655152 | AF13: 106.0655152 | AG13: 106.0655152 | AH13: 106.0655152 | AI13: 106.0655152 | AJ13: 106.0655152 | AK13: 106.0655152 | AL13: 106.0655152 | AM13: 106.0655152 | AN13: 106.0655152 | AO13: 106.0655152 | AP13: =SUM(AD13:AO13) -> 1272.786183 | AQ13: =IF(AQ12>0,PMT($A13/12,$A14*12,$A12)*-1,0) -> 106.0655152 | AR13: 106.0655152 | AS13: 106.0655152 | AT13: 106.0655152 | AU13: 106.0655152 | AV13: 106.0655152 | AW13: 106.0655152 | AX13: 106.0655152 | AY13: 106.0655152 | AZ13: 106.0655152 | BA13: 106.0655152 | BB13: 106.0655152 | BC13: =SUM(AQ13:BB13) -> 1272.786183 | BD13: =IF(BD12>0,PMT($A13/12,$A14*12,$A12)*-1,0) -> 106.0655152 | BE13: 106.0655152 | BF13: 106.0655152 | BG13: 106.0655152 | BH13: 106.0655152 | BI13: 106.0655152 | BJ13: 106.0655152 | BK13: 106.0655152 | BL13: 106.0655152 | BM13: 106.0655152 | BN13: 106.0655152 | BO13: 106.0655152 | BP13: =SUM(BD13:BO13) -> 1272.786183
A14: ='7. Funding Plan'!E23 -> 10 | B14: Term | C14: Interest | D14: =$A13/12*D12 -> 41.66666667 | E14: 41.39833813 | F14: 41.12889156 | G14: 40.85832229 | H14: 40.58662566 | I14: 40.31379695 | J14: 40.03983146 | K14: 39.76472444 | L14: 39.48847115 | M14: 39.2110668 | N14: 38.93250659 | O14: 38.65278573 | P14: =SUM(D14:O14) -> 482.0420274 | Q14: =$A13/12*Q12 -> 38.37189935 | R14: 38.08984262 | S14: 37.80661065 | T14: 37.52219855 | U14: 37.23660139 | V14: 36.94981425 | W14: 36.66183217 | X14: 36.37265015 | Y14: 36.08226322 | Z14: 35.79066633 | AA14: 35.49785446 | AB14: 35.20382254 | AC14: =SUM(Q14:AB14) -> 441.5860557 | AD14: =$A13/12*AD12 -> 34.90856549 | AE14: 34.6120782 | AF14: 34.31435554 | AG14: 34.01539238 | AH14: 33.71518353 | AI14: 33.41372382 | AJ14: 33.11100802 | AK14: 32.80703091 | AL14: 32.50178722 | AM14: 32.19527169 | AN14: 31.88747901 | AO14: 31.57840386 | AP14: =SUM(AD14:AO14) -> 399.0602797 | AQ14: =$A13/12*AQ12 -> 31.26804089 | AR14: 30.95638475 | AS14: 30.64343004 | AT14: 30.32917135 | AU14: 30.01360325 | AV14: 29.69672028 | AW14: 29.37851697 | AX14: 29.05898781 | AY14: 28.73812728 | AZ14: 28.41592983 | BA14: 28.09238989 | BB14: 27.76750187 | BC14: =SUM(AQ14:BB14) -> 354.3588042 | BD14: =$A13/12*BD12 -> 27.44126015 | BE14: 27.11365909 | BF14: 26.78469302 | BG14: 26.45435626 | BH14: 26.1226431 | BI14: 25.7895478 | BJ14: 25.4550646 | BK14: 25.11918772 | BL14: 24.78191136 | BM14: 24.44322967 | BN14: 24.10313682 | BO14: 23.76162691 | BP14: =SUM(BD14:BO14) -> 307.3703165
C15: Principal | D15: =D13-D14 -> 64.39884857 | E15: 64.66717711 | F15: 64.93662368 | G15: 65.20719294 | H15: 65.47888958 | I15: 65.75171829 | J15: 66.02568378 | K15: 66.3007908 | L15: 66.57704409 | M15: 66.85444844 | N15: 67.13300864 | O15: 67.41272951 | P15: =SUM(D15:O15) -> 790.7441554 | Q15: =Q13-Q14 -> 67.69361589 | R15: 67.97567262 | S15: 68.25890459 | T15: 68.54331669 | U15: 68.82891384 | V15: 69.11570099 | W15: 69.40368307 | X15: 69.69286509 | Y15: 69.98325202 | Z15: 70.27484891 | AA15: 70.56766078 | AB15: 70.8616927 | AC15: =SUM(Q15:AB15) -> 831.2001272 | AD15: =AD13-AD14 -> 71.15694975 | AE15: 71.45343704 | AF15: 71.75115969 | AG15: 72.05012286 | AH15: 72.35033171 | AI15: 72.65179142 | AJ15: 72.95450722 | AK15: 73.25848433 | AL15: 73.56372802 | AM15: 73.87024355 | AN15: 74.17803623 | AO15: 74.48711138 | AP15: =SUM(AD15:AO15) -> 873.7259032 | AQ15: =AQ13-AQ14 -> 74.79747435 | AR15: 75.10913049 | AS15: 75.4220852 | AT15: 75.73634389 | AU15: 76.05191199 | AV15: 76.36879495 | AW15: 76.68699827 | AX15: 77.00652743 | AY15: 77.32738796 | AZ15: 77.64958541 | BA15: 77.97312535 | BB15: 78.29801337 | BC15: =SUM(AQ15:BB15) -> 918.4273786 | BD15: =BD13-BD14 -> 78.62425509 | BE15: 78.95185615 | BF15: 79.28082222 | BG15: 79.61115898 | BH15: 79.94287214 | BI15: 80.27596744 | BJ15: 80.61045064 | BK15: 80.94632752 | BL15: 81.28360388 | BM15: 81.62228557 | BN15: 81.96237842 | BO15: 82.30388833 | BP15: =SUM(BD15:BO15) -> 965.4158664
C16: Ending | D16: =IF(D12-D15<0,0,D12-D15) -> 9935.601151 | E16: 9870.933974 | F16: 9805.997351 | G16: 9740.790158 | H16: 9675.311268 | I16: 9609.55955 | J16: 9543.533866 | K16: 9477.233075 | L16: 9410.656031 | M16: 9343.801583 | N16: 9276.668574 | O16: 9209.255845 | P16: =O16 -> 9209.255845 | Q16: =IF(Q12-Q15<0,0,Q12-Q15) -> 9141.562229 | R16: 9073.586556 | S16: 9005.327651 | T16: 8936.784335 | U16: 8867.955421 | V16: 8798.83972 | W16: 8729.436037 | X16: 8659.743172 | Y16: 8589.75992 | Z16: 8519.485071 | AA16: 8448.91741 | AB16: 8378.055717 | AC16: =AB16 -> 8378.055717 | AD16: =IF(AD12-AD15<0,0,AD12-AD15) -> 8306.898768 | AE16: 8235.445331 | AF16: 8163.694171 | AG16: 8091.644048 | AH16: 8019.293716 | AI16: 7946.641925 | AJ16: 7873.687418 | AK16: 7800.428933 | AL16: 7726.865205 | AM16: 7652.994962 | AN16: 7578.816926 | AO16: 7504.329814 | AP16: =AO16 -> 7504.329814 | AQ16: =IF(AQ12-AQ15<0,0,AQ12-AQ15) -> 7429.53234 | AR16: 7354.423209 | AS16: 7279.001124 | AT16: 7203.26478 | AU16: 7127.212868 | AV16: 7050.844073 | AW16: 6974.157075 | AX16: 6897.150548 | AY16: 6819.82316 | AZ16: 6742.173574 | BA16: 6664.200449 | BB16: 6585.902436 | BC16: =BB16 -> 6585.902436 | BD16: =IF(BD12-BD15<0,0,BD12-BD15) -> 6507.27818 | BE16: 6428.326324 | BF16: 6349.045502 | BG16: 6269.434343 | BH16: 6189.491471 | BI16: 6109.215503 | BJ16: 6028.605053 | BK16: 5947.658725 | BL16: 5866.375121 | BM16: 5784.752836 | BN16: 5702.790457 | BO16: 5620.486569 | BP16: =BO16 -> 5620.486569
A18: Line of Credit or Credit | D18: 1 | E18: 2 | F18: 3 | G18: 4 | H18: 5 | I18: 6 | J18: 7 | K18: 8 | L18: 9 | M18: 10 | N18: 11 | O18: 12 | Q18: 13 | R18: 14 | S18: 15 | T18: 16 | U18: 17 | V18: 18 | W18: 19 | X18: 20 | Y18: 21 | Z18: 22 | AA18: 23 | AB18: 24 | AD18: 25 | AE18: 26 | AF18: 27 | AG18: 28 | AH18: 29 | AI18: 30 | AJ18: 31 | AK18: 32 | AL18: 33 | AM18: 34 | AN18: 35 | AO18: 36 | AQ18: 37 | AR18: 38 | AS18: 39 | AT18: 40 | AU18: 41 | AV18: 42 | AW18: 43 | AX18: 44 | AY18: 45 | AZ18: 46 | BA18: 47 | BB18: 48 | BD18: 49 | BE18: 50 | BF18: 51 | BG18: 52 | BH18: 53 | BI18: 54 | BJ18: 55 | BK18: 56 | BL18: 57 | BM18: 58 | BN18: 59 | BO18: 60
B19: Cards | D19: =D11 -> 2019-01-01 | E19: =D19+31 -> 2019-02-01 | F19: =E19+31 -> 2019-03-04 | G19: =F19+31 -> 2019-04-04 | H19: =G19+31 -> 2019-05-05 | I19: 2019-06-05 | J19: 2019-07-06 | K19: 2019-08-06 | L19: 2019-09-06 | M19: 2019-10-07 | N19: 2019-11-07 | O19: 2019-12-08 | P19: =P11 -> 2019 | Q19: =D19 -> 2019-01-01 | R19: =Q19+31 -> 2019-02-01 | S19: =R19+31 -> 2019-03-04 | T19: =S19+31 -> 2019-04-04 | U19: =T19+31 -> 2019-05-05 | V19: 2019-06-05 | W19: 2019-07-06 | X19: 2019-08-06 | Y19: 2019-09-06 | Z19: 2019-10-07 | AA19: 2019-11-07 | AB19: 2019-12-08 | AC19: =AC11 -> 2020 | AD19: =Q19 -> 2019-01-01 | AE19: =AD19+31 -> 2019-02-01 | AF19: =AE19+31 -> 2019-03-04 | AG19: =AF19+31 -> 2019-04-04 | AH19: =AG19+31 -> 2019-05-05 | AI19: 2019-06-05 | AJ19: 2019-07-06 | AK19: 2019-08-06 | AL19: 2019-09-06 | AM19: 2019-10-07 | AN19: 2019-11-07 | AO19: 2019-12-08 | AP19: =AP11 -> 2021 | AQ19: =AD19 -> 2019-01-01 | AR19: =AQ19+31 -> 2019-02-01 | AS19: =AR19+31 -> 2019-03-04 | AT19: =AS19+31 -> 2019-04-04 | AU19: =AT19+31 -> 2019-05-05 | AV19: 2019-06-05 | AW19: 2019-07-06 | AX19: 2019-08-06 | AY19: 2019-09-06 | AZ19: 2019-10-07 | BA19: 2019-11-07 | BB19: 2019-12-08 | BC19: =BC11 -> 2022 | BD19: =AQ19 -> 2019-01-01 | BE19: =BD19+31 -> 2019-02-01 | BF19: =BE19+31 -> 2019-03-04 | BG19: =BF19+31 -> 2019-04-04 | BH19: =BG19+31 -> 2019-05-05 | BI19: 2019-06-05 | BJ19: 2019-07-06 | BK19: 2019-08-06 | BL19: 2019-09-06 | BM19: 2019-10-07 | BN19: 2019-11-07 | BO19: 2019-12-08 | BP19: =BP11 -> 2023
A20: ='7. Funding Plan'!C18 -> 0 | B20: Start | C20: Balance | D20: =A20 -> 0 | E20: =D25 -> 0 | F20: =E25 -> 0 | G20: 0 | H20: 0 | I20: 0 | J20: 0 | K20: 0 | L20: 0 | M20: 0 | N20: 0 | O20: 0 | P20: =D20 -> 0 | Q20: =O25 -> 0 | R20: =Q25 -> 0 | S20: 0 | T20: 0 | U20: 0 | V20: 0 | W20: 0 | X20: 0 | Y20: 0 | Z20: 0 | AA20: 0 | AB20: 0 | AC20: =Q20 -> 0 | AD20: =AB25 -> 0 | AE20: =AD25 -> 0 | AF20: =AE25 -> 0 | AG20: =AF25 -> 0 | AH20: =AG25 -> 0 | AI20: =AH25 -> 0 | AJ20: =AI25 -> 0 | AK20: =AJ25 -> 0 | AL20: =AK25 -> 0 | AM20: =AL25 -> 0 | AN20: =AM25 -> 0 | AO20: =AN25 -> 0 | AP20: =AO25 -> 0 | AQ20: =AO25 -> 0 | AR20: =AQ25 -> 0 | AS20: =AR25 -> 0 | AT20: =AS25 -> 0 | AU20: =AT25 -> 0 | AV20: =AU25 -> 0 | AW20: =AV25 -> 0 | AX20: =AW25 -> 0 | AY20: =AX25 -> 0 | AZ20: =AY25 -> 0 | BA20: =AZ25 -> 0 | BB20: =BA25 -> 0 | BC20: =BB23 -> 0 | BD20: =BB25 -> 0 | BE20: =BD25 -> 0 | BF20: =BE25 -> 0 | BG20: =BF25 -> 0 | BH20: =BG25 -> 0 | BI20: =BH25 -> 0 | BJ20: =BI25 -> 0 | BK20: =BJ25 -> 0 | BL20: =BK25 -> 0 | BM20: =BL25 -> 0 | BN20: =BM25 -> 0 | BO20: =BN25 -> 0 | BP20: =BO23 -> 0
A21: ='7. Funding Plan'!D19 -> 0.15 | B21: Interest | C21: Interest | D21: =IF(D20<0,0,$A21/12*D20) -> 0 | E21: =IF(E20<0,0,$A21/12*E20) -> 0 | F21: =IF(F20<0,0,$A21/12*F20) -> 0 | G21: 0 | H21: 0 | I21: 0 | J21: 0 | K21: 0 | L21: 0 | M21: 0 | N21: 0 | O21: 0 | P21: =SUM(D21:O21) -> 0 | Q21: =IF(Q20<0,0,$A21/12*Q20) -> 0 | R21: 0 | S21: 0 | T21: 0 | U21: 0 | V21: 0 | W21: 0 | X21: 0 | Y21: 0 | Z21: 0 | AA21: 0 | AB21: 0 | AC21: =SUM(Q21:AB21) -> 0 | AD21: =IF(AD20<0,0,$A21/12*AD20) -> 0 | AE21: 0 | AF21: 0 | AG21: 0 | AH21: 0 | AI21: 0 | AJ21: 0 | AK21: 0 | AL21: 0 | AM21: 0 | AN21: 0 | AO21: 0 | AP21: =IF(AP20<0,0,$A21/12*AP20) -> 0 | AQ21: 0 | AR21: 0 | AS21: 0 | AT21: 0 | AU21: 0 | AV21: 0 | AW21: 0 | AX21: 0 | AY21: 0 | AZ21: 0 | BA21: 0 | BB21: 0 | BC21: =IF(BC20<0,0,$A21/12*BC20) -> 0 | BD21: 0 | BE21: 0 | BF21: 0 | BG21: 0 | BH21: 0 | BI21: 0 | BJ21: 0 | BK21: 0 | BL21: 0 | BM21: 0 | BN21: 0 | BO21: 0 | BP21: =IF(BP20<0,0,$A21/12*BP20) -> 0
C22: Payment | D22: ='8. P&L and Cashflow'!D75 -> 2500 | E22: ='8. P&L and Cashflow'!E75 -> 0 | F22: ='8. P&L and Cashflow'!F75 -> 0 | G22: ='8. P&L and Cashflow'!G75 -> 0 | H22: ='8. P&L and Cashflow'!H75 -> 0 | I22: ='8. P&L and Cashflow'!I75 -> 0 | J22: ='8. P&L and Cashflow'!J75 -> 0 | K22: ='8. P&L and Cashflow'!K75 -> 0 | L22: ='8. P&L and Cashflow'!L75 -> 0 | M22: ='8. P&L and Cashflow'!M75 -> 0 | N22: ='8. P&L and Cashflow'!N75 -> 0 | O22: ='8. P&L and Cashflow'!O75 -> 0 | P22: =SUM(D22:O22) -> 2500 | Q22: ='8. P&L and Cashflow'!Q75 -> 0 | R22: ='8. P&L and Cashflow'!R75 -> 0 | S22: ='8. P&L and Cashflow'!S75 -> 0 | T22: ='8. P&L and Cashflow'!T75 -> 0 | U22: ='8. P&L and Cashflow'!U75 -> 0 | V22: ='8. P&L and Cashflow'!V75 -> 0 | W22: ='8. P&L and Cashflow'!W75 -> 0 | X22: ='8. P&L and Cashflow'!X75 -> 0 | Y22: ='8. P&L and Cashflow'!Y75 -> 0 | Z22: ='8. P&L and Cashflow'!Z75 -> 0 | AA22: ='8. P&L and Cashflow'!AA75 -> 0 | AB22: ='8. P&L and Cashflow'!AB75 -> 0 | AC22: =SUM(Q22:AB22) -> 0 | AD22: ='8. P&L and Cashflow'!AD75 -> 0 | AE22: ='8. P&L and Cashflow'!AE75 -> 0 | AF22: ='8. P&L and Cashflow'!AF75 -> 0 | AG22: ='8. P&L and Cashflow'!AG75 -> 0 | AH22: ='8. P&L and Cashflow'!AH75 -> 0 | AI22: ='8. P&L and Cashflow'!AI75 -> 0 | AJ22: ='8. P&L and Cashflow'!AJ75 -> 0 | AK22: ='8. P&L and Cashflow'!AK75 -> 0 | AL22: ='8. P&L and Cashflow'!AL75 -> 0 | AM22: ='8. P&L and Cashflow'!AM75 -> 0 | AN22: ='8. P&L and Cashflow'!AN75 -> 0 | AO22: ='8. P&L and Cashflow'!AO75 -> 0 | AP22: ='8. P&L and Cashflow'!AD75 -> 0 | AQ22: ='8. P&L and Cashflow'!AQ75 -> 0 | AR22: ='8. P&L and Cashflow'!AR75 -> 0 | AS22: ='8. P&L and Cashflow'!AS75 -> 0 | AT22: ='8. P&L and Cashflow'!AT75 -> 0 | AU22: ='8. P&L and Cashflow'!AU75 -> 0 | AV22: ='8. P&L and Cashflow'!AV75 -> 0 | AW22: ='8. P&L and Cashflow'!AW75 -> 0 | AX22: ='8. P&L and Cashflow'!AX75 -> 0 | AY22: ='8. P&L and Cashflow'!AY75 -> 0 | AZ22: ='8. P&L and Cashflow'!AZ75 -> 0 | BA22: ='8. P&L and Cashflow'!BA75 -> 0 | BB22: ='8. P&L and Cashflow'!BB75 -> 0 | BC22: ='8. P&L and Cashflow'!AE75 -> 0 | BD22: ='8. P&L and Cashflow'!BD75 -> 0 | BE22: ='8. P&L and Cashflow'!BE75 -> 0 | BF22: ='8. P&L and Cashflow'!BF75 -> 0 | BG22: ='8. P&L and Cashflow'!BG75 -> 0 | BH22: ='8. P&L and Cashflow'!BH75 -> 0 | BI22: ='8. P&L and Cashflow'!BI75 -> 0 | BJ22: ='8. P&L and Cashflow'!BJ75 -> 0 | BK22: ='8. P&L and Cashflow'!BK75 -> 0 | BL22: ='8. P&L and Cashflow'!BL75 -> 0 | BM22: ='8. P&L and Cashflow'!BM75 -> 0 | BN22: ='8. P&L and Cashflow'!BN75 -> 0 | BO22: ='8. P&L and Cashflow'!BO75 -> 0 | BP22: ='8. P&L and Cashflow'!AF75 -> 0
C23: Principal | D23: =IF(D22-D21<0,0,D22-D21) -> 2500 | E23: =IF(E22-E21<0,0,E22-E21) -> 0 | F23: 0 | G23: 0 | H23: 0 | I23: 0 | J23: 0 | K23: 0 | L23: 0 | M23: 0 | N23: 0 | O23: 0 | P23: 2500 | Q23: 0 | R23: 0 | S23: 0 | T23: 0 | U23: 0 | V23: 0 | W23: 0 | X23: 0 | Y23: 0 | Z23: 0 | AA23: 0 | AB23: 0 | AC23: 0 | AD23: =IF(AD22-AD21<0,0,AD22-AD21) -> 0 | AE23: 0 | AF23: 0 | AG23: 0 | AH23: 0 | AI23: 0 | AJ23: 0 | AK23: 0 | AL23: 0 | AM23: 0 | AN23: 0 | AO23: 0 | AP23: 0 | AQ23: 0 | AR23: 0 | AS23: 0 | AT23: 0 | AU23: 0 | AV23: 0 | AW23: 0 | AX23: 0 | AY23: 0 | AZ23: 0 | BA23: 0 | BB23: 0 | BC23: 0 | BD23: =IF(BD22-BD21<0,0,BD22-BD21) -> 0 | BE23: 0 | BF23: 0 | BG23: 0 | BH23: 0 | BI23: 0 | BJ23: 0 | BK23: 0 | BL23: 0 | BM23: 0 | BN23: 0 | BO23: 0 | BP23: 0
C24: Charges | D24: ='8. P&L and Cashflow'!D70 -> 2500 | E24: ='8. P&L and Cashflow'!E70 -> 0 | F24: ='8. P&L and Cashflow'!F70 -> 0 | G24: ='8. P&L and Cashflow'!G70 -> 0 | H24: ='8. P&L and Cashflow'!H70 -> 0 | I24: ='8. P&L and Cashflow'!I70 -> 0 | J24: ='8. P&L and Cashflow'!J70 -> 0 | K24: ='8. P&L and Cashflow'!K70 -> 0 | L24: ='8. P&L and Cashflow'!L70 -> 0 | M24: ='8. P&L and Cashflow'!M70 -> 0 | N24: ='8. P&L and Cashflow'!N70 -> 0 | O24: ='8. P&L and Cashflow'!O70 -> 0 | P24: =SUM(D24:O24) -> 2500 | Q24: ='8. P&L and Cashflow'!Q70 -> 0 | R24: ='8. P&L and Cashflow'!R70 -> 0 | S24: ='8. P&L and Cashflow'!S70 -> 0 | T24: ='8. P&L and Cashflow'!T70 -> 0 | U24: ='8. P&L and Cashflow'!U70 -> 0 | V24: ='8. P&L and Cashflow'!V70 -> 0 | W24: ='8. P&L and Cashflow'!W70 -> 0 | X24: ='8. P&L and Cashflow'!X70 -> 0 | Y24: ='8. P&L and Cashflow'!Y70 -> 0 | Z24: ='8. P&L and Cashflow'!Z70 -> 0 | AA24: ='8. P&L and Cashflow'!AA70 -> 0 | AB24: ='8. P&L and Cashflow'!AB70 -> 0 | AC24: =SUM(Q24:AB24) -> 0 | AD24: ='8. P&L and Cashflow'!AD70 -> 0 | AE24: ='8. P&L and Cashflow'!AE70 -> 0 | AF24: ='8. P&L and Cashflow'!AF70 -> 0 | AG24: ='8. P&L and Cashflow'!AG70 -> 0 | AH24: ='8. P&L and Cashflow'!AH70 -> 0 | AI24: ='8. P&L and Cashflow'!AI70 -> 0 | AJ24: ='8. P&L and Cashflow'!AJ70 -> 0 | AK24: ='8. P&L and Cashflow'!AK70 -> 0 | AL24: ='8. P&L and Cashflow'!AL70 -> 0 | AM24: ='8. P&L and Cashflow'!AM70 -> 0 | AN24: ='8. P&L and Cashflow'!AN70 -> 0 | AO24: ='8. P&L and Cashflow'!AO70 -> 0 | AP24: ='8. P&L and Cashflow'!AD70 -> 0 | AQ24: ='8. P&L and Cashflow'!AQ70 -> 0 | AR24: ='8. P&L and Cashflow'!AR70 -> 0 | AS24: ='8. P&L and Cashflow'!AS70 -> 0 | AT24: ='8. P&L and Cashflow'!AT70 -> 0 | AU24: ='8. P&L and Cashflow'!AU70 -> 0 | AV24: ='8. P&L and Cashflow'!AV70 -> 0 | AW24: ='8. P&L and Cashflow'!AW70 -> 0 | AX24: ='8. P&L and Cashflow'!AX70 -> 0 | AY24: ='8. P&L and Cashflow'!AY70 -> 0 | AZ24: ='8. P&L and Cashflow'!AZ70 -> 0 | BA24: ='8. P&L and Cashflow'!BA70 -> 0 | BB24: ='8. P&L and Cashflow'!BB70 -> 0 | BC24: ='8. P&L and Cashflow'!AE70 -> 0 | BD24: ='8. P&L and Cashflow'!BD70 -> 0 | BE24: ='8. P&L and Cashflow'!BE70 -> 0 | BF24: ='8. P&L and Cashflow'!BF70 -> 0 | BG24: ='8. P&L and Cashflow'!BG70 -> 0 | BH24: ='8. P&L and Cashflow'!BH70 -> 0 | BI24: ='8. P&L and Cashflow'!BI70 -> 0 | BJ24: ='8. P&L and Cashflow'!BJ70 -> 0 | BK24: ='8. P&L and Cashflow'!BK70 -> 0 | BL24: ='8. P&L and Cashflow'!BL70 -> 0 | BM24: ='8. P&L and Cashflow'!BM70 -> 0 | BN24: ='8. P&L and Cashflow'!BN70 -> 0 | BO24: ='8. P&L and Cashflow'!BO70 -> 0 | BP24: ='8. P&L and Cashflow'!AF70 -> 0
C25: Ending | D25: =D20-D23+D24 -> 0 | E25: =E20-E23+E24 -> 0 | F25: 0 | G25: 0 | H25: 0 | I25: 0 | J25: 0 | K25: 0 | L25: 0 | M25: 0 | N25: 0 | O25: 0 | P25: =P20-P23+P24 -> 0 | Q25: =Q20-Q23+Q24 -> 0 | R25: =R20-R23+R24 -> 0 | S25: =S20-S23+S24 -> 0 | T25: =T20-T23+T24 -> 0 | U25: =U20-U23+U24 -> 0 | V25: =V20-V23+V24 -> 0 | W25: =W20-W23+W24 -> 0 | X25: =X20-X23+X24 -> 0 | Y25: =Y20-Y23+Y24 -> 0 | Z25: =Z20-Z23+Z24 -> 0 | AA25: =AA20-AA23+AA24 -> 0 | AB25: =AB20-AB23+AB24 -> 0 | AC25: =AC20-AC23+AC24 -> 0 | AD25: =AD20-AD23+AD24 -> 0 | AE25: =AE20-AE23+AE24 -> 0 | AF25: =AF20-AF23+AF24 -> 0 | AG25: =AG20-AG23+AG24 -> 0 | AH25: =AH20-AH23+AH24 -> 0 | AI25: =AI20-AI23+AI24 -> 0 | AJ25: =AJ20-AJ23+AJ24 -> 0 | AK25: =AK20-AK23+AK24 -> 0 | AL25: =AL20-AL23+AL24 -> 0 | AM25: =AM20-AM23+AM24 -> 0 | AN25: =AN20-AN23+AN24 -> 0 | AO25: =AO20-AO23+AO24 -> 0 | AP25: =AP20-AP23+AP24 -> 0 | AQ25: =AQ20-AQ23+AQ24 -> 0 | AR25: =AR20-AR23+AR24 -> 0 | AS25: =AS20-AS23+AS24 -> 0 | AT25: =AT20-AT23+AT24 -> 0 | AU25: =AU20-AU23+AU24 -> 0 | AV25: =AV20-AV23+AV24 -> 0 | AW25: =AW20-AW23+AW24 -> 0 | AX25: =AX20-AX23+AX24 -> 0 | AY25: =AY20-AY23+AY24 -> 0 | AZ25: =AZ20-AZ23+AZ24 -> 0 | BA25: =BA20-BA23+BA24 -> 0 | BB25: =BB20-BB23+BB24 -> 0 | BC25: =BC20-BC23+BC24 -> 0 | BD25: =BD20-BD23+BD24 -> 0 | BE25: =BE20-BE23+BE24 -> 0 | BF25: 0 | BG25: 0 | BH25: 0 | BI25: 0 | BJ25: 0 | BK25: 0 | BL25: 0 | BM25: 0 | BN25: 0 | BO25: 0 | BP25: =BP20-BP23+BP24 -> 0
A27: Total Funding Amounts
C28: Interest Paid | D28: =D6+D14+D21 -> 150 | E28: =E6+E14+E21 -> 146.9981684 | F28: 143.9804122 | G28: 140.9466467 | H28: 137.8967865 | I28: 134.8307459 | J28: 131.7484386 | K28: 128.6497779 | L28: 125.5346766 | M28: 122.4030472 | N28: 119.2548016 | O28: 116.0898512 | P28: 1598.333353 | Q28: 112.908107 | R28: 109.7094794 | S28: 106.4938785 | T28: 103.2612137 | U28: 100.0113943 | V28: 96.74432862 | W28: 93.45992484 | X28: 90.15809052 | Y28: 86.83873274 | Z28: 83.50175809 | AA28: 80.14707265 | AB28: 76.77458202 | AC28: 1140.008562 | AD28: 73.38419127 | AE28: 69.97580497 | AF28: 66.54932719 | AG28: 63.10466148 | AH28: 59.64171086 | AI28: 56.16037786 | AJ28: 52.66056446 | AK28: 49.14217213 | AL28: 45.60510182 | AM28: 42.04925392 | AN28: 38.47452834 | AO28: 34.88082439 | AP28: 651.6285187 | AQ28: 31.26804089 | AR28: 30.95638475 | AS28: 30.64343004 | AT28: 30.32917135 | AU28: 30.01360325 | AV28: 29.69672028 | AW28: 29.37851697 | AX28: 29.05898781 | AY28: 28.73812728 | AZ28: 28.41592983 | BA28: 28.09238989 | BB28: 27.76750187 | BC28: 354.3588042 | BD28: 27.44126015 | BE28: 27.11365909 | BF28: 26.78469302 | BG28: 26.45435626 | BH28: 26.1226431 | BI28: 25.7895478 | BJ28: 25.4550646 | BK28: 25.11918772 | BL28: 24.78191136 | BM28: 24.44322967 | BN28: 24.10313682 | BO28: 23.76162691 | BP28: 307.3703165
C29: Principal | D29: =D7+D15+D23 -> 3069.045573 | E29: =E7+E15+E23 -> 572.0474044 | F29: 575.0651605 | G29: 578.098926 | H29: 581.1487862 | I29: 584.2148269 | J29: 587.2971342 | K29: 590.3957949 | L29: 593.5108961 | M29: 596.6425255 | N29: 599.7907711 | O29: 602.9557216 | P29: 9530.21352 | Q29: 606.1374658 | R29: 609.3360934 | S29: 612.5516943 | T29: 615.784359 | U29: 619.0341785 | V29: 622.3012441 | W29: 625.5856479 | X29: 628.8874823 | Y29: 632.20684 | Z29: 635.5438147 | AA29: 638.8985001 | AB29: 642.2709908 | AC29: 7488.538311 | AD29: 645.6613815 | AE29: 649.0697678 | AF29: 652.4962456 | AG29: 655.9409113 | AH29: 659.4038619 | AI29: 662.8851949 | AJ29: 666.3850083 | AK29: 669.9034006 | AL29: 673.440471 | AM29: 676.9963188 | AN29: 680.5710444 | AO29: 684.1647484 | AP29: 7976.918355 | AQ29: 74.79747435 | AR29: 75.10913049 | AS29: 75.4220852 | AT29: 75.73634389 | AU29: 76.05191199 | AV29: 76.36879495 | AW29: 76.68699827 | AX29: 77.00652743 | AY29: 77.32738796 | AZ29: 77.64958541 | BA29: 77.97312535 | BB29: 78.29801337 | BC29: 918.4273786 | BD29: 78.62425509 | BE29: 78.95185615 | BF29: 79.28082222 | BG29: 79.61115898 | BH29: 79.94287214 | BI29: 80.27596744 | BJ29: 80.61045064 | BK29: 80.94632752 | BL29: 81.28360388 | BM29: 81.62228557 | BN29: 81.96237842 | BO29: 82.30388833 | BP29: 965.4158664
C31: Outstanding Principal | D31: =D8+D16 -> 29430.95443 | E31: =E8+E16 -> 28858.90702 | F31: 28283.84186 | G31: 27705.74294 | H31: 27124.59415 | I31: 26540.37932 | J31: 25953.08219 | K31: 25362.68639 | L31: 24769.1755 | M31: 24172.53297 | N31: 23572.7422 | O31: 22969.78648 | P31: 22969.78648 | Q31: 22363.64901 | R31: 21754.31292 | S31: 21141.76123 | T31: 20525.97687 | U31: 19906.94269 | V31: 19284.64144 | W31: 18659.0558 | X31: 18030.16831 | Y31: 17397.96147 | Z31: 16762.41766 | AA31: 16123.51916 | AB31: 15481.24817 | AC31: 15481.24817 | AD31: 14835.58679 | AE31: 14186.51702 | AF31: 13534.02077 | AG31: 12878.07986 | AH31: 12218.676 | AI31: 11555.79081 | AJ31: 10889.4058 | AK31: 10219.5024 | AL31: 9546.061926 | AM31: 8869.065607 | AN31: 8188.494563 | AO31: 7504.329814 | AP31: 7504.329814 | AQ31: 7429.53234 | AR31: 7354.423209 | AS31: 7279.001124 | AT31: 7203.26478 | AU31: 7127.212868 | AV31: 7050.844073 | AW31: 6974.157075 | AX31: 6897.150548 | AY31: 6819.82316 | AZ31: 6742.173574 | BA31: 6664.200449 | BB31: 6585.902436 | BC31: 6585.902436 | BD31: 6507.27818 | BE31: 6428.326324 | BF31: 6349.045502 | BG31: 6269.434343 | BH31: 6189.491471 | BI31: 6109.215503 | BJ31: 6028.605053 | BK31: 5947.658725 | BL31: 5866.375121 | BM31: 5784.752836 | BN31: 5702.790457 | BO31: 5620.486569 | BP31: 5620.486569

Sheet BP Checklist (hidden)
A1: Section | B1: num | C1: Description | D1: question | E1: answer 1 | F1: answer 2 | G1: answer 3 | H1: action
A2: 2 | B2: 1 | C2: Name of Business | D2: checked if available
B3: 2 | C3: Type
